Workbook

Sheet YARIŞMA BİLGİLERİ
A2: Türkiye Atletizm Federasyonu İzmir Atletizm İl Temsilciliği
A14: =F19 -> Naili Moran Türkiye Atletizm Şampiyonası
A18: Yarışma Bilgileri
A19: Yarışma Adı : | F19: Naili Moran Türkiye Atletizm Şampiyonası
A20: Yarışmanın Yapıldığı İl : | F20: İzmir
A21: Kategori : | F21: 15 Yaş Kızlar
A22: Tarih : | F22: 14 - 15 Haziran 2014
A23: Katılan Sporcu Sayısı : | F23: 68

Sheet YARIŞMA PROGRAMI (hidden)
H1: Diskalifiye Nedenleri ve Kural Numaraları
B2: ='YARIŞMA BİLGİLERİ'!F19 -> Naili Moran Türkiye Atletizm Şampiyonası
B3: YARIŞMA PROGRAMI
B4: Bakmak istediğiniz branş üzerine "Tıkla"yınız… | H4: KURAL 125.5 : Yarışmalar esnasında sportmenlik dışı davranışlarda bulunan sporcu IAAF Kural 125.5 gereği diskalifiye edilecektir. Sporcunun yarışmanın devamındaki diğer branşlara katılması da engellenecektir. “Bu kurala göre diskalifiye edilen atletin, diskalifiye edildiği yarıştaki dereceleri geçersizdir.” Yarışma sonucunda o atletin karşısında sadece “DQ 125.5” yazacak. Tüm uyarılar ve diskalifikasyonlar (yani sarı ve kırmızı kartlar) yarışma sekreterliğine ve tüm başhakemlere bildirilecektir.
B5: ='YARIŞMA BİLGİLERİ'!F21 -> 15 Yaş Kızlar | D5: 1.GÜN | H5: KURAL 144.2 : Yarışma sırasında kurallar dışında yardım alan veya yardım veren atlet, başhakem tarafından önce sarı kartla uyarılır, tekrarı halinde IAAF Kural 144.2’ye göre diskalifiye edİLİ-İLİr. Yarışma alanında telefon, telsiz, radyo, kasetçalar vb. cihazlar kullanılması, atlete avantaj sağlayacak şekilde yay, tekerlek vb. donanıma sahip ayakkabıların giyilmesi, atma aletlerinin normal ölçülerine eklerin yapılması, “kural dışı yardım” kabul edİLİ-İLİr. Mesafe koşularında tur yemiş ya da tur yemek üzere olan atletlerin tempo vermesi, IAAF Kural 144.2 çerçevesinde her iki atletin de diskalifiye edilmesini gerektirir.
B6: SAAT | C6: BRANŞ | D6: BARAJ DERECESİ | E6: REKOR | H6: KURAL 162.5 :Yerlerinize ya da dikkat komutundan sonra makul bir sürede pozisyon almayan ve yerlerinize komutundan sonra sesle ya da başka şekilde diğer atlet(ler)i rahatsız eden atlet(ler) önce sarı kart, tekrarı halinde kırmızı kart görür.” Eğer başhakem, starterin kararıyla mutabık değilse, tüm atletlere yeşil kart gösterİLİ-İLİr. Bu kural sadece starteri/start başhakemini ilgilendirir.
B7: 14 Haziran 2014 - 18:15 | C7: 100 Metre | H7: KURAL 162.7 : Hatalı çıkış yapan her atlet diskalifiye edİLİ-İLİr. Yarışmada ilk hatalı çıkışı yapan sporcu dahil, hatalı çıkış yapan tüm atletler IAAF Kural 162.7 gereği diskalifiye edilecektir.
B8: 14 Haziran 2014 - 20:15 | C8: 400 Metre | H8: KURAL 163.2 : Yarışma içerisinde bir sporcunun iterek veya çelme takarak, kasıtlı olarak bir başka sporcunun düşmesine neden olması diskalifiye sebebidir. Bunu yapan sporcu IAAF Kural 163.2 gereği diskalifiye edilecektir. (Bu tip olaylarda yardımcı hakem sarı bayrağını kaldıracak ve başhakemi bilgilendirecektir. Diskalifiye olup olmayacağına başhakem karar verecektir.)
B9: 14 Haziran 2014 - 19:15 | C9: 1500 Metre | H9: KURAL 163.3 : Kulvarlı koşuların tamamında sporcu, yarışmayı çıkıştan varışa kadar kendi kulvarında koşmak zorundadır. Virajda kendi kulvarının solundaki kulvara geçen ya da o kulvarın çizgisine temas eden atlet, IAAF Kural 163.3 gereği diskalifiye edilecektir. Ancak sporcu yarışma içerisinde başkası tarafından itilmek veya dengesinin bozulması sonucu kulvar değiştirmek zorunda kalırsa ve bu durum kendisine avantaj sağlamazsa diskalifiye söz konusu olmayacaktır. Düzlükte kendi kulvarının dışına çıkan ve kendisine mesafe avantajı sağlamayan atlet, bir diğer kulvardaki atleti engellememişse diskalifiye edilmez. Virajda kendi kulvarının sağındaki kulvara geçen ya da o kulvarın çizgisiyle temas eden atlet, o kulvarda koşan atleti engellememişse diskalifiye edilmez.
B10: 14 Haziran 2014 - 10:40 | C10: 80 Metre Engelli | H10: KURAL 163.3 : 800 metre koşusunda sporcular kendi kulvarlarını terk edecekleri çizgiye kadar, kulvarlarında koşmak zorundadır. Bu işaretli bölüme gelmeden kulvarını terk eden sporcu IAAF Kural 163.3 gereği diskalifiye edilecektir.
B11: 14 Haziran 2014 - 18:45 | C11: Yüksek Atlama | H11: KURAL 163.3 : 4*400 metre bayrak yarışmasında ikinci sıradaki sporcu kulvar farkı sona erinceye kadar (ilk dönemeç) kendi kulvarında koşacaktır. Bu noktaya gelene kadar kulvar ihlali yapan sporcunun takımı IAAF Kural 163.3 gereği diskalifiye edilecektir
B12: 14 Haziran 2014 - 11:00 | C12: Uzun Atlama A Grubu | H12: KURAL 168.7 : Engel yarışmalarında engel geçişi esnasında ayağını engelin üst kısmının yatay düzeyinin aşağısından geçiren, eli veya ayağı ile engeli kasten deviren ve her ne sebeple olursa olsun engel üzerinden geçmeyen sporcu IAAF Kural 168.7 gereği diskalifiye edilecektir.
B13: 14 Haziran 2014 - 11:00 | C13: Uzun Atlama B Grubu | H13: KURAL 170.9 : 4*400 metre bayrak yarışmasında 3. ve 4. sporcular; kendilerinden önceki takım elemanlarının 200 metreyi geçiş durumuna göre sıralanacaklar ve bu sıralamayı bayrak değişim anına kadar değiştirdikleri takdirde takımları IAAF Kural 170.9 gereği diskalifiye edilecektir.
B14: 14 Haziran 2014 - 18:45 | C14: Disk Atma | H14: KURAL 170.13 : Bayrak yarışmalarında bayrağın yere düşmesi halinde, bayrağı düşüren atlet alacaktır. Bayrağı düşüren atletin dışında bir atletin alması, IAAF Kural 170.13’e göre takımın diskalifiye edilmesine neden olur. Bayrağı düşüren atlet, bayrağı yerden alırken koşulan mesafeyi kısaltır ya da bir başka kulvardaki atleti engellerse, yine bu kural çerçevesinde takımı diskalifiye edİLİ-İLİr.
B15: ='YARIŞMA BİLGİLERİ'!F21 -> 15 Yaş Kızlar | D15: 2.GÜN | H15: KURAL 170.14 : Bayrak yarışmalarında bayrağın değişim sahasının dışında değiştirilmesi durumunda hatalı değişimi yapan takım IAAF Kural 170.14 gereği diskalifiye edilecektir. Bu noktada dikkat edilmesi gereken en önemli husus sporcunun değil, bayrağın değişim alanı içerisinde olmasıdır.
B16: SAAT | C16: BRANŞ | D16: BARAJ DERECESİ | E16: REKOR | H16: Uluslararası kısaltmalar
B17: 15 Haziran 2014 - 12:00 | C17: 200 Metre | H17: DNS : Yarışa başlamadı
B18: 15 Haziran 2014 - 10:30 | C18: 800 Metre | H18: DNF : Yarışı tamamlamadı
B19: 15 Haziran 2014 - 09:30 | C19: 3000 Metre | H19: DQ : Diskalifiye
B20: 15 Haziran 2014 - 13:15 | C20: 300 Metre Engelli | H20: NM : Geçerli derecesi yok
B21: 14 Haziran 2014 - 20:00 | C21: Üçadım Atlama | H21: Türkiye Rekoru Kısaltmaları
B22: 15 Haziran 2014 - 11:15 | C22: Sırıkla Atlama | H22: TR : Türkiye Rekoru
B23: 14 Haziran 2014 - 11:15 | C23: Gülle Atma | H23: GTR : Türkiye Gençler Rekoru
B24: 15 Haziran 2014 - 09:30 | C24: Cirit Atma | H24: YTR : Türkiye Yıldızlar Rekoru
B25: 14 Haziran 2014 - 17:00 | C25: Çekiç Atma
B26: 15 Haziran 2014 - 13:45 | C26: Genel Puan Durumu

Sheet 1.Gün Start Listesi (hidden)
A1: =('YARIŞMA BİLGİLERİ'!A2) -> Türkiye Atletizm Federasyonu İzmir Atletizm İl Temsilciliği
A2: ='YARIŞMA BİLGİLERİ'!F19 -> Naili Moran Türkiye Atletizm Şampiyonası
A3: 1.GÜN GENÇ ERKEKLER START LİSTELERİ
A4: 100 METRE | J4: 400 METRE
A5: 1. SERİ | I5: SIRA NO | J5: 1. SERİ
A6: Sıra No | B6: Formül | C6: Göğüs No | D6: Doğum Tarihi | E6: Adı ve Soyadı | F6: Okulu | G6: Start Kontrol | J6: Sıra No | K6: Formül | L6: Göğüs No | M6: Doğum Tarihi | N6: Adı ve Soyadı | O6: Okulu | P6: Start Kontrol
A7: 1 | B7: 100M-1-1 | C7: =IF(ISERROR(VLOOKUP(B7,'KAYIT LİSTESİ'!$B$4:$H$767,2,0)),"",(VLOOKUP(B7,'KAYIT LİSTESİ'!$B$4:$H$767,2,0))) -> 674 | D7: =IF(ISERROR(VLOOKUP(B7,'KAYIT LİSTESİ'!$B$4:$H$767,4,0)),"",(VLOOKUP(B7,'KAYIT LİSTESİ'!$B$4:$H$767,4,0))) -> 1999-04-27 | E7: =IF(ISERROR(VLOOKUP(B7,'KAYIT LİSTESİ'!$B$4:$H$767,5,0)),"",(VLOOKUP(B7,'KAYIT LİSTESİ'!$B$4:$H$767,5,0))) -> PINAR DOĞRU | F7: =IF(ISERROR(VLOOKUP(B7,'KAYIT LİSTESİ'!$B$4:$H$767,6,0)),"",(VLOOKUP(B7,'KAYIT LİSTESİ'!$B$4:$H$767,6,0))) -> TEKİRDAĞ | I7: 1 | J7: 1 | K7: 400M-1-1 | L7: =IF(ISERROR(VLOOKUP(K7,'KAYIT LİSTESİ'!$B$4:$H$767,2,0)),"",(VLOOKUP(K7,'KAYIT LİSTESİ'!$B$4:$H$767,2,0))) -> 388 | M7: =IF(ISERROR(VLOOKUP(K7,'KAYIT LİSTESİ'!$B$4:$H$767,4,0)),"",(VLOOKUP(K7,'KAYIT LİSTESİ'!$B$4:$H$767,4,0))) -> 1999-01-01 | N7: =IF(ISERROR(VLOOKUP(K7,'KAYIT LİSTESİ'!$B$4:$H$767,5,0)),"",(VLOOKUP(K7,'KAYIT LİSTESİ'!$B$4:$H$767,5,0))) -> DİDEM BARDAKÇI | O7: =IF(ISERROR(VLOOKUP(K7,'KAYIT LİSTESİ'!$B$4:$H$767,6,0)),"",(VLOOKUP(K7,'KAYIT LİSTESİ'!$B$4:$H$767,6,0))) -> İZMİR
A8: 2 | B8: 100M-1-2 | C8: =IF(ISERROR(VLOOKUP(B8,'KAYIT LİSTESİ'!$B$4:$H$767,2,0)),"",(VLOOKUP(B8,'KAYIT LİSTESİ'!$B$4:$H$767,2,0))) -> 300 | D8: =IF(ISERROR(VLOOKUP(B8,'KAYIT LİSTESİ'!$B$4:$H$767,4,0)),"",(VLOOKUP(B8,'KAYIT LİSTESİ'!$B$4:$H$767,4,0))) -> 1999-08-13 | E8: =IF(ISERROR(VLOOKUP(B8,'KAYIT LİSTESİ'!$B$4:$H$767,5,0)),"",(VLOOKUP(B8,'KAYIT LİSTESİ'!$B$4:$H$767,5,0))) -> ŞEYMA BİRİNCİ | F8: =IF(ISERROR(VLOOKUP(B8,'KAYIT LİSTESİ'!$B$4:$H$767,6,0)),"",(VLOOKUP(B8,'KAYIT LİSTESİ'!$B$4:$H$767,6,0))) -> GİRESUN | I8: 2 | J8: 2 | K8: 400M-1-2 | L8: =IF(ISERROR(VLOOKUP(K8,'KAYIT LİSTESİ'!$B$4:$H$767,2,0)),"",(VLOOKUP(K8,'KAYIT LİSTESİ'!$B$4:$H$767,2,0))) -> 140 | M8: =IF(ISERROR(VLOOKUP(K8,'KAYIT LİSTESİ'!$B$4:$H$767,4,0)),"",(VLOOKUP(K8,'KAYIT LİSTESİ'!$B$4:$H$767,4,0))) -> 1999-03-26 | N8: =IF(ISERROR(VLOOKUP(K8,'KAYIT LİSTESİ'!$B$4:$H$767,5,0)),"",(VLOOKUP(K8,'KAYIT LİSTESİ'!$B$4:$H$767,5,0))) -> MAŞALLAH AYDIN | O8: =IF(ISERROR(VLOOKUP(K8,'KAYIT LİSTESİ'!$B$4:$H$767,6,0)),"",(VLOOKUP(K8,'KAYIT LİSTESİ'!$B$4:$H$767,6,0))) -> BATMAN
A9: 3 | B9: 100M-1-3 | C9: =IF(ISERROR(VLOOKUP(B9,'KAYIT LİSTESİ'!$B$4:$H$767,2,0)),"",(VLOOKUP(B9,'KAYIT LİSTESİ'!$B$4:$H$767,2,0))) -> 383 | D9: =IF(ISERROR(VLOOKUP(B9,'KAYIT LİSTESİ'!$B$4:$H$767,4,0)),"",(VLOOKUP(B9,'KAYIT LİSTESİ'!$B$4:$H$767,4,0))) -> 1999-06-14 | E9: =IF(ISERROR(VLOOKUP(B9,'KAYIT LİSTESİ'!$B$4:$H$767,5,0)),"",(VLOOKUP(B9,'KAYIT LİSTESİ'!$B$4:$H$767,5,0))) -> MELİS ÇİÇEK | F9: =IF(ISERROR(VLOOKUP(B9,'KAYIT LİSTESİ'!$B$4:$H$767,6,0)),"",(VLOOKUP(B9,'KAYIT LİSTESİ'!$B$4:$H$767,6,0))) -> İZMİR | I9: 3 | J9: 3 | K9: 400M-1-3 | L9: =IF(ISERROR(VLOOKUP(K9,'KAYIT LİSTESİ'!$B$4:$H$767,2,0)),"",(VLOOKUP(K9,'KAYIT LİSTESİ'!$B$4:$H$767,2,0))) -> 197 | M9: =IF(ISERROR(VLOOKUP(K9,'KAYIT LİSTESİ'!$B$4:$H$767,4,0)),"",(VLOOKUP(K9,'KAYIT LİSTESİ'!$B$4:$H$767,4,0))) -> 1999-10-12 | N9: =IF(ISERROR(VLOOKUP(K9,'KAYIT LİSTESİ'!$B$4:$H$767,5,0)),"",(VLOOKUP(K9,'KAYIT LİSTESİ'!$B$4:$H$767,5,0))) -> AYŞE CAN | O9: =IF(ISERROR(VLOOKUP(K9,'KAYIT LİSTESİ'!$B$4:$H$767,6,0)),"",(VLOOKUP(K9,'KAYIT LİSTESİ'!$B$4:$H$767,6,0))) -> BURSA
A10: 4 | B10: 100M-1-4 | C10: =IF(ISERROR(VLOOKUP(B10,'KAYIT LİSTESİ'!$B$4:$H$767,2,0)),"",(VLOOKUP(B10,'KAYIT LİSTESİ'!$B$4:$H$767,2,0))) -> 524 | D10: =IF(ISERROR(VLOOKUP(B10,'KAYIT LİSTESİ'!$B$4:$H$767,4,0)),"",(VLOOKUP(B10,'KAYIT LİSTESİ'!$B$4:$H$767,4,0))) -> 1999-01-08 | E10: =IF(ISERROR(VLOOKUP(B10,'KAYIT LİSTESİ'!$B$4:$H$767,5,0)),"",(VLOOKUP(B10,'KAYIT LİSTESİ'!$B$4:$H$767,5,0))) -> Habibe Tokay | F10: =IF(ISERROR(VLOOKUP(B10,'KAYIT LİSTESİ'!$B$4:$H$767,6,0)),"",(VLOOKUP(B10,'KAYIT LİSTESİ'!$B$4:$H$767,6,0))) -> KONYA | I10: 4 | J10: 4 | K10: 400M-1-4 | L10: =IF(ISERROR(VLOOKUP(K10,'KAYIT LİSTESİ'!$B$4:$H$767,2,0)),"",(VLOOKUP(K10,'KAYIT LİSTESİ'!$B$4:$H$767,2,0))) -> 463 | M10: =IF(ISERROR(VLOOKUP(K10,'KAYIT LİSTESİ'!$B$4:$H$767,4,0)),"",(VLOOKUP(K10,'KAYIT LİSTESİ'!$B$4:$H$767,4,0))) -> 1999-06-18 | N10: =IF(ISERROR(VLOOKUP(K10,'KAYIT LİSTESİ'!$B$4:$H$767,5,0)),"",(VLOOKUP(K10,'KAYIT LİSTESİ'!$B$4:$H$767,5,0))) -> SEHER AKKUŞ | O10: =IF(ISERROR(VLOOKUP(K10,'KAYIT LİSTESİ'!$B$4:$H$767,6,0)),"",(VLOOKUP(K10,'KAYIT LİSTESİ'!$B$4:$H$767,6,0))) -> KARAMAN
A11: 5 | B11: 100M-1-5 | C11: =IF(ISERROR(VLOOKUP(B11,'KAYIT LİSTESİ'!$B$4:$H$767,2,0)),"",(VLOOKUP(B11,'KAYIT LİSTESİ'!$B$4:$H$767,2,0))) -> 360 | D11: =IF(ISERROR(VLOOKUP(B11,'KAYIT LİSTESİ'!$B$4:$H$767,4,0)),"",(VLOOKUP(B11,'KAYIT LİSTESİ'!$B$4:$H$767,4,0))) -> 1999-01-22 | E11: =IF(ISERROR(VLOOKUP(B11,'KAYIT LİSTESİ'!$B$4:$H$767,5,0)),"",(VLOOKUP(B11,'KAYIT LİSTESİ'!$B$4:$H$767,5,0))) -> ELİF POLAT (İSTANBUL) | F11: =IF(ISERROR(VLOOKUP(B11,'KAYIT LİSTESİ'!$B$4:$H$767,6,0)),"",(VLOOKUP(B11,'KAYIT LİSTESİ'!$B$4:$H$767,6,0))) -> İSTANBUL | I11: 5 | J11: 5 | K11: 400M-1-5 | L11: =IF(ISERROR(VLOOKUP(K11,'KAYIT LİSTESİ'!$B$4:$H$767,2,0)),"",(VLOOKUP(K11,'KAYIT LİSTESİ'!$B$4:$H$767,2,0))) -> 38 | M11: =IF(ISERROR(VLOOKUP(K11,'KAYIT LİSTESİ'!$B$4:$H$767,4,0)),"",(VLOOKUP(K11,'KAYIT LİSTESİ'!$B$4:$H$767,4,0))) -> 1999-04-28 | N11: =IF(ISERROR(VLOOKUP(K11,'KAYIT LİSTESİ'!$B$4:$H$767,5,0)),"",(VLOOKUP(K11,'KAYIT LİSTESİ'!$B$4:$H$767,5,0))) -> GÜLÇİN DİKER | O11: =IF(ISERROR(VLOOKUP(K11,'KAYIT LİSTESİ'!$B$4:$H$767,6,0)),"",(VLOOKUP(K11,'KAYIT LİSTESİ'!$B$4:$H$767,6,0))) -> AKSARAY
A12: 6 | B12: 100M-1-6 | C12: =IF(ISERROR(VLOOKUP(B12,'KAYIT LİSTESİ'!$B$4:$H$767,2,0)),"",(VLOOKUP(B12,'KAYIT LİSTESİ'!$B$4:$H$767,2,0))) -> 385 | D12: =IF(ISERROR(VLOOKUP(B12,'KAYIT LİSTESİ'!$B$4:$H$767,4,0)),"",(VLOOKUP(B12,'KAYIT LİSTESİ'!$B$4:$H$767,4,0))) -> 1999-04-01 | E12: =IF(ISERROR(VLOOKUP(B12,'KAYIT LİSTESİ'!$B$4:$H$767,5,0)),"",(VLOOKUP(B12,'KAYIT LİSTESİ'!$B$4:$H$767,5,0))) -> FADİME YEŞİLMEN | F12: =IF(ISERROR(VLOOKUP(B12,'KAYIT LİSTESİ'!$B$4:$H$767,6,0)),"",(VLOOKUP(B12,'KAYIT LİSTESİ'!$B$4:$H$767,6,0))) -> İZMİR | I12: 6 | J12: 6 | K12: 400M-1-6 | L12: =IF(ISERROR(VLOOKUP(K12,'KAYIT LİSTESİ'!$B$4:$H$767,2,0)),"",(VLOOKUP(K12,'KAYIT LİSTESİ'!$B$4:$H$767,2,0))) -> 99 | M12: =IF(ISERROR(VLOOKUP(K12,'KAYIT LİSTESİ'!$B$4:$H$767,4,0)),"",(VLOOKUP(K12,'KAYIT LİSTESİ'!$B$4:$H$767,4,0))) -> 1999-08-10 | N12: =IF(ISERROR(VLOOKUP(K12,'KAYIT LİSTESİ'!$B$4:$H$767,5,0)),"",(VLOOKUP(K12,'KAYIT LİSTESİ'!$B$4:$H$767,5,0))) -> EMİNE HİLAL ÇETİNKAYA | O12: =IF(ISERROR(VLOOKUP(K12,'KAYIT LİSTESİ'!$B$4:$H$767,6,0)),"",(VLOOKUP(K12,'KAYIT LİSTESİ'!$B$4:$H$767,6,0))) -> BALIKESİR
A13: 7 | B13: 100M-1-7 | C13: =IF(ISERROR(VLOOKUP(B13,'KAYIT LİSTESİ'!$B$4:$H$767,2,0)),"",(VLOOKUP(B13,'KAYIT LİSTESİ'!$B$4:$H$767,2,0))) -> 675 | D13: =IF(ISERROR(VLOOKUP(B13,'KAYIT LİSTESİ'!$B$4:$H$767,4,0)),"",(VLOOKUP(B13,'KAYIT LİSTESİ'!$B$4:$H$767,4,0))) -> 1999-05-27 | E13: =IF(ISERROR(VLOOKUP(B13,'KAYIT LİSTESİ'!$B$4:$H$767,5,0)),"",(VLOOKUP(B13,'KAYIT LİSTESİ'!$B$4:$H$767,5,0))) -> BEGÜM YILMAZ | F13: =IF(ISERROR(VLOOKUP(B13,'KAYIT LİSTESİ'!$B$4:$H$767,6,0)),"",(VLOOKUP(B13,'KAYIT LİSTESİ'!$B$4:$H$767,6,0))) -> TEKİRDAĞ | I13: 7 | J13: 7 | K13: 400M-1-7 | L13: =IF(ISERROR(VLOOKUP(K13,'KAYIT LİSTESİ'!$B$4:$H$767,2,0)),"",(VLOOKUP(K13,'KAYIT LİSTESİ'!$B$4:$H$767,2,0))) -> 141 | M13: =IF(ISERROR(VLOOKUP(K13,'KAYIT LİSTESİ'!$B$4:$H$767,4,0)),"",(VLOOKUP(K13,'KAYIT LİSTESİ'!$B$4:$H$767,4,0))) -> 1999-01-01 | N13: =IF(ISERROR(VLOOKUP(K13,'KAYIT LİSTESİ'!$B$4:$H$767,5,0)),"",(VLOOKUP(K13,'KAYIT LİSTESİ'!$B$4:$H$767,5,0))) -> DİLAN AYTEN | O13: =IF(ISERROR(VLOOKUP(K13,'KAYIT LİSTESİ'!$B$4:$H$767,6,0)),"",(VLOOKUP(K13,'KAYIT LİSTESİ'!$B$4:$H$767,6,0))) -> BATMAN
A14: 8 | B14: 100M-1-8 | C14: =IF(ISERROR(VLOOKUP(B14,'KAYIT LİSTESİ'!$B$4:$H$767,2,0)),"",(VLOOKUP(B14,'KAYIT LİSTESİ'!$B$4:$H$767,2,0))) -> 186 | D14: =IF(ISERROR(VLOOKUP(B14,'KAYIT LİSTESİ'!$B$4:$H$767,4,0)),"",(VLOOKUP(B14,'KAYIT LİSTESİ'!$B$4:$H$767,4,0))) -> 1999-09-10 | E14: =IF(ISERROR(VLOOKUP(B14,'KAYIT LİSTESİ'!$B$4:$H$767,5,0)),"",(VLOOKUP(B14,'KAYIT LİSTESİ'!$B$4:$H$767,5,0))) -> ZİNNUR ONAT | F14: =IF(ISERROR(VLOOKUP(B14,'KAYIT LİSTESİ'!$B$4:$H$767,6,0)),"",(VLOOKUP(B14,'KAYIT LİSTESİ'!$B$4:$H$767,6,0))) -> BOLU | I14: 8 | J14: 8 | K14: 400M-1-8 | L14: =IF(ISERROR(VLOOKUP(K14,'KAYIT LİSTESİ'!$B$4:$H$767,2,0)),"",(VLOOKUP(K14,'KAYIT LİSTESİ'!$B$4:$H$767,2,0))) ->  | M14: =IF(ISERROR(VLOOKUP(K14,'KAYIT LİSTESİ'!$B$4:$H$767,4,0)),"",(VLOOKUP(K14,'KAYIT LİSTESİ'!$B$4:$H$767,4,0))) ->  | N14: =IF(ISERROR(VLOOKUP(K14,'KAYIT LİSTESİ'!$B$4:$H$767,5,0)),"",(VLOOKUP(K14,'KAYIT LİSTESİ'!$B$4:$H$767,5,0))) ->  | O14: =IF(ISERROR(VLOOKUP(K14,'KAYIT LİSTESİ'!$B$4:$H$767,6,0)),"",(VLOOKUP(K14,'KAYIT LİSTESİ'!$B$4:$H$767,6,0))) -> 
A15: 2. SERİ | I15: 9 | J15: 2. SERİ
A16: Sıra No | B16: Formül | C16: Göğüs No | D16: Doğum Tarihi | E16: Adı ve Soyadı | F16: Okulu | G16: Start Kontrol | I16: 10 | J16: Sıra No | K16: Formül | L16: Göğüs No | M16: Doğum Tarihi | N16: Adı ve Soyadı | O16: Okulu | P16: Start Kontrol
A17: 1 | B17: 100M-2-1 | C17: =IF(ISERROR(VLOOKUP(B17,'KAYIT LİSTESİ'!$B$4:$H$767,2,0)),"",(VLOOKUP(B17,'KAYIT LİSTESİ'!$B$4:$H$767,2,0))) -> 387 | D17: =IF(ISERROR(VLOOKUP(B17,'KAYIT LİSTESİ'!$B$4:$H$767,4,0)),"",(VLOOKUP(B17,'KAYIT LİSTESİ'!$B$4:$H$767,4,0))) -> 1999-11-07 | E17: =IF(ISERROR(VLOOKUP(B17,'KAYIT LİSTESİ'!$B$4:$H$767,5,0)),"",(VLOOKUP(B17,'KAYIT LİSTESİ'!$B$4:$H$767,5,0))) -> H. CEREN YAKIN | F17: =IF(ISERROR(VLOOKUP(B17,'KAYIT LİSTESİ'!$B$4:$H$767,6,0)),"",(VLOOKUP(B17,'KAYIT LİSTESİ'!$B$4:$H$767,6,0))) -> İZMİR | I17: 11 | J17: 1 | K17: 400M-2-1 | L17: =IF(ISERROR(VLOOKUP(K17,'KAYIT LİSTESİ'!$B$4:$H$767,2,0)),"",(VLOOKUP(K17,'KAYIT LİSTESİ'!$B$4:$H$767,2,0))) ->  | M17: =IF(ISERROR(VLOOKUP(K17,'KAYIT LİSTESİ'!$B$4:$H$767,4,0)),"",(VLOOKUP(K17,'KAYIT LİSTESİ'!$B$4:$H$767,4,0))) ->  | N17: =IF(ISERROR(VLOOKUP(K17,'KAYIT LİSTESİ'!$B$4:$H$767,5,0)),"",(VLOOKUP(K17,'KAYIT LİSTESİ'!$B$4:$H$767,5,0))) ->  | O17: =IF(ISERROR(VLOOKUP(K17,'KAYIT LİSTESİ'!$B$4:$H$767,6,0)),"",(VLOOKUP(K17,'KAYIT LİSTESİ'!$B$4:$H$767,6,0))) -> 
A18: 2 | B18: 100M-2-2 | C18: =IF(ISERROR(VLOOKUP(B18,'KAYIT LİSTESİ'!$B$4:$H$767,2,0)),"",(VLOOKUP(B18,'KAYIT LİSTESİ'!$B$4:$H$767,2,0))) -> 398 | D18: =IF(ISERROR(VLOOKUP(B18,'KAYIT LİSTESİ'!$B$4:$H$767,4,0)),"",(VLOOKUP(B18,'KAYIT LİSTESİ'!$B$4:$H$767,4,0))) -> 1999-05-27 | E18: =IF(ISERROR(VLOOKUP(B18,'KAYIT LİSTESİ'!$B$4:$H$767,5,0)),"",(VLOOKUP(B18,'KAYIT LİSTESİ'!$B$4:$H$767,5,0))) -> MELİSA KURBASEVİÇ | F18: =IF(ISERROR(VLOOKUP(B18,'KAYIT LİSTESİ'!$B$4:$H$767,6,0)),"",(VLOOKUP(B18,'KAYIT LİSTESİ'!$B$4:$H$767,6,0))) -> İZMİR | I18: 12 | J18: 2 | K18: 400M-2-2 | L18: =IF(ISERROR(VLOOKUP(K18,'KAYIT LİSTESİ'!$B$4:$H$767,2,0)),"",(VLOOKUP(K18,'KAYIT LİSTESİ'!$B$4:$H$767,2,0))) -> 585 | M18: =IF(ISERROR(VLOOKUP(K18,'KAYIT LİSTESİ'!$B$4:$H$767,4,0)),"",(VLOOKUP(K18,'KAYIT LİSTESİ'!$B$4:$H$767,4,0))) -> 1999-07-17 | N18: =IF(ISERROR(VLOOKUP(K18,'KAYIT LİSTESİ'!$B$4:$H$767,5,0)),"",(VLOOKUP(K18,'KAYIT LİSTESİ'!$B$4:$H$767,5,0))) -> BURCU KIZILIRMAK | O18: =IF(ISERROR(VLOOKUP(K18,'KAYIT LİSTESİ'!$B$4:$H$767,6,0)),"",(VLOOKUP(K18,'KAYIT LİSTESİ'!$B$4:$H$767,6,0))) -> NEVŞEHİR
A19: 3 | B19: 100M-2-3 | C19: =IF(ISERROR(VLOOKUP(B19,'KAYIT LİSTESİ'!$B$4:$H$767,2,0)),"",(VLOOKUP(B19,'KAYIT LİSTESİ'!$B$4:$H$767,2,0))) -> 689 | D19: =IF(ISERROR(VLOOKUP(B19,'KAYIT LİSTESİ'!$B$4:$H$767,4,0)),"",(VLOOKUP(B19,'KAYIT LİSTESİ'!$B$4:$H$767,4,0))) -> 1999-10-25 | E19: =IF(ISERROR(VLOOKUP(B19,'KAYIT LİSTESİ'!$B$4:$H$767,5,0)),"",(VLOOKUP(B19,'KAYIT LİSTESİ'!$B$4:$H$767,5,0))) -> TÜLAY BAKIR | F19: =IF(ISERROR(VLOOKUP(B19,'KAYIT LİSTESİ'!$B$4:$H$767,6,0)),"",(VLOOKUP(B19,'KAYIT LİSTESİ'!$B$4:$H$767,6,0))) -> TOKAT | I19: 13 | J19: 3 | K19: 400M-2-3 | L19: =IF(ISERROR(VLOOKUP(K19,'KAYIT LİSTESİ'!$B$4:$H$767,2,0)),"",(VLOOKUP(K19,'KAYIT LİSTESİ'!$B$4:$H$767,2,0))) -> 650 | M19: =IF(ISERROR(VLOOKUP(K19,'KAYIT LİSTESİ'!$B$4:$H$767,4,0)),"",(VLOOKUP(K19,'KAYIT LİSTESİ'!$B$4:$H$767,4,0))) -> 1999-07-30 | N19: =IF(ISERROR(VLOOKUP(K19,'KAYIT LİSTESİ'!$B$4:$H$767,5,0)),"",(VLOOKUP(K19,'KAYIT LİSTESİ'!$B$4:$H$767,5,0))) -> ESRA OYSAL | O19: =IF(ISERROR(VLOOKUP(K19,'KAYIT LİSTESİ'!$B$4:$H$767,6,0)),"",(VLOOKUP(K19,'KAYIT LİSTESİ'!$B$4:$H$767,6,0))) -> SİİRT
A20: 4 | B20: 100M-2-4 | C20: =IF(ISERROR(VLOOKUP(B20,'KAYIT LİSTESİ'!$B$4:$H$767,2,0)),"",(VLOOKUP(B20,'KAYIT LİSTESİ'!$B$4:$H$767,2,0))) -> 139 | D20: =IF(ISERROR(VLOOKUP(B20,'KAYIT LİSTESİ'!$B$4:$H$767,4,0)),"",(VLOOKUP(B20,'KAYIT LİSTESİ'!$B$4:$H$767,4,0))) -> 1999-01-01 | E20: =IF(ISERROR(VLOOKUP(B20,'KAYIT LİSTESİ'!$B$4:$H$767,5,0)),"",(VLOOKUP(B20,'KAYIT LİSTESİ'!$B$4:$H$767,5,0))) -> SULTAN CİHANGİR | F20: =IF(ISERROR(VLOOKUP(B20,'KAYIT LİSTESİ'!$B$4:$H$767,6,0)),"",(VLOOKUP(B20,'KAYIT LİSTESİ'!$B$4:$H$767,6,0))) -> BATMAN | I20: 14 | J20: 4 | K20: 400M-2-4 | L20: =IF(ISERROR(VLOOKUP(K20,'KAYIT LİSTESİ'!$B$4:$H$767,2,0)),"",(VLOOKUP(K20,'KAYIT LİSTESİ'!$B$4:$H$767,2,0))) -> 342 | M20: =IF(ISERROR(VLOOKUP(K20,'KAYIT LİSTESİ'!$B$4:$H$767,4,0)),"",(VLOOKUP(K20,'KAYIT LİSTESİ'!$B$4:$H$767,4,0))) -> 1999-08-04 | N20: =IF(ISERROR(VLOOKUP(K20,'KAYIT LİSTESİ'!$B$4:$H$767,5,0)),"",(VLOOKUP(K20,'KAYIT LİSTESİ'!$B$4:$H$767,5,0))) -> CANSEL TÜRE | O20: =IF(ISERROR(VLOOKUP(K20,'KAYIT LİSTESİ'!$B$4:$H$767,6,0)),"",(VLOOKUP(K20,'KAYIT LİSTESİ'!$B$4:$H$767,6,0))) -> ISPARTA
A21: 5 | B21: 100M-2-5 | C21: =IF(ISERROR(VLOOKUP(B21,'KAYIT LİSTESİ'!$B$4:$H$767,2,0)),"",(VLOOKUP(B21,'KAYIT LİSTESİ'!$B$4:$H$767,2,0))) -> 379 | D21: =IF(ISERROR(VLOOKUP(B21,'KAYIT LİSTESİ'!$B$4:$H$767,4,0)),"",(VLOOKUP(B21,'KAYIT LİSTESİ'!$B$4:$H$767,4,0))) -> 1999-07-09 | E21: =IF(ISERROR(VLOOKUP(B21,'KAYIT LİSTESİ'!$B$4:$H$767,5,0)),"",(VLOOKUP(B21,'KAYIT LİSTESİ'!$B$4:$H$767,5,0))) -> EYLÜL ÖZKAN | F21: =IF(ISERROR(VLOOKUP(B21,'KAYIT LİSTESİ'!$B$4:$H$767,6,0)),"",(VLOOKUP(B21,'KAYIT LİSTESİ'!$B$4:$H$767,6,0))) -> İZMİR | I21: 15 | J21: 5 | K21: 400M-2-5 | L21: =IF(ISERROR(VLOOKUP(K21,'KAYIT LİSTESİ'!$B$4:$H$767,2,0)),"",(VLOOKUP(K21,'KAYIT LİSTESİ'!$B$4:$H$767,2,0))) -> 210 | M21: =IF(ISERROR(VLOOKUP(K21,'KAYIT LİSTESİ'!$B$4:$H$767,4,0)),"",(VLOOKUP(K21,'KAYIT LİSTESİ'!$B$4:$H$767,4,0))) -> 1999-11-22 | N21: =IF(ISERROR(VLOOKUP(K21,'KAYIT LİSTESİ'!$B$4:$H$767,5,0)),"",(VLOOKUP(K21,'KAYIT LİSTESİ'!$B$4:$H$767,5,0))) -> BELİNAY DENİZ GÜZEL | O21: =IF(ISERROR(VLOOKUP(K21,'KAYIT LİSTESİ'!$B$4:$H$767,6,0)),"",(VLOOKUP(K21,'KAYIT LİSTESİ'!$B$4:$H$767,6,0))) -> ÇANAKKALE
A22: 6 | B22: 100M-2-6 | C22: =IF(ISERROR(VLOOKUP(B22,'KAYIT LİSTESİ'!$B$4:$H$767,2,0)),"",(VLOOKUP(B22,'KAYIT LİSTESİ'!$B$4:$H$767,2,0))) -> 336 | D22: =IF(ISERROR(VLOOKUP(B22,'KAYIT LİSTESİ'!$B$4:$H$767,4,0)),"",(VLOOKUP(B22,'KAYIT LİSTESİ'!$B$4:$H$767,4,0))) -> 1999-08-26 | E22: =IF(ISERROR(VLOOKUP(B22,'KAYIT LİSTESİ'!$B$4:$H$767,5,0)),"",(VLOOKUP(B22,'KAYIT LİSTESİ'!$B$4:$H$767,5,0))) -> AYŞE ŞAHİN | F22: =IF(ISERROR(VLOOKUP(B22,'KAYIT LİSTESİ'!$B$4:$H$767,6,0)),"",(VLOOKUP(B22,'KAYIT LİSTESİ'!$B$4:$H$767,6,0))) -> ISPARTA | I22: 16 | J22: 6 | K22: 400M-2-6 | L22: =IF(ISERROR(VLOOKUP(K22,'KAYIT LİSTESİ'!$B$4:$H$767,2,0)),"",(VLOOKUP(K22,'KAYIT LİSTESİ'!$B$4:$H$767,2,0))) -> 651 | M22: =IF(ISERROR(VLOOKUP(K22,'KAYIT LİSTESİ'!$B$4:$H$767,4,0)),"",(VLOOKUP(K22,'KAYIT LİSTESİ'!$B$4:$H$767,4,0))) -> 1999-10-09 | N22: =IF(ISERROR(VLOOKUP(K22,'KAYIT LİSTESİ'!$B$4:$H$767,5,0)),"",(VLOOKUP(K22,'KAYIT LİSTESİ'!$B$4:$H$767,5,0))) -> LEYLA TETİK | O22: =IF(ISERROR(VLOOKUP(K22,'KAYIT LİSTESİ'!$B$4:$H$767,6,0)),"",(VLOOKUP(K22,'KAYIT LİSTESİ'!$B$4:$H$767,6,0))) -> SİİRT
A23: 7 | B23: 100M-2-7 | C23: =IF(ISERROR(VLOOKUP(B23,'KAYIT LİSTESİ'!$B$4:$H$767,2,0)),"",(VLOOKUP(B23,'KAYIT LİSTESİ'!$B$4:$H$767,2,0))) -> 1 | D23: =IF(ISERROR(VLOOKUP(B23,'KAYIT LİSTESİ'!$B$4:$H$767,4,0)),"",(VLOOKUP(B23,'KAYIT LİSTESİ'!$B$4:$H$767,4,0))) -> 1999-01-01 | E23: =IF(ISERROR(VLOOKUP(B23,'KAYIT LİSTESİ'!$B$4:$H$767,5,0)),"",(VLOOKUP(B23,'KAYIT LİSTESİ'!$B$4:$H$767,5,0))) -> YAREN KURTAY | F23: =IF(ISERROR(VLOOKUP(B23,'KAYIT LİSTESİ'!$B$4:$H$767,6,0)),"",(VLOOKUP(B23,'KAYIT LİSTESİ'!$B$4:$H$767,6,0))) -> ADANA | I23: 17 | J23: 7 | K23: 400M-2-7 | L23: =IF(ISERROR(VLOOKUP(K23,'KAYIT LİSTESİ'!$B$4:$H$767,2,0)),"",(VLOOKUP(K23,'KAYIT LİSTESİ'!$B$4:$H$767,2,0))) -> 25 | M23: =IF(ISERROR(VLOOKUP(K23,'KAYIT LİSTESİ'!$B$4:$H$767,4,0)),"",(VLOOKUP(K23,'KAYIT LİSTESİ'!$B$4:$H$767,4,0))) -> 1999-02-01 | N23: =IF(ISERROR(VLOOKUP(K23,'KAYIT LİSTESİ'!$B$4:$H$767,5,0)),"",(VLOOKUP(K23,'KAYIT LİSTESİ'!$B$4:$H$767,5,0))) -> PINAR KARAHAN | O23: =IF(ISERROR(VLOOKUP(K23,'KAYIT LİSTESİ'!$B$4:$H$767,6,0)),"",(VLOOKUP(K23,'KAYIT LİSTESİ'!$B$4:$H$767,6,0))) -> ADIYAMAN
A24: 8 | B24: 100M-2-8 | C24: =IF(ISERROR(VLOOKUP(B24,'KAYIT LİSTESİ'!$B$4:$H$767,2,0)),"",(VLOOKUP(B24,'KAYIT LİSTESİ'!$B$4:$H$767,2,0))) -> 624 | D24: =IF(ISERROR(VLOOKUP(B24,'KAYIT LİSTESİ'!$B$4:$H$767,4,0)),"",(VLOOKUP(B24,'KAYIT LİSTESİ'!$B$4:$H$767,4,0))) -> 1999-11-03 | E24: =IF(ISERROR(VLOOKUP(B24,'KAYIT LİSTESİ'!$B$4:$H$767,5,0)),"",(VLOOKUP(B24,'KAYIT LİSTESİ'!$B$4:$H$767,5,0))) -> İLAYDA BULUT | F24: =IF(ISERROR(VLOOKUP(B24,'KAYIT LİSTESİ'!$B$4:$H$767,6,0)),"",(VLOOKUP(B24,'KAYIT LİSTESİ'!$B$4:$H$767,6,0))) -> SAKARYA | I24: 18 | J24: 8 | K24: 400M-2-8 | L24: =IF(ISERROR(VLOOKUP(K24,'KAYIT LİSTESİ'!$B$4:$H$767,2,0)),"",(VLOOKUP(K24,'KAYIT LİSTESİ'!$B$4:$H$767,2,0))) ->  | M24: =IF(ISERROR(VLOOKUP(K24,'KAYIT LİSTESİ'!$B$4:$H$767,4,0)),"",(VLOOKUP(K24,'KAYIT LİSTESİ'!$B$4:$H$767,4,0))) ->  | N24: =IF(ISERROR(VLOOKUP(K24,'KAYIT LİSTESİ'!$B$4:$H$767,5,0)),"",(VLOOKUP(K24,'KAYIT LİSTESİ'!$B$4:$H$767,5,0))) ->  | O24: =IF(ISERROR(VLOOKUP(K24,'KAYIT LİSTESİ'!$B$4:$H$767,6,0)),"",(VLOOKUP(K24,'KAYIT LİSTESİ'!$B$4:$H$767,6,0))) -> 
A25: 3. SERİ | I25: 19 | J25: 3. SERİ
A26: Sıra No | B26: Formül | C26: Göğüs No | D26: Doğum Tarihi | E26: Adı ve Soyadı | F26: Okulu | G26: Start Kontrol | I26: 20 | J26: Sıra No | K26: Formül | L26: Göğüs No | M26: Doğum Tarihi | N26: Adı ve Soyadı | O26: Okulu | P26: Start Kontrol
A27: 1 | B27: 100M-3-1 | C27: =IF(ISERROR(VLOOKUP(B27,'KAYIT LİSTESİ'!$B$4:$H$767,2,0)),"",(VLOOKUP(B27,'KAYIT LİSTESİ'!$B$4:$H$767,2,0))) ->  | D27: =IF(ISERROR(VLOOKUP(B27,'KAYIT LİSTESİ'!$B$4:$H$767,4,0)),"",(VLOOKUP(B27,'KAYIT LİSTESİ'!$B$4:$H$767,4,0))) ->  | E27: =IF(ISERROR(VLOOKUP(B27,'KAYIT LİSTESİ'!$B$4:$H$767,5,0)),"",(VLOOKUP(B27,'KAYIT LİSTESİ'!$B$4:$H$767,5,0))) ->  | F27: =IF(ISERROR(VLOOKUP(B27,'KAYIT LİSTESİ'!$B$4:$H$767,6,0)),"",(VLOOKUP(B27,'KAYIT LİSTESİ'!$B$4:$H$767,6,0))) ->  | I27: 21 | J27: 1 | K27: 400M-3-1 | L27: =IF(ISERROR(VLOOKUP(K27,'KAYIT LİSTESİ'!$B$4:$H$767,2,0)),"",(VLOOKUP(K27,'KAYIT LİSTESİ'!$B$4:$H$767,2,0))) ->  | M27: =IF(ISERROR(VLOOKUP(K27,'KAYIT LİSTESİ'!$B$4:$H$767,4,0)),"",(VLOOKUP(K27,'KAYIT LİSTESİ'!$B$4:$H$767,4,0))) ->  | N27: =IF(ISERROR(VLOOKUP(K27,'KAYIT LİSTESİ'!$B$4:$H$767,5,0)),"",(VLOOKUP(K27,'KAYIT LİSTESİ'!$B$4:$H$767,5,0))) ->  | O27: =IF(ISERROR(VLOOKUP(K27,'KAYIT LİSTESİ'!$B$4:$H$767,6,0)),"",(VLOOKUP(K27,'KAYIT LİSTESİ'!$B$4:$H$767,6,0))) -> 
A28: 2 | B28: 100M-3-2 | C28: =IF(ISERROR(VLOOKUP(B28,'KAYIT LİSTESİ'!$B$4:$H$767,2,0)),"",(VLOOKUP(B28,'KAYIT LİSTESİ'!$B$4:$H$767,2,0))) ->  | D28: =IF(ISERROR(VLOOKUP(B28,'KAYIT LİSTESİ'!$B$4:$H$767,4,0)),"",(VLOOKUP(B28,'KAYIT LİSTESİ'!$B$4:$H$767,4,0))) ->  | E28: =IF(ISERROR(VLOOKUP(B28,'KAYIT LİSTESİ'!$B$4:$H$767,5,0)),"",(VLOOKUP(B28,'KAYIT LİSTESİ'!$B$4:$H$767,5,0))) ->  | F28: =IF(ISERROR(VLOOKUP(B28,'KAYIT LİSTESİ'!$B$4:$H$767,6,0)),"",(VLOOKUP(B28,'KAYIT LİSTESİ'!$B$4:$H$767,6,0))) ->  | I28: 22 | J28: 2 | K28: 400M-3-2 | L28: =IF(ISERROR(VLOOKUP(K28,'KAYIT LİSTESİ'!$B$4:$H$767,2,0)),"",(VLOOKUP(K28,'KAYIT LİSTESİ'!$B$4:$H$767,2,0))) ->  | M28: =IF(ISERROR(VLOOKUP(K28,'KAYIT LİSTESİ'!$B$4:$H$767,4,0)),"",(VLOOKUP(K28,'KAYIT LİSTESİ'!$B$4:$H$767,4,0))) ->  | N28: =IF(ISERROR(VLOOKUP(K28,'KAYIT LİSTESİ'!$B$4:$H$767,5,0)),"",(VLOOKUP(K28,'KAYIT LİSTESİ'!$B$4:$H$767,5,0))) ->  | O28: =IF(ISERROR(VLOOKUP(K28,'KAYIT LİSTESİ'!$B$4:$H$767,6,0)),"",(VLOOKUP(K28,'KAYIT LİSTESİ'!$B$4:$H$767,6,0))) -> 
A29: 3 | B29: 100M-3-3 | C29: =IF(ISERROR(VLOOKUP(B29,'KAYIT LİSTESİ'!$B$4:$H$767,2,0)),"",(VLOOKUP(B29,'KAYIT LİSTESİ'!$B$4:$H$767,2,0))) ->  | D29: =IF(ISERROR(VLOOKUP(B29,'KAYIT LİSTESİ'!$B$4:$H$767,4,0)),"",(VLOOKUP(B29,'KAYIT LİSTESİ'!$B$4:$H$767,4,0))) ->  | E29: =IF(ISERROR(VLOOKUP(B29,'KAYIT LİSTESİ'!$B$4:$H$767,5,0)),"",(VLOOKUP(B29,'KAYIT LİSTESİ'!$B$4:$H$767,5,0))) ->  | F29: =IF(ISERROR(VLOOKUP(B29,'KAYIT LİSTESİ'!$B$4:$H$767,6,0)),"",(VLOOKUP(B29,'KAYIT LİSTESİ'!$B$4:$H$767,6,0))) ->  | I29: 23 | J29: 3 | K29: 400M-3-3 | L29: =IF(ISERROR(VLOOKUP(K29,'KAYIT LİSTESİ'!$B$4:$H$767,2,0)),"",(VLOOKUP(K29,'KAYIT LİSTESİ'!$B$4:$H$767,2,0))) ->  | M29: =IF(ISERROR(VLOOKUP(K29,'KAYIT LİSTESİ'!$B$4:$H$767,4,0)),"",(VLOOKUP(K29,'KAYIT LİSTESİ'!$B$4:$H$767,4,0))) ->  | N29: =IF(ISERROR(VLOOKUP(K29,'KAYIT LİSTESİ'!$B$4:$H$767,5,0)),"",(VLOOKUP(K29,'KAYIT LİSTESİ'!$B$4:$H$767,5,0))) ->  | O29: =IF(ISERROR(VLOOKUP(K29,'KAYIT LİSTESİ'!$B$4:$H$767,6,0)),"",(VLOOKUP(K29,'KAYIT LİSTESİ'!$B$4:$H$767,6,0))) -> 
A30: 4 | B30: 100M-3-4 | C30: =IF(ISERROR(VLOOKUP(B30,'KAYIT LİSTESİ'!$B$4:$H$767,2,0)),"",(VLOOKUP(B30,'KAYIT LİSTESİ'!$B$4:$H$767,2,0))) ->  | D30: =IF(ISERROR(VLOOKUP(B30,'KAYIT LİSTESİ'!$B$4:$H$767,4,0)),"",(VLOOKUP(B30,'KAYIT LİSTESİ'!$B$4:$H$767,4,0))) ->  | E30: =IF(ISERROR(VLOOKUP(B30,'KAYIT LİSTESİ'!$B$4:$H$767,5,0)),"",(VLOOKUP(B30,'KAYIT LİSTESİ'!$B$4:$H$767,5,0))) ->  | F30: =IF(ISERROR(VLOOKUP(B30,'KAYIT LİSTESİ'!$B$4:$H$767,6,0)),"",(VLOOKUP(B30,'KAYIT LİSTESİ'!$B$4:$H$767,6,0))) ->  | I30: 24 | J30: 4 | K30: 400M-3-4 | L30: =IF(ISERROR(VLOOKUP(K30,'KAYIT LİSTESİ'!$B$4:$H$767,2,0)),"",(VLOOKUP(K30,'KAYIT LİSTESİ'!$B$4:$H$767,2,0))) ->  | M30: =IF(ISERROR(VLOOKUP(K30,'KAYIT LİSTESİ'!$B$4:$H$767,4,0)),"",(VLOOKUP(K30,'KAYIT LİSTESİ'!$B$4:$H$767,4,0))) ->  | N30: =IF(ISERROR(VLOOKUP(K30,'KAYIT LİSTESİ'!$B$4:$H$767,5,0)),"",(VLOOKUP(K30,'KAYIT LİSTESİ'!$B$4:$H$767,5,0))) ->  | O30: =IF(ISERROR(VLOOKUP(K30,'KAYIT LİSTESİ'!$B$4:$H$767,6,0)),"",(VLOOKUP(K30,'KAYIT LİSTESİ'!$B$4:$H$767,6,0))) -> 
A31: 5 | B31: 100M-3-5 | C31: =IF(ISERROR(VLOOKUP(B31,'KAYIT LİSTESİ'!$B$4:$H$767,2,0)),"",(VLOOKUP(B31,'KAYIT LİSTESİ'!$B$4:$H$767,2,0))) ->  | D31: =IF(ISERROR(VLOOKUP(B31,'KAYIT LİSTESİ'!$B$4:$H$767,4,0)),"",(VLOOKUP(B31,'KAYIT LİSTESİ'!$B$4:$H$767,4,0))) ->  | E31: =IF(ISERROR(VLOOKUP(B31,'KAYIT LİSTESİ'!$B$4:$H$767,5,0)),"",(VLOOKUP(B31,'KAYIT LİSTESİ'!$B$4:$H$767,5,0))) ->  | F31: =IF(ISERROR(VLOOKUP(B31,'KAYIT LİSTESİ'!$B$4:$H$767,6,0)),"",(VLOOKUP(B31,'KAYIT LİSTESİ'!$B$4:$H$767,6,0))) ->  | I31: 25 | J31: 5 | K31: 400M-3-5 | L31: =IF(ISERROR(VLOOKUP(K31,'KAYIT LİSTESİ'!$B$4:$H$767,2,0)),"",(VLOOKUP(K31,'KAYIT LİSTESİ'!$B$4:$H$767,2,0))) ->  | M31: =IF(ISERROR(VLOOKUP(K31,'KAYIT LİSTESİ'!$B$4:$H$767,4,0)),"",(VLOOKUP(K31,'KAYIT LİSTESİ'!$B$4:$H$767,4,0))) ->  | N31: =IF(ISERROR(VLOOKUP(K31,'KAYIT LİSTESİ'!$B$4:$H$767,5,0)),"",(VLOOKUP(K31,'KAYIT LİSTESİ'!$B$4:$H$767,5,0))) ->  | O31: =IF(ISERROR(VLOOKUP(K31,'KAYIT LİSTESİ'!$B$4:$H$767,6,0)),"",(VLOOKUP(K31,'KAYIT LİSTESİ'!$B$4:$H$767,6,0))) -> 
A32: 6 | B32: 100M-3-6 | C32: =IF(ISERROR(VLOOKUP(B32,'KAYIT LİSTESİ'!$B$4:$H$767,2,0)),"",(VLOOKUP(B32,'KAYIT LİSTESİ'!$B$4:$H$767,2,0))) ->  | D32: =IF(ISERROR(VLOOKUP(B32,'KAYIT LİSTESİ'!$B$4:$H$767,4,0)),"",(VLOOKUP(B32,'KAYIT LİSTESİ'!$B$4:$H$767,4,0))) ->  | E32: =IF(ISERROR(VLOOKUP(B32,'KAYIT LİSTESİ'!$B$4:$H$767,5,0)),"",(VLOOKUP(B32,'KAYIT LİSTESİ'!$B$4:$H$767,5,0))) ->  | F32: =IF(ISERROR(VLOOKUP(B32,'KAYIT LİSTESİ'!$B$4:$H$767,6,0)),"",(VLOOKUP(B32,'KAYIT LİSTESİ'!$B$4:$H$767,6,0))) ->  | J32: 6 | K32: 400M-3-6 | L32: =IF(ISERROR(VLOOKUP(K32,'KAYIT LİSTESİ'!$B$4:$H$767,2,0)),"",(VLOOKUP(K32,'KAYIT LİSTESİ'!$B$4:$H$767,2,0))) ->  | M32: =IF(ISERROR(VLOOKUP(K32,'KAYIT LİSTESİ'!$B$4:$H$767,4,0)),"",(VLOOKUP(K32,'KAYIT LİSTESİ'!$B$4:$H$767,4,0))) ->  | N32: =IF(ISERROR(VLOOKUP(K32,'KAYIT LİSTESİ'!$B$4:$H$767,5,0)),"",(VLOOKUP(K32,'KAYIT LİSTESİ'!$B$4:$H$767,5,0))) ->  | O32: =IF(ISERROR(VLOOKUP(K32,'KAYIT LİSTESİ'!$B$4:$H$767,6,0)),"",(VLOOKUP(K32,'KAYIT LİSTESİ'!$B$4:$H$767,6,0))) -> 
A33: 7 | B33: 100M-3-7 | C33: =IF(ISERROR(VLOOKUP(B33,'KAYIT LİSTESİ'!$B$4:$H$767,2,0)),"",(VLOOKUP(B33,'KAYIT LİSTESİ'!$B$4:$H$767,2,0))) ->  | D33: =IF(ISERROR(VLOOKUP(B33,'KAYIT LİSTESİ'!$B$4:$H$767,4,0)),"",(VLOOKUP(B33,'KAYIT LİSTESİ'!$B$4:$H$767,4,0))) ->  | E33: =IF(ISERROR(VLOOKUP(B33,'KAYIT LİSTESİ'!$B$4:$H$767,5,0)),"",(VLOOKUP(B33,'KAYIT LİSTESİ'!$B$4:$H$767,5,0))) ->  | F33: =IF(ISERROR(VLOOKUP(B33,'KAYIT LİSTESİ'!$B$4:$H$767,6,0)),"",(VLOOKUP(B33,'KAYIT LİSTESİ'!$B$4:$H$767,6,0))) ->  | J33: 7 | K33: 400M-3-7 | L33: =IF(ISERROR(VLOOKUP(K33,'KAYIT LİSTESİ'!$B$4:$H$767,2,0)),"",(VLOOKUP(K33,'KAYIT LİSTESİ'!$B$4:$H$767,2,0))) ->  | M33: =IF(ISERROR(VLOOKUP(K33,'KAYIT LİSTESİ'!$B$4:$H$767,4,0)),"",(VLOOKUP(K33,'KAYIT LİSTESİ'!$B$4:$H$767,4,0))) ->  | N33: =IF(ISERROR(VLOOKUP(K33,'KAYIT LİSTESİ'!$B$4:$H$767,5,0)),"",(VLOOKUP(K33,'KAYIT LİSTESİ'!$B$4:$H$767,5,0))) ->  | O33: =IF(ISERROR(VLOOKUP(K33,'KAYIT LİSTESİ'!$B$4:$H$767,6,0)),"",(VLOOKUP(K33,'KAYIT LİSTESİ'!$B$4:$H$767,6,0))) -> 
A34: 8 | B34: 100M-3-8 | C34: =IF(ISERROR(VLOOKUP(B34,'KAYIT LİSTESİ'!$B$4:$H$767,2,0)),"",(VLOOKUP(B34,'KAYIT LİSTESİ'!$B$4:$H$767,2,0))) ->  | D34: =IF(ISERROR(VLOOKUP(B34,'KAYIT LİSTESİ'!$B$4:$H$767,4,0)),"",(VLOOKUP(B34,'KAYIT LİSTESİ'!$B$4:$H$767,4,0))) ->  | E34: =IF(ISERROR(VLOOKUP(B34,'KAYIT LİSTESİ'!$B$4:$H$767,5,0)),"",(VLOOKUP(B34,'KAYIT LİSTESİ'!$B$4:$H$767,5,0))) ->  | F34: =IF(ISERROR(VLOOKUP(B34,'KAYIT LİSTESİ'!$B$4:$H$767,6,0)),"",(VLOOKUP(B34,'KAYIT LİSTESİ'!$B$4:$H$767,6,0))) ->  | J34: 8 | K34: 400M-3-8 | L34: =IF(ISERROR(VLOOKUP(K34,'KAYIT LİSTESİ'!$B$4:$H$767,2,0)),"",(VLOOKUP(K34,'KAYIT LİSTESİ'!$B$4:$H$767,2,0))) ->  | M34: =IF(ISERROR(VLOOKUP(K34,'KAYIT LİSTESİ'!$B$4:$H$767,4,0)),"",(VLOOKUP(K34,'KAYIT LİSTESİ'!$B$4:$H$767,4,0))) ->  | N34: =IF(ISERROR(VLOOKUP(K34,'KAYIT LİSTESİ'!$B$4:$H$767,5,0)),"",(VLOOKUP(K34,'KAYIT LİSTESİ'!$B$4:$H$767,5,0))) ->  | O34: =IF(ISERROR(VLOOKUP(K34,'KAYIT LİSTESİ'!$B$4:$H$767,6,0)),"",(VLOOKUP(K34,'KAYIT LİSTESİ'!$B$4:$H$767,6,0))) -> 
A35: 4. SERİ | J35: 4. SERİ
A36: Sıra No | B36: Formül | C36: Göğüs No | D36: Doğum Tarihi | E36: Adı ve Soyadı | F36: Okulu | G36: Start Kontrol | J36: Sıra No | K36: Formül | L36: Göğüs No | M36: Doğum Tarihi | N36: Adı ve Soyadı | O36: Okulu | P36: Start Kontrol
A37: 1 | B37: 100M-4-1 | C37: =IF(ISERROR(VLOOKUP(B37,'KAYIT LİSTESİ'!$B$4:$H$767,2,0)),"",(VLOOKUP(B37,'KAYIT LİSTESİ'!$B$4:$H$767,2,0))) ->  | D37: =IF(ISERROR(VLOOKUP(B37,'KAYIT LİSTESİ'!$B$4:$H$767,4,0)),"",(VLOOKUP(B37,'KAYIT LİSTESİ'!$B$4:$H$767,4,0))) ->  | E37: =IF(ISERROR(VLOOKUP(B37,'KAYIT LİSTESİ'!$B$4:$H$767,5,0)),"",(VLOOKUP(B37,'KAYIT LİSTESİ'!$B$4:$H$767,5,0))) ->  | F37: =IF(ISERROR(VLOOKUP(B37,'KAYIT LİSTESİ'!$B$4:$H$767,6,0)),"",(VLOOKUP(B37,'KAYIT LİSTESİ'!$B$4:$H$767,6,0))) ->  | J37: 1 | K37: 400M-4-1 | L37: =IF(ISERROR(VLOOKUP(K37,'KAYIT LİSTESİ'!$B$4:$H$767,2,0)),"",(VLOOKUP(K37,'KAYIT LİSTESİ'!$B$4:$H$767,2,0))) ->  | M37: =IF(ISERROR(VLOOKUP(K37,'KAYIT LİSTESİ'!$B$4:$H$767,4,0)),"",(VLOOKUP(K37,'KAYIT LİSTESİ'!$B$4:$H$767,4,0))) ->  | N37: =IF(ISERROR(VLOOKUP(K37,'KAYIT LİSTESİ'!$B$4:$H$767,5,0)),"",(VLOOKUP(K37,'KAYIT LİSTESİ'!$B$4:$H$767,5,0))) ->  | O37: =IF(ISERROR(VLOOKUP(K37,'KAYIT LİSTESİ'!$B$4:$H$767,6,0)),"",(VLOOKUP(K37,'KAYIT LİSTESİ'!$B$4:$H$767,6,0))) -> 
A38: 2 | B38: 100M-4-2 | C38: =IF(ISERROR(VLOOKUP(B38,'KAYIT LİSTESİ'!$B$4:$H$767,2,0)),"",(VLOOKUP(B38,'KAYIT LİSTESİ'!$B$4:$H$767,2,0))) ->  | D38: =IF(ISERROR(VLOOKUP(B38,'KAYIT LİSTESİ'!$B$4:$H$767,4,0)),"",(VLOOKUP(B38,'KAYIT LİSTESİ'!$B$4:$H$767,4,0))) ->  | E38: =IF(ISERROR(VLOOKUP(B38,'KAYIT LİSTESİ'!$B$4:$H$767,5,0)),"",(VLOOKUP(B38,'KAYIT LİSTESİ'!$B$4:$H$767,5,0))) ->  | F38: =IF(ISERROR(VLOOKUP(B38,'KAYIT LİSTESİ'!$B$4:$H$767,6,0)),"",(VLOOKUP(B38,'KAYIT LİSTESİ'!$B$4:$H$767,6,0))) ->  | J38: 2 | K38: 400M-4-2 | L38: =IF(ISERROR(VLOOKUP(K38,'KAYIT LİSTESİ'!$B$4:$H$767,2,0)),"",(VLOOKUP(K38,'KAYIT LİSTESİ'!$B$4:$H$767,2,0))) ->  | M38: =IF(ISERROR(VLOOKUP(K38,'KAYIT LİSTESİ'!$B$4:$H$767,4,0)),"",(VLOOKUP(K38,'KAYIT LİSTESİ'!$B$4:$H$767,4,0))) ->  | N38: =IF(ISERROR(VLOOKUP(K38,'KAYIT LİSTESİ'!$B$4:$H$767,5,0)),"",(VLOOKUP(K38,'KAYIT LİSTESİ'!$B$4:$H$767,5,0))) ->  | O38: =IF(ISERROR(VLOOKUP(K38,'KAYIT LİSTESİ'!$B$4:$H$767,6,0)),"",(VLOOKUP(K38,'KAYIT LİSTESİ'!$B$4:$H$767,6,0))) -> 
A39: 3 | B39: 100M-4-3 | C39: =IF(ISERROR(VLOOKUP(B39,'KAYIT LİSTESİ'!$B$4:$H$767,2,0)),"",(VLOOKUP(B39,'KAYIT LİSTESİ'!$B$4:$H$767,2,0))) ->  | D39: =IF(ISERROR(VLOOKUP(B39,'KAYIT LİSTESİ'!$B$4:$H$767,4,0)),"",(VLOOKUP(B39,'KAYIT LİSTESİ'!$B$4:$H$767,4,0))) ->  | E39: =IF(ISERROR(VLOOKUP(B39,'KAYIT LİSTESİ'!$B$4:$H$767,5,0)),"",(VLOOKUP(B39,'KAYIT LİSTESİ'!$B$4:$H$767,5,0))) ->  | F39: =IF(ISERROR(VLOOKUP(B39,'KAYIT LİSTESİ'!$B$4:$H$767,6,0)),"",(VLOOKUP(B39,'KAYIT LİSTESİ'!$B$4:$H$767,6,0))) ->  | J39: 3 | K39: 400M-4-3 | L39: =IF(ISERROR(VLOOKUP(K39,'KAYIT LİSTESİ'!$B$4:$H$767,2,0)),"",(VLOOKUP(K39,'KAYIT LİSTESİ'!$B$4:$H$767,2,0))) ->  | M39: =IF(ISERROR(VLOOKUP(K39,'KAYIT LİSTESİ'!$B$4:$H$767,4,0)),"",(VLOOKUP(K39,'KAYIT LİSTESİ'!$B$4:$H$767,4,0))) ->  | N39: =IF(ISERROR(VLOOKUP(K39,'KAYIT LİSTESİ'!$B$4:$H$767,5,0)),"",(VLOOKUP(K39,'KAYIT LİSTESİ'!$B$4:$H$767,5,0))) ->  | O39: =IF(ISERROR(VLOOKUP(K39,'KAYIT LİSTESİ'!$B$4:$H$767,6,0)),"",(VLOOKUP(K39,'KAYIT LİSTESİ'!$B$4:$H$767,6,0))) -> 
A40: 4 | B40: 100M-4-4 | C40: =IF(ISERROR(VLOOKUP(B40,'KAYIT LİSTESİ'!$B$4:$H$767,2,0)),"",(VLOOKUP(B40,'KAYIT LİSTESİ'!$B$4:$H$767,2,0))) ->  | D40: =IF(ISERROR(VLOOKUP(B40,'KAYIT LİSTESİ'!$B$4:$H$767,4,0)),"",(VLOOKUP(B40,'KAYIT LİSTESİ'!$B$4:$H$767,4,0))) ->  | E40: =IF(ISERROR(VLOOKUP(B40,'KAYIT LİSTESİ'!$B$4:$H$767,5,0)),"",(VLOOKUP(B40,'KAYIT LİSTESİ'!$B$4:$H$767,5,0))) ->  | F40: =IF(ISERROR(VLOOKUP(B40,'KAYIT LİSTESİ'!$B$4:$H$767,6,0)),"",(VLOOKUP(B40,'KAYIT LİSTESİ'!$B$4:$H$767,6,0))) ->  | J40: 4 | K40: 400M-4-4 | L40: =IF(ISERROR(VLOOKUP(K40,'KAYIT LİSTESİ'!$B$4:$H$767,2,0)),"",(VLOOKUP(K40,'KAYIT LİSTESİ'!$B$4:$H$767,2,0))) ->  | M40: =IF(ISERROR(VLOOKUP(K40,'KAYIT LİSTESİ'!$B$4:$H$767,4,0)),"",(VLOOKUP(K40,'KAYIT LİSTESİ'!$B$4:$H$767,4,0))) ->  | N40: =IF(ISERROR(VLOOKUP(K40,'KAYIT LİSTESİ'!$B$4:$H$767,5,0)),"",(VLOOKUP(K40,'KAYIT LİSTESİ'!$B$4:$H$767,5,0))) ->  | O40: =IF(ISERROR(VLOOKUP(K40,'KAYIT LİSTESİ'!$B$4:$H$767,6,0)),"",(VLOOKUP(K40,'KAYIT LİSTESİ'!$B$4:$H$767,6,0))) -> 
A41: 5 | B41: 100M-4-5 | C41: =IF(ISERROR(VLOOKUP(B41,'KAYIT LİSTESİ'!$B$4:$H$767,2,0)),"",(VLOOKUP(B41,'KAYIT LİSTESİ'!$B$4:$H$767,2,0))) ->  | D41: =IF(ISERROR(VLOOKUP(B41,'KAYIT LİSTESİ'!$B$4:$H$767,4,0)),"",(VLOOKUP(B41,'KAYIT LİSTESİ'!$B$4:$H$767,4,0))) ->  | E41: =IF(ISERROR(VLOOKUP(B41,'KAYIT LİSTESİ'!$B$4:$H$767,5,0)),"",(VLOOKUP(B41,'KAYIT LİSTESİ'!$B$4:$H$767,5,0))) ->  | F41: =IF(ISERROR(VLOOKUP(B41,'KAYIT LİSTESİ'!$B$4:$H$767,6,0)),"",(VLOOKUP(B41,'KAYIT LİSTESİ'!$B$4:$H$767,6,0))) ->  | J41: 5 | K41: 400M-4-5 | L41: =IF(ISERROR(VLOOKUP(K41,'KAYIT LİSTESİ'!$B$4:$H$767,2,0)),"",(VLOOKUP(K41,'KAYIT LİSTESİ'!$B$4:$H$767,2,0))) ->  | M41: =IF(ISERROR(VLOOKUP(K41,'KAYIT LİSTESİ'!$B$4:$H$767,4,0)),"",(VLOOKUP(K41,'KAYIT LİSTESİ'!$B$4:$H$767,4,0))) ->  | N41: =IF(ISERROR(VLOOKUP(K41,'KAYIT LİSTESİ'!$B$4:$H$767,5,0)),"",(VLOOKUP(K41,'KAYIT LİSTESİ'!$B$4:$H$767,5,0))) ->  | O41: =IF(ISERROR(VLOOKUP(K41,'KAYIT LİSTESİ'!$B$4:$H$767,6,0)),"",(VLOOKUP(K41,'KAYIT LİSTESİ'!$B$4:$H$767,6,0))) -> 
A42: 6 | B42: 100M-4-6 | C42: =IF(ISERROR(VLOOKUP(B42,'KAYIT LİSTESİ'!$B$4:$H$767,2,0)),"",(VLOOKUP(B42,'KAYIT LİSTESİ'!$B$4:$H$767,2,0))) ->  | D42: =IF(ISERROR(VLOOKUP(B42,'KAYIT LİSTESİ'!$B$4:$H$767,4,0)),"",(VLOOKUP(B42,'KAYIT LİSTESİ'!$B$4:$H$767,4,0))) ->  | E42: =IF(ISERROR(VLOOKUP(B42,'KAYIT LİSTESİ'!$B$4:$H$767,5,0)),"",(VLOOKUP(B42,'KAYIT LİSTESİ'!$B$4:$H$767,5,0))) ->  | F42: =IF(ISERROR(VLOOKUP(B42,'KAYIT LİSTESİ'!$B$4:$H$767,6,0)),"",(VLOOKUP(B42,'KAYIT LİSTESİ'!$B$4:$H$767,6,0))) ->  | J42: 6 | K42: 400M-4-6 | L42: =IF(ISERROR(VLOOKUP(K42,'KAYIT LİSTESİ'!$B$4:$H$767,2,0)),"",(VLOOKUP(K42,'KAYIT LİSTESİ'!$B$4:$H$767,2,0))) ->  | M42: =IF(ISERROR(VLOOKUP(K42,'KAYIT LİSTESİ'!$B$4:$H$767,4,0)),"",(VLOOKUP(K42,'KAYIT LİSTESİ'!$B$4:$H$767,4,0))) ->  | N42: =IF(ISERROR(VLOOKUP(K42,'KAYIT LİSTESİ'!$B$4:$H$767,5,0)),"",(VLOOKUP(K42,'KAYIT LİSTESİ'!$B$4:$H$767,5,0))) ->  | O42: =IF(ISERROR(VLOOKUP(K42,'KAYIT LİSTESİ'!$B$4:$H$767,6,0)),"",(VLOOKUP(K42,'KAYIT LİSTESİ'!$B$4:$H$767,6,0))) -> 
A43: 7 | B43: 100M-4-7 | C43: =IF(ISERROR(VLOOKUP(B43,'KAYIT LİSTESİ'!$B$4:$H$767,2,0)),"",(VLOOKUP(B43,'KAYIT LİSTESİ'!$B$4:$H$767,2,0))) ->  | D43: =IF(ISERROR(VLOOKUP(B43,'KAYIT LİSTESİ'!$B$4:$H$767,4,0)),"",(VLOOKUP(B43,'KAYIT LİSTESİ'!$B$4:$H$767,4,0))) ->  | E43: =IF(ISERROR(VLOOKUP(B43,'KAYIT LİSTESİ'!$B$4:$H$767,5,0)),"",(VLOOKUP(B43,'KAYIT LİSTESİ'!$B$4:$H$767,5,0))) ->  | F43: =IF(ISERROR(VLOOKUP(B43,'KAYIT LİSTESİ'!$B$4:$H$767,6,0)),"",(VLOOKUP(B43,'KAYIT LİSTESİ'!$B$4:$H$767,6,0))) ->  | J43: 7 | K43: 400M-4-7 | L43: =IF(ISERROR(VLOOKUP(K43,'KAYIT LİSTESİ'!$B$4:$H$767,2,0)),"",(VLOOKUP(K43,'KAYIT LİSTESİ'!$B$4:$H$767,2,0))) ->  | M43: =IF(ISERROR(VLOOKUP(K43,'KAYIT LİSTESİ'!$B$4:$H$767,4,0)),"",(VLOOKUP(K43,'KAYIT LİSTESİ'!$B$4:$H$767,4,0))) ->  | N43: =IF(ISERROR(VLOOKUP(K43,'KAYIT LİSTESİ'!$B$4:$H$767,5,0)),"",(VLOOKUP(K43,'KAYIT LİSTESİ'!$B$4:$H$767,5,0))) ->  | O43: =IF(ISERROR(VLOOKUP(K43,'KAYIT LİSTESİ'!$B$4:$H$767,6,0)),"",(VLOOKUP(K43,'KAYIT LİSTESİ'!$B$4:$H$767,6,0))) -> 
A44: 8 | B44: 100M-4-8 | C44: =IF(ISERROR(VLOOKUP(B44,'KAYIT LİSTESİ'!$B$4:$H$767,2,0)),"",(VLOOKUP(B44,'KAYIT LİSTESİ'!$B$4:$H$767,2,0))) ->  | D44: =IF(ISERROR(VLOOKUP(B44,'KAYIT LİSTESİ'!$B$4:$H$767,4,0)),"",(VLOOKUP(B44,'KAYIT LİSTESİ'!$B$4:$H$767,4,0))) ->  | E44: =IF(ISERROR(VLOOKUP(B44,'KAYIT LİSTESİ'!$B$4:$H$767,5,0)),"",(VLOOKUP(B44,'KAYIT LİSTESİ'!$B$4:$H$767,5,0))) ->  | F44: =IF(ISERROR(VLOOKUP(B44,'KAYIT LİSTESİ'!$B$4:$H$767,6,0)),"",(VLOOKUP(B44,'KAYIT LİSTESİ'!$B$4:$H$767,6,0))) ->  | J44: 8 | K44: 400M-4-8 | L44: =IF(ISERROR(VLOOKUP(K44,'KAYIT LİSTESİ'!$B$4:$H$767,2,0)),"",(VLOOKUP(K44,'KAYIT LİSTESİ'!$B$4:$H$767,2,0))) ->  | M44: =IF(ISERROR(VLOOKUP(K44,'KAYIT LİSTESİ'!$B$4:$H$767,4,0)),"",(VLOOKUP(K44,'KAYIT LİSTESİ'!$B$4:$H$767,4,0))) ->  | N44: =IF(ISERROR(VLOOKUP(K44,'KAYIT LİSTESİ'!$B$4:$H$767,5,0)),"",(VLOOKUP(K44,'KAYIT LİSTESİ'!$B$4:$H$767,5,0))) ->  | O44: =IF(ISERROR(VLOOKUP(K44,'KAYIT LİSTESİ'!$B$4:$H$767,6,0)),"",(VLOOKUP(K44,'KAYIT LİSTESİ'!$B$4:$H$767,6,0))) -> 
A45: 110 METRE ENGELLİ | J45: YÜKSEK ATLAMA
A46: 1. SERİ | J46: SIRA NO | L46: GÖĞÜS NO | M46: DOĞUM TARİHİ | N46: ADI VE SOYADI | O46: OKULU | P46: Start Kontrol
A47: Sıra No | B47: Formül | C47: Göğüs No | D47: Doğum Tarihi | E47: Adı ve Soyadı | F47: Okulu | G47: Start Kontrol
A48: 1 | B48: 110M.ENG-1-1 | C48: =IF(ISERROR(VLOOKUP(B48,'KAYIT LİSTESİ'!$B$4:$H$767,2,0)),"",(VLOOKUP(B48,'KAYIT LİSTESİ'!$B$4:$H$767,2,0))) ->  | D48: =IF(ISERROR(VLOOKUP(B48,'KAYIT LİSTESİ'!$B$4:$H$767,4,0)),"",(VLOOKUP(B48,'KAYIT LİSTESİ'!$B$4:$H$767,4,0))) ->  | E48: =IF(ISERROR(VLOOKUP(B48,'KAYIT LİSTESİ'!$B$4:$H$767,5,0)),"",(VLOOKUP(B48,'KAYIT LİSTESİ'!$B$4:$H$767,5,0))) ->  | F48: =IF(ISERROR(VLOOKUP(B48,'KAYIT LİSTESİ'!$B$4:$H$767,6,0)),"",(VLOOKUP(B48,'KAYIT LİSTESİ'!$B$4:$H$767,6,0))) ->  | J48: 1 | K48: YÜKSEK-1 | L48: =IF(ISERROR(VLOOKUP(K48,'KAYIT LİSTESİ'!$B$4:$H$767,2,0)),"",(VLOOKUP(K48,'KAYIT LİSTESİ'!$B$4:$H$767,2,0))) -> 463 | M48: =IF(ISERROR(VLOOKUP(K48,'KAYIT LİSTESİ'!$B$4:$H$767,4,0)),"",(VLOOKUP(K48,'KAYIT LİSTESİ'!$B$4:$H$767,4,0))) -> 1999-06-18 | N48: =IF(ISERROR(VLOOKUP(K48,'KAYIT LİSTESİ'!$B$4:$H$767,5,0)),"",(VLOOKUP(K48,'KAYIT LİSTESİ'!$B$4:$H$767,5,0))) -> SEHER AKKUŞ | O48: =IF(ISERROR(VLOOKUP(K48,'KAYIT LİSTESİ'!$B$4:$H$767,6,0)),"",(VLOOKUP(K48,'KAYIT LİSTESİ'!$B$4:$H$767,6,0))) -> KARAMAN
A49: 2 | B49: 110M.ENG-1-2 | C49: =IF(ISERROR(VLOOKUP(B49,'KAYIT LİSTESİ'!$B$4:$H$767,2,0)),"",(VLOOKUP(B49,'KAYIT LİSTESİ'!$B$4:$H$767,2,0))) ->  | D49: =IF(ISERROR(VLOOKUP(B49,'KAYIT LİSTESİ'!$B$4:$H$767,4,0)),"",(VLOOKUP(B49,'KAYIT LİSTESİ'!$B$4:$H$767,4,0))) ->  | E49: =IF(ISERROR(VLOOKUP(B49,'KAYIT LİSTESİ'!$B$4:$H$767,5,0)),"",(VLOOKUP(B49,'KAYIT LİSTESİ'!$B$4:$H$767,5,0))) ->  | F49: =IF(ISERROR(VLOOKUP(B49,'KAYIT LİSTESİ'!$B$4:$H$767,6,0)),"",(VLOOKUP(B49,'KAYIT LİSTESİ'!$B$4:$H$767,6,0))) ->  | J49: 2 | K49: YÜKSEK-2 | L49: =IF(ISERROR(VLOOKUP(K49,'KAYIT LİSTESİ'!$B$4:$H$767,2,0)),"",(VLOOKUP(K49,'KAYIT LİSTESİ'!$B$4:$H$767,2,0))) -> 464 | M49: =IF(ISERROR(VLOOKUP(K49,'KAYIT LİSTESİ'!$B$4:$H$767,4,0)),"",(VLOOKUP(K49,'KAYIT LİSTESİ'!$B$4:$H$767,4,0))) -> 1999-11-08 | N49: =IF(ISERROR(VLOOKUP(K49,'KAYIT LİSTESİ'!$B$4:$H$767,5,0)),"",(VLOOKUP(K49,'KAYIT LİSTESİ'!$B$4:$H$767,5,0))) -> EMİNE ÜNLÜER | O49: =IF(ISERROR(VLOOKUP(K49,'KAYIT LİSTESİ'!$B$4:$H$767,6,0)),"",(VLOOKUP(K49,'KAYIT LİSTESİ'!$B$4:$H$767,6,0))) -> KARAMAN
A50: 3 | B50: 110M.ENG-1-3 | C50: =IF(ISERROR(VLOOKUP(B50,'KAYIT LİSTESİ'!$B$4:$H$767,2,0)),"",(VLOOKUP(B50,'KAYIT LİSTESİ'!$B$4:$H$767,2,0))) ->  | D50: =IF(ISERROR(VLOOKUP(B50,'KAYIT LİSTESİ'!$B$4:$H$767,4,0)),"",(VLOOKUP(B50,'KAYIT LİSTESİ'!$B$4:$H$767,4,0))) ->  | E50: =IF(ISERROR(VLOOKUP(B50,'KAYIT LİSTESİ'!$B$4:$H$767,5,0)),"",(VLOOKUP(B50,'KAYIT LİSTESİ'!$B$4:$H$767,5,0))) ->  | F50: =IF(ISERROR(VLOOKUP(B50,'KAYIT LİSTESİ'!$B$4:$H$767,6,0)),"",(VLOOKUP(B50,'KAYIT LİSTESİ'!$B$4:$H$767,6,0))) ->  | J50: 3 | K50: YÜKSEK-3 | L50: =IF(ISERROR(VLOOKUP(K50,'KAYIT LİSTESİ'!$B$4:$H$767,2,0)),"",(VLOOKUP(K50,'KAYIT LİSTESİ'!$B$4:$H$767,2,0))) -> 37 | M50: =IF(ISERROR(VLOOKUP(K50,'KAYIT LİSTESİ'!$B$4:$H$767,4,0)),"",(VLOOKUP(K50,'KAYIT LİSTESİ'!$B$4:$H$767,4,0))) -> 1999-12-01 | N50: =IF(ISERROR(VLOOKUP(K50,'KAYIT LİSTESİ'!$B$4:$H$767,5,0)),"",(VLOOKUP(K50,'KAYIT LİSTESİ'!$B$4:$H$767,5,0))) -> ELİF SERT | O50: =IF(ISERROR(VLOOKUP(K50,'KAYIT LİSTESİ'!$B$4:$H$767,6,0)),"",(VLOOKUP(K50,'KAYIT LİSTESİ'!$B$4:$H$767,6,0))) -> AKSARAY
A51: 4 | B51: 110M.ENG-1-4 | C51: =IF(ISERROR(VLOOKUP(B51,'KAYIT LİSTESİ'!$B$4:$H$767,2,0)),"",(VLOOKUP(B51,'KAYIT LİSTESİ'!$B$4:$H$767,2,0))) ->  | D51: =IF(ISERROR(VLOOKUP(B51,'KAYIT LİSTESİ'!$B$4:$H$767,4,0)),"",(VLOOKUP(B51,'KAYIT LİSTESİ'!$B$4:$H$767,4,0))) ->  | E51: =IF(ISERROR(VLOOKUP(B51,'KAYIT LİSTESİ'!$B$4:$H$767,5,0)),"",(VLOOKUP(B51,'KAYIT LİSTESİ'!$B$4:$H$767,5,0))) ->  | F51: =IF(ISERROR(VLOOKUP(B51,'KAYIT LİSTESİ'!$B$4:$H$767,6,0)),"",(VLOOKUP(B51,'KAYIT LİSTESİ'!$B$4:$H$767,6,0))) ->  | J51: 4 | K51: YÜKSEK-4 | L51: =IF(ISERROR(VLOOKUP(K51,'KAYIT LİSTESİ'!$B$4:$H$767,2,0)),"",(VLOOKUP(K51,'KAYIT LİSTESİ'!$B$4:$H$767,2,0))) -> 378 | M51: =IF(ISERROR(VLOOKUP(K51,'KAYIT LİSTESİ'!$B$4:$H$767,4,0)),"",(VLOOKUP(K51,'KAYIT LİSTESİ'!$B$4:$H$767,4,0))) -> 1999-08-06 | N51: =IF(ISERROR(VLOOKUP(K51,'KAYIT LİSTESİ'!$B$4:$H$767,5,0)),"",(VLOOKUP(K51,'KAYIT LİSTESİ'!$B$4:$H$767,5,0))) -> OLİMPİA AHENK DOURMOUCHEV | O51: =IF(ISERROR(VLOOKUP(K51,'KAYIT LİSTESİ'!$B$4:$H$767,6,0)),"",(VLOOKUP(K51,'KAYIT LİSTESİ'!$B$4:$H$767,6,0))) -> İZMİR
A52: 5 | B52: 110M.ENG-1-5 | C52: =IF(ISERROR(VLOOKUP(B52,'KAYIT LİSTESİ'!$B$4:$H$767,2,0)),"",(VLOOKUP(B52,'KAYIT LİSTESİ'!$B$4:$H$767,2,0))) ->  | D52: =IF(ISERROR(VLOOKUP(B52,'KAYIT LİSTESİ'!$B$4:$H$767,4,0)),"",(VLOOKUP(B52,'KAYIT LİSTESİ'!$B$4:$H$767,4,0))) ->  | E52: =IF(ISERROR(VLOOKUP(B52,'KAYIT LİSTESİ'!$B$4:$H$767,5,0)),"",(VLOOKUP(B52,'KAYIT LİSTESİ'!$B$4:$H$767,5,0))) ->  | F52: =IF(ISERROR(VLOOKUP(B52,'KAYIT LİSTESİ'!$B$4:$H$767,6,0)),"",(VLOOKUP(B52,'KAYIT LİSTESİ'!$B$4:$H$767,6,0))) ->  | J52: 5 | K52: YÜKSEK-5 | L52: =IF(ISERROR(VLOOKUP(K52,'KAYIT LİSTESİ'!$B$4:$H$767,2,0)),"",(VLOOKUP(K52,'KAYIT LİSTESİ'!$B$4:$H$767,2,0))) -> 674 | M52: =IF(ISERROR(VLOOKUP(K52,'KAYIT LİSTESİ'!$B$4:$H$767,4,0)),"",(VLOOKUP(K52,'KAYIT LİSTESİ'!$B$4:$H$767,4,0))) -> 1999-04-27 | N52: =IF(ISERROR(VLOOKUP(K52,'KAYIT LİSTESİ'!$B$4:$H$767,5,0)),"",(VLOOKUP(K52,'KAYIT LİSTESİ'!$B$4:$H$767,5,0))) -> PINAR DOĞRU | O52: =IF(ISERROR(VLOOKUP(K52,'KAYIT LİSTESİ'!$B$4:$H$767,6,0)),"",(VLOOKUP(K52,'KAYIT LİSTESİ'!$B$4:$H$767,6,0))) -> TEKİRDAĞ
A53: 6 | B53: 110M.ENG-1-6 | C53: =IF(ISERROR(VLOOKUP(B53,'KAYIT LİSTESİ'!$B$4:$H$767,2,0)),"",(VLOOKUP(B53,'KAYIT LİSTESİ'!$B$4:$H$767,2,0))) ->  | D53: =IF(ISERROR(VLOOKUP(B53,'KAYIT LİSTESİ'!$B$4:$H$767,4,0)),"",(VLOOKUP(B53,'KAYIT LİSTESİ'!$B$4:$H$767,4,0))) ->  | E53: =IF(ISERROR(VLOOKUP(B53,'KAYIT LİSTESİ'!$B$4:$H$767,5,0)),"",(VLOOKUP(B53,'KAYIT LİSTESİ'!$B$4:$H$767,5,0))) ->  | F53: =IF(ISERROR(VLOOKUP(B53,'KAYIT LİSTESİ'!$B$4:$H$767,6,0)),"",(VLOOKUP(B53,'KAYIT LİSTESİ'!$B$4:$H$767,6,0))) ->  | J53: 6 | K53: YÜKSEK-6 | L53: =IF(ISERROR(VLOOKUP(K53,'KAYIT LİSTESİ'!$B$4:$H$767,2,0)),"",(VLOOKUP(K53,'KAYIT LİSTESİ'!$B$4:$H$767,2,0))) ->  | M53: =IF(ISERROR(VLOOKUP(K53,'KAYIT LİSTESİ'!$B$4:$H$767,4,0)),"",(VLOOKUP(K53,'KAYIT LİSTESİ'!$B$4:$H$767,4,0))) ->  | N53: =IF(ISERROR(VLOOKUP(K53,'KAYIT LİSTESİ'!$B$4:$H$767,5,0)),"",(VLOOKUP(K53,'KAYIT LİSTESİ'!$B$4:$H$767,5,0))) ->  | O53: =IF(ISERROR(VLOOKUP(K53,'KAYIT LİSTESİ'!$B$4:$H$767,6,0)),"",(VLOOKUP(K53,'KAYIT LİSTESİ'!$B$4:$H$767,6,0))) -> 
A54: 7 | B54: 110M.ENG-1-7 | C54: =IF(ISERROR(VLOOKUP(B54,'KAYIT LİSTESİ'!$B$4:$H$767,2,0)),"",(VLOOKUP(B54,'KAYIT LİSTESİ'!$B$4:$H$767,2,0))) ->  | D54: =IF(ISERROR(VLOOKUP(B54,'KAYIT LİSTESİ'!$B$4:$H$767,4,0)),"",(VLOOKUP(B54,'KAYIT LİSTESİ'!$B$4:$H$767,4,0))) ->  | E54: =IF(ISERROR(VLOOKUP(B54,'KAYIT LİSTESİ'!$B$4:$H$767,5,0)),"",(VLOOKUP(B54,'KAYIT LİSTESİ'!$B$4:$H$767,5,0))) ->  | F54: =IF(ISERROR(VLOOKUP(B54,'KAYIT LİSTESİ'!$B$4:$H$767,6,0)),"",(VLOOKUP(B54,'KAYIT LİSTESİ'!$B$4:$H$767,6,0))) ->  | J54: 7 | K54: YÜKSEK-7 | L54: =IF(ISERROR(VLOOKUP(K54,'KAYIT LİSTESİ'!$B$4:$H$767,2,0)),"",(VLOOKUP(K54,'KAYIT LİSTESİ'!$B$4:$H$767,2,0))) ->  | M54: =IF(ISERROR(VLOOKUP(K54,'KAYIT LİSTESİ'!$B$4:$H$767,4,0)),"",(VLOOKUP(K54,'KAYIT LİSTESİ'!$B$4:$H$767,4,0))) ->  | N54: =IF(ISERROR(VLOOKUP(K54,'KAYIT LİSTESİ'!$B$4:$H$767,5,0)),"",(VLOOKUP(K54,'KAYIT LİSTESİ'!$B$4:$H$767,5,0))) ->  | O54: =IF(ISERROR(VLOOKUP(K54,'KAYIT LİSTESİ'!$B$4:$H$767,6,0)),"",(VLOOKUP(K54,'KAYIT LİSTESİ'!$B$4:$H$767,6,0))) -> 
A55: 8 | B55: 110M.ENG-1-8 | C55: =IF(ISERROR(VLOOKUP(B55,'KAYIT LİSTESİ'!$B$4:$H$767,2,0)),"",(VLOOKUP(B55,'KAYIT LİSTESİ'!$B$4:$H$767,2,0))) ->  | D55: =IF(ISERROR(VLOOKUP(B55,'KAYIT LİSTESİ'!$B$4:$H$767,4,0)),"",(VLOOKUP(B55,'KAYIT LİSTESİ'!$B$4:$H$767,4,0))) ->  | E55: =IF(ISERROR(VLOOKUP(B55,'KAYIT LİSTESİ'!$B$4:$H$767,5,0)),"",(VLOOKUP(B55,'KAYIT LİSTESİ'!$B$4:$H$767,5,0))) ->  | F55: =IF(ISERROR(VLOOKUP(B55,'KAYIT LİSTESİ'!$B$4:$H$767,6,0)),"",(VLOOKUP(B55,'KAYIT LİSTESİ'!$B$4:$H$767,6,0))) ->  | J55: 8 | K55: YÜKSEK-8 | L55: =IF(ISERROR(VLOOKUP(K55,'KAYIT LİSTESİ'!$B$4:$H$767,2,0)),"",(VLOOKUP(K55,'KAYIT LİSTESİ'!$B$4:$H$767,2,0))) ->  | M55: =IF(ISERROR(VLOOKUP(K55,'KAYIT LİSTESİ'!$B$4:$H$767,4,0)),"",(VLOOKUP(K55,'KAYIT LİSTESİ'!$B$4:$H$767,4,0))) ->  | N55: =IF(ISERROR(VLOOKUP(K55,'KAYIT LİSTESİ'!$B$4:$H$767,5,0)),"",(VLOOKUP(K55,'KAYIT LİSTESİ'!$B$4:$H$767,5,0))) ->  | O55: =IF(ISERROR(VLOOKUP(K55,'KAYIT LİSTESİ'!$B$4:$H$767,6,0)),"",(VLOOKUP(K55,'KAYIT LİSTESİ'!$B$4:$H$767,6,0))) -> 
A56: 2. SERİ | J56: 9 | K56: YÜKSEK-9 | L56: =IF(ISERROR(VLOOKUP(K56,'KAYIT LİSTESİ'!$B$4:$H$767,2,0)),"",(VLOOKUP(K56,'KAYIT LİSTESİ'!$B$4:$H$767,2,0))) ->  | M56: =IF(ISERROR(VLOOKUP(K56,'KAYIT LİSTESİ'!$B$4:$H$767,4,0)),"",(VLOOKUP(K56,'KAYIT LİSTESİ'!$B$4:$H$767,4,0))) ->  | N56: =IF(ISERROR(VLOOKUP(K56,'KAYIT LİSTESİ'!$B$4:$H$767,5,0)),"",(VLOOKUP(K56,'KAYIT LİSTESİ'!$B$4:$H$767,5,0))) ->  | O56: =IF(ISERROR(VLOOKUP(K56,'KAYIT LİSTESİ'!$B$4:$H$767,6,0)),"",(VLOOKUP(K56,'KAYIT LİSTESİ'!$B$4:$H$767,6,0))) -> 
A57: Sıra No | B57: Formül | C57: Göğüs No | D57: Doğum Tarihi | E57: Adı ve Soyadı | F57: Okulu | G57: Start Kontrol | J57: 10 | K57: YÜKSEK-10 | L57: =IF(ISERROR(VLOOKUP(K57,'KAYIT LİSTESİ'!$B$4:$H$767,2,0)),"",(VLOOKUP(K57,'KAYIT LİSTESİ'!$B$4:$H$767,2,0))) ->  | M57: =IF(ISERROR(VLOOKUP(K57,'KAYIT LİSTESİ'!$B$4:$H$767,4,0)),"",(VLOOKUP(K57,'KAYIT LİSTESİ'!$B$4:$H$767,4,0))) ->  | N57: =IF(ISERROR(VLOOKUP(K57,'KAYIT LİSTESİ'!$B$4:$H$767,5,0)),"",(VLOOKUP(K57,'KAYIT LİSTESİ'!$B$4:$H$767,5,0))) ->  | O57: =IF(ISERROR(VLOOKUP(K57,'KAYIT LİSTESİ'!$B$4:$H$767,6,0)),"",(VLOOKUP(K57,'KAYIT LİSTESİ'!$B$4:$H$767,6,0))) -> 
A58: 1 | B58: 110M.ENG-2-1 | C58: =IF(ISERROR(VLOOKUP(B58,'KAYIT LİSTESİ'!$B$4:$H$767,2,0)),"",(VLOOKUP(B58,'KAYIT LİSTESİ'!$B$4:$H$767,2,0))) ->  | D58: =IF(ISERROR(VLOOKUP(B58,'KAYIT LİSTESİ'!$B$4:$H$767,4,0)),"",(VLOOKUP(B58,'KAYIT LİSTESİ'!$B$4:$H$767,4,0))) ->  | E58: =IF(ISERROR(VLOOKUP(B58,'KAYIT LİSTESİ'!$B$4:$H$767,5,0)),"",(VLOOKUP(B58,'KAYIT LİSTESİ'!$B$4:$H$767,5,0))) ->  | F58: =IF(ISERROR(VLOOKUP(B58,'KAYIT LİSTESİ'!$B$4:$H$767,6,0)),"",(VLOOKUP(B58,'KAYIT LİSTESİ'!$B$4:$H$767,6,0))) ->  | J58: 11 | K58: YÜKSEK-11 | L58: =IF(ISERROR(VLOOKUP(K58,'KAYIT LİSTESİ'!$B$4:$H$767,2,0)),"",(VLOOKUP(K58,'KAYIT LİSTESİ'!$B$4:$H$767,2,0))) ->  | M58: =IF(ISERROR(VLOOKUP(K58,'KAYIT LİSTESİ'!$B$4:$H$767,4,0)),"",(VLOOKUP(K58,'KAYIT LİSTESİ'!$B$4:$H$767,4,0))) ->  | N58: =IF(ISERROR(VLOOKUP(K58,'KAYIT LİSTESİ'!$B$4:$H$767,5,0)),"",(VLOOKUP(K58,'KAYIT LİSTESİ'!$B$4:$H$767,5,0))) ->  | O58: =IF(ISERROR(VLOOKUP(K58,'KAYIT LİSTESİ'!$B$4:$H$767,6,0)),"",(VLOOKUP(K58,'KAYIT LİSTESİ'!$B$4:$H$767,6,0))) -> 
A59: 2 | B59: 110M.ENG-2-2 | C59: =IF(ISERROR(VLOOKUP(B59,'KAYIT LİSTESİ'!$B$4:$H$767,2,0)),"",(VLOOKUP(B59,'KAYIT LİSTESİ'!$B$4:$H$767,2,0))) ->  | D59: =IF(ISERROR(VLOOKUP(B59,'KAYIT LİSTESİ'!$B$4:$H$767,4,0)),"",(VLOOKUP(B59,'KAYIT LİSTESİ'!$B$4:$H$767,4,0))) ->  | E59: =IF(ISERROR(VLOOKUP(B59,'KAYIT LİSTESİ'!$B$4:$H$767,5,0)),"",(VLOOKUP(B59,'KAYIT LİSTESİ'!$B$4:$H$767,5,0))) ->  | F59: =IF(ISERROR(VLOOKUP(B59,'KAYIT LİSTESİ'!$B$4:$H$767,6,0)),"",(VLOOKUP(B59,'KAYIT LİSTESİ'!$B$4:$H$767,6,0))) ->  | J59: 12 | K59: YÜKSEK-12 | L59: =IF(ISERROR(VLOOKUP(K59,'KAYIT LİSTESİ'!$B$4:$H$767,2,0)),"",(VLOOKUP(K59,'KAYIT LİSTESİ'!$B$4:$H$767,2,0))) ->  | M59: =IF(ISERROR(VLOOKUP(K59,'KAYIT LİSTESİ'!$B$4:$H$767,4,0)),"",(VLOOKUP(K59,'KAYIT LİSTESİ'!$B$4:$H$767,4,0))) ->  | N59: =IF(ISERROR(VLOOKUP(K59,'KAYIT LİSTESİ'!$B$4:$H$767,5,0)),"",(VLOOKUP(K59,'KAYIT LİSTESİ'!$B$4:$H$767,5,0))) ->  | O59: =IF(ISERROR(VLOOKUP(K59,'KAYIT LİSTESİ'!$B$4:$H$767,6,0)),"",(VLOOKUP(K59,'KAYIT LİSTESİ'!$B$4:$H$767,6,0))) -> 
A60: 3 | B60: 110M.ENG-2-3 | C60: =IF(ISERROR(VLOOKUP(B60,'KAYIT LİSTESİ'!$B$4:$H$767,2,0)),"",(VLOOKUP(B60,'KAYIT LİSTESİ'!$B$4:$H$767,2,0))) ->  | D60: =IF(ISERROR(VLOOKUP(B60,'KAYIT LİSTESİ'!$B$4:$H$767,4,0)),"",(VLOOKUP(B60,'KAYIT LİSTESİ'!$B$4:$H$767,4,0))) ->  | E60: =IF(ISERROR(VLOOKUP(B60,'KAYIT LİSTESİ'!$B$4:$H$767,5,0)),"",(VLOOKUP(B60,'KAYIT LİSTESİ'!$B$4:$H$767,5,0))) ->  | F60: =IF(ISERROR(VLOOKUP(B60,'KAYIT LİSTESİ'!$B$4:$H$767,6,0)),"",(VLOOKUP(B60,'KAYIT LİSTESİ'!$B$4:$H$767,6,0))) ->  | J60: 13 | K60: YÜKSEK-13 | L60: =IF(ISERROR(VLOOKUP(K60,'KAYIT LİSTESİ'!$B$4:$H$767,2,0)),"",(VLOOKUP(K60,'KAYIT LİSTESİ'!$B$4:$H$767,2,0))) ->  | M60: =IF(ISERROR(VLOOKUP(K60,'KAYIT LİSTESİ'!$B$4:$H$767,4,0)),"",(VLOOKUP(K60,'KAYIT LİSTESİ'!$B$4:$H$767,4,0))) ->  | N60: =IF(ISERROR(VLOOKUP(K60,'KAYIT LİSTESİ'!$B$4:$H$767,5,0)),"",(VLOOKUP(K60,'KAYIT LİSTESİ'!$B$4:$H$767,5,0))) ->  | O60: =IF(ISERROR(VLOOKUP(K60,'KAYIT LİSTESİ'!$B$4:$H$767,6,0)),"",(VLOOKUP(K60,'KAYIT LİSTESİ'!$B$4:$H$767,6,0))) -> 
A61: 4 | B61: 110M.ENG-2-4 | C61: =IF(ISERROR(VLOOKUP(B61,'KAYIT LİSTESİ'!$B$4:$H$767,2,0)),"",(VLOOKUP(B61,'KAYIT LİSTESİ'!$B$4:$H$767,2,0))) ->  | D61: =IF(ISERROR(VLOOKUP(B61,'KAYIT LİSTESİ'!$B$4:$H$767,4,0)),"",(VLOOKUP(B61,'KAYIT LİSTESİ'!$B$4:$H$767,4,0))) ->  | E61: =IF(ISERROR(VLOOKUP(B61,'KAYIT LİSTESİ'!$B$4:$H$767,5,0)),"",(VLOOKUP(B61,'KAYIT LİSTESİ'!$B$4:$H$767,5,0))) ->  | F61: =IF(ISERROR(VLOOKUP(B61,'KAYIT LİSTESİ'!$B$4:$H$767,6,0)),"",(VLOOKUP(B61,'KAYIT LİSTESİ'!$B$4:$H$767,6,0))) ->  | J61: 14 | K61: YÜKSEK-14 | L61: =IF(ISERROR(VLOOKUP(K61,'KAYIT LİSTESİ'!$B$4:$H$767,2,0)),"",(VLOOKUP(K61,'KAYIT LİSTESİ'!$B$4:$H$767,2,0))) ->  | M61: =IF(ISERROR(VLOOKUP(K61,'KAYIT LİSTESİ'!$B$4:$H$767,4,0)),"",(VLOOKUP(K61,'KAYIT LİSTESİ'!$B$4:$H$767,4,0))) ->  | N61: =IF(ISERROR(VLOOKUP(K61,'KAYIT LİSTESİ'!$B$4:$H$767,5,0)),"",(VLOOKUP(K61,'KAYIT LİSTESİ'!$B$4:$H$767,5,0))) ->  | O61: =IF(ISERROR(VLOOKUP(K61,'KAYIT LİSTESİ'!$B$4:$H$767,6,0)),"",(VLOOKUP(K61,'KAYIT LİSTESİ'!$B$4:$H$767,6,0))) -> 
A62: 5 | B62: 110M.ENG-2-5 | C62: =IF(ISERROR(VLOOKUP(B62,'KAYIT LİSTESİ'!$B$4:$H$767,2,0)),"",(VLOOKUP(B62,'KAYIT LİSTESİ'!$B$4:$H$767,2,0))) ->  | D62: =IF(ISERROR(VLOOKUP(B62,'KAYIT LİSTESİ'!$B$4:$H$767,4,0)),"",(VLOOKUP(B62,'KAYIT LİSTESİ'!$B$4:$H$767,4,0))) ->  | E62: =IF(ISERROR(VLOOKUP(B62,'KAYIT LİSTESİ'!$B$4:$H$767,5,0)),"",(VLOOKUP(B62,'KAYIT LİSTESİ'!$B$4:$H$767,5,0))) ->  | F62: =IF(ISERROR(VLOOKUP(B62,'KAYIT LİSTESİ'!$B$4:$H$767,6,0)),"",(VLOOKUP(B62,'KAYIT LİSTESİ'!$B$4:$H$767,6,0))) ->  | J62: 15 | K62: YÜKSEK-15 | L62: =IF(ISERROR(VLOOKUP(K62,'KAYIT LİSTESİ'!$B$4:$H$767,2,0)),"",(VLOOKUP(K62,'KAYIT LİSTESİ'!$B$4:$H$767,2,0))) ->  | M62: =IF(ISERROR(VLOOKUP(K62,'KAYIT LİSTESİ'!$B$4:$H$767,4,0)),"",(VLOOKUP(K62,'KAYIT LİSTESİ'!$B$4:$H$767,4,0))) ->  | N62: =IF(ISERROR(VLOOKUP(K62,'KAYIT LİSTESİ'!$B$4:$H$767,5,0)),"",(VLOOKUP(K62,'KAYIT LİSTESİ'!$B$4:$H$767,5,0))) ->  | O62: =IF(ISERROR(VLOOKUP(K62,'KAYIT LİSTESİ'!$B$4:$H$767,6,0)),"",(VLOOKUP(K62,'KAYIT LİSTESİ'!$B$4:$H$767,6,0))) -> 
A63: 6 | B63: 110M.ENG-2-6 | C63: =IF(ISERROR(VLOOKUP(B63,'KAYIT LİSTESİ'!$B$4:$H$767,2,0)),"",(VLOOKUP(B63,'KAYIT LİSTESİ'!$B$4:$H$767,2,0))) ->  | D63: =IF(ISERROR(VLOOKUP(B63,'KAYIT LİSTESİ'!$B$4:$H$767,4,0)),"",(VLOOKUP(B63,'KAYIT LİSTESİ'!$B$4:$H$767,4,0))) ->  | E63: =IF(ISERROR(VLOOKUP(B63,'KAYIT LİSTESİ'!$B$4:$H$767,5,0)),"",(VLOOKUP(B63,'KAYIT LİSTESİ'!$B$4:$H$767,5,0))) ->  | F63: =IF(ISERROR(VLOOKUP(B63,'KAYIT LİSTESİ'!$B$4:$H$767,6,0)),"",(VLOOKUP(B63,'KAYIT LİSTESİ'!$B$4:$H$767,6,0))) ->  | J63: 16 | K63: YÜKSEK-16 | L63: =IF(ISERROR(VLOOKUP(K63,'KAYIT LİSTESİ'!$B$4:$H$767,2,0)),"",(VLOOKUP(K63,'KAYIT LİSTESİ'!$B$4:$H$767,2,0))) ->  | M63: =IF(ISERROR(VLOOKUP(K63,'KAYIT LİSTESİ'!$B$4:$H$767,4,0)),"",(VLOOKUP(K63,'KAYIT LİSTESİ'!$B$4:$H$767,4,0))) ->  | N63: =IF(ISERROR(VLOOKUP(K63,'KAYIT LİSTESİ'!$B$4:$H$767,5,0)),"",(VLOOKUP(K63,'KAYIT LİSTESİ'!$B$4:$H$767,5,0))) ->  | O63: =IF(ISERROR(VLOOKUP(K63,'KAYIT LİSTESİ'!$B$4:$H$767,6,0)),"",(VLOOKUP(K63,'KAYIT LİSTESİ'!$B$4:$H$767,6,0))) -> 
A64: 7 | B64: 110M.ENG-2-7 | C64: =IF(ISERROR(VLOOKUP(B64,'KAYIT LİSTESİ'!$B$4:$H$767,2,0)),"",(VLOOKUP(B64,'KAYIT LİSTESİ'!$B$4:$H$767,2,0))) ->  | D64: =IF(ISERROR(VLOOKUP(B64,'KAYIT LİSTESİ'!$B$4:$H$767,4,0)),"",(VLOOKUP(B64,'KAYIT LİSTESİ'!$B$4:$H$767,4,0))) ->  | E64: =IF(ISERROR(VLOOKUP(B64,'KAYIT LİSTESİ'!$B$4:$H$767,5,0)),"",(VLOOKUP(B64,'KAYIT LİSTESİ'!$B$4:$H$767,5,0))) ->  | F64: =IF(ISERROR(VLOOKUP(B64,'KAYIT LİSTESİ'!$B$4:$H$767,6,0)),"",(VLOOKUP(B64,'KAYIT LİSTESİ'!$B$4:$H$767,6,0))) ->  | J64: 17 | K64: YÜKSEK-17 | L64: =IF(ISERROR(VLOOKUP(K64,'KAYIT LİSTESİ'!$B$4:$H$767,2,0)),"",(VLOOKUP(K64,'KAYIT LİSTESİ'!$B$4:$H$767,2,0))) ->  | M64: =IF(ISERROR(VLOOKUP(K64,'KAYIT LİSTESİ'!$B$4:$H$767,4,0)),"",(VLOOKUP(K64,'KAYIT LİSTESİ'!$B$4:$H$767,4,0))) ->  | N64: =IF(ISERROR(VLOOKUP(K64,'KAYIT LİSTESİ'!$B$4:$H$767,5,0)),"",(VLOOKUP(K64,'KAYIT LİSTESİ'!$B$4:$H$767,5,0))) ->  | O64: =IF(ISERROR(VLOOKUP(K64,'KAYIT LİSTESİ'!$B$4:$H$767,6,0)),"",(VLOOKUP(K64,'KAYIT LİSTESİ'!$B$4:$H$767,6,0))) -> 
A65: 8 | B65: 110M.ENG-2-8 | C65: =IF(ISERROR(VLOOKUP(B65,'KAYIT LİSTESİ'!$B$4:$H$767,2,0)),"",(VLOOKUP(B65,'KAYIT LİSTESİ'!$B$4:$H$767,2,0))) ->  | D65: =IF(ISERROR(VLOOKUP(B65,'KAYIT LİSTESİ'!$B$4:$H$767,4,0)),"",(VLOOKUP(B65,'KAYIT LİSTESİ'!$B$4:$H$767,4,0))) ->  | E65: =IF(ISERROR(VLOOKUP(B65,'KAYIT LİSTESİ'!$B$4:$H$767,5,0)),"",(VLOOKUP(B65,'KAYIT LİSTESİ'!$B$4:$H$767,5,0))) ->  | F65: =IF(ISERROR(VLOOKUP(B65,'KAYIT LİSTESİ'!$B$4:$H$767,6,0)),"",(VLOOKUP(B65,'KAYIT LİSTESİ'!$B$4:$H$767,6,0))) ->  | J65: 18 | K65: YÜKSEK-18 | L65: =IF(ISERROR(VLOOKUP(K65,'KAYIT LİSTESİ'!$B$4:$H$767,2,0)),"",(VLOOKUP(K65,'KAYIT LİSTESİ'!$B$4:$H$767,2,0))) ->  | M65: =IF(ISERROR(VLOOKUP(K65,'KAYIT LİSTESİ'!$B$4:$H$767,4,0)),"",(VLOOKUP(K65,'KAYIT LİSTESİ'!$B$4:$H$767,4,0))) ->  | N65: =IF(ISERROR(VLOOKUP(K65,'KAYIT LİSTESİ'!$B$4:$H$767,5,0)),"",(VLOOKUP(K65,'KAYIT LİSTESİ'!$B$4:$H$767,5,0))) ->  | O65: =IF(ISERROR(VLOOKUP(K65,'KAYIT LİSTESİ'!$B$4:$H$767,6,0)),"",(VLOOKUP(K65,'KAYIT LİSTESİ'!$B$4:$H$767,6,0))) -> 
A66: 3. SERİ | J66: 19 | K66: YÜKSEK-19 | L66: =IF(ISERROR(VLOOKUP(K66,'KAYIT LİSTESİ'!$B$4:$H$767,2,0)),"",(VLOOKUP(K66,'KAYIT LİSTESİ'!$B$4:$H$767,2,0))) ->  | M66: =IF(ISERROR(VLOOKUP(K66,'KAYIT LİSTESİ'!$B$4:$H$767,4,0)),"",(VLOOKUP(K66,'KAYIT LİSTESİ'!$B$4:$H$767,4,0))) ->  | N66: =IF(ISERROR(VLOOKUP(K66,'KAYIT LİSTESİ'!$B$4:$H$767,5,0)),"",(VLOOKUP(K66,'KAYIT LİSTESİ'!$B$4:$H$767,5,0))) ->  | O66: =IF(ISERROR(VLOOKUP(K66,'KAYIT LİSTESİ'!$B$4:$H$767,6,0)),"",(VLOOKUP(K66,'KAYIT LİSTESİ'!$B$4:$H$767,6,0))) -> 
A67: Sıra No | B67: Formül | C67: Göğüs No | D67: Doğum Tarihi | E67: Adı ve Soyadı | F67: Okulu | G67: Start Kontrol | J67: 20 | K67: YÜKSEK-20 | L67: =IF(ISERROR(VLOOKUP(K67,'KAYIT LİSTESİ'!$B$4:$H$767,2,0)),"",(VLOOKUP(K67,'KAYIT LİSTESİ'!$B$4:$H$767,2,0))) ->  | M67: =IF(ISERROR(VLOOKUP(K67,'KAYIT LİSTESİ'!$B$4:$H$767,4,0)),"",(VLOOKUP(K67,'KAYIT LİSTESİ'!$B$4:$H$767,4,0))) ->  | N67: =IF(ISERROR(VLOOKUP(K67,'KAYIT LİSTESİ'!$B$4:$H$767,5,0)),"",(VLOOKUP(K67,'KAYIT LİSTESİ'!$B$4:$H$767,5,0))) ->  | O67: =IF(ISERROR(VLOOKUP(K67,'KAYIT LİSTESİ'!$B$4:$H$767,6,0)),"",(VLOOKUP(K67,'KAYIT LİSTESİ'!$B$4:$H$767,6,0))) -> 
A68: 1 | B68: 110M.ENG-3-1 | C68: =IF(ISERROR(VLOOKUP(B68,'KAYIT LİSTESİ'!$B$4:$H$767,2,0)),"",(VLOOKUP(B68,'KAYIT LİSTESİ'!$B$4:$H$767,2,0))) ->  | D68: =IF(ISERROR(VLOOKUP(B68,'KAYIT LİSTESİ'!$B$4:$H$767,4,0)),"",(VLOOKUP(B68,'KAYIT LİSTESİ'!$B$4:$H$767,4,0))) ->  | E68: =IF(ISERROR(VLOOKUP(B68,'KAYIT LİSTESİ'!$B$4:$H$767,5,0)),"",(VLOOKUP(B68,'KAYIT LİSTESİ'!$B$4:$H$767,5,0))) ->  | F68: =IF(ISERROR(VLOOKUP(B68,'KAYIT LİSTESİ'!$B$4:$H$767,6,0)),"",(VLOOKUP(B68,'KAYIT LİSTESİ'!$B$4:$H$767,6,0))) ->  | J68: 21 | K68: YÜKSEK-21 | L68: =IF(ISERROR(VLOOKUP(K68,'KAYIT LİSTESİ'!$B$4:$H$767,2,0)),"",(VLOOKUP(K68,'KAYIT LİSTESİ'!$B$4:$H$767,2,0))) ->  | M68: =IF(ISERROR(VLOOKUP(K68,'KAYIT LİSTESİ'!$B$4:$H$767,4,0)),"",(VLOOKUP(K68,'KAYIT LİSTESİ'!$B$4:$H$767,4,0))) ->  | N68: =IF(ISERROR(VLOOKUP(K68,'KAYIT LİSTESİ'!$B$4:$H$767,5,0)),"",(VLOOKUP(K68,'KAYIT LİSTESİ'!$B$4:$H$767,5,0))) ->  | O68: =IF(ISERROR(VLOOKUP(K68,'KAYIT LİSTESİ'!$B$4:$H$767,6,0)),"",(VLOOKUP(K68,'KAYIT LİSTESİ'!$B$4:$H$767,6,0))) -> 
A69: 2 | B69: 110M.ENG-3-2 | C69: =IF(ISERROR(VLOOKUP(B69,'KAYIT LİSTESİ'!$B$4:$H$767,2,0)),"",(VLOOKUP(B69,'KAYIT LİSTESİ'!$B$4:$H$767,2,0))) ->  | D69: =IF(ISERROR(VLOOKUP(B69,'KAYIT LİSTESİ'!$B$4:$H$767,4,0)),"",(VLOOKUP(B69,'KAYIT LİSTESİ'!$B$4:$H$767,4,0))) ->  | E69: =IF(ISERROR(VLOOKUP(B69,'KAYIT LİSTESİ'!$B$4:$H$767,5,0)),"",(VLOOKUP(B69,'KAYIT LİSTESİ'!$B$4:$H$767,5,0))) ->  | F69: =IF(ISERROR(VLOOKUP(B69,'KAYIT LİSTESİ'!$B$4:$H$767,6,0)),"",(VLOOKUP(B69,'KAYIT LİSTESİ'!$B$4:$H$767,6,0))) ->  | J69: 22 | K69: YÜKSEK-22 | L69: =IF(ISERROR(VLOOKUP(K69,'KAYIT LİSTESİ'!$B$4:$H$767,2,0)),"",(VLOOKUP(K69,'KAYIT LİSTESİ'!$B$4:$H$767,2,0))) ->  | M69: =IF(ISERROR(VLOOKUP(K69,'KAYIT LİSTESİ'!$B$4:$H$767,4,0)),"",(VLOOKUP(K69,'KAYIT LİSTESİ'!$B$4:$H$767,4,0))) ->  | N69: =IF(ISERROR(VLOOKUP(K69,'KAYIT LİSTESİ'!$B$4:$H$767,5,0)),"",(VLOOKUP(K69,'KAYIT LİSTESİ'!$B$4:$H$767,5,0))) ->  | O69: =IF(ISERROR(VLOOKUP(K69,'KAYIT LİSTESİ'!$B$4:$H$767,6,0)),"",(VLOOKUP(K69,'KAYIT LİSTESİ'!$B$4:$H$767,6,0))) -> 
A70: 3 | B70: 110M.ENG-3-3 | C70: =IF(ISERROR(VLOOKUP(B70,'KAYIT LİSTESİ'!$B$4:$H$767,2,0)),"",(VLOOKUP(B70,'KAYIT LİSTESİ'!$B$4:$H$767,2,0))) ->  | D70: =IF(ISERROR(VLOOKUP(B70,'KAYIT LİSTESİ'!$B$4:$H$767,4,0)),"",(VLOOKUP(B70,'KAYIT LİSTESİ'!$B$4:$H$767,4,0))) ->  | E70: =IF(ISERROR(VLOOKUP(B70,'KAYIT LİSTESİ'!$B$4:$H$767,5,0)),"",(VLOOKUP(B70,'KAYIT LİSTESİ'!$B$4:$H$767,5,0))) ->  | F70: =IF(ISERROR(VLOOKUP(B70,'KAYIT LİSTESİ'!$B$4:$H$767,6,0)),"",(VLOOKUP(B70,'KAYIT LİSTESİ'!$B$4:$H$767,6,0))) ->  | J70: 23 | K70: YÜKSEK-23 | L70: =IF(ISERROR(VLOOKUP(K70,'KAYIT LİSTESİ'!$B$4:$H$767,2,0)),"",(VLOOKUP(K70,'KAYIT LİSTESİ'!$B$4:$H$767,2,0))) ->  | M70: =IF(ISERROR(VLOOKUP(K70,'KAYIT LİSTESİ'!$B$4:$H$767,4,0)),"",(VLOOKUP(K70,'KAYIT LİSTESİ'!$B$4:$H$767,4,0))) ->  | N70: =IF(ISERROR(VLOOKUP(K70,'KAYIT LİSTESİ'!$B$4:$H$767,5,0)),"",(VLOOKUP(K70,'KAYIT LİSTESİ'!$B$4:$H$767,5,0))) ->  | O70: =IF(ISERROR(VLOOKUP(K70,'KAYIT LİSTESİ'!$B$4:$H$767,6,0)),"",(VLOOKUP(K70,'KAYIT LİSTESİ'!$B$4:$H$767,6,0))) -> 
A71: 4 | B71: 110M.ENG-3-4 | C71: =IF(ISERROR(VLOOKUP(B71,'KAYIT LİSTESİ'!$B$4:$H$767,2,0)),"",(VLOOKUP(B71,'KAYIT LİSTESİ'!$B$4:$H$767,2,0))) ->  | D71: =IF(ISERROR(VLOOKUP(B71,'KAYIT LİSTESİ'!$B$4:$H$767,4,0)),"",(VLOOKUP(B71,'KAYIT LİSTESİ'!$B$4:$H$767,4,0))) ->  | E71: =IF(ISERROR(VLOOKUP(B71,'KAYIT LİSTESİ'!$B$4:$H$767,5,0)),"",(VLOOKUP(B71,'KAYIT LİSTESİ'!$B$4:$H$767,5,0))) ->  | F71: =IF(ISERROR(VLOOKUP(B71,'KAYIT LİSTESİ'!$B$4:$H$767,6,0)),"",(VLOOKUP(B71,'KAYIT LİSTESİ'!$B$4:$H$767,6,0))) ->  | J71: 24 | K71: YÜKSEK-24 | L71: =IF(ISERROR(VLOOKUP(K71,'KAYIT LİSTESİ'!$B$4:$H$767,2,0)),"",(VLOOKUP(K71,'KAYIT LİSTESİ'!$B$4:$H$767,2,0))) ->  | M71: =IF(ISERROR(VLOOKUP(K71,'KAYIT LİSTESİ'!$B$4:$H$767,4,0)),"",(VLOOKUP(K71,'KAYIT LİSTESİ'!$B$4:$H$767,4,0))) ->  | N71: =IF(ISERROR(VLOOKUP(K71,'KAYIT LİSTESİ'!$B$4:$H$767,5,0)),"",(VLOOKUP(K71,'KAYIT LİSTESİ'!$B$4:$H$767,5,0))) ->  | O71: =IF(ISERROR(VLOOKUP(K71,'KAYIT LİSTESİ'!$B$4:$H$767,6,0)),"",(VLOOKUP(K71,'KAYIT LİSTESİ'!$B$4:$H$767,6,0))) -> 
A72: 5 | B72: 110M.ENG-3-5 | C72: =IF(ISERROR(VLOOKUP(B72,'KAYIT LİSTESİ'!$B$4:$H$767,2,0)),"",(VLOOKUP(B72,'KAYIT LİSTESİ'!$B$4:$H$767,2,0))) ->  | D72: =IF(ISERROR(VLOOKUP(B72,'KAYIT LİSTESİ'!$B$4:$H$767,4,0)),"",(VLOOKUP(B72,'KAYIT LİSTESİ'!$B$4:$H$767,4,0))) ->  | E72: =IF(ISERROR(VLOOKUP(B72,'KAYIT LİSTESİ'!$B$4:$H$767,5,0)),"",(VLOOKUP(B72,'KAYIT LİSTESİ'!$B$4:$H$767,5,0))) ->  | F72: =IF(ISERROR(VLOOKUP(B72,'KAYIT LİSTESİ'!$B$4:$H$767,6,0)),"",(VLOOKUP(B72,'KAYIT LİSTESİ'!$B$4:$H$767,6,0))) ->  | J72: 25 | K72: YÜKSEK-25 | L72: =IF(ISERROR(VLOOKUP(K72,'KAYIT LİSTESİ'!$B$4:$H$767,2,0)),"",(VLOOKUP(K72,'KAYIT LİSTESİ'!$B$4:$H$767,2,0))) ->  | M72: =IF(ISERROR(VLOOKUP(K72,'KAYIT LİSTESİ'!$B$4:$H$767,4,0)),"",(VLOOKUP(K72,'KAYIT LİSTESİ'!$B$4:$H$767,4,0))) ->  | N72: =IF(ISERROR(VLOOKUP(K72,'KAYIT LİSTESİ'!$B$4:$H$767,5,0)),"",(VLOOKUP(K72,'KAYIT LİSTESİ'!$B$4:$H$767,5,0))) ->  | O72: =IF(ISERROR(VLOOKUP(K72,'KAYIT LİSTESİ'!$B$4:$H$767,6,0)),"",(VLOOKUP(K72,'KAYIT LİSTESİ'!$B$4:$H$767,6,0))) -> 
A73: 6 | B73: 110M.ENG-3-6 | C73: =IF(ISERROR(VLOOKUP(B73,'KAYIT LİSTESİ'!$B$4:$H$767,2,0)),"",(VLOOKUP(B73,'KAYIT LİSTESİ'!$B$4:$H$767,2,0))) ->  | D73: =IF(ISERROR(VLOOKUP(B73,'KAYIT LİSTESİ'!$B$4:$H$767,4,0)),"",(VLOOKUP(B73,'KAYIT LİSTESİ'!$B$4:$H$767,4,0))) ->  | E73: =IF(ISERROR(VLOOKUP(B73,'KAYIT LİSTESİ'!$B$4:$H$767,5,0)),"",(VLOOKUP(B73,'KAYIT LİSTESİ'!$B$4:$H$767,5,0))) ->  | F73: =IF(ISERROR(VLOOKUP(B73,'KAYIT LİSTESİ'!$B$4:$H$767,6,0)),"",(VLOOKUP(B73,'KAYIT LİSTESİ'!$B$4:$H$767,6,0))) ->  | J73: GÜLLE ATMA
A74: 7 | B74: 110M.ENG-3-7 | C74: =IF(ISERROR(VLOOKUP(B74,'KAYIT LİSTESİ'!$B$4:$H$767,2,0)),"",(VLOOKUP(B74,'KAYIT LİSTESİ'!$B$4:$H$767,2,0))) ->  | D74: =IF(ISERROR(VLOOKUP(B74,'KAYIT LİSTESİ'!$B$4:$H$767,4,0)),"",(VLOOKUP(B74,'KAYIT LİSTESİ'!$B$4:$H$767,4,0))) ->  | E74: =IF(ISERROR(VLOOKUP(B74,'KAYIT LİSTESİ'!$B$4:$H$767,5,0)),"",(VLOOKUP(B74,'KAYIT LİSTESİ'!$B$4:$H$767,5,0))) ->  | F74: =IF(ISERROR(VLOOKUP(B74,'KAYIT LİSTESİ'!$B$4:$H$767,6,0)),"",(VLOOKUP(B74,'KAYIT LİSTESİ'!$B$4:$H$767,6,0))) ->  | J74: SIRA NO | L74: GÖĞÜS NO | M74: DOĞUM TARİHİ | N74: ADI VE SOYADI | O74: OKULU | P74: Start Kontrol
A75: 8 | B75: 110M.ENG-3-8 | C75: =IF(ISERROR(VLOOKUP(B75,'KAYIT LİSTESİ'!$B$4:$H$767,2,0)),"",(VLOOKUP(B75,'KAYIT LİSTESİ'!$B$4:$H$767,2,0))) ->  | D75: =IF(ISERROR(VLOOKUP(B75,'KAYIT LİSTESİ'!$B$4:$H$767,4,0)),"",(VLOOKUP(B75,'KAYIT LİSTESİ'!$B$4:$H$767,4,0))) ->  | E75: =IF(ISERROR(VLOOKUP(B75,'KAYIT LİSTESİ'!$B$4:$H$767,5,0)),"",(VLOOKUP(B75,'KAYIT LİSTESİ'!$B$4:$H$767,5,0))) ->  | F75: =IF(ISERROR(VLOOKUP(B75,'KAYIT LİSTESİ'!$B$4:$H$767,6,0)),"",(VLOOKUP(B75,'KAYIT LİSTESİ'!$B$4:$H$767,6,0))) -> 
A76: 4. SERİ | J76: 1 | K76: GÜLLE-1 | L76: =IF(ISERROR(VLOOKUP(K76,'KAYIT LİSTESİ'!$B$4:$H$767,2,0)),"",(VLOOKUP(K76,'KAYIT LİSTESİ'!$B$4:$H$767,2,0))) -> 398 | M76: =IF(ISERROR(VLOOKUP(K76,'KAYIT LİSTESİ'!$B$4:$H$767,4,0)),"",(VLOOKUP(K76,'KAYIT LİSTESİ'!$B$4:$H$767,4,0))) -> 1999-05-27 | N76: =IF(ISERROR(VLOOKUP(K76,'KAYIT LİSTESİ'!$B$4:$H$767,5,0)),"",(VLOOKUP(K76,'KAYIT LİSTESİ'!$B$4:$H$767,5,0))) -> MELİSA KURBASEVİÇ | O76: =IF(ISERROR(VLOOKUP(K76,'KAYIT LİSTESİ'!$B$4:$H$767,6,0)),"",(VLOOKUP(K76,'KAYIT LİSTESİ'!$B$4:$H$767,6,0))) -> İZMİR
A77: Sıra No | B77: Formül | C77: Göğüs No | D77: Doğum Tarihi | E77: Adı ve Soyadı | F77: Okulu | G77: Start Kontrol | J77: 2 | K77: GÜLLE-2 | L77: =IF(ISERROR(VLOOKUP(K77,'KAYIT LİSTESİ'!$B$4:$H$767,2,0)),"",(VLOOKUP(K77,'KAYIT LİSTESİ'!$B$4:$H$767,2,0))) -> 140 | M77: =IF(ISERROR(VLOOKUP(K77,'KAYIT LİSTESİ'!$B$4:$H$767,4,0)),"",(VLOOKUP(K77,'KAYIT LİSTESİ'!$B$4:$H$767,4,0))) -> 1999-03-26 | N77: =IF(ISERROR(VLOOKUP(K77,'KAYIT LİSTESİ'!$B$4:$H$767,5,0)),"",(VLOOKUP(K77,'KAYIT LİSTESİ'!$B$4:$H$767,5,0))) -> MAŞALLAH AYDIN | O77: =IF(ISERROR(VLOOKUP(K77,'KAYIT LİSTESİ'!$B$4:$H$767,6,0)),"",(VLOOKUP(K77,'KAYIT LİSTESİ'!$B$4:$H$767,6,0))) -> BATMAN
A78: 1 | B78: 110M.ENG-4-1 | C78: =IF(ISERROR(VLOOKUP(B78,'KAYIT LİSTESİ'!$B$4:$H$767,2,0)),"",(VLOOKUP(B78,'KAYIT LİSTESİ'!$B$4:$H$767,2,0))) ->  | D78: =IF(ISERROR(VLOOKUP(B78,'KAYIT LİSTESİ'!$B$4:$H$767,4,0)),"",(VLOOKUP(B78,'KAYIT LİSTESİ'!$B$4:$H$767,4,0))) ->  | E78: =IF(ISERROR(VLOOKUP(B78,'KAYIT LİSTESİ'!$B$4:$H$767,5,0)),"",(VLOOKUP(B78,'KAYIT LİSTESİ'!$B$4:$H$767,5,0))) ->  | F78: =IF(ISERROR(VLOOKUP(B78,'KAYIT LİSTESİ'!$B$4:$H$767,6,0)),"",(VLOOKUP(B78,'KAYIT LİSTESİ'!$B$4:$H$767,6,0))) ->  | J78: 3 | K78: GÜLLE-3 | L78: =IF(ISERROR(VLOOKUP(K78,'KAYIT LİSTESİ'!$B$4:$H$767,2,0)),"",(VLOOKUP(K78,'KAYIT LİSTESİ'!$B$4:$H$767,2,0))) -> 141 | M78: =IF(ISERROR(VLOOKUP(K78,'KAYIT LİSTESİ'!$B$4:$H$767,4,0)),"",(VLOOKUP(K78,'KAYIT LİSTESİ'!$B$4:$H$767,4,0))) -> 1999-01-01 | N78: =IF(ISERROR(VLOOKUP(K78,'KAYIT LİSTESİ'!$B$4:$H$767,5,0)),"",(VLOOKUP(K78,'KAYIT LİSTESİ'!$B$4:$H$767,5,0))) -> DİLAN AYTEN | O78: =IF(ISERROR(VLOOKUP(K78,'KAYIT LİSTESİ'!$B$4:$H$767,6,0)),"",(VLOOKUP(K78,'KAYIT LİSTESİ'!$B$4:$H$767,6,0))) -> BATMAN
A79: 2 | B79: 110M.ENG-4-2 | C79: =IF(ISERROR(VLOOKUP(B79,'KAYIT LİSTESİ'!$B$4:$H$767,2,0)),"",(VLOOKUP(B79,'KAYIT LİSTESİ'!$B$4:$H$767,2,0))) ->  | D79: =IF(ISERROR(VLOOKUP(B79,'KAYIT LİSTESİ'!$B$4:$H$767,4,0)),"",(VLOOKUP(B79,'KAYIT LİSTESİ'!$B$4:$H$767,4,0))) ->  | E79: =IF(ISERROR(VLOOKUP(B79,'KAYIT LİSTESİ'!$B$4:$H$767,5,0)),"",(VLOOKUP(B79,'KAYIT LİSTESİ'!$B$4:$H$767,5,0))) ->  | F79: =IF(ISERROR(VLOOKUP(B79,'KAYIT LİSTESİ'!$B$4:$H$767,6,0)),"",(VLOOKUP(B79,'KAYIT LİSTESİ'!$B$4:$H$767,6,0))) ->  | J79: 4 | K79: GÜLLE-4 | L79: =IF(ISERROR(VLOOKUP(K79,'KAYIT LİSTESİ'!$B$4:$H$767,2,0)),"",(VLOOKUP(K79,'KAYIT LİSTESİ'!$B$4:$H$767,2,0))) -> 381 | M79: =IF(ISERROR(VLOOKUP(K79,'KAYIT LİSTESİ'!$B$4:$H$767,4,0)),"",(VLOOKUP(K79,'KAYIT LİSTESİ'!$B$4:$H$767,4,0))) -> 1999-02-13 | N79: =IF(ISERROR(VLOOKUP(K79,'KAYIT LİSTESİ'!$B$4:$H$767,5,0)),"",(VLOOKUP(K79,'KAYIT LİSTESİ'!$B$4:$H$767,5,0))) -> BEYZA BOZÇAL | O79: =IF(ISERROR(VLOOKUP(K79,'KAYIT LİSTESİ'!$B$4:$H$767,6,0)),"",(VLOOKUP(K79,'KAYIT LİSTESİ'!$B$4:$H$767,6,0))) -> İZMİR
A80: 3 | B80: 110M.ENG-4-3 | C80: =IF(ISERROR(VLOOKUP(B80,'KAYIT LİSTESİ'!$B$4:$H$767,2,0)),"",(VLOOKUP(B80,'KAYIT LİSTESİ'!$B$4:$H$767,2,0))) ->  | D80: =IF(ISERROR(VLOOKUP(B80,'KAYIT LİSTESİ'!$B$4:$H$767,4,0)),"",(VLOOKUP(B80,'KAYIT LİSTESİ'!$B$4:$H$767,4,0))) ->  | E80: =IF(ISERROR(VLOOKUP(B80,'KAYIT LİSTESİ'!$B$4:$H$767,5,0)),"",(VLOOKUP(B80,'KAYIT LİSTESİ'!$B$4:$H$767,5,0))) ->  | F80: =IF(ISERROR(VLOOKUP(B80,'KAYIT LİSTESİ'!$B$4:$H$767,6,0)),"",(VLOOKUP(B80,'KAYIT LİSTESİ'!$B$4:$H$767,6,0))) ->  | J80: 5 | K80: GÜLLE-5 | L80: =IF(ISERROR(VLOOKUP(K80,'KAYIT LİSTESİ'!$B$4:$H$767,2,0)),"",(VLOOKUP(K80,'KAYIT LİSTESİ'!$B$4:$H$767,2,0))) -> 139 | M80: =IF(ISERROR(VLOOKUP(K80,'KAYIT LİSTESİ'!$B$4:$H$767,4,0)),"",(VLOOKUP(K80,'KAYIT LİSTESİ'!$B$4:$H$767,4,0))) -> 1999-01-01 | N80: =IF(ISERROR(VLOOKUP(K80,'KAYIT LİSTESİ'!$B$4:$H$767,5,0)),"",(VLOOKUP(K80,'KAYIT LİSTESİ'!$B$4:$H$767,5,0))) -> SULTAN CİHANGİR | O80: =IF(ISERROR(VLOOKUP(K80,'KAYIT LİSTESİ'!$B$4:$H$767,6,0)),"",(VLOOKUP(K80,'KAYIT LİSTESİ'!$B$4:$H$767,6,0))) -> BATMAN
A81: 4 | B81: 110M.ENG-4-4 | C81: =IF(ISERROR(VLOOKUP(B81,'KAYIT LİSTESİ'!$B$4:$H$767,2,0)),"",(VLOOKUP(B81,'KAYIT LİSTESİ'!$B$4:$H$767,2,0))) ->  | D81: =IF(ISERROR(VLOOKUP(B81,'KAYIT LİSTESİ'!$B$4:$H$767,4,0)),"",(VLOOKUP(B81,'KAYIT LİSTESİ'!$B$4:$H$767,4,0))) ->  | E81: =IF(ISERROR(VLOOKUP(B81,'KAYIT LİSTESİ'!$B$4:$H$767,5,0)),"",(VLOOKUP(B81,'KAYIT LİSTESİ'!$B$4:$H$767,5,0))) ->  | F81: =IF(ISERROR(VLOOKUP(B81,'KAYIT LİSTESİ'!$B$4:$H$767,6,0)),"",(VLOOKUP(B81,'KAYIT LİSTESİ'!$B$4:$H$767,6,0))) ->  | J81: 6 | K81: GÜLLE-6 | L81: =IF(ISERROR(VLOOKUP(K81,'KAYIT LİSTESİ'!$B$4:$H$767,2,0)),"",(VLOOKUP(K81,'KAYIT LİSTESİ'!$B$4:$H$767,2,0))) -> 385 | M81: =IF(ISERROR(VLOOKUP(K81,'KAYIT LİSTESİ'!$B$4:$H$767,4,0)),"",(VLOOKUP(K81,'KAYIT LİSTESİ'!$B$4:$H$767,4,0))) -> 1999-04-01 | N81: =IF(ISERROR(VLOOKUP(K81,'KAYIT LİSTESİ'!$B$4:$H$767,5,0)),"",(VLOOKUP(K81,'KAYIT LİSTESİ'!$B$4:$H$767,5,0))) -> FADİME YEŞİLMEN | O81: =IF(ISERROR(VLOOKUP(K81,'KAYIT LİSTESİ'!$B$4:$H$767,6,0)),"",(VLOOKUP(K81,'KAYIT LİSTESİ'!$B$4:$H$767,6,0))) -> İZMİR
A82: 5 | B82: 110M.ENG-4-5 | C82: =IF(ISERROR(VLOOKUP(B82,'KAYIT LİSTESİ'!$B$4:$H$767,2,0)),"",(VLOOKUP(B82,'KAYIT LİSTESİ'!$B$4:$H$767,2,0))) ->  | D82: =IF(ISERROR(VLOOKUP(B82,'KAYIT LİSTESİ'!$B$4:$H$767,4,0)),"",(VLOOKUP(B82,'KAYIT LİSTESİ'!$B$4:$H$767,4,0))) ->  | E82: =IF(ISERROR(VLOOKUP(B82,'KAYIT LİSTESİ'!$B$4:$H$767,5,0)),"",(VLOOKUP(B82,'KAYIT LİSTESİ'!$B$4:$H$767,5,0))) ->  | F82: =IF(ISERROR(VLOOKUP(B82,'KAYIT LİSTESİ'!$B$4:$H$767,6,0)),"",(VLOOKUP(B82,'KAYIT LİSTESİ'!$B$4:$H$767,6,0))) ->  | J82: 7 | K82: GÜLLE-7 | L82: =IF(ISERROR(VLOOKUP(K82,'KAYIT LİSTESİ'!$B$4:$H$767,2,0)),"",(VLOOKUP(K82,'KAYIT LİSTESİ'!$B$4:$H$767,2,0))) ->  | M82: =IF(ISERROR(VLOOKUP(K82,'KAYIT LİSTESİ'!$B$4:$H$767,4,0)),"",(VLOOKUP(K82,'KAYIT LİSTESİ'!$B$4:$H$767,4,0))) ->  | N82: =IF(ISERROR(VLOOKUP(K82,'KAYIT LİSTESİ'!$B$4:$H$767,5,0)),"",(VLOOKUP(K82,'KAYIT LİSTESİ'!$B$4:$H$767,5,0))) ->  | O82: =IF(ISERROR(VLOOKUP(K82,'KAYIT LİSTESİ'!$B$4:$H$767,6,0)),"",(VLOOKUP(K82,'KAYIT LİSTESİ'!$B$4:$H$767,6,0))) -> 
A83: 6 | B83: 110M.ENG-4-6 | C83: =IF(ISERROR(VLOOKUP(B83,'KAYIT LİSTESİ'!$B$4:$H$767,2,0)),"",(VLOOKUP(B83,'KAYIT LİSTESİ'!$B$4:$H$767,2,0))) ->  | D83: =IF(ISERROR(VLOOKUP(B83,'KAYIT LİSTESİ'!$B$4:$H$767,4,0)),"",(VLOOKUP(B83,'KAYIT LİSTESİ'!$B$4:$H$767,4,0))) ->  | E83: =IF(ISERROR(VLOOKUP(B83,'KAYIT LİSTESİ'!$B$4:$H$767,5,0)),"",(VLOOKUP(B83,'KAYIT LİSTESİ'!$B$4:$H$767,5,0))) ->  | F83: =IF(ISERROR(VLOOKUP(B83,'KAYIT LİSTESİ'!$B$4:$H$767,6,0)),"",(VLOOKUP(B83,'KAYIT LİSTESİ'!$B$4:$H$767,6,0))) ->  | J83: 8 | K83: GÜLLE-8 | L83: =IF(ISERROR(VLOOKUP(K83,'KAYIT LİSTESİ'!$B$4:$H$767,2,0)),"",(VLOOKUP(K83,'KAYIT LİSTESİ'!$B$4:$H$767,2,0))) ->  | M83: =IF(ISERROR(VLOOKUP(K83,'KAYIT LİSTESİ'!$B$4:$H$767,4,0)),"",(VLOOKUP(K83,'KAYIT LİSTESİ'!$B$4:$H$767,4,0))) ->  | N83: =IF(ISERROR(VLOOKUP(K83,'KAYIT LİSTESİ'!$B$4:$H$767,5,0)),"",(VLOOKUP(K83,'KAYIT LİSTESİ'!$B$4:$H$767,5,0))) ->  | O83: =IF(ISERROR(VLOOKUP(K83,'KAYIT LİSTESİ'!$B$4:$H$767,6,0)),"",(VLOOKUP(K83,'KAYIT LİSTESİ'!$B$4:$H$767,6,0))) -> 
A84: 7 | B84: 110M.ENG-4-7 | C84: =IF(ISERROR(VLOOKUP(B84,'KAYIT LİSTESİ'!$B$4:$H$767,2,0)),"",(VLOOKUP(B84,'KAYIT LİSTESİ'!$B$4:$H$767,2,0))) ->  | D84: =IF(ISERROR(VLOOKUP(B84,'KAYIT LİSTESİ'!$B$4:$H$767,4,0)),"",(VLOOKUP(B84,'KAYIT LİSTESİ'!$B$4:$H$767,4,0))) ->  | E84: =IF(ISERROR(VLOOKUP(B84,'KAYIT LİSTESİ'!$B$4:$H$767,5,0)),"",(VLOOKUP(B84,'KAYIT LİSTESİ'!$B$4:$H$767,5,0))) ->  | F84: =IF(ISERROR(VLOOKUP(B84,'KAYIT LİSTESİ'!$B$4:$H$767,6,0)),"",(VLOOKUP(B84,'KAYIT LİSTESİ'!$B$4:$H$767,6,0))) ->  | J84: 9 | K84: GÜLLE-9 | L84: =IF(ISERROR(VLOOKUP(K84,'KAYIT LİSTESİ'!$B$4:$H$767,2,0)),"",(VLOOKUP(K84,'KAYIT LİSTESİ'!$B$4:$H$767,2,0))) ->  | M84: =IF(ISERROR(VLOOKUP(K84,'KAYIT LİSTESİ'!$B$4:$H$767,4,0)),"",(VLOOKUP(K84,'KAYIT LİSTESİ'!$B$4:$H$767,4,0))) ->  | N84: =IF(ISERROR(VLOOKUP(K84,'KAYIT LİSTESİ'!$B$4:$H$767,5,0)),"",(VLOOKUP(K84,'KAYIT LİSTESİ'!$B$4:$H$767,5,0))) ->  | O84: =IF(ISERROR(VLOOKUP(K84,'KAYIT LİSTESİ'!$B$4:$H$767,6,0)),"",(VLOOKUP(K84,'KAYIT LİSTESİ'!$B$4:$H$767,6,0))) -> 
A85: 8 | B85: 110M.ENG-4-8 | C85: =IF(ISERROR(VLOOKUP(B85,'KAYIT LİSTESİ'!$B$4:$H$767,2,0)),"",(VLOOKUP(B85,'KAYIT LİSTESİ'!$B$4:$H$767,2,0))) ->  | D85: =IF(ISERROR(VLOOKUP(B85,'KAYIT LİSTESİ'!$B$4:$H$767,4,0)),"",(VLOOKUP(B85,'KAYIT LİSTESİ'!$B$4:$H$767,4,0))) ->  | E85: =IF(ISERROR(VLOOKUP(B85,'KAYIT LİSTESİ'!$B$4:$H$767,5,0)),"",(VLOOKUP(B85,'KAYIT LİSTESİ'!$B$4:$H$767,5,0))) ->  | F85: =IF(ISERROR(VLOOKUP(B85,'KAYIT LİSTESİ'!$B$4:$H$767,6,0)),"",(VLOOKUP(B85,'KAYIT LİSTESİ'!$B$4:$H$767,6,0))) ->  | J85: 10 | K85: GÜLLE-10 | L85: =IF(ISERROR(VLOOKUP(K85,'KAYIT LİSTESİ'!$B$4:$H$767,2,0)),"",(VLOOKUP(K85,'KAYIT LİSTESİ'!$B$4:$H$767,2,0))) ->  | M85: =IF(ISERROR(VLOOKUP(K85,'KAYIT LİSTESİ'!$B$4:$H$767,4,0)),"",(VLOOKUP(K85,'KAYIT LİSTESİ'!$B$4:$H$767,4,0))) ->  | N85: =IF(ISERROR(VLOOKUP(K85,'KAYIT LİSTESİ'!$B$4:$H$767,5,0)),"",(VLOOKUP(K85,'KAYIT LİSTESİ'!$B$4:$H$767,5,0))) ->  | O85: =IF(ISERROR(VLOOKUP(K85,'KAYIT LİSTESİ'!$B$4:$H$767,6,0)),"",(VLOOKUP(K85,'KAYIT LİSTESİ'!$B$4:$H$767,6,0))) -> 
A86: 1500 METRE | J86: 11 | K86: GÜLLE-11 | L86: =IF(ISERROR(VLOOKUP(K86,'KAYIT LİSTESİ'!$B$4:$H$767,2,0)),"",(VLOOKUP(K86,'KAYIT LİSTESİ'!$B$4:$H$767,2,0))) ->  | M86: =IF(ISERROR(VLOOKUP(K86,'KAYIT LİSTESİ'!$B$4:$H$767,4,0)),"",(VLOOKUP(K86,'KAYIT LİSTESİ'!$B$4:$H$767,4,0))) ->  | N86: =IF(ISERROR(VLOOKUP(K86,'KAYIT LİSTESİ'!$B$4:$H$767,5,0)),"",(VLOOKUP(K86,'KAYIT LİSTESİ'!$B$4:$H$767,5,0))) ->  | O86: =IF(ISERROR(VLOOKUP(K86,'KAYIT LİSTESİ'!$B$4:$H$767,6,0)),"",(VLOOKUP(K86,'KAYIT LİSTESİ'!$B$4:$H$767,6,0))) -> 
A87: 1. SERİ | J87: 12 | K87: GÜLLE-12 | L87: =IF(ISERROR(VLOOKUP(K87,'KAYIT LİSTESİ'!$B$4:$H$767,2,0)),"",(VLOOKUP(K87,'KAYIT LİSTESİ'!$B$4:$H$767,2,0))) ->  | M87: =IF(ISERROR(VLOOKUP(K87,'KAYIT LİSTESİ'!$B$4:$H$767,4,0)),"",(VLOOKUP(K87,'KAYIT LİSTESİ'!$B$4:$H$767,4,0))) ->  | N87: =IF(ISERROR(VLOOKUP(K87,'KAYIT LİSTESİ'!$B$4:$H$767,5,0)),"",(VLOOKUP(K87,'KAYIT LİSTESİ'!$B$4:$H$767,5,0))) ->  | O87: =IF(ISERROR(VLOOKUP(K87,'KAYIT LİSTESİ'!$B$4:$H$767,6,0)),"",(VLOOKUP(K87,'KAYIT LİSTESİ'!$B$4:$H$767,6,0))) -> 
A88: Sıra No | B88: Formül | C88: Göğüs No | D88: Doğum Tarihi | E88: Adı ve Soyadı | F88: Okulu | G88: Start Kontrol | J88: 13 | K88: GÜLLE-13 | L88: =IF(ISERROR(VLOOKUP(K88,'KAYIT LİSTESİ'!$B$4:$H$767,2,0)),"",(VLOOKUP(K88,'KAYIT LİSTESİ'!$B$4:$H$767,2,0))) ->  | M88: =IF(ISERROR(VLOOKUP(K88,'KAYIT LİSTESİ'!$B$4:$H$767,4,0)),"",(VLOOKUP(K88,'KAYIT LİSTESİ'!$B$4:$H$767,4,0))) ->  | N88: =IF(ISERROR(VLOOKUP(K88,'KAYIT LİSTESİ'!$B$4:$H$767,5,0)),"",(VLOOKUP(K88,'KAYIT LİSTESİ'!$B$4:$H$767,5,0))) ->  | O88: =IF(ISERROR(VLOOKUP(K88,'KAYIT LİSTESİ'!$B$4:$H$767,6,0)),"",(VLOOKUP(K88,'KAYIT LİSTESİ'!$B$4:$H$767,6,0))) -> 
A89: 1 | B89: 1500M-1-1 | C89: =IF(ISERROR(VLOOKUP(B89,'KAYIT LİSTESİ'!$B$4:$H$767,2,0)),"",(VLOOKUP(B89,'KAYIT LİSTESİ'!$B$4:$H$767,2,0))) -> 519 | D89: =IF(ISERROR(VLOOKUP(B89,'KAYIT LİSTESİ'!$B$4:$H$767,4,0)),"",(VLOOKUP(B89,'KAYIT LİSTESİ'!$B$4:$H$767,4,0))) -> 1999-02-13 | E89: =IF(ISERROR(VLOOKUP(B89,'KAYIT LİSTESİ'!$B$4:$H$767,5,0)),"",(VLOOKUP(B89,'KAYIT LİSTESİ'!$B$4:$H$767,5,0))) -> YEŞİM İTMEÇ | F89: =IF(ISERROR(VLOOKUP(B89,'KAYIT LİSTESİ'!$B$4:$H$767,6,0)),"",(VLOOKUP(B89,'KAYIT LİSTESİ'!$B$4:$H$767,6,0))) -> KONYA | J89: 14 | K89: GÜLLE-14 | L89: =IF(ISERROR(VLOOKUP(K89,'KAYIT LİSTESİ'!$B$4:$H$767,2,0)),"",(VLOOKUP(K89,'KAYIT LİSTESİ'!$B$4:$H$767,2,0))) ->  | M89: =IF(ISERROR(VLOOKUP(K89,'KAYIT LİSTESİ'!$B$4:$H$767,4,0)),"",(VLOOKUP(K89,'KAYIT LİSTESİ'!$B$4:$H$767,4,0))) ->  | N89: =IF(ISERROR(VLOOKUP(K89,'KAYIT LİSTESİ'!$B$4:$H$767,5,0)),"",(VLOOKUP(K89,'KAYIT LİSTESİ'!$B$4:$H$767,5,0))) ->  | O89: =IF(ISERROR(VLOOKUP(K89,'KAYIT LİSTESİ'!$B$4:$H$767,6,0)),"",(VLOOKUP(K89,'KAYIT LİSTESİ'!$B$4:$H$767,6,0))) -> 
A90: 2 | B90: 1500M-1-2 | C90: =IF(ISERROR(VLOOKUP(B90,'KAYIT LİSTESİ'!$B$4:$H$767,2,0)),"",(VLOOKUP(B90,'KAYIT LİSTESİ'!$B$4:$H$767,2,0))) -> 570 | D90: =IF(ISERROR(VLOOKUP(B90,'KAYIT LİSTESİ'!$B$4:$H$767,4,0)),"",(VLOOKUP(B90,'KAYIT LİSTESİ'!$B$4:$H$767,4,0))) -> 1999-09-01 | E90: =IF(ISERROR(VLOOKUP(B90,'KAYIT LİSTESİ'!$B$4:$H$767,5,0)),"",(VLOOKUP(B90,'KAYIT LİSTESİ'!$B$4:$H$767,5,0))) -> Derya KUNUR | F90: =IF(ISERROR(VLOOKUP(B90,'KAYIT LİSTESİ'!$B$4:$H$767,6,0)),"",(VLOOKUP(B90,'KAYIT LİSTESİ'!$B$4:$H$767,6,0))) -> MUŞ | J90: 15 | K90: GÜLLE-15 | L90: =IF(ISERROR(VLOOKUP(K90,'KAYIT LİSTESİ'!$B$4:$H$767,2,0)),"",(VLOOKUP(K90,'KAYIT LİSTESİ'!$B$4:$H$767,2,0))) ->  | M90: =IF(ISERROR(VLOOKUP(K90,'KAYIT LİSTESİ'!$B$4:$H$767,4,0)),"",(VLOOKUP(K90,'KAYIT LİSTESİ'!$B$4:$H$767,4,0))) ->  | N90: =IF(ISERROR(VLOOKUP(K90,'KAYIT LİSTESİ'!$B$4:$H$767,5,0)),"",(VLOOKUP(K90,'KAYIT LİSTESİ'!$B$4:$H$767,5,0))) ->  | O90: =IF(ISERROR(VLOOKUP(K90,'KAYIT LİSTESİ'!$B$4:$H$767,6,0)),"",(VLOOKUP(K90,'KAYIT LİSTESİ'!$B$4:$H$767,6,0))) -> 
A91: 3 | B91: 1500M-1-3 | C91: =IF(ISERROR(VLOOKUP(B91,'KAYIT LİSTESİ'!$B$4:$H$767,2,0)),"",(VLOOKUP(B91,'KAYIT LİSTESİ'!$B$4:$H$767,2,0))) -> 52 | D91: =IF(ISERROR(VLOOKUP(B91,'KAYIT LİSTESİ'!$B$4:$H$767,4,0)),"",(VLOOKUP(B91,'KAYIT LİSTESİ'!$B$4:$H$767,4,0))) -> 1999-01-01 | E91: =IF(ISERROR(VLOOKUP(B91,'KAYIT LİSTESİ'!$B$4:$H$767,5,0)),"",(VLOOKUP(B91,'KAYIT LİSTESİ'!$B$4:$H$767,5,0))) -> GÜLCAN PALAVAN | F91: =IF(ISERROR(VLOOKUP(B91,'KAYIT LİSTESİ'!$B$4:$H$767,6,0)),"",(VLOOKUP(B91,'KAYIT LİSTESİ'!$B$4:$H$767,6,0))) -> ARDAHAN | J91: 16 | K91: GÜLLE-16 | L91: =IF(ISERROR(VLOOKUP(K91,'KAYIT LİSTESİ'!$B$4:$H$767,2,0)),"",(VLOOKUP(K91,'KAYIT LİSTESİ'!$B$4:$H$767,2,0))) ->  | M91: =IF(ISERROR(VLOOKUP(K91,'KAYIT LİSTESİ'!$B$4:$H$767,4,0)),"",(VLOOKUP(K91,'KAYIT LİSTESİ'!$B$4:$H$767,4,0))) ->  | N91: =IF(ISERROR(VLOOKUP(K91,'KAYIT LİSTESİ'!$B$4:$H$767,5,0)),"",(VLOOKUP(K91,'KAYIT LİSTESİ'!$B$4:$H$767,5,0))) ->  | O91: =IF(ISERROR(VLOOKUP(K91,'KAYIT LİSTESİ'!$B$4:$H$767,6,0)),"",(VLOOKUP(K91,'KAYIT LİSTESİ'!$B$4:$H$767,6,0))) -> 
A92: 4 | B92: 1500M-1-4 | C92: =IF(ISERROR(VLOOKUP(B92,'KAYIT LİSTESİ'!$B$4:$H$767,2,0)),"",(VLOOKUP(B92,'KAYIT LİSTESİ'!$B$4:$H$767,2,0))) -> 247 | D92: =IF(ISERROR(VLOOKUP(B92,'KAYIT LİSTESİ'!$B$4:$H$767,4,0)),"",(VLOOKUP(B92,'KAYIT LİSTESİ'!$B$4:$H$767,4,0))) -> 1999-11-01 | E92: =IF(ISERROR(VLOOKUP(B92,'KAYIT LİSTESİ'!$B$4:$H$767,5,0)),"",(VLOOKUP(B92,'KAYIT LİSTESİ'!$B$4:$H$767,5,0))) -> KARDELEN YIDIRIM | F92: =IF(ISERROR(VLOOKUP(B92,'KAYIT LİSTESİ'!$B$4:$H$767,6,0)),"",(VLOOKUP(B92,'KAYIT LİSTESİ'!$B$4:$H$767,6,0))) -> ERZİNCAN | J92: 17 | K92: GÜLLE-17 | L92: =IF(ISERROR(VLOOKUP(K92,'KAYIT LİSTESİ'!$B$4:$H$767,2,0)),"",(VLOOKUP(K92,'KAYIT LİSTESİ'!$B$4:$H$767,2,0))) ->  | M92: =IF(ISERROR(VLOOKUP(K92,'KAYIT LİSTESİ'!$B$4:$H$767,4,0)),"",(VLOOKUP(K92,'KAYIT LİSTESİ'!$B$4:$H$767,4,0))) ->  | N92: =IF(ISERROR(VLOOKUP(K92,'KAYIT LİSTESİ'!$B$4:$H$767,5,0)),"",(VLOOKUP(K92,'KAYIT LİSTESİ'!$B$4:$H$767,5,0))) ->  | O92: =IF(ISERROR(VLOOKUP(K92,'KAYIT LİSTESİ'!$B$4:$H$767,6,0)),"",(VLOOKUP(K92,'KAYIT LİSTESİ'!$B$4:$H$767,6,0))) -> 
A93: 5 | B93: 1500M-1-5 | C93: =IF(ISERROR(VLOOKUP(B93,'KAYIT LİSTESİ'!$B$4:$H$767,2,0)),"",(VLOOKUP(B93,'KAYIT LİSTESİ'!$B$4:$H$767,2,0))) -> 521 | D93: =IF(ISERROR(VLOOKUP(B93,'KAYIT LİSTESİ'!$B$4:$H$767,4,0)),"",(VLOOKUP(B93,'KAYIT LİSTESİ'!$B$4:$H$767,4,0))) -> 1999-01-01 | E93: =IF(ISERROR(VLOOKUP(B93,'KAYIT LİSTESİ'!$B$4:$H$767,5,0)),"",(VLOOKUP(B93,'KAYIT LİSTESİ'!$B$4:$H$767,5,0))) -> ŞERİFE KÜÇÜKBAĞCI | F93: =IF(ISERROR(VLOOKUP(B93,'KAYIT LİSTESİ'!$B$4:$H$767,6,0)),"",(VLOOKUP(B93,'KAYIT LİSTESİ'!$B$4:$H$767,6,0))) -> KONYA | J93: 18 | K93: GÜLLE-18 | L93: =IF(ISERROR(VLOOKUP(K93,'KAYIT LİSTESİ'!$B$4:$H$767,2,0)),"",(VLOOKUP(K93,'KAYIT LİSTESİ'!$B$4:$H$767,2,0))) ->  | M93: =IF(ISERROR(VLOOKUP(K93,'KAYIT LİSTESİ'!$B$4:$H$767,4,0)),"",(VLOOKUP(K93,'KAYIT LİSTESİ'!$B$4:$H$767,4,0))) ->  | N93: =IF(ISERROR(VLOOKUP(K93,'KAYIT LİSTESİ'!$B$4:$H$767,5,0)),"",(VLOOKUP(K93,'KAYIT LİSTESİ'!$B$4:$H$767,5,0))) ->  | O93: =IF(ISERROR(VLOOKUP(K93,'KAYIT LİSTESİ'!$B$4:$H$767,6,0)),"",(VLOOKUP(K93,'KAYIT LİSTESİ'!$B$4:$H$767,6,0))) -> 
A94: 6 | B94: 1500M-1-6 | C94: =IF(ISERROR(VLOOKUP(B94,'KAYIT LİSTESİ'!$B$4:$H$767,2,0)),"",(VLOOKUP(B94,'KAYIT LİSTESİ'!$B$4:$H$767,2,0))) -> 37 | D94: =IF(ISERROR(VLOOKUP(B94,'KAYIT LİSTESİ'!$B$4:$H$767,4,0)),"",(VLOOKUP(B94,'KAYIT LİSTESİ'!$B$4:$H$767,4,0))) -> 1999-12-01 | E94: =IF(ISERROR(VLOOKUP(B94,'KAYIT LİSTESİ'!$B$4:$H$767,5,0)),"",(VLOOKUP(B94,'KAYIT LİSTESİ'!$B$4:$H$767,5,0))) -> ELİF SERT | F94: =IF(ISERROR(VLOOKUP(B94,'KAYIT LİSTESİ'!$B$4:$H$767,6,0)),"",(VLOOKUP(B94,'KAYIT LİSTESİ'!$B$4:$H$767,6,0))) -> AKSARAY | J94: 19 | K94: GÜLLE-19 | L94: =IF(ISERROR(VLOOKUP(K94,'KAYIT LİSTESİ'!$B$4:$H$767,2,0)),"",(VLOOKUP(K94,'KAYIT LİSTESİ'!$B$4:$H$767,2,0))) ->  | M94: =IF(ISERROR(VLOOKUP(K94,'KAYIT LİSTESİ'!$B$4:$H$767,4,0)),"",(VLOOKUP(K94,'KAYIT LİSTESİ'!$B$4:$H$767,4,0))) ->  | N94: =IF(ISERROR(VLOOKUP(K94,'KAYIT LİSTESİ'!$B$4:$H$767,5,0)),"",(VLOOKUP(K94,'KAYIT LİSTESİ'!$B$4:$H$767,5,0))) ->  | O94: =IF(ISERROR(VLOOKUP(K94,'KAYIT LİSTESİ'!$B$4:$H$767,6,0)),"",(VLOOKUP(K94,'KAYIT LİSTESİ'!$B$4:$H$767,6,0))) -> 
A95: 7 | B95: 1500M-1-7 | C95: =IF(ISERROR(VLOOKUP(B95,'KAYIT LİSTESİ'!$B$4:$H$767,2,0)),"",(VLOOKUP(B95,'KAYIT LİSTESİ'!$B$4:$H$767,2,0))) -> 479 | D95: =IF(ISERROR(VLOOKUP(B95,'KAYIT LİSTESİ'!$B$4:$H$767,4,0)),"",(VLOOKUP(B95,'KAYIT LİSTESİ'!$B$4:$H$767,4,0))) -> 1999-01-01 | E95: =IF(ISERROR(VLOOKUP(B95,'KAYIT LİSTESİ'!$B$4:$H$767,5,0)),"",(VLOOKUP(B95,'KAYIT LİSTESİ'!$B$4:$H$767,5,0))) -> BÜŞRA TAŞKIN | F95: =IF(ISERROR(VLOOKUP(B95,'KAYIT LİSTESİ'!$B$4:$H$767,6,0)),"",(VLOOKUP(B95,'KAYIT LİSTESİ'!$B$4:$H$767,6,0))) -> KIRIKKALE | J95: 20 | K95: GÜLLE-20 | L95: =IF(ISERROR(VLOOKUP(K95,'KAYIT LİSTESİ'!$B$4:$H$767,2,0)),"",(VLOOKUP(K95,'KAYIT LİSTESİ'!$B$4:$H$767,2,0))) ->  | M95: =IF(ISERROR(VLOOKUP(K95,'KAYIT LİSTESİ'!$B$4:$H$767,4,0)),"",(VLOOKUP(K95,'KAYIT LİSTESİ'!$B$4:$H$767,4,0))) ->  | N95: =IF(ISERROR(VLOOKUP(K95,'KAYIT LİSTESİ'!$B$4:$H$767,5,0)),"",(VLOOKUP(K95,'KAYIT LİSTESİ'!$B$4:$H$767,5,0))) ->  | O95: =IF(ISERROR(VLOOKUP(K95,'KAYIT LİSTESİ'!$B$4:$H$767,6,0)),"",(VLOOKUP(K95,'KAYIT LİSTESİ'!$B$4:$H$767,6,0))) -> 
A96: 8 | B96: 1500M-1-8 | C96: =IF(ISERROR(VLOOKUP(B96,'KAYIT LİSTESİ'!$B$4:$H$767,2,0)),"",(VLOOKUP(B96,'KAYIT LİSTESİ'!$B$4:$H$767,2,0))) -> 690 | D96: =IF(ISERROR(VLOOKUP(B96,'KAYIT LİSTESİ'!$B$4:$H$767,4,0)),"",(VLOOKUP(B96,'KAYIT LİSTESİ'!$B$4:$H$767,4,0))) -> 1999-02-03 | E96: =IF(ISERROR(VLOOKUP(B96,'KAYIT LİSTESİ'!$B$4:$H$767,5,0)),"",(VLOOKUP(B96,'KAYIT LİSTESİ'!$B$4:$H$767,5,0))) -> SELMA İSOT | F96: =IF(ISERROR(VLOOKUP(B96,'KAYIT LİSTESİ'!$B$4:$H$767,6,0)),"",(VLOOKUP(B96,'KAYIT LİSTESİ'!$B$4:$H$767,6,0))) -> TOKAT | J96: 21 | K96: GÜLLE-21 | L96: =IF(ISERROR(VLOOKUP(K96,'KAYIT LİSTESİ'!$B$4:$H$767,2,0)),"",(VLOOKUP(K96,'KAYIT LİSTESİ'!$B$4:$H$767,2,0))) ->  | M96: =IF(ISERROR(VLOOKUP(K96,'KAYIT LİSTESİ'!$B$4:$H$767,4,0)),"",(VLOOKUP(K96,'KAYIT LİSTESİ'!$B$4:$H$767,4,0))) ->  | N96: =IF(ISERROR(VLOOKUP(K96,'KAYIT LİSTESİ'!$B$4:$H$767,5,0)),"",(VLOOKUP(K96,'KAYIT LİSTESİ'!$B$4:$H$767,5,0))) ->  | O96: =IF(ISERROR(VLOOKUP(K96,'KAYIT LİSTESİ'!$B$4:$H$767,6,0)),"",(VLOOKUP(K96,'KAYIT LİSTESİ'!$B$4:$H$767,6,0))) -> 
A97: 9 | B97: 1500M-1-9 | C97: =IF(ISERROR(VLOOKUP(B97,'KAYIT LİSTESİ'!$B$4:$H$767,2,0)),"",(VLOOKUP(B97,'KAYIT LİSTESİ'!$B$4:$H$767,2,0))) -> 230 | D97: =IF(ISERROR(VLOOKUP(B97,'KAYIT LİSTESİ'!$B$4:$H$767,4,0)),"",(VLOOKUP(B97,'KAYIT LİSTESİ'!$B$4:$H$767,4,0))) -> 1999-01-01 | E97: =IF(ISERROR(VLOOKUP(B97,'KAYIT LİSTESİ'!$B$4:$H$767,5,0)),"",(VLOOKUP(B97,'KAYIT LİSTESİ'!$B$4:$H$767,5,0))) -> ELİF ADSIZ | F97: =IF(ISERROR(VLOOKUP(B97,'KAYIT LİSTESİ'!$B$4:$H$767,6,0)),"",(VLOOKUP(B97,'KAYIT LİSTESİ'!$B$4:$H$767,6,0))) -> DİYARBAKIR | J97: 22 | K97: GÜLLE-22 | L97: =IF(ISERROR(VLOOKUP(K97,'KAYIT LİSTESİ'!$B$4:$H$767,2,0)),"",(VLOOKUP(K97,'KAYIT LİSTESİ'!$B$4:$H$767,2,0))) ->  | M97: =IF(ISERROR(VLOOKUP(K97,'KAYIT LİSTESİ'!$B$4:$H$767,4,0)),"",(VLOOKUP(K97,'KAYIT LİSTESİ'!$B$4:$H$767,4,0))) ->  | N97: =IF(ISERROR(VLOOKUP(K97,'KAYIT LİSTESİ'!$B$4:$H$767,5,0)),"",(VLOOKUP(K97,'KAYIT LİSTESİ'!$B$4:$H$767,5,0))) ->  | O97: =IF(ISERROR(VLOOKUP(K97,'KAYIT LİSTESİ'!$B$4:$H$767,6,0)),"",(VLOOKUP(K97,'KAYIT LİSTESİ'!$B$4:$H$767,6,0))) -> 
A98: 10 | B98: 1500M-1-10 | C98: =IF(ISERROR(VLOOKUP(B98,'KAYIT LİSTESİ'!$B$4:$H$767,2,0)),"",(VLOOKUP(B98,'KAYIT LİSTESİ'!$B$4:$H$767,2,0))) -> 545 | D98: =IF(ISERROR(VLOOKUP(B98,'KAYIT LİSTESİ'!$B$4:$H$767,4,0)),"",(VLOOKUP(B98,'KAYIT LİSTESİ'!$B$4:$H$767,4,0))) -> 1999-04-01 | E98: =IF(ISERROR(VLOOKUP(B98,'KAYIT LİSTESİ'!$B$4:$H$767,5,0)),"",(VLOOKUP(B98,'KAYIT LİSTESİ'!$B$4:$H$767,5,0))) -> FATMA TÜRK | F98: =IF(ISERROR(VLOOKUP(B98,'KAYIT LİSTESİ'!$B$4:$H$767,6,0)),"",(VLOOKUP(B98,'KAYIT LİSTESİ'!$B$4:$H$767,6,0))) -> KÜTAHYA | J98: 23 | K98: GÜLLE-23 | L98: =IF(ISERROR(VLOOKUP(K98,'KAYIT LİSTESİ'!$B$4:$H$767,2,0)),"",(VLOOKUP(K98,'KAYIT LİSTESİ'!$B$4:$H$767,2,0))) ->  | M98: =IF(ISERROR(VLOOKUP(K98,'KAYIT LİSTESİ'!$B$4:$H$767,4,0)),"",(VLOOKUP(K98,'KAYIT LİSTESİ'!$B$4:$H$767,4,0))) ->  | N98: =IF(ISERROR(VLOOKUP(K98,'KAYIT LİSTESİ'!$B$4:$H$767,5,0)),"",(VLOOKUP(K98,'KAYIT LİSTESİ'!$B$4:$H$767,5,0))) ->  | O98: =IF(ISERROR(VLOOKUP(K98,'KAYIT LİSTESİ'!$B$4:$H$767,6,0)),"",(VLOOKUP(K98,'KAYIT LİSTESİ'!$B$4:$H$767,6,0))) -> 
A99: 11 | B99: 1500M-1-11 | C99: =IF(ISERROR(VLOOKUP(B99,'KAYIT LİSTESİ'!$B$4:$H$767,2,0)),"",(VLOOKUP(B99,'KAYIT LİSTESİ'!$B$4:$H$767,2,0))) -> 539 | D99: =IF(ISERROR(VLOOKUP(B99,'KAYIT LİSTESİ'!$B$4:$H$767,4,0)),"",(VLOOKUP(B99,'KAYIT LİSTESİ'!$B$4:$H$767,4,0))) -> 1999-08-28 | E99: =IF(ISERROR(VLOOKUP(B99,'KAYIT LİSTESİ'!$B$4:$H$767,5,0)),"",(VLOOKUP(B99,'KAYIT LİSTESİ'!$B$4:$H$767,5,0))) -> ÖZLEM ÖZDEMİR | F99: =IF(ISERROR(VLOOKUP(B99,'KAYIT LİSTESİ'!$B$4:$H$767,6,0)),"",(VLOOKUP(B99,'KAYIT LİSTESİ'!$B$4:$H$767,6,0))) -> KÜTAHYA | J99: 24 | K99: GÜLLE-24 | L99: =IF(ISERROR(VLOOKUP(K99,'KAYIT LİSTESİ'!$B$4:$H$767,2,0)),"",(VLOOKUP(K99,'KAYIT LİSTESİ'!$B$4:$H$767,2,0))) ->  | M99: =IF(ISERROR(VLOOKUP(K99,'KAYIT LİSTESİ'!$B$4:$H$767,4,0)),"",(VLOOKUP(K99,'KAYIT LİSTESİ'!$B$4:$H$767,4,0))) ->  | N99: =IF(ISERROR(VLOOKUP(K99,'KAYIT LİSTESİ'!$B$4:$H$767,5,0)),"",(VLOOKUP(K99,'KAYIT LİSTESİ'!$B$4:$H$767,5,0))) ->  | O99: =IF(ISERROR(VLOOKUP(K99,'KAYIT LİSTESİ'!$B$4:$H$767,6,0)),"",(VLOOKUP(K99,'KAYIT LİSTESİ'!$B$4:$H$767,6,0))) -> 
A100: 12 | B100: 1500M-1-12 | C100: =IF(ISERROR(VLOOKUP(B100,'KAYIT LİSTESİ'!$B$4:$H$767,2,0)),"",(VLOOKUP(B100,'KAYIT LİSTESİ'!$B$4:$H$767,2,0))) ->  | D100: =IF(ISERROR(VLOOKUP(B100,'KAYIT LİSTESİ'!$B$4:$H$767,4,0)),"",(VLOOKUP(B100,'KAYIT LİSTESİ'!$B$4:$H$767,4,0))) ->  | E100: =IF(ISERROR(VLOOKUP(B100,'KAYIT LİSTESİ'!$B$4:$H$767,5,0)),"",(VLOOKUP(B100,'KAYIT LİSTESİ'!$B$4:$H$767,5,0))) ->  | F100: =IF(ISERROR(VLOOKUP(B100,'KAYIT LİSTESİ'!$B$4:$H$767,6,0)),"",(VLOOKUP(B100,'KAYIT LİSTESİ'!$B$4:$H$767,6,0))) ->  | J100: 25 | K100: GÜLLE-25 | L100: =IF(ISERROR(VLOOKUP(K100,'KAYIT LİSTESİ'!$B$4:$H$767,2,0)),"",(VLOOKUP(K100,'KAYIT LİSTESİ'!$B$4:$H$767,2,0))) ->  | M100: =IF(ISERROR(VLOOKUP(K100,'KAYIT LİSTESİ'!$B$4:$H$767,4,0)),"",(VLOOKUP(K100,'KAYIT LİSTESİ'!$B$4:$H$767,4,0))) ->  | N100: =IF(ISERROR(VLOOKUP(K100,'KAYIT LİSTESİ'!$B$4:$H$767,5,0)),"",(VLOOKUP(K100,'KAYIT LİSTESİ'!$B$4:$H$767,5,0))) ->  | O100: =IF(ISERROR(VLOOKUP(K100,'KAYIT LİSTESİ'!$B$4:$H$767,6,0)),"",(VLOOKUP(K100,'KAYIT LİSTESİ'!$B$4:$H$767,6,0))) -> 
A101: 2. SERİ | J101: 26 | K101: GÜLLE-26 | L101: =IF(ISERROR(VLOOKUP(K101,'KAYIT LİSTESİ'!$B$4:$H$767,2,0)),"",(VLOOKUP(K101,'KAYIT LİSTESİ'!$B$4:$H$767,2,0))) ->  | M101: =IF(ISERROR(VLOOKUP(K101,'KAYIT LİSTESİ'!$B$4:$H$767,4,0)),"",(VLOOKUP(K101,'KAYIT LİSTESİ'!$B$4:$H$767,4,0))) ->  | N101: =IF(ISERROR(VLOOKUP(K101,'KAYIT LİSTESİ'!$B$4:$H$767,5,0)),"",(VLOOKUP(K101,'KAYIT LİSTESİ'!$B$4:$H$767,5,0))) ->  | O101: =IF(ISERROR(VLOOKUP(K101,'KAYIT LİSTESİ'!$B$4:$H$767,6,0)),"",(VLOOKUP(K101,'KAYIT LİSTESİ'!$B$4:$H$767,6,0))) -> 
A102: Sıra No | B102: Formül | C102: Göğüs No | D102: Doğum Tarihi | E102: Adı ve Soyadı | F102: Okulu | G102: Start Kontrol | J102: 27 | K102: GÜLLE-27 | L102: =IF(ISERROR(VLOOKUP(K102,'KAYIT LİSTESİ'!$B$4:$H$767,2,0)),"",(VLOOKUP(K102,'KAYIT LİSTESİ'!$B$4:$H$767,2,0))) ->  | M102: =IF(ISERROR(VLOOKUP(K102,'KAYIT LİSTESİ'!$B$4:$H$767,4,0)),"",(VLOOKUP(K102,'KAYIT LİSTESİ'!$B$4:$H$767,4,0))) ->  | N102: =IF(ISERROR(VLOOKUP(K102,'KAYIT LİSTESİ'!$B$4:$H$767,5,0)),"",(VLOOKUP(K102,'KAYIT LİSTESİ'!$B$4:$H$767,5,0))) ->  | O102: =IF(ISERROR(VLOOKUP(K102,'KAYIT LİSTESİ'!$B$4:$H$767,6,0)),"",(VLOOKUP(K102,'KAYIT LİSTESİ'!$B$4:$H$767,6,0))) -> 
A103: 1 | B103: 1500M-2-1 | C103: =IF(ISERROR(VLOOKUP(B103,'KAYIT LİSTESİ'!$B$4:$H$767,2,0)),"",(VLOOKUP(B103,'KAYIT LİSTESİ'!$B$4:$H$767,2,0))) -> 652 | D103: =IF(ISERROR(VLOOKUP(B103,'KAYIT LİSTESİ'!$B$4:$H$767,4,0)),"",(VLOOKUP(B103,'KAYIT LİSTESİ'!$B$4:$H$767,4,0))) -> 1999-03-01 | E103: =IF(ISERROR(VLOOKUP(B103,'KAYIT LİSTESİ'!$B$4:$H$767,5,0)),"",(VLOOKUP(B103,'KAYIT LİSTESİ'!$B$4:$H$767,5,0))) -> NURCİHAN OYSAL | F103: =IF(ISERROR(VLOOKUP(B103,'KAYIT LİSTESİ'!$B$4:$H$767,6,0)),"",(VLOOKUP(B103,'KAYIT LİSTESİ'!$B$4:$H$767,6,0))) -> SİİRT | J103: 28 | K103: GÜLLE-28 | L103: =IF(ISERROR(VLOOKUP(K103,'KAYIT LİSTESİ'!$B$4:$H$767,2,0)),"",(VLOOKUP(K103,'KAYIT LİSTESİ'!$B$4:$H$767,2,0))) ->  | M103: =IF(ISERROR(VLOOKUP(K103,'KAYIT LİSTESİ'!$B$4:$H$767,4,0)),"",(VLOOKUP(K103,'KAYIT LİSTESİ'!$B$4:$H$767,4,0))) ->  | N103: =IF(ISERROR(VLOOKUP(K103,'KAYIT LİSTESİ'!$B$4:$H$767,5,0)),"",(VLOOKUP(K103,'KAYIT LİSTESİ'!$B$4:$H$767,5,0))) ->  | O103: =IF(ISERROR(VLOOKUP(K103,'KAYIT LİSTESİ'!$B$4:$H$767,6,0)),"",(VLOOKUP(K103,'KAYIT LİSTESİ'!$B$4:$H$767,6,0))) -> 
A104: 2 | B104: 1500M-2-2 | C104: =IF(ISERROR(VLOOKUP(B104,'KAYIT LİSTESİ'!$B$4:$H$767,2,0)),"",(VLOOKUP(B104,'KAYIT LİSTESİ'!$B$4:$H$767,2,0))) -> 211 | D104: =IF(ISERROR(VLOOKUP(B104,'KAYIT LİSTESİ'!$B$4:$H$767,4,0)),"",(VLOOKUP(B104,'KAYIT LİSTESİ'!$B$4:$H$767,4,0))) -> 1999-06-25 | E104: =IF(ISERROR(VLOOKUP(B104,'KAYIT LİSTESİ'!$B$4:$H$767,5,0)),"",(VLOOKUP(B104,'KAYIT LİSTESİ'!$B$4:$H$767,5,0))) -> MERVE ARSLAN | F104: =IF(ISERROR(VLOOKUP(B104,'KAYIT LİSTESİ'!$B$4:$H$767,6,0)),"",(VLOOKUP(B104,'KAYIT LİSTESİ'!$B$4:$H$767,6,0))) -> ÇANAKKALE | J104: 29 | K104: GÜLLE-29 | L104: =IF(ISERROR(VLOOKUP(K104,'KAYIT LİSTESİ'!$B$4:$H$767,2,0)),"",(VLOOKUP(K104,'KAYIT LİSTESİ'!$B$4:$H$767,2,0))) ->  | M104: =IF(ISERROR(VLOOKUP(K104,'KAYIT LİSTESİ'!$B$4:$H$767,4,0)),"",(VLOOKUP(K104,'KAYIT LİSTESİ'!$B$4:$H$767,4,0))) ->  | N104: =IF(ISERROR(VLOOKUP(K104,'KAYIT LİSTESİ'!$B$4:$H$767,5,0)),"",(VLOOKUP(K104,'KAYIT LİSTESİ'!$B$4:$H$767,5,0))) ->  | O104: =IF(ISERROR(VLOOKUP(K104,'KAYIT LİSTESİ'!$B$4:$H$767,6,0)),"",(VLOOKUP(K104,'KAYIT LİSTESİ'!$B$4:$H$767,6,0))) -> 
A105: 3 | B105: 1500M-2-3 | C105: =IF(ISERROR(VLOOKUP(B105,'KAYIT LİSTESİ'!$B$4:$H$767,2,0)),"",(VLOOKUP(B105,'KAYIT LİSTESİ'!$B$4:$H$767,2,0))) -> 98 | D105: =IF(ISERROR(VLOOKUP(B105,'KAYIT LİSTESİ'!$B$4:$H$767,4,0)),"",(VLOOKUP(B105,'KAYIT LİSTESİ'!$B$4:$H$767,4,0))) -> 1999-07-24 | E105: =IF(ISERROR(VLOOKUP(B105,'KAYIT LİSTESİ'!$B$4:$H$767,5,0)),"",(VLOOKUP(B105,'KAYIT LİSTESİ'!$B$4:$H$767,5,0))) -> GÜL DEMİR | F105: =IF(ISERROR(VLOOKUP(B105,'KAYIT LİSTESİ'!$B$4:$H$767,6,0)),"",(VLOOKUP(B105,'KAYIT LİSTESİ'!$B$4:$H$767,6,0))) -> BALIKESİR | J105: 30 | K105: GÜLLE-30 | L105: =IF(ISERROR(VLOOKUP(K105,'KAYIT LİSTESİ'!$B$4:$H$767,2,0)),"",(VLOOKUP(K105,'KAYIT LİSTESİ'!$B$4:$H$767,2,0))) ->  | M105: =IF(ISERROR(VLOOKUP(K105,'KAYIT LİSTESİ'!$B$4:$H$767,4,0)),"",(VLOOKUP(K105,'KAYIT LİSTESİ'!$B$4:$H$767,4,0))) ->  | N105: =IF(ISERROR(VLOOKUP(K105,'KAYIT LİSTESİ'!$B$4:$H$767,5,0)),"",(VLOOKUP(K105,'KAYIT LİSTESİ'!$B$4:$H$767,5,0))) ->  | O105: =IF(ISERROR(VLOOKUP(K105,'KAYIT LİSTESİ'!$B$4:$H$767,6,0)),"",(VLOOKUP(K105,'KAYIT LİSTESİ'!$B$4:$H$767,6,0))) -> 
A106: 4 | B106: 1500M-2-4 | C106: =IF(ISERROR(VLOOKUP(B106,'KAYIT LİSTESİ'!$B$4:$H$767,2,0)),"",(VLOOKUP(B106,'KAYIT LİSTESİ'!$B$4:$H$767,2,0))) -> 166 | D106: =IF(ISERROR(VLOOKUP(B106,'KAYIT LİSTESİ'!$B$4:$H$767,4,0)),"",(VLOOKUP(B106,'KAYIT LİSTESİ'!$B$4:$H$767,4,0))) -> 1999-01-01 | E106: =IF(ISERROR(VLOOKUP(B106,'KAYIT LİSTESİ'!$B$4:$H$767,5,0)),"",(VLOOKUP(B106,'KAYIT LİSTESİ'!$B$4:$H$767,5,0))) -> ZEYNEP ERKAN | F106: =IF(ISERROR(VLOOKUP(B106,'KAYIT LİSTESİ'!$B$4:$H$767,6,0)),"",(VLOOKUP(B106,'KAYIT LİSTESİ'!$B$4:$H$767,6,0))) -> BİNGÖL | J106: 31 | K106: GÜLLE-31 | L106: =IF(ISERROR(VLOOKUP(K106,'KAYIT LİSTESİ'!$B$4:$H$767,2,0)),"",(VLOOKUP(K106,'KAYIT LİSTESİ'!$B$4:$H$767,2,0))) ->  | M106: =IF(ISERROR(VLOOKUP(K106,'KAYIT LİSTESİ'!$B$4:$H$767,4,0)),"",(VLOOKUP(K106,'KAYIT LİSTESİ'!$B$4:$H$767,4,0))) ->  | N106: =IF(ISERROR(VLOOKUP(K106,'KAYIT LİSTESİ'!$B$4:$H$767,5,0)),"",(VLOOKUP(K106,'KAYIT LİSTESİ'!$B$4:$H$767,5,0))) ->  | O106: =IF(ISERROR(VLOOKUP(K106,'KAYIT LİSTESİ'!$B$4:$H$767,6,0)),"",(VLOOKUP(K106,'KAYIT LİSTESİ'!$B$4:$H$767,6,0))) -> 
A107: 5 | B107: 1500M-2-5 | C107: =IF(ISERROR(VLOOKUP(B107,'KAYIT LİSTESİ'!$B$4:$H$767,2,0)),"",(VLOOKUP(B107,'KAYIT LİSTESİ'!$B$4:$H$767,2,0))) -> 310 | D107: =IF(ISERROR(VLOOKUP(B107,'KAYIT LİSTESİ'!$B$4:$H$767,4,0)),"",(VLOOKUP(B107,'KAYIT LİSTESİ'!$B$4:$H$767,4,0))) -> 1999-08-15 | E107: =IF(ISERROR(VLOOKUP(B107,'KAYIT LİSTESİ'!$B$4:$H$767,5,0)),"",(VLOOKUP(B107,'KAYIT LİSTESİ'!$B$4:$H$767,5,0))) -> SELENAY BATİ | F107: =IF(ISERROR(VLOOKUP(B107,'KAYIT LİSTESİ'!$B$4:$H$767,6,0)),"",(VLOOKUP(B107,'KAYIT LİSTESİ'!$B$4:$H$767,6,0))) -> HATAY | J107: 32 | K107: GÜLLE-32 | L107: =IF(ISERROR(VLOOKUP(K107,'KAYIT LİSTESİ'!$B$4:$H$767,2,0)),"",(VLOOKUP(K107,'KAYIT LİSTESİ'!$B$4:$H$767,2,0))) ->  | M107: =IF(ISERROR(VLOOKUP(K107,'KAYIT LİSTESİ'!$B$4:$H$767,4,0)),"",(VLOOKUP(K107,'KAYIT LİSTESİ'!$B$4:$H$767,4,0))) ->  | N107: =IF(ISERROR(VLOOKUP(K107,'KAYIT LİSTESİ'!$B$4:$H$767,5,0)),"",(VLOOKUP(K107,'KAYIT LİSTESİ'!$B$4:$H$767,5,0))) ->  | O107: =IF(ISERROR(VLOOKUP(K107,'KAYIT LİSTESİ'!$B$4:$H$767,6,0)),"",(VLOOKUP(K107,'KAYIT LİSTESİ'!$B$4:$H$767,6,0))) -> 
A108: 6 | B108: 1500M-2-6 | C108: =IF(ISERROR(VLOOKUP(B108,'KAYIT LİSTESİ'!$B$4:$H$767,2,0)),"",(VLOOKUP(B108,'KAYIT LİSTESİ'!$B$4:$H$767,2,0))) -> 311 | D108: =IF(ISERROR(VLOOKUP(B108,'KAYIT LİSTESİ'!$B$4:$H$767,4,0)),"",(VLOOKUP(B108,'KAYIT LİSTESİ'!$B$4:$H$767,4,0))) -> 1999-06-03 | E108: =IF(ISERROR(VLOOKUP(B108,'KAYIT LİSTESİ'!$B$4:$H$767,5,0)),"",(VLOOKUP(B108,'KAYIT LİSTESİ'!$B$4:$H$767,5,0))) -> SEÇİL AKPINAR | F108: =IF(ISERROR(VLOOKUP(B108,'KAYIT LİSTESİ'!$B$4:$H$767,6,0)),"",(VLOOKUP(B108,'KAYIT LİSTESİ'!$B$4:$H$767,6,0))) -> HATAY | J108: 33 | K108: GÜLLE-33 | L108: =IF(ISERROR(VLOOKUP(K108,'KAYIT LİSTESİ'!$B$4:$H$767,2,0)),"",(VLOOKUP(K108,'KAYIT LİSTESİ'!$B$4:$H$767,2,0))) ->  | M108: =IF(ISERROR(VLOOKUP(K108,'KAYIT LİSTESİ'!$B$4:$H$767,4,0)),"",(VLOOKUP(K108,'KAYIT LİSTESİ'!$B$4:$H$767,4,0))) ->  | N108: =IF(ISERROR(VLOOKUP(K108,'KAYIT LİSTESİ'!$B$4:$H$767,5,0)),"",(VLOOKUP(K108,'KAYIT LİSTESİ'!$B$4:$H$767,5,0))) ->  | O108: =IF(ISERROR(VLOOKUP(K108,'KAYIT LİSTESİ'!$B$4:$H$767,6,0)),"",(VLOOKUP(K108,'KAYIT LİSTESİ'!$B$4:$H$767,6,0))) -> 
A109: 7 | B109: 1500M-2-7 | C109: =IF(ISERROR(VLOOKUP(B109,'KAYIT LİSTESİ'!$B$4:$H$767,2,0)),"",(VLOOKUP(B109,'KAYIT LİSTESİ'!$B$4:$H$767,2,0))) -> 265 | D109: =IF(ISERROR(VLOOKUP(B109,'KAYIT LİSTESİ'!$B$4:$H$767,4,0)),"",(VLOOKUP(B109,'KAYIT LİSTESİ'!$B$4:$H$767,4,0))) -> 1999-11-23 | E109: =IF(ISERROR(VLOOKUP(B109,'KAYIT LİSTESİ'!$B$4:$H$767,5,0)),"",(VLOOKUP(B109,'KAYIT LİSTESİ'!$B$4:$H$767,5,0))) -> KÜBRA ALPER | F109: =IF(ISERROR(VLOOKUP(B109,'KAYIT LİSTESİ'!$B$4:$H$767,6,0)),"",(VLOOKUP(B109,'KAYIT LİSTESİ'!$B$4:$H$767,6,0))) -> ERZURUM | J109: 34 | K109: GÜLLE-34 | L109: =IF(ISERROR(VLOOKUP(K109,'KAYIT LİSTESİ'!$B$4:$H$767,2,0)),"",(VLOOKUP(K109,'KAYIT LİSTESİ'!$B$4:$H$767,2,0))) ->  | M109: =IF(ISERROR(VLOOKUP(K109,'KAYIT LİSTESİ'!$B$4:$H$767,4,0)),"",(VLOOKUP(K109,'KAYIT LİSTESİ'!$B$4:$H$767,4,0))) ->  | N109: =IF(ISERROR(VLOOKUP(K109,'KAYIT LİSTESİ'!$B$4:$H$767,5,0)),"",(VLOOKUP(K109,'KAYIT LİSTESİ'!$B$4:$H$767,5,0))) ->  | O109: =IF(ISERROR(VLOOKUP(K109,'KAYIT LİSTESİ'!$B$4:$H$767,6,0)),"",(VLOOKUP(K109,'KAYIT LİSTESİ'!$B$4:$H$767,6,0))) -> 
A110: 8 | B110: 1500M-2-8 | C110: =IF(ISERROR(VLOOKUP(B110,'KAYIT LİSTESİ'!$B$4:$H$767,2,0)),"",(VLOOKUP(B110,'KAYIT LİSTESİ'!$B$4:$H$767,2,0))) -> 266 | D110: =IF(ISERROR(VLOOKUP(B110,'KAYIT LİSTESİ'!$B$4:$H$767,4,0)),"",(VLOOKUP(B110,'KAYIT LİSTESİ'!$B$4:$H$767,4,0))) -> 1999-09-20 | E110: =IF(ISERROR(VLOOKUP(B110,'KAYIT LİSTESİ'!$B$4:$H$767,5,0)),"",(VLOOKUP(B110,'KAYIT LİSTESİ'!$B$4:$H$767,5,0))) -> AYŞENUR ÇİFTÇİ | F110: =IF(ISERROR(VLOOKUP(B110,'KAYIT LİSTESİ'!$B$4:$H$767,6,0)),"",(VLOOKUP(B110,'KAYIT LİSTESİ'!$B$4:$H$767,6,0))) -> ERZURUM | J110: 35 | K110: GÜLLE-35 | L110: =IF(ISERROR(VLOOKUP(K110,'KAYIT LİSTESİ'!$B$4:$H$767,2,0)),"",(VLOOKUP(K110,'KAYIT LİSTESİ'!$B$4:$H$767,2,0))) ->  | M110: =IF(ISERROR(VLOOKUP(K110,'KAYIT LİSTESİ'!$B$4:$H$767,4,0)),"",(VLOOKUP(K110,'KAYIT LİSTESİ'!$B$4:$H$767,4,0))) ->  | N110: =IF(ISERROR(VLOOKUP(K110,'KAYIT LİSTESİ'!$B$4:$H$767,5,0)),"",(VLOOKUP(K110,'KAYIT LİSTESİ'!$B$4:$H$767,5,0))) ->  | O110: =IF(ISERROR(VLOOKUP(K110,'KAYIT LİSTESİ'!$B$4:$H$767,6,0)),"",(VLOOKUP(K110,'KAYIT LİSTESİ'!$B$4:$H$767,6,0))) -> 
A111: 9 | B111: 1500M-2-9 | C111: =IF(ISERROR(VLOOKUP(B111,'KAYIT LİSTESİ'!$B$4:$H$767,2,0)),"",(VLOOKUP(B111,'KAYIT LİSTESİ'!$B$4:$H$767,2,0))) -> 729 | D111: =IF(ISERROR(VLOOKUP(B111,'KAYIT LİSTESİ'!$B$4:$H$767,4,0)),"",(VLOOKUP(B111,'KAYIT LİSTESİ'!$B$4:$H$767,4,0))) -> 1999-05-14 | E111: =IF(ISERROR(VLOOKUP(B111,'KAYIT LİSTESİ'!$B$4:$H$767,5,0)),"",(VLOOKUP(B111,'KAYIT LİSTESİ'!$B$4:$H$767,5,0))) -> İREM KARAASLAN | F111: =IF(ISERROR(VLOOKUP(B111,'KAYIT LİSTESİ'!$B$4:$H$767,6,0)),"",(VLOOKUP(B111,'KAYIT LİSTESİ'!$B$4:$H$767,6,0))) -> İZMİR | J111: 36 | K111: GÜLLE-36 | L111: =IF(ISERROR(VLOOKUP(K111,'KAYIT LİSTESİ'!$B$4:$H$767,2,0)),"",(VLOOKUP(K111,'KAYIT LİSTESİ'!$B$4:$H$767,2,0))) ->  | M111: =IF(ISERROR(VLOOKUP(K111,'KAYIT LİSTESİ'!$B$4:$H$767,4,0)),"",(VLOOKUP(K111,'KAYIT LİSTESİ'!$B$4:$H$767,4,0))) ->  | N111: =IF(ISERROR(VLOOKUP(K111,'KAYIT LİSTESİ'!$B$4:$H$767,5,0)),"",(VLOOKUP(K111,'KAYIT LİSTESİ'!$B$4:$H$767,5,0))) ->  | O111: =IF(ISERROR(VLOOKUP(K111,'KAYIT LİSTESİ'!$B$4:$H$767,6,0)),"",(VLOOKUP(K111,'KAYIT LİSTESİ'!$B$4:$H$767,6,0))) -> 
A112: 10 | B112: 1500M-2-10 | C112: =IF(ISERROR(VLOOKUP(B112,'KAYIT LİSTESİ'!$B$4:$H$767,2,0)),"",(VLOOKUP(B112,'KAYIT LİSTESİ'!$B$4:$H$767,2,0))) -> 489 | D112: =IF(ISERROR(VLOOKUP(B112,'KAYIT LİSTESİ'!$B$4:$H$767,4,0)),"",(VLOOKUP(B112,'KAYIT LİSTESİ'!$B$4:$H$767,4,0))) -> 1999-02-20 | E112: =IF(ISERROR(VLOOKUP(B112,'KAYIT LİSTESİ'!$B$4:$H$767,5,0)),"",(VLOOKUP(B112,'KAYIT LİSTESİ'!$B$4:$H$767,5,0))) -> GİZEM ŞAHİN | F112: =IF(ISERROR(VLOOKUP(B112,'KAYIT LİSTESİ'!$B$4:$H$767,6,0)),"",(VLOOKUP(B112,'KAYIT LİSTESİ'!$B$4:$H$767,6,0))) -> KIRŞEHİR | J112: 37 | K112: GÜLLE-37 | L112: =IF(ISERROR(VLOOKUP(K112,'KAYIT LİSTESİ'!$B$4:$H$767,2,0)),"",(VLOOKUP(K112,'KAYIT LİSTESİ'!$B$4:$H$767,2,0))) ->  | M112: =IF(ISERROR(VLOOKUP(K112,'KAYIT LİSTESİ'!$B$4:$H$767,4,0)),"",(VLOOKUP(K112,'KAYIT LİSTESİ'!$B$4:$H$767,4,0))) ->  | N112: =IF(ISERROR(VLOOKUP(K112,'KAYIT LİSTESİ'!$B$4:$H$767,5,0)),"",(VLOOKUP(K112,'KAYIT LİSTESİ'!$B$4:$H$767,5,0))) ->  | O112: =IF(ISERROR(VLOOKUP(K112,'KAYIT LİSTESİ'!$B$4:$H$767,6,0)),"",(VLOOKUP(K112,'KAYIT LİSTESİ'!$B$4:$H$767,6,0))) -> 
A113: 11 | B113: 1500M-2-11 | C113: =IF(ISERROR(VLOOKUP(B113,'KAYIT LİSTESİ'!$B$4:$H$767,2,0)),"",(VLOOKUP(B113,'KAYIT LİSTESİ'!$B$4:$H$767,2,0))) ->  | D113: =IF(ISERROR(VLOOKUP(B113,'KAYIT LİSTESİ'!$B$4:$H$767,4,0)),"",(VLOOKUP(B113,'KAYIT LİSTESİ'!$B$4:$H$767,4,0))) ->  | E113: =IF(ISERROR(VLOOKUP(B113,'KAYIT LİSTESİ'!$B$4:$H$767,5,0)),"",(VLOOKUP(B113,'KAYIT LİSTESİ'!$B$4:$H$767,5,0))) ->  | F113: =IF(ISERROR(VLOOKUP(B113,'KAYIT LİSTESİ'!$B$4:$H$767,6,0)),"",(VLOOKUP(B113,'KAYIT LİSTESİ'!$B$4:$H$767,6,0))) ->  | J113: 38 | K113: GÜLLE-38 | L113: =IF(ISERROR(VLOOKUP(K113,'KAYIT LİSTESİ'!$B$4:$H$767,2,0)),"",(VLOOKUP(K113,'KAYIT LİSTESİ'!$B$4:$H$767,2,0))) ->  | M113: =IF(ISERROR(VLOOKUP(K113,'KAYIT LİSTESİ'!$B$4:$H$767,4,0)),"",(VLOOKUP(K113,'KAYIT LİSTESİ'!$B$4:$H$767,4,0))) ->  | N113: =IF(ISERROR(VLOOKUP(K113,'KAYIT LİSTESİ'!$B$4:$H$767,5,0)),"",(VLOOKUP(K113,'KAYIT LİSTESİ'!$B$4:$H$767,5,0))) ->  | O113: =IF(ISERROR(VLOOKUP(K113,'KAYIT LİSTESİ'!$B$4:$H$767,6,0)),"",(VLOOKUP(K113,'KAYIT LİSTESİ'!$B$4:$H$767,6,0))) -> 
A114: 12 | B114: 1500M-2-12 | C114: =IF(ISERROR(VLOOKUP(B114,'KAYIT LİSTESİ'!$B$4:$H$767,2,0)),"",(VLOOKUP(B114,'KAYIT LİSTESİ'!$B$4:$H$767,2,0))) ->  | D114: =IF(ISERROR(VLOOKUP(B114,'KAYIT LİSTESİ'!$B$4:$H$767,4,0)),"",(VLOOKUP(B114,'KAYIT LİSTESİ'!$B$4:$H$767,4,0))) ->  | E114: =IF(ISERROR(VLOOKUP(B114,'KAYIT LİSTESİ'!$B$4:$H$767,5,0)),"",(VLOOKUP(B114,'KAYIT LİSTESİ'!$B$4:$H$767,5,0))) ->  | F114: =IF(ISERROR(VLOOKUP(B114,'KAYIT LİSTESİ'!$B$4:$H$767,6,0)),"",(VLOOKUP(B114,'KAYIT LİSTESİ'!$B$4:$H$767,6,0))) ->  | J114: 39 | K114: GÜLLE-39 | L114: =IF(ISERROR(VLOOKUP(K114,'KAYIT LİSTESİ'!$B$4:$H$767,2,0)),"",(VLOOKUP(K114,'KAYIT LİSTESİ'!$B$4:$H$767,2,0))) ->  | M114: =IF(ISERROR(VLOOKUP(K114,'KAYIT LİSTESİ'!$B$4:$H$767,4,0)),"",(VLOOKUP(K114,'KAYIT LİSTESİ'!$B$4:$H$767,4,0))) ->  | N114: =IF(ISERROR(VLOOKUP(K114,'KAYIT LİSTESİ'!$B$4:$H$767,5,0)),"",(VLOOKUP(K114,'KAYIT LİSTESİ'!$B$4:$H$767,5,0))) ->  | O114: =IF(ISERROR(VLOOKUP(K114,'KAYIT LİSTESİ'!$B$4:$H$767,6,0)),"",(VLOOKUP(K114,'KAYIT LİSTESİ'!$B$4:$H$767,6,0))) -> 
A115: 3. SERİ | J115: 40 | K115: GÜLLE-40 | L115: =IF(ISERROR(VLOOKUP(K115,'KAYIT LİSTESİ'!$B$4:$H$767,2,0)),"",(VLOOKUP(K115,'KAYIT LİSTESİ'!$B$4:$H$767,2,0))) ->  | M115: =IF(ISERROR(VLOOKUP(K115,'KAYIT LİSTESİ'!$B$4:$H$767,4,0)),"",(VLOOKUP(K115,'KAYIT LİSTESİ'!$B$4:$H$767,4,0))) ->  | N115: =IF(ISERROR(VLOOKUP(K115,'KAYIT LİSTESİ'!$B$4:$H$767,5,0)),"",(VLOOKUP(K115,'KAYIT LİSTESİ'!$B$4:$H$767,5,0))) ->  | O115: =IF(ISERROR(VLOOKUP(K115,'KAYIT LİSTESİ'!$B$4:$H$767,6,0)),"",(VLOOKUP(K115,'KAYIT LİSTESİ'!$B$4:$H$767,6,0))) -> 
A116: Sıra No | B116: Formül | C116: Göğüs No | D116: Doğum Tarihi | E116: Adı ve Soyadı | F116: Okulu | G116: Start Kontrol | J116: UZUN ATLAMA
A117: 1 | B117: 1500M-3-1 | C117: =IF(ISERROR(VLOOKUP(B117,'KAYIT LİSTESİ'!$B$4:$H$767,2,0)),"",(VLOOKUP(B117,'KAYIT LİSTESİ'!$B$4:$H$767,2,0))) ->  | D117: =IF(ISERROR(VLOOKUP(B117,'KAYIT LİSTESİ'!$B$4:$H$767,4,0)),"",(VLOOKUP(B117,'KAYIT LİSTESİ'!$B$4:$H$767,4,0))) ->  | E117: =IF(ISERROR(VLOOKUP(B117,'KAYIT LİSTESİ'!$B$4:$H$767,5,0)),"",(VLOOKUP(B117,'KAYIT LİSTESİ'!$B$4:$H$767,5,0))) ->  | F117: =IF(ISERROR(VLOOKUP(B117,'KAYIT LİSTESİ'!$B$4:$H$767,6,0)),"",(VLOOKUP(B117,'KAYIT LİSTESİ'!$B$4:$H$767,6,0))) ->  | J117: SIRA NO | L117: GÖĞÜS NO | M117: DOĞUM TARİHİ | N117: ADI VE SOYADI | O117: OKULU | P117: Start Kontrol
A118: 2 | B118: 1500M-3-2 | C118: =IF(ISERROR(VLOOKUP(B118,'KAYIT LİSTESİ'!$B$4:$H$767,2,0)),"",(VLOOKUP(B118,'KAYIT LİSTESİ'!$B$4:$H$767,2,0))) ->  | D118: =IF(ISERROR(VLOOKUP(B118,'KAYIT LİSTESİ'!$B$4:$H$767,4,0)),"",(VLOOKUP(B118,'KAYIT LİSTESİ'!$B$4:$H$767,4,0))) ->  | E118: =IF(ISERROR(VLOOKUP(B118,'KAYIT LİSTESİ'!$B$4:$H$767,5,0)),"",(VLOOKUP(B118,'KAYIT LİSTESİ'!$B$4:$H$767,5,0))) ->  | F118: =IF(ISERROR(VLOOKUP(B118,'KAYIT LİSTESİ'!$B$4:$H$767,6,0)),"",(VLOOKUP(B118,'KAYIT LİSTESİ'!$B$4:$H$767,6,0))) -> 
A119: 3 | B119: 1500M-3-3 | C119: =IF(ISERROR(VLOOKUP(B119,'KAYIT LİSTESİ'!$B$4:$H$767,2,0)),"",(VLOOKUP(B119,'KAYIT LİSTESİ'!$B$4:$H$767,2,0))) ->  | D119: =IF(ISERROR(VLOOKUP(B119,'KAYIT LİSTESİ'!$B$4:$H$767,4,0)),"",(VLOOKUP(B119,'KAYIT LİSTESİ'!$B$4:$H$767,4,0))) ->  | E119: =IF(ISERROR(VLOOKUP(B119,'KAYIT LİSTESİ'!$B$4:$H$767,5,0)),"",(VLOOKUP(B119,'KAYIT LİSTESİ'!$B$4:$H$767,5,0))) ->  | F119: =IF(ISERROR(VLOOKUP(B119,'KAYIT LİSTESİ'!$B$4:$H$767,6,0)),"",(VLOOKUP(B119,'KAYIT LİSTESİ'!$B$4:$H$767,6,0))) ->  | J119: 1 | K119: UZUN-1 | L119: =IF(ISERROR(VLOOKUP(K119,'KAYIT LİSTESİ'!$B$4:$H$767,2,0)),"",(VLOOKUP(K119,'KAYIT LİSTESİ'!$B$4:$H$767,2,0))) ->  | M119: =IF(ISERROR(VLOOKUP(K119,'KAYIT LİSTESİ'!$B$4:$H$767,4,0)),"",(VLOOKUP(K119,'KAYIT LİSTESİ'!$B$4:$H$767,4,0))) ->  | N119: =IF(ISERROR(VLOOKUP(K119,'KAYIT LİSTESİ'!$B$4:$H$767,5,0)),"",(VLOOKUP(K119,'KAYIT LİSTESİ'!$B$4:$H$767,5,0))) ->  | O119: =IF(ISERROR(VLOOKUP(K119,'KAYIT LİSTESİ'!$B$4:$H$767,6,0)),"",(VLOOKUP(K119,'KAYIT LİSTESİ'!$B$4:$H$767,6,0))) -> 
A120: 4 | B120: 1500M-3-4 | C120: =IF(ISERROR(VLOOKUP(B120,'KAYIT LİSTESİ'!$B$4:$H$767,2,0)),"",(VLOOKUP(B120,'KAYIT LİSTESİ'!$B$4:$H$767,2,0))) ->  | D120: =IF(ISERROR(VLOOKUP(B120,'KAYIT LİSTESİ'!$B$4:$H$767,4,0)),"",(VLOOKUP(B120,'KAYIT LİSTESİ'!$B$4:$H$767,4,0))) ->  | E120: =IF(ISERROR(VLOOKUP(B120,'KAYIT LİSTESİ'!$B$4:$H$767,5,0)),"",(VLOOKUP(B120,'KAYIT LİSTESİ'!$B$4:$H$767,5,0))) ->  | F120: =IF(ISERROR(VLOOKUP(B120,'KAYIT LİSTESİ'!$B$4:$H$767,6,0)),"",(VLOOKUP(B120,'KAYIT LİSTESİ'!$B$4:$H$767,6,0))) ->  | J120: 2 | K120: UZUN-2 | L120: =IF(ISERROR(VLOOKUP(K120,'KAYIT LİSTESİ'!$B$4:$H$767,2,0)),"",(VLOOKUP(K120,'KAYIT LİSTESİ'!$B$4:$H$767,2,0))) ->  | M120: =IF(ISERROR(VLOOKUP(K120,'KAYIT LİSTESİ'!$B$4:$H$767,4,0)),"",(VLOOKUP(K120,'KAYIT LİSTESİ'!$B$4:$H$767,4,0))) ->  | N120: =IF(ISERROR(VLOOKUP(K120,'KAYIT LİSTESİ'!$B$4:$H$767,5,0)),"",(VLOOKUP(K120,'KAYIT LİSTESİ'!$B$4:$H$767,5,0))) ->  | O120: =IF(ISERROR(VLOOKUP(K120,'KAYIT LİSTESİ'!$B$4:$H$767,6,0)),"",(VLOOKUP(K120,'KAYIT LİSTESİ'!$B$4:$H$767,6,0))) -> 
A121: 5 | B121: 1500M-3-5 | C121: =IF(ISERROR(VLOOKUP(B121,'KAYIT LİSTESİ'!$B$4:$H$767,2,0)),"",(VLOOKUP(B121,'KAYIT LİSTESİ'!$B$4:$H$767,2,0))) ->  | D121: =IF(ISERROR(VLOOKUP(B121,'KAYIT LİSTESİ'!$B$4:$H$767,4,0)),"",(VLOOKUP(B121,'KAYIT LİSTESİ'!$B$4:$H$767,4,0))) ->  | E121: =IF(ISERROR(VLOOKUP(B121,'KAYIT LİSTESİ'!$B$4:$H$767,5,0)),"",(VLOOKUP(B121,'KAYIT LİSTESİ'!$B$4:$H$767,5,0))) ->  | F121: =IF(ISERROR(VLOOKUP(B121,'KAYIT LİSTESİ'!$B$4:$H$767,6,0)),"",(VLOOKUP(B121,'KAYIT LİSTESİ'!$B$4:$H$767,6,0))) ->  | J121: 3 | K121: UZUN-3 | L121: =IF(ISERROR(VLOOKUP(K121,'KAYIT LİSTESİ'!$B$4:$H$767,2,0)),"",(VLOOKUP(K121,'KAYIT LİSTESİ'!$B$4:$H$767,2,0))) ->  | M121: =IF(ISERROR(VLOOKUP(K121,'KAYIT LİSTESİ'!$B$4:$H$767,4,0)),"",(VLOOKUP(K121,'KAYIT LİSTESİ'!$B$4:$H$767,4,0))) ->  | N121: =IF(ISERROR(VLOOKUP(K121,'KAYIT LİSTESİ'!$B$4:$H$767,5,0)),"",(VLOOKUP(K121,'KAYIT LİSTESİ'!$B$4:$H$767,5,0))) ->  | O121: =IF(ISERROR(VLOOKUP(K121,'KAYIT LİSTESİ'!$B$4:$H$767,6,0)),"",(VLOOKUP(K121,'KAYIT LİSTESİ'!$B$4:$H$767,6,0))) -> 
A122: 6 | B122: 1500M-3-6 | C122: =IF(ISERROR(VLOOKUP(B122,'KAYIT LİSTESİ'!$B$4:$H$767,2,0)),"",(VLOOKUP(B122,'KAYIT LİSTESİ'!$B$4:$H$767,2,0))) ->  | D122: =IF(ISERROR(VLOOKUP(B122,'KAYIT LİSTESİ'!$B$4:$H$767,4,0)),"",(VLOOKUP(B122,'KAYIT LİSTESİ'!$B$4:$H$767,4,0))) ->  | E122: =IF(ISERROR(VLOOKUP(B122,'KAYIT LİSTESİ'!$B$4:$H$767,5,0)),"",(VLOOKUP(B122,'KAYIT LİSTESİ'!$B$4:$H$767,5,0))) ->  | F122: =IF(ISERROR(VLOOKUP(B122,'KAYIT LİSTESİ'!$B$4:$H$767,6,0)),"",(VLOOKUP(B122,'KAYIT LİSTESİ'!$B$4:$H$767,6,0))) ->  | J122: 4 | K122: UZUN-4 | L122: =IF(ISERROR(VLOOKUP(K122,'KAYIT LİSTESİ'!$B$4:$H$767,2,0)),"",(VLOOKUP(K122,'KAYIT LİSTESİ'!$B$4:$H$767,2,0))) ->  | M122: =IF(ISERROR(VLOOKUP(K122,'KAYIT LİSTESİ'!$B$4:$H$767,4,0)),"",(VLOOKUP(K122,'KAYIT LİSTESİ'!$B$4:$H$767,4,0))) ->  | N122: =IF(ISERROR(VLOOKUP(K122,'KAYIT LİSTESİ'!$B$4:$H$767,5,0)),"",(VLOOKUP(K122,'KAYIT LİSTESİ'!$B$4:$H$767,5,0))) ->  | O122: =IF(ISERROR(VLOOKUP(K122,'KAYIT LİSTESİ'!$B$4:$H$767,6,0)),"",(VLOOKUP(K122,'KAYIT LİSTESİ'!$B$4:$H$767,6,0))) -> 
A123: 7 | B123: 1500M-3-7 | C123: =IF(ISERROR(VLOOKUP(B123,'KAYIT LİSTESİ'!$B$4:$H$767,2,0)),"",(VLOOKUP(B123,'KAYIT LİSTESİ'!$B$4:$H$767,2,0))) ->  | D123: =IF(ISERROR(VLOOKUP(B123,'KAYIT LİSTESİ'!$B$4:$H$767,4,0)),"",(VLOOKUP(B123,'KAYIT LİSTESİ'!$B$4:$H$767,4,0))) ->  | E123: =IF(ISERROR(VLOOKUP(B123,'KAYIT LİSTESİ'!$B$4:$H$767,5,0)),"",(VLOOKUP(B123,'KAYIT LİSTESİ'!$B$4:$H$767,5,0))) ->  | F123: =IF(ISERROR(VLOOKUP(B123,'KAYIT LİSTESİ'!$B$4:$H$767,6,0)),"",(VLOOKUP(B123,'KAYIT LİSTESİ'!$B$4:$H$767,6,0))) ->  | J123: 5 | K123: UZUN-5 | L123: =IF(ISERROR(VLOOKUP(K123,'KAYIT LİSTESİ'!$B$4:$H$767,2,0)),"",(VLOOKUP(K123,'KAYIT LİSTESİ'!$B$4:$H$767,2,0))) ->  | M123: =IF(ISERROR(VLOOKUP(K123,'KAYIT LİSTESİ'!$B$4:$H$767,4,0)),"",(VLOOKUP(K123,'KAYIT LİSTESİ'!$B$4:$H$767,4,0))) ->  | N123: =IF(ISERROR(VLOOKUP(K123,'KAYIT LİSTESİ'!$B$4:$H$767,5,0)),"",(VLOOKUP(K123,'KAYIT LİSTESİ'!$B$4:$H$767,5,0))) ->  | O123: =IF(ISERROR(VLOOKUP(K123,'KAYIT LİSTESİ'!$B$4:$H$767,6,0)),"",(VLOOKUP(K123,'KAYIT LİSTESİ'!$B$4:$H$767,6,0))) -> 
A124: 8 | B124: 1500M-3-8 | C124: =IF(ISERROR(VLOOKUP(B124,'KAYIT LİSTESİ'!$B$4:$H$767,2,0)),"",(VLOOKUP(B124,'KAYIT LİSTESİ'!$B$4:$H$767,2,0))) ->  | D124: =IF(ISERROR(VLOOKUP(B124,'KAYIT LİSTESİ'!$B$4:$H$767,4,0)),"",(VLOOKUP(B124,'KAYIT LİSTESİ'!$B$4:$H$767,4,0))) ->  | E124: =IF(ISERROR(VLOOKUP(B124,'KAYIT LİSTESİ'!$B$4:$H$767,5,0)),"",(VLOOKUP(B124,'KAYIT LİSTESİ'!$B$4:$H$767,5,0))) ->  | F124: =IF(ISERROR(VLOOKUP(B124,'KAYIT LİSTESİ'!$B$4:$H$767,6,0)),"",(VLOOKUP(B124,'KAYIT LİSTESİ'!$B$4:$H$767,6,0))) ->  | J124: 6 | K124: UZUN-6 | L124: =IF(ISERROR(VLOOKUP(K124,'KAYIT LİSTESİ'!$B$4:$H$767,2,0)),"",(VLOOKUP(K124,'KAYIT LİSTESİ'!$B$4:$H$767,2,0))) ->  | M124: =IF(ISERROR(VLOOKUP(K124,'KAYIT LİSTESİ'!$B$4:$H$767,4,0)),"",(VLOOKUP(K124,'KAYIT LİSTESİ'!$B$4:$H$767,4,0))) ->  | N124: =IF(ISERROR(VLOOKUP(K124,'KAYIT LİSTESİ'!$B$4:$H$767,5,0)),"",(VLOOKUP(K124,'KAYIT LİSTESİ'!$B$4:$H$767,5,0))) ->  | O124: =IF(ISERROR(VLOOKUP(K124,'KAYIT LİSTESİ'!$B$4:$H$767,6,0)),"",(VLOOKUP(K124,'KAYIT LİSTESİ'!$B$4:$H$767,6,0))) -> 
A125: 9 | B125: 1500M-3-9 | C125: =IF(ISERROR(VLOOKUP(B125,'KAYIT LİSTESİ'!$B$4:$H$767,2,0)),"",(VLOOKUP(B125,'KAYIT LİSTESİ'!$B$4:$H$767,2,0))) ->  | D125: =IF(ISERROR(VLOOKUP(B125,'KAYIT LİSTESİ'!$B$4:$H$767,4,0)),"",(VLOOKUP(B125,'KAYIT LİSTESİ'!$B$4:$H$767,4,0))) ->  | E125: =IF(ISERROR(VLOOKUP(B125,'KAYIT LİSTESİ'!$B$4:$H$767,5,0)),"",(VLOOKUP(B125,'KAYIT LİSTESİ'!$B$4:$H$767,5,0))) ->  | F125: =IF(ISERROR(VLOOKUP(B125,'KAYIT LİSTESİ'!$B$4:$H$767,6,0)),"",(VLOOKUP(B125,'KAYIT LİSTESİ'!$B$4:$H$767,6,0))) ->  | J125: 7 | K125: UZUN-7 | L125: =IF(ISERROR(VLOOKUP(K125,'KAYIT LİSTESİ'!$B$4:$H$767,2,0)),"",(VLOOKUP(K125,'KAYIT LİSTESİ'!$B$4:$H$767,2,0))) ->  | M125: =IF(ISERROR(VLOOKUP(K125,'KAYIT LİSTESİ'!$B$4:$H$767,4,0)),"",(VLOOKUP(K125,'KAYIT LİSTESİ'!$B$4:$H$767,4,0))) ->  | N125: =IF(ISERROR(VLOOKUP(K125,'KAYIT LİSTESİ'!$B$4:$H$767,5,0)),"",(VLOOKUP(K125,'KAYIT LİSTESİ'!$B$4:$H$767,5,0))) ->  | O125: =IF(ISERROR(VLOOKUP(K125,'KAYIT LİSTESİ'!$B$4:$H$767,6,0)),"",(VLOOKUP(K125,'KAYIT LİSTESİ'!$B$4:$H$767,6,0))) -> 
A126: 10 | B126: 1500M-3-10 | C126: =IF(ISERROR(VLOOKUP(B126,'KAYIT LİSTESİ'!$B$4:$H$767,2,0)),"",(VLOOKUP(B126,'KAYIT LİSTESİ'!$B$4:$H$767,2,0))) ->  | D126: =IF(ISERROR(VLOOKUP(B126,'KAYIT LİSTESİ'!$B$4:$H$767,4,0)),"",(VLOOKUP(B126,'KAYIT LİSTESİ'!$B$4:$H$767,4,0))) ->  | E126: =IF(ISERROR(VLOOKUP(B126,'KAYIT LİSTESİ'!$B$4:$H$767,5,0)),"",(VLOOKUP(B126,'KAYIT LİSTESİ'!$B$4:$H$767,5,0))) ->  | F126: =IF(ISERROR(VLOOKUP(B126,'KAYIT LİSTESİ'!$B$4:$H$767,6,0)),"",(VLOOKUP(B126,'KAYIT LİSTESİ'!$B$4:$H$767,6,0))) ->  | J126: 8 | K126: UZUN-8 | L126: =IF(ISERROR(VLOOKUP(K126,'KAYIT LİSTESİ'!$B$4:$H$767,2,0)),"",(VLOOKUP(K126,'KAYIT LİSTESİ'!$B$4:$H$767,2,0))) ->  | M126: =IF(ISERROR(VLOOKUP(K126,'KAYIT LİSTESİ'!$B$4:$H$767,4,0)),"",(VLOOKUP(K126,'KAYIT LİSTESİ'!$B$4:$H$767,4,0))) ->  | N126: =IF(ISERROR(VLOOKUP(K126,'KAYIT LİSTESİ'!$B$4:$H$767,5,0)),"",(VLOOKUP(K126,'KAYIT LİSTESİ'!$B$4:$H$767,5,0))) ->  | O126: =IF(ISERROR(VLOOKUP(K126,'KAYIT LİSTESİ'!$B$4:$H$767,6,0)),"",(VLOOKUP(K126,'KAYIT LİSTESİ'!$B$4:$H$767,6,0))) -> 
A127: 11 | B127: 1500M-3-11 | C127: =IF(ISERROR(VLOOKUP(B127,'KAYIT LİSTESİ'!$B$4:$H$767,2,0)),"",(VLOOKUP(B127,'KAYIT LİSTESİ'!$B$4:$H$767,2,0))) ->  | D127: =IF(ISERROR(VLOOKUP(B127,'KAYIT LİSTESİ'!$B$4:$H$767,4,0)),"",(VLOOKUP(B127,'KAYIT LİSTESİ'!$B$4:$H$767,4,0))) ->  | E127: =IF(ISERROR(VLOOKUP(B127,'KAYIT LİSTESİ'!$B$4:$H$767,5,0)),"",(VLOOKUP(B127,'KAYIT LİSTESİ'!$B$4:$H$767,5,0))) ->  | F127: =IF(ISERROR(VLOOKUP(B127,'KAYIT LİSTESİ'!$B$4:$H$767,6,0)),"",(VLOOKUP(B127,'KAYIT LİSTESİ'!$B$4:$H$767,6,0))) ->  | J127: 9 | K127: UZUN-9 | L127: =IF(ISERROR(VLOOKUP(K127,'KAYIT LİSTESİ'!$B$4:$H$767,2,0)),"",(VLOOKUP(K127,'KAYIT LİSTESİ'!$B$4:$H$767,2,0))) ->  | M127: =IF(ISERROR(VLOOKUP(K127,'KAYIT LİSTESİ'!$B$4:$H$767,4,0)),"",(VLOOKUP(K127,'KAYIT LİSTESİ'!$B$4:$H$767,4,0))) ->  | N127: =IF(ISERROR(VLOOKUP(K127,'KAYIT LİSTESİ'!$B$4:$H$767,5,0)),"",(VLOOKUP(K127,'KAYIT LİSTESİ'!$B$4:$H$767,5,0))) ->  | O127: =IF(ISERROR(VLOOKUP(K127,'KAYIT LİSTESİ'!$B$4:$H$767,6,0)),"",(VLOOKUP(K127,'KAYIT LİSTESİ'!$B$4:$H$767,6,0))) -> 
A128: 12 | B128: 1500M-3-12 | C128: =IF(ISERROR(VLOOKUP(B128,'KAYIT LİSTESİ'!$B$4:$H$767,2,0)),"",(VLOOKUP(B128,'KAYIT LİSTESİ'!$B$4:$H$767,2,0))) ->  | D128: =IF(ISERROR(VLOOKUP(B128,'KAYIT LİSTESİ'!$B$4:$H$767,4,0)),"",(VLOOKUP(B128,'KAYIT LİSTESİ'!$B$4:$H$767,4,0))) ->  | E128: =IF(ISERROR(VLOOKUP(B128,'KAYIT LİSTESİ'!$B$4:$H$767,5,0)),"",(VLOOKUP(B128,'KAYIT LİSTESİ'!$B$4:$H$767,5,0))) ->  | F128: =IF(ISERROR(VLOOKUP(B128,'KAYIT LİSTESİ'!$B$4:$H$767,6,0)),"",(VLOOKUP(B128,'KAYIT LİSTESİ'!$B$4:$H$767,6,0))) ->  | J128: 10 | K128: UZUN-10 | L128: =IF(ISERROR(VLOOKUP(K128,'KAYIT LİSTESİ'!$B$4:$H$767,2,0)),"",(VLOOKUP(K128,'KAYIT LİSTESİ'!$B$4:$H$767,2,0))) ->  | M128: =IF(ISERROR(VLOOKUP(K128,'KAYIT LİSTESİ'!$B$4:$H$767,4,0)),"",(VLOOKUP(K128,'KAYIT LİSTESİ'!$B$4:$H$767,4,0))) ->  | N128: =IF(ISERROR(VLOOKUP(K128,'KAYIT LİSTESİ'!$B$4:$H$767,5,0)),"",(VLOOKUP(K128,'KAYIT LİSTESİ'!$B$4:$H$767,5,0))) ->  | O128: =IF(ISERROR(VLOOKUP(K128,'KAYIT LİSTESİ'!$B$4:$H$767,6,0)),"",(VLOOKUP(K128,'KAYIT LİSTESİ'!$B$4:$H$767,6,0))) -> 
A129: 4. SERİ | J129: 11 | K129: UZUN-11 | L129: =IF(ISERROR(VLOOKUP(K129,'KAYIT LİSTESİ'!$B$4:$H$767,2,0)),"",(VLOOKUP(K129,'KAYIT LİSTESİ'!$B$4:$H$767,2,0))) ->  | M129: =IF(ISERROR(VLOOKUP(K129,'KAYIT LİSTESİ'!$B$4:$H$767,4,0)),"",(VLOOKUP(K129,'KAYIT LİSTESİ'!$B$4:$H$767,4,0))) ->  | N129: =IF(ISERROR(VLOOKUP(K129,'KAYIT LİSTESİ'!$B$4:$H$767,5,0)),"",(VLOOKUP(K129,'KAYIT LİSTESİ'!$B$4:$H$767,5,0))) ->  | O129: =IF(ISERROR(VLOOKUP(K129,'KAYIT LİSTESİ'!$B$4:$H$767,6,0)),"",(VLOOKUP(K129,'KAYIT LİSTESİ'!$B$4:$H$767,6,0))) -> 
A130: Sıra No | B130: Formül | C130: Göğüs No | D130: Doğum Tarihi | E130: Adı ve Soyadı | F130: Okulu | G130: Start Kontrol | J130: 12 | K130: UZUN-12 | L130: =IF(ISERROR(VLOOKUP(K130,'KAYIT LİSTESİ'!$B$4:$H$767,2,0)),"",(VLOOKUP(K130,'KAYIT LİSTESİ'!$B$4:$H$767,2,0))) ->  | M130: =IF(ISERROR(VLOOKUP(K130,'KAYIT LİSTESİ'!$B$4:$H$767,4,0)),"",(VLOOKUP(K130,'KAYIT LİSTESİ'!$B$4:$H$767,4,0))) ->  | N130: =IF(ISERROR(VLOOKUP(K130,'KAYIT LİSTESİ'!$B$4:$H$767,5,0)),"",(VLOOKUP(K130,'KAYIT LİSTESİ'!$B$4:$H$767,5,0))) ->  | O130: =IF(ISERROR(VLOOKUP(K130,'KAYIT LİSTESİ'!$B$4:$H$767,6,0)),"",(VLOOKUP(K130,'KAYIT LİSTESİ'!$B$4:$H$767,6,0))) -> 
A131: 1 | B131: 1500M-4-1 | C131: =IF(ISERROR(VLOOKUP(B131,'KAYIT LİSTESİ'!$B$4:$H$767,2,0)),"",(VLOOKUP(B131,'KAYIT LİSTESİ'!$B$4:$H$767,2,0))) ->  | D131: =IF(ISERROR(VLOOKUP(B131,'KAYIT LİSTESİ'!$B$4:$H$767,4,0)),"",(VLOOKUP(B131,'KAYIT LİSTESİ'!$B$4:$H$767,4,0))) ->  | E131: =IF(ISERROR(VLOOKUP(B131,'KAYIT LİSTESİ'!$B$4:$H$767,5,0)),"",(VLOOKUP(B131,'KAYIT LİSTESİ'!$B$4:$H$767,5,0))) ->  | F131: =IF(ISERROR(VLOOKUP(B131,'KAYIT LİSTESİ'!$B$4:$H$767,6,0)),"",(VLOOKUP(B131,'KAYIT LİSTESİ'!$B$4:$H$767,6,0))) ->  | J131: 13 | K131: UZUN-13 | L131: =IF(ISERROR(VLOOKUP(K131,'KAYIT LİSTESİ'!$B$4:$H$767,2,0)),"",(VLOOKUP(K131,'KAYIT LİSTESİ'!$B$4:$H$767,2,0))) ->  | M131: =IF(ISERROR(VLOOKUP(K131,'KAYIT LİSTESİ'!$B$4:$H$767,4,0)),"",(VLOOKUP(K131,'KAYIT LİSTESİ'!$B$4:$H$767,4,0))) ->  | N131: =IF(ISERROR(VLOOKUP(K131,'KAYIT LİSTESİ'!$B$4:$H$767,5,0)),"",(VLOOKUP(K131,'KAYIT LİSTESİ'!$B$4:$H$767,5,0))) ->  | O131: =IF(ISERROR(VLOOKUP(K131,'KAYIT LİSTESİ'!$B$4:$H$767,6,0)),"",(VLOOKUP(K131,'KAYIT LİSTESİ'!$B$4:$H$767,6,0))) -> 
A132: 2 | B132: 1500M-4-2 | C132: =IF(ISERROR(VLOOKUP(B132,'KAYIT LİSTESİ'!$B$4:$H$767,2,0)),"",(VLOOKUP(B132,'KAYIT LİSTESİ'!$B$4:$H$767,2,0))) ->  | D132: =IF(ISERROR(VLOOKUP(B132,'KAYIT LİSTESİ'!$B$4:$H$767,4,0)),"",(VLOOKUP(B132,'KAYIT LİSTESİ'!$B$4:$H$767,4,0))) ->  | E132: =IF(ISERROR(VLOOKUP(B132,'KAYIT LİSTESİ'!$B$4:$H$767,5,0)),"",(VLOOKUP(B132,'KAYIT LİSTESİ'!$B$4:$H$767,5,0))) ->  | F132: =IF(ISERROR(VLOOKUP(B132,'KAYIT LİSTESİ'!$B$4:$H$767,6,0)),"",(VLOOKUP(B132,'KAYIT LİSTESİ'!$B$4:$H$767,6,0))) ->  | J132: 14 | K132: UZUN-14 | L132: =IF(ISERROR(VLOOKUP(K132,'KAYIT LİSTESİ'!$B$4:$H$767,2,0)),"",(VLOOKUP(K132,'KAYIT LİSTESİ'!$B$4:$H$767,2,0))) ->  | M132: =IF(ISERROR(VLOOKUP(K132,'KAYIT LİSTESİ'!$B$4:$H$767,4,0)),"",(VLOOKUP(K132,'KAYIT LİSTESİ'!$B$4:$H$767,4,0))) ->  | N132: =IF(ISERROR(VLOOKUP(K132,'KAYIT LİSTESİ'!$B$4:$H$767,5,0)),"",(VLOOKUP(K132,'KAYIT LİSTESİ'!$B$4:$H$767,5,0))) ->  | O132: =IF(ISERROR(VLOOKUP(K132,'KAYIT LİSTESİ'!$B$4:$H$767,6,0)),"",(VLOOKUP(K132,'KAYIT LİSTESİ'!$B$4:$H$767,6,0))) -> 
A133: 3 | B133: 1500M-4-3 | C133: =IF(ISERROR(VLOOKUP(B133,'KAYIT LİSTESİ'!$B$4:$H$767,2,0)),"",(VLOOKUP(B133,'KAYIT LİSTESİ'!$B$4:$H$767,2,0))) ->  | D133: =IF(ISERROR(VLOOKUP(B133,'KAYIT LİSTESİ'!$B$4:$H$767,4,0)),"",(VLOOKUP(B133,'KAYIT LİSTESİ'!$B$4:$H$767,4,0))) ->  | E133: =IF(ISERROR(VLOOKUP(B133,'KAYIT LİSTESİ'!$B$4:$H$767,5,0)),"",(VLOOKUP(B133,'KAYIT LİSTESİ'!$B$4:$H$767,5,0))) ->  | F133: =IF(ISERROR(VLOOKUP(B133,'KAYIT LİSTESİ'!$B$4:$H$767,6,0)),"",(VLOOKUP(B133,'KAYIT LİSTESİ'!$B$4:$H$767,6,0))) ->  | J133: 15 | K133: UZUN-15 | L133: =IF(ISERROR(VLOOKUP(K133,'KAYIT LİSTESİ'!$B$4:$H$767,2,0)),"",(VLOOKUP(K133,'KAYIT LİSTESİ'!$B$4:$H$767,2,0))) ->  | M133: =IF(ISERROR(VLOOKUP(K133,'KAYIT LİSTESİ'!$B$4:$H$767,4,0)),"",(VLOOKUP(K133,'KAYIT LİSTESİ'!$B$4:$H$767,4,0))) ->  | N133: =IF(ISERROR(VLOOKUP(K133,'KAYIT LİSTESİ'!$B$4:$H$767,5,0)),"",(VLOOKUP(K133,'KAYIT LİSTESİ'!$B$4:$H$767,5,0))) ->  | O133: =IF(ISERROR(VLOOKUP(K133,'KAYIT LİSTESİ'!$B$4:$H$767,6,0)),"",(VLOOKUP(K133,'KAYIT LİSTESİ'!$B$4:$H$767,6,0))) -> 
A134: 4 | B134: 1500M-4-4 | C134: =IF(ISERROR(VLOOKUP(B134,'KAYIT LİSTESİ'!$B$4:$H$767,2,0)),"",(VLOOKUP(B134,'KAYIT LİSTESİ'!$B$4:$H$767,2,0))) ->  | D134: =IF(ISERROR(VLOOKUP(B134,'KAYIT LİSTESİ'!$B$4:$H$767,4,0)),"",(VLOOKUP(B134,'KAYIT LİSTESİ'!$B$4:$H$767,4,0))) ->  | E134: =IF(ISERROR(VLOOKUP(B134,'KAYIT LİSTESİ'!$B$4:$H$767,5,0)),"",(VLOOKUP(B134,'KAYIT LİSTESİ'!$B$4:$H$767,5,0))) ->  | F134: =IF(ISERROR(VLOOKUP(B134,'KAYIT LİSTESİ'!$B$4:$H$767,6,0)),"",(VLOOKUP(B134,'KAYIT LİSTESİ'!$B$4:$H$767,6,0))) ->  | J134: 16 | K134: UZUN-16 | L134: =IF(ISERROR(VLOOKUP(K134,'KAYIT LİSTESİ'!$B$4:$H$767,2,0)),"",(VLOOKUP(K134,'KAYIT LİSTESİ'!$B$4:$H$767,2,0))) ->  | M134: =IF(ISERROR(VLOOKUP(K134,'KAYIT LİSTESİ'!$B$4:$H$767,4,0)),"",(VLOOKUP(K134,'KAYIT LİSTESİ'!$B$4:$H$767,4,0))) ->  | N134: =IF(ISERROR(VLOOKUP(K134,'KAYIT LİSTESİ'!$B$4:$H$767,5,0)),"",(VLOOKUP(K134,'KAYIT LİSTESİ'!$B$4:$H$767,5,0))) ->  | O134: =IF(ISERROR(VLOOKUP(K134,'KAYIT LİSTESİ'!$B$4:$H$767,6,0)),"",(VLOOKUP(K134,'KAYIT LİSTESİ'!$B$4:$H$767,6,0))) -> 
A135: 5 | B135: 1500M-4-5 | C135: =IF(ISERROR(VLOOKUP(B135,'KAYIT LİSTESİ'!$B$4:$H$767,2,0)),"",(VLOOKUP(B135,'KAYIT LİSTESİ'!$B$4:$H$767,2,0))) ->  | D135: =IF(ISERROR(VLOOKUP(B135,'KAYIT LİSTESİ'!$B$4:$H$767,4,0)),"",(VLOOKUP(B135,'KAYIT LİSTESİ'!$B$4:$H$767,4,0))) ->  | E135: =IF(ISERROR(VLOOKUP(B135,'KAYIT LİSTESİ'!$B$4:$H$767,5,0)),"",(VLOOKUP(B135,'KAYIT LİSTESİ'!$B$4:$H$767,5,0))) ->  | F135: =IF(ISERROR(VLOOKUP(B135,'KAYIT LİSTESİ'!$B$4:$H$767,6,0)),"",(VLOOKUP(B135,'KAYIT LİSTESİ'!$B$4:$H$767,6,0))) ->  | J135: 17 | K135: UZUN-17 | L135: =IF(ISERROR(VLOOKUP(K135,'KAYIT LİSTESİ'!$B$4:$H$767,2,0)),"",(VLOOKUP(K135,'KAYIT LİSTESİ'!$B$4:$H$767,2,0))) ->  | M135: =IF(ISERROR(VLOOKUP(K135,'KAYIT LİSTESİ'!$B$4:$H$767,4,0)),"",(VLOOKUP(K135,'KAYIT LİSTESİ'!$B$4:$H$767,4,0))) ->  | N135: =IF(ISERROR(VLOOKUP(K135,'KAYIT LİSTESİ'!$B$4:$H$767,5,0)),"",(VLOOKUP(K135,'KAYIT LİSTESİ'!$B$4:$H$767,5,0))) ->  | O135: =IF(ISERROR(VLOOKUP(K135,'KAYIT LİSTESİ'!$B$4:$H$767,6,0)),"",(VLOOKUP(K135,'KAYIT LİSTESİ'!$B$4:$H$767,6,0))) -> 
A136: 6 | B136: 1500M-4-6 | C136: =IF(ISERROR(VLOOKUP(B136,'KAYIT LİSTESİ'!$B$4:$H$767,2,0)),"",(VLOOKUP(B136,'KAYIT LİSTESİ'!$B$4:$H$767,2,0))) ->  | D136: =IF(ISERROR(VLOOKUP(B136,'KAYIT LİSTESİ'!$B$4:$H$767,4,0)),"",(VLOOKUP(B136,'KAYIT LİSTESİ'!$B$4:$H$767,4,0))) ->  | E136: =IF(ISERROR(VLOOKUP(B136,'KAYIT LİSTESİ'!$B$4:$H$767,5,0)),"",(VLOOKUP(B136,'KAYIT LİSTESİ'!$B$4:$H$767,5,0))) ->  | F136: =IF(ISERROR(VLOOKUP(B136,'KAYIT LİSTESİ'!$B$4:$H$767,6,0)),"",(VLOOKUP(B136,'KAYIT LİSTESİ'!$B$4:$H$767,6,0))) ->  | J136: 18 | K136: UZUN-18 | L136: =IF(ISERROR(VLOOKUP(K136,'KAYIT LİSTESİ'!$B$4:$H$767,2,0)),"",(VLOOKUP(K136,'KAYIT LİSTESİ'!$B$4:$H$767,2,0))) ->  | M136: =IF(ISERROR(VLOOKUP(K136,'KAYIT LİSTESİ'!$B$4:$H$767,4,0)),"",(VLOOKUP(K136,'KAYIT LİSTESİ'!$B$4:$H$767,4,0))) ->  | N136: =IF(ISERROR(VLOOKUP(K136,'KAYIT LİSTESİ'!$B$4:$H$767,5,0)),"",(VLOOKUP(K136,'KAYIT LİSTESİ'!$B$4:$H$767,5,0))) ->  | O136: =IF(ISERROR(VLOOKUP(K136,'KAYIT LİSTESİ'!$B$4:$H$767,6,0)),"",(VLOOKUP(K136,'KAYIT LİSTESİ'!$B$4:$H$767,6,0))) -> 
A137: 7 | B137: 1500M-4-7 | C137: =IF(ISERROR(VLOOKUP(B137,'KAYIT LİSTESİ'!$B$4:$H$767,2,0)),"",(VLOOKUP(B137,'KAYIT LİSTESİ'!$B$4:$H$767,2,0))) ->  | D137: =IF(ISERROR(VLOOKUP(B137,'KAYIT LİSTESİ'!$B$4:$H$767,4,0)),"",(VLOOKUP(B137,'KAYIT LİSTESİ'!$B$4:$H$767,4,0))) ->  | E137: =IF(ISERROR(VLOOKUP(B137,'KAYIT LİSTESİ'!$B$4:$H$767,5,0)),"",(VLOOKUP(B137,'KAYIT LİSTESİ'!$B$4:$H$767,5,0))) ->  | F137: =IF(ISERROR(VLOOKUP(B137,'KAYIT LİSTESİ'!$B$4:$H$767,6,0)),"",(VLOOKUP(B137,'KAYIT LİSTESİ'!$B$4:$H$767,6,0))) ->  | J137: 19 | K137: UZUN-19 | L137: =IF(ISERROR(VLOOKUP(K137,'KAYIT LİSTESİ'!$B$4:$H$767,2,0)),"",(VLOOKUP(K137,'KAYIT LİSTESİ'!$B$4:$H$767,2,0))) ->  | M137: =IF(ISERROR(VLOOKUP(K137,'KAYIT LİSTESİ'!$B$4:$H$767,4,0)),"",(VLOOKUP(K137,'KAYIT LİSTESİ'!$B$4:$H$767,4,0))) ->  | N137: =IF(ISERROR(VLOOKUP(K137,'KAYIT LİSTESİ'!$B$4:$H$767,5,0)),"",(VLOOKUP(K137,'KAYIT LİSTESİ'!$B$4:$H$767,5,0))) ->  | O137: =IF(ISERROR(VLOOKUP(K137,'KAYIT LİSTESİ'!$B$4:$H$767,6,0)),"",(VLOOKUP(K137,'KAYIT LİSTESİ'!$B$4:$H$767,6,0))) -> 
A138: 8 | B138: 1500M-4-8 | C138: =IF(ISERROR(VLOOKUP(B138,'KAYIT LİSTESİ'!$B$4:$H$767,2,0)),"",(VLOOKUP(B138,'KAYIT LİSTESİ'!$B$4:$H$767,2,0))) ->  | D138: =IF(ISERROR(VLOOKUP(B138,'KAYIT LİSTESİ'!$B$4:$H$767,4,0)),"",(VLOOKUP(B138,'KAYIT LİSTESİ'!$B$4:$H$767,4,0))) ->  | E138: =IF(ISERROR(VLOOKUP(B138,'KAYIT LİSTESİ'!$B$4:$H$767,5,0)),"",(VLOOKUP(B138,'KAYIT LİSTESİ'!$B$4:$H$767,5,0))) ->  | F138: =IF(ISERROR(VLOOKUP(B138,'KAYIT LİSTESİ'!$B$4:$H$767,6,0)),"",(VLOOKUP(B138,'KAYIT LİSTESİ'!$B$4:$H$767,6,0))) ->  | J138: 20 | K138: UZUN-20 | L138: =IF(ISERROR(VLOOKUP(K138,'KAYIT LİSTESİ'!$B$4:$H$767,2,0)),"",(VLOOKUP(K138,'KAYIT LİSTESİ'!$B$4:$H$767,2,0))) ->  | M138: =IF(ISERROR(VLOOKUP(K138,'KAYIT LİSTESİ'!$B$4:$H$767,4,0)),"",(VLOOKUP(K138,'KAYIT LİSTESİ'!$B$4:$H$767,4,0))) ->  | N138: =IF(ISERROR(VLOOKUP(K138,'KAYIT LİSTESİ'!$B$4:$H$767,5,0)),"",(VLOOKUP(K138,'KAYIT LİSTESİ'!$B$4:$H$767,5,0))) ->  | O138: =IF(ISERROR(VLOOKUP(K138,'KAYIT LİSTESİ'!$B$4:$H$767,6,0)),"",(VLOOKUP(K138,'KAYIT LİSTESİ'!$B$4:$H$767,6,0))) -> 
A139: 9 | B139: 1500M-4-9 | C139: =IF(ISERROR(VLOOKUP(B139,'KAYIT LİSTESİ'!$B$4:$H$767,2,0)),"",(VLOOKUP(B139,'KAYIT LİSTESİ'!$B$4:$H$767,2,0))) ->  | D139: =IF(ISERROR(VLOOKUP(B139,'KAYIT LİSTESİ'!$B$4:$H$767,4,0)),"",(VLOOKUP(B139,'KAYIT LİSTESİ'!$B$4:$H$767,4,0))) ->  | E139: =IF(ISERROR(VLOOKUP(B139,'KAYIT LİSTESİ'!$B$4:$H$767,5,0)),"",(VLOOKUP(B139,'KAYIT LİSTESİ'!$B$4:$H$767,5,0))) ->  | F139: =IF(ISERROR(VLOOKUP(B139,'KAYIT LİSTESİ'!$B$4:$H$767,6,0)),"",(VLOOKUP(B139,'KAYIT LİSTESİ'!$B$4:$H$767,6,0))) ->  | J139: 21 | K139: UZUN-21 | L139: =IF(ISERROR(VLOOKUP(K139,'KAYIT LİSTESİ'!$B$4:$H$767,2,0)),"",(VLOOKUP(K139,'KAYIT LİSTESİ'!$B$4:$H$767,2,0))) ->  | M139: =IF(ISERROR(VLOOKUP(K139,'KAYIT LİSTESİ'!$B$4:$H$767,4,0)),"",(VLOOKUP(K139,'KAYIT LİSTESİ'!$B$4:$H$767,4,0))) ->  | N139: =IF(ISERROR(VLOOKUP(K139,'KAYIT LİSTESİ'!$B$4:$H$767,5,0)),"",(VLOOKUP(K139,'KAYIT LİSTESİ'!$B$4:$H$767,5,0))) ->  | O139: =IF(ISERROR(VLOOKUP(K139,'KAYIT LİSTESİ'!$B$4:$H$767,6,0)),"",(VLOOKUP(K139,'KAYIT LİSTESİ'!$B$4:$H$767,6,0))) -> 
A140: 10 | B140: 1500M-4-10 | C140: =IF(ISERROR(VLOOKUP(B140,'KAYIT LİSTESİ'!$B$4:$H$767,2,0)),"",(VLOOKUP(B140,'KAYIT LİSTESİ'!$B$4:$H$767,2,0))) ->  | D140: =IF(ISERROR(VLOOKUP(B140,'KAYIT LİSTESİ'!$B$4:$H$767,4,0)),"",(VLOOKUP(B140,'KAYIT LİSTESİ'!$B$4:$H$767,4,0))) ->  | E140: =IF(ISERROR(VLOOKUP(B140,'KAYIT LİSTESİ'!$B$4:$H$767,5,0)),"",(VLOOKUP(B140,'KAYIT LİSTESİ'!$B$4:$H$767,5,0))) ->  | F140: =IF(ISERROR(VLOOKUP(B140,'KAYIT LİSTESİ'!$B$4:$H$767,6,0)),"",(VLOOKUP(B140,'KAYIT LİSTESİ'!$B$4:$H$767,6,0))) ->  | J140: 22 | K140: UZUN-22 | L140: =IF(ISERROR(VLOOKUP(K140,'KAYIT LİSTESİ'!$B$4:$H$767,2,0)),"",(VLOOKUP(K140,'KAYIT LİSTESİ'!$B$4:$H$767,2,0))) ->  | M140: =IF(ISERROR(VLOOKUP(K140,'KAYIT LİSTESİ'!$B$4:$H$767,4,0)),"",(VLOOKUP(K140,'KAYIT LİSTESİ'!$B$4:$H$767,4,0))) ->  | N140: =IF(ISERROR(VLOOKUP(K140,'KAYIT LİSTESİ'!$B$4:$H$767,5,0)),"",(VLOOKUP(K140,'KAYIT LİSTESİ'!$B$4:$H$767,5,0))) ->  | O140: =IF(ISERROR(VLOOKUP(K140,'KAYIT LİSTESİ'!$B$4:$H$767,6,0)),"",(VLOOKUP(K140,'KAYIT LİSTESİ'!$B$4:$H$767,6,0))) -> 
A141: 11 | B141: 1500M-4-11 | C141: =IF(ISERROR(VLOOKUP(B141,'KAYIT LİSTESİ'!$B$4:$H$767,2,0)),"",(VLOOKUP(B141,'KAYIT LİSTESİ'!$B$4:$H$767,2,0))) ->  | D141: =IF(ISERROR(VLOOKUP(B141,'KAYIT LİSTESİ'!$B$4:$H$767,4,0)),"",(VLOOKUP(B141,'KAYIT LİSTESİ'!$B$4:$H$767,4,0))) ->  | E141: =IF(ISERROR(VLOOKUP(B141,'KAYIT LİSTESİ'!$B$4:$H$767,5,0)),"",(VLOOKUP(B141,'KAYIT LİSTESİ'!$B$4:$H$767,5,0))) ->  | F141: =IF(ISERROR(VLOOKUP(B141,'KAYIT LİSTESİ'!$B$4:$H$767,6,0)),"",(VLOOKUP(B141,'KAYIT LİSTESİ'!$B$4:$H$767,6,0))) ->  | J141: 23 | K141: UZUN-23 | L141: =IF(ISERROR(VLOOKUP(K141,'KAYIT LİSTESİ'!$B$4:$H$767,2,0)),"",(VLOOKUP(K141,'KAYIT LİSTESİ'!$B$4:$H$767,2,0))) ->  | M141: =IF(ISERROR(VLOOKUP(K141,'KAYIT LİSTESİ'!$B$4:$H$767,4,0)),"",(VLOOKUP(K141,'KAYIT LİSTESİ'!$B$4:$H$767,4,0))) ->  | N141: =IF(ISERROR(VLOOKUP(K141,'KAYIT LİSTESİ'!$B$4:$H$767,5,0)),"",(VLOOKUP(K141,'KAYIT LİSTESİ'!$B$4:$H$767,5,0))) ->  | O141: =IF(ISERROR(VLOOKUP(K141,'KAYIT LİSTESİ'!$B$4:$H$767,6,0)),"",(VLOOKUP(K141,'KAYIT LİSTESİ'!$B$4:$H$767,6,0))) -> 
A142: 12 | B142: 1500M-4-12 | C142: =IF(ISERROR(VLOOKUP(B142,'KAYIT LİSTESİ'!$B$4:$H$767,2,0)),"",(VLOOKUP(B142,'KAYIT LİSTESİ'!$B$4:$H$767,2,0))) ->  | D142: =IF(ISERROR(VLOOKUP(B142,'KAYIT LİSTESİ'!$B$4:$H$767,4,0)),"",(VLOOKUP(B142,'KAYIT LİSTESİ'!$B$4:$H$767,4,0))) ->  | E142: =IF(ISERROR(VLOOKUP(B142,'KAYIT LİSTESİ'!$B$4:$H$767,5,0)),"",(VLOOKUP(B142,'KAYIT LİSTESİ'!$B$4:$H$767,5,0))) ->  | F142: =IF(ISERROR(VLOOKUP(B142,'KAYIT LİSTESİ'!$B$4:$H$767,6,0)),"",(VLOOKUP(B142,'KAYIT LİSTESİ'!$B$4:$H$767,6,0))) ->  | J142: 24 | K142: UZUN-24 | L142: =IF(ISERROR(VLOOKUP(K142,'KAYIT LİSTESİ'!$B$4:$H$767,2,0)),"",(VLOOKUP(K142,'KAYIT LİSTESİ'!$B$4:$H$767,2,0))) ->  | M142: =IF(ISERROR(VLOOKUP(K142,'KAYIT LİSTESİ'!$B$4:$H$767,4,0)),"",(VLOOKUP(K142,'KAYIT LİSTESİ'!$B$4:$H$767,4,0))) ->  | N142: =IF(ISERROR(VLOOKUP(K142,'KAYIT LİSTESİ'!$B$4:$H$767,5,0)),"",(VLOOKUP(K142,'KAYIT LİSTESİ'!$B$4:$H$767,5,0))) ->  | O142: =IF(ISERROR(VLOOKUP(K142,'KAYIT LİSTESİ'!$B$4:$H$767,6,0)),"",(VLOOKUP(K142,'KAYIT LİSTESİ'!$B$4:$H$767,6,0))) -> 
J143: 25 | K143: UZUN-25 | L143: =IF(ISERROR(VLOOKUP(K143,'KAYIT LİSTESİ'!$B$4:$H$767,2,0)),"",(VLOOKUP(K143,'KAYIT LİSTESİ'!$B$4:$H$767,2,0))) ->  | M143: =IF(ISERROR(VLOOKUP(K143,'KAYIT LİSTESİ'!$B$4:$H$767,4,0)),"",(VLOOKUP(K143,'KAYIT LİSTESİ'!$B$4:$H$767,4,0))) ->  | N143: =IF(ISERROR(VLOOKUP(K143,'KAYIT LİSTESİ'!$B$4:$H$767,5,0)),"",(VLOOKUP(K143,'KAYIT LİSTESİ'!$B$4:$H$767,5,0))) ->  | O143: =IF(ISERROR(VLOOKUP(K143,'KAYIT LİSTESİ'!$B$4:$H$767,6,0)),"",(VLOOKUP(K143,'KAYIT LİSTESİ'!$B$4:$H$767,6,0))) -> 

Sheet puan (hidden)
A1: NAİLİ MORAN TÜRKİYE ŞAMPİYONASI PUAN TABLOSU
A2: PUAN | B2: FOTO FİNİSH | D2: FOTO FİNİSH | F2: FOTO FİNİSH | H2: FOTO FİNİSH | J2: FOTO FİNİSH | L2: FOTO FİNİSH | N2: FOTO FİNİSH | P2: FOTO FİNİSH | R2: FOTO FİNİSH | T2: FOTO FİNİSH | V2: FOTO FİNİSH | Y2: PUAN | Z2: ATLAMALAR | AD2: ATMALAR | AH2: PUAN
B3: 100m | D3: 200m | F3: 75 m | H3: 400m | J3: 70 m H 75 m H 80 m H | L3: 300m H | N3: 800m | P3: 1500m | R3: 2000m Yıldız | T3: 3000m | V3: 100 m H | Z3: Yüksek | AA3: Uzun | AB3: Üçadım | AC3: Sırık | AD3: Gülle | AE3: Disk | AF3: Cirit | AG3: Çekiç
B4: DERECE | D4: DERECE | F4: DERECE | H4: DERECE | J4: DERECE | L4: DERECE | N4: DERECE | P4: DERECE | R4: DERECE | T4: DERECE | V4: DERECE | Z4: DERECE | AA4: DERECE | AB4: DERECE | AC4: DERECE | AD4: DERECE | AE4: DERECE | AF4: DERECE | AG4: DERECE
J5: DNS | Y5: 0 | Z5: 10 | AA5: 100 | AB5: 100 | AC5: 100 | AD5: 100 | AE5: 100 | AF5: 100 | AG5: 100 | AH5: 0
A6: 100 | B6: 1130 | C6: 100 | D6: 2300 | E6: 100 | F6: 950 | G6: 100 | H6: 5200 | I6: 100 | J6: 1140 | K6: 100 | L6: 4250 | M6: 100 | N6: 20000 | O6: 100 | P6: 40300 | Q6: 100 | R6: 54524 | S6: 100 | T6: 85000 | U6: 100 | V6: 1440 | W6: 100 | Y6: 100 | Z6: 65 | AA6: 190 | AB6: 420 | AC6: - | AD6: - | AE6: - | AF6: - | AG6: - | AH6: 1
A7: 99 | B7: 1140 | C7: 99 | D7: 2320 | E7: 99 | F7: - | G7: 99 | H7: 5240 | I7: 99 | J7: 1150 | K7: 99 | L7: 4300 | M7: 99 | N7: 20200 | O7: 99 | P7: 40600 | Q7: 99 | R7: 54624 | S7: 99 | T7: 90000 | U7: 99 | V7: 1450 | W7: 99 | Y7: 99 | Z7: 66 | AA7: 193 | AB7: 425 | AC7: - | AD7: - | AE7: - | AF7: - | AG7: - | AH7: 2
A8: 98 | B8: 1150 | C8: 98 | D8: 2340 | E8: 98 | F8: 960 | G8: 98 | H8: 5270 | I8: 98 | J8: 1160 | K8: 98 | L8: 4350 | M8: 98 | N8: 20400 | O8: 98 | P8: 40900 | Q8: 98 | R8: 54724 | S8: 98 | T8: 91000 | U8: 98 | V8: 1460 | W8: 98 | Y8: 98 | Z8: 67 | AA8: 197 | AB8: 430 | AC8: - | AD8: - | AE8: - | AF8: - | AG8: - | AH8: 3
A9: 97 | B9: 1160 | C9: 97 | D9: 2360 | E9: 97 | F9: - | G9: 97 | H9: 5300 | I9: 97 | J9: 1170 | K9: 97 | L9: 4400 | M9: 97 | N9: 20600 | O9: 97 | P9: 41200 | Q9: 97 | R9: 54824 | S9: 97 | T9: 92000 | U9: 97 | V9: 1470 | W9: 97 | Y9: 97 | Z9: 68 | AA9: 200 | AB9: 435 | AC9: - | AD9: - | AE9: - | AF9: - | AG9: - | AH9: 4
A10: 96 | B10: 1170 | C10: 96 | D10: 2380 | E10: 96 | F10: 970 | G10: 96 | H10: 5340 | I10: 96 | J10: 1180 | K10: 96 | L10: 4450 | M10: 96 | N10: 20800 | O10: 96 | P10: 41500 | Q10: 96 | R10: 54924 | S10: 96 | T10: 93000 | U10: 96 | V10: 1480 | W10: 96 | Y10: 96 | Z10: 69 | AA10: 203 | AB10: 440 | AC10: - | AD10: - | AE10: - | AF10: - | AG10: - | AH10: 5
A11: 95 | B11: 1180 | C11: 95 | D11: 2400 | E11: 95 | F11: - | G11: 95 | H11: 5370 | I11: 95 | J11: 1190 | K11: 95 | L11: 4500 | M11: 95 | N11: 21000 | O11: 95 | P11: 41800 | Q11: 95 | R11: 55024 | S11: 95 | T11: 93500 | U11: 95 | V11: 1490 | W11: 95 | Y11: 95 | Z11: 70 | AA11: 205 | AB11: 445 | AC11: - | AD11: - | AE11: - | AF11: - | AG11: - | AH11: 6
A12: 94 | B12: 1190 | C12: 94 | D12: 2420 | E12: 94 | F12: 980 | G12: 94 | H12: 5400 | I12: 94 | J12: 1200 | K12: 94 | L12: 4550 | M12: 94 | N12: 21100 | O12: 94 | P12: 42100 | Q12: 94 | R12: 55124 | S12: 94 | T12: 94000 | U12: 94 | V12: 1500 | W12: 94 | Y12: 94 | Z12: 71 | AA12: 207 | AB12: 450 | AC12: - | AD12: - | AE12: - | AF12: - | AG12: - | AH12: 7
A13: 93 | B13: 1200 | C13: 93 | D13: 2440 | E13: 93 | F13: - | G13: 93 | H13: 5440 | I13: 93 | J13: 1210 | K13: 93 | L13: 4600 | M13: 93 | N13: 21200 | O13: 93 | P13: 42400 | Q13: 93 | R13: 55224 | S13: 93 | T13: 94500 | U13: 93 | V13: 1510 | W13: 93 | Y13: 93 | Z13: 72 | AA13: 210 | AB13: 455 | AC13: - | AD13: - | AE13: - | AF13: - | AG13: - | AH13: 8
A14: 92 | B14: 1210 | C14: 92 | D14: 2460 | E14: 92 | F14: 990 | G14: 92 | H14: 5470 | I14: 92 | J14: 1220 | K14: 92 | L14: 4650 | M14: 92 | N14: 21300 | O14: 92 | P14: 42700 | Q14: 92 | R14: 55324 | S14: 92 | T14: 95000 | U14: 92 | V14: 1520 | W14: 92 | Y14: 92 | Z14: 73 | AA14: 213 | AB14: 460 | AC14: - | AD14: - | AE14: - | AF14: - | AG14: - | AH14: 9
A15: 91 | B15: 1220 | C15: 91 | D15: 2480 | E15: 91 | F15: - | G15: 91 | H15: 5500 | I15: 91 | J15: 1230 | K15: 91 | L15: 4700 | M15: 91 | N15: 21400 | O15: 91 | P15: 43000 | Q15: 91 | R15: 55424 | S15: 91 | T15: 95500 | U15: 91 | V15: 1530 | W15: 91 | Y15: 91 | Z15: 74 | AA15: 216 | AB15: 465 | AC15: - | AD15: - | AE15: - | AF15: - | AG15: - | AH15: 10
A16: 90 | B16: 1230 | C16: 90 | D16: 2500 | E16: 90 | F16: 1000 | G16: 90 | H16: 5550 | I16: 90 | J16: 1240 | K16: 90 | L16: 4750 | M16: 90 | N16: 21500 | O16: 90 | P16: 43300 | Q16: 90 | R16: 55524 | S16: 90 | T16: 100000 | U16: 90 | V16: 1540 | W16: 90 | Y16: 90 | Z16: 75 | AA16: 219 | AB16: 470 | AC16: - | AD16: 400 | AE16: 400 | AF16: 400 | AG16: 400 | AH16: 11
A17: 89 | B17: 1240 | C17: 89 | D17: 2520 | E17: 89 | F17: - | G17: 89 | H17: 5600 | I17: 89 | J17: 1250 | K17: 89 | L17: 4800 | M17: 89 | N17: 21600 | O17: 89 | P17: 43600 | Q17: 89 | R17: 55624 | S17: 89 | T17: 100500 | U17: 89 | V17: 1550 | W17: 89 | Y17: 89 | Z17: 76 | AA17: 222 | AB17: 475 | AC17: - | AD17: 410 | AE17: 450 | AF17: 450 | AG17: 450 | AH17: 12
A18: 88 | B18: 1250 | C18: 88 | D18: 2540 | E18: 88 | F18: 1010 | G18: 88 | H18: 5650 | I18: 88 | J18: 1260 | K18: 88 | L18: 4850 | M18: 88 | N18: 21700 | O18: 88 | P18: 43900 | Q18: 88 | R18: 55724 | S18: 88 | T18: 101000 | U18: 88 | V18: 1560 | W18: 88 | Y18: 88 | Z18: 77 | AA18: 225 | AB18: 480 | AC18: - | AD18: 420 | AE18: 500 | AF18: 500 | AG18: 500 | AH18: 13
A19: 87 | B19: 1260 | C19: 87 | D19: 2560 | E19: 87 | F19: - | G19: 87 | H19: 5700 | I19: 87 | J19: 1270 | K19: 87 | L19: 4900 | M19: 87 | N19: 21800 | O19: 87 | P19: 44200 | Q19: 87 | R19: 55824 | S19: 87 | T19: 101500 | U19: 87 | V19: 1570 | W19: 87 | Y19: 87 | Z19: 78 | AA19: 228 | AB19: 485 | AC19: - | AD19: 430 | AE19: 550 | AF19: 550 | AG19: 550 | AH19: 14
A20: 86 | B20: 1270 | C20: 86 | D20: 2580 | E20: 86 | F20: 1020 | G20: 86 | H20: 5750 | I20: 86 | J20: 1280 | K20: 86 | L20: 4950 | M20: 86 | N20: 21900 | O20: 86 | P20: 44500 | Q20: 86 | R20: 55924 | S20: 86 | T20: 102000 | U20: 86 | V20: 1580 | W20: 86 | Y20: 86 | Z20: 79 | AA20: 231 | AB20: 490 | AC20: - | AD20: 440 | AE20: 600 | AF20: 600 | AG20: 600 | AH20: 15
A21: 85 | B21: 1280 | C21: 85 | D21: 2600 | E21: 85 | F21: - | G21: 85 | H21: 5800 | I21: 85 | J21: 1290 | K21: 85 | L21: 5000 | M21: 85 | N21: 22000 | O21: 85 | P21: 44800 | Q21: 85 | R21: 60024 | S21: 85 | T21: 102500 | U21: 85 | V21: 1590 | W21: 85 | Y21: 85 | Z21: 80 | AA21: 234 | AB21: 495 | AC21: 105 | AD21: 450 | AE21: 650 | AF21: 650 | AG21: 650 | AH21: 16
A22: 84 | B22: 1290 | C22: 84 | D22: 2620 | E22: 84 | F22: 1030 | G22: 84 | H22: 5850 | I22: 84 | J22: 1300 | K22: 84 | L22: 5050 | M22: 84 | N22: 22100 | O22: 84 | P22: 45100 | Q22: 84 | R22: 60124 | S22: 84 | T22: 103000 | U22: 84 | V22: 1600 | W22: 84 | Y22: 84 | Z22: 81 | AA22: 237 | AB22: 500 | AC22: - | AD22: 460 | AE22: 700 | AF22: 700 | AG22: 700 | AH22: 17
A23: 83 | B23: 1300 | C23: 83 | D23: 2640 | E23: 83 | F23: - | G23: 83 | H23: 5900 | I23: 83 | J23: 1310 | K23: 83 | L23: 5100 | M23: 83 | N23: 22200 | O23: 83 | P23: 45400 | Q23: 83 | R23: 60224 | S23: 83 | T23: 103500 | U23: 83 | V23: 1610 | W23: 83 | Y23: 83 | Z23: 82 | AA23: 240 | AB23: 505 | AC23: 110 | AD23: 470 | AE23: 750 | AF23: 750 | AG23: 750 | AH23: 18
A24: 82 | B24: 1310 | C24: 82 | D24: 2660 | E24: 82 | F24: 1040 | G24: 82 | H24: 5950 | I24: 82 | J24: 1320 | K24: 82 | L24: 5150 | M24: 82 | N24: 22300 | O24: 82 | P24: 45700 | Q24: 82 | R24: 60324 | S24: 82 | T24: 104000 | U24: 82 | V24: 1620 | W24: 82 | Y24: 82 | Z24: 83 | AA24: 243 | AB24: 510 | AC24: - | AD24: 480 | AE24: 800 | AF24: 800 | AG24: 800 | AH24: 19
A25: 81 | B25: 1320 | C25: 81 | D25: 2680 | E25: 81 | F25: - | G25: 81 | H25: 10000 | I25: 81 | J25: 1330 | K25: 81 | L25: 5200 | M25: 81 | N25: 22400 | O25: 81 | P25: 50000 | Q25: 81 | R25: 60424 | S25: 81 | T25: 104500 | U25: 81 | V25: 1630 | W25: 81 | Y25: 81 | Z25: 84 | AA25: 246 | AB25: 515 | AC25: 115 | AD25: 490 | AE25: 850 | AF25: 850 | AG25: 850 | AH25: 20
A26: 80 | B26: 1330 | C26: 80 | D26: 2700 | E26: 80 | F26: 1050 | G26: 80 | H26: 10050 | I26: 80 | J26: 1340 | K26: 80 | L26: 5250 | M26: 80 | N26: 22500 | O26: 80 | P26: 50300 | Q26: 80 | R26: 60524 | S26: 80 | T26: 105000 | U26: 80 | V26: 1640 | W26: 80 | Y26: 80 | Z26: 85 | AA26: 249 | AB26: 520 | AC26: - | AD26: 500 | AE26: 900 | AF26: 900 | AG26: 900 | AH26: 21
A27: 79 | B27: 1340 | C27: 79 | D27: 2720 | E27: 79 | F27: - | G27: 79 | H27: 10100 | I27: 79 | J27: 1350 | K27: 79 | L27: 5300 | M27: 79 | N27: 22600 | O27: 79 | P27: 50600 | Q27: 79 | R27: 60624 | S27: 79 | T27: 105500 | U27: 79 | V27: 1650 | W27: 79 | Y27: 79 | Z27: 86 | AA27: 252 | AB27: 525 | AC27: 120 | AD27: 510 | AE27: 925 | AF27: 925 | AG27: 925 | AH27: 22
A28: 78 | B28: 1350 | C28: 78 | D28: 2740 | E28: 78 | F28: 1060 | G28: 78 | H28: 10150 | I28: 78 | J28: 1360 | K28: 78 | L28: 5350 | M28: 78 | N28: 22700 | O28: 78 | P28: 50900 | Q28: 78 | R28: 60724 | S28: 78 | T28: 110000 | U28: 78 | V28: 1660 | W28: 78 | Y28: 78 | Z28: 87 | AA28: 255 | AB28: 530 | AC28: - | AD28: 520 | AE28: 950 | AF28: 950 | AG28: 950 | AH28: 23
A29: 77 | B29: 1360 | C29: 77 | D29: 2760 | E29: 77 | F29: - | G29: 77 | H29: 10200 | I29: 77 | J29: 1370 | K29: 77 | L29: 5400 | M29: 77 | N29: 22800 | O29: 77 | P29: 51200 | Q29: 77 | R29: 60824 | S29: 77 | T29: 110500 | U29: 77 | V29: 1670 | W29: 77 | Y29: 77 | Z29: 88 | AA29: 258 | AB29: 535 | AC29: 125 | AD29: 530 | AE29: 975 | AF29: 975 | AG29: 975 | AH29: 24
A30: 76 | B30: 1370 | C30: 76 | D30: 2780 | E30: 76 | F30: 1070 | G30: 76 | H30: 10250 | I30: 76 | J30: 1380 | K30: 76 | L30: 5450 | M30: 76 | N30: 22900 | O30: 76 | P30: 51500 | Q30: 76 | R30: 60924 | S30: 76 | T30: 111000 | U30: 76 | V30: 1680 | W30: 76 | Y30: 76 | Z30: 89 | AA30: 261 | AB30: 540 | AC30: - | AD30: 540 | AE30: 1000 | AF30: 1000 | AG30: 1000 | AH30: 25
A31: 75 | B31: 1380 | C31: 75 | D31: 2800 | E31: 75 | F31: - | G31: 75 | H31: 10300 | I31: 75 | J31: 1390 | K31: 75 | L31: 5500 | M31: 75 | N31: 23000 | O31: 75 | P31: 51800 | Q31: 75 | R31: 61024 | S31: 75 | T31: 111500 | U31: 75 | V31: 1690 | W31: 75 | Y31: 75 | Z31: 90 | AA31: 264 | AB31: 545 | AC31: 130 | AD31: 550 | AE31: 1025 | AF31: 1025 | AG31: 1025 | AH31: 26
A32: 74 | B32: 1390 | C32: 74 | D32: 2820 | E32: 74 | F32: 1080 | G32: 74 | H32: 10350 | I32: 74 | J32: 1400 | K32: 74 | L32: 5550 | M32: 74 | N32: 23200 | O32: 74 | P32: 52100 | Q32: 74 | R32: 61124 | S32: 74 | T32: 112000 | U32: 74 | V32: 1700 | W32: 74 | Y32: 74 | Z32: 91 | AA32: 267 | AB32: 550 | AC32: - | AD32: 560 | AE32: 1050 | AF32: 1050 | AG32: 1050 | AH32: 27
A33: 73 | B33: 1400 | C33: 73 | D33: 2840 | E33: 73 | F33: - | G33: 73 | H33: 10400 | I33: 73 | J33: 1410 | K33: 73 | L33: 5600 | M33: 73 | N33: 23400 | O33: 73 | P33: 52400 | Q33: 73 | R33: 61224 | S33: 73 | T33: 112500 | U33: 73 | V33: 1710 | W33: 73 | Y33: 73 | Z33: 92 | AA33: 270 | AB33: 555 | AC33: 135 | AD33: 570 | AE33: 1075 | AF33: 1075 | AG33: 1075 | AH33: 28
A34: 72 | B34: - | C34: 72 | D34: 2860 | E34: 72 | F34: 1090 | G34: 72 | H34: 10450 | I34: 72 | J34: 1420 | K34: 72 | L34: 5650 | M34: 72 | N34: 23600 | O34: 72 | P34: 52700 | Q34: 72 | R34: 61324 | S34: 72 | T34: 113000 | U34: 72 | V34: 1720 | W34: 72 | Y34: 72 | Z34: 93 | AA34: 273 | AB34: 560 | AC34: - | AD34: 580 | AE34: 1100 | AF34: 1100 | AG34: 1100 | AH34: 29
A35: 71 | B35: 1410 | C35: 71 | D35: 2880 | E35: 71 | F35: - | G35: 71 | H35: 10500 | I35: 71 | J35: 1430 | K35: 71 | L35: 5700 | M35: 71 | N35: 23800 | O35: 71 | P35: 53000 | Q35: 71 | R35: 61424 | S35: 71 | T35: 113500 | U35: 71 | V35: 1730 | W35: 71 | Y35: 71 | Z35: 94 | AA35: 276 | AB35: 565 | AC35: 140 | AD35: 590 | AE35: 1125 | AF35: 1125 | AG35: 1125 | AH35: 30
A36: 70 | B36: - | C36: 70 | D36: 2900 | E36: 70 | F36: 1100 | G36: 70 | H36: 10550 | I36: 70 | J36: 1440 | K36: 70 | L36: 5750 | M36: 70 | N36: 24000 | O36: 70 | P36: 53300 | Q36: 70 | R36: 61524 | S36: 70 | T36: 114000 | U36: 70 | V36: 1740 | W36: 70 | Y36: 70 | Z36: 95 | AA36: 279 | AB36: 570 | AC36: - | AD36: 600 | AE36: 1150 | AF36: 1150 | AG36: 1150 | AH36: 31
A37: 69 | B37: 1420 | C37: 69 | D37: 2920 | E37: 69 | F37: - | G37: 69 | H37: 10600 | I37: 69 | J37: 1450 | K37: 69 | L37: 5800 | M37: 69 | N37: 24200 | O37: 69 | P37: 53600 | Q37: 69 | R37: 61624 | S37: 69 | T37: 114500 | U37: 69 | V37: 1750 | W37: 69 | Y37: 69 | Z37: 96 | AA37: 282 | AB37: 575 | AC37: 145 | AD37: 610 | AE37: 1175 | AF37: 1175 | AG37: 1175 | AH37: 32
A38: 68 | B38: - | C38: 68 | D38: 2940 | E38: 68 | F38: 1110 | G38: 68 | H38: 10650 | I38: 68 | J38: 1460 | K38: 68 | L38: 5850 | M38: 68 | N38: 24400 | O38: 68 | P38: 53900 | Q38: 68 | R38: 61724 | S38: 68 | T38: 115000 | U38: 68 | V38: 1760 | W38: 68 | Y38: 68 | Z38: 97 | AA38: 285 | AB38: 580 | AC38: - | AD38: 620 | AE38: 1200 | AF38: 1200 | AG38: 1200 | AH38: 33
A39: 67 | B39: 1430 | C39: 67 | D39: 2960 | E39: 67 | F39: 1120 | G39: 67 | H39: 10700 | I39: 67 | J39: 1470 | K39: 67 | L39: 5900 | M39: 67 | N39: 24600 | O39: 67 | P39: 54200 | Q39: 67 | R39: 61824 | S39: 67 | T39: 115500 | U39: 67 | V39: 1770 | W39: 67 | Y39: 67 | Z39: 98 | AA39: 288 | AB39: 585 | AC39: 150 | AD39: 630 | AE39: 1225 | AF39: 1225 | AG39: 1225 | AH39: 34
A40: 66 | B40: - | C40: 66 | D40: 2980 | E40: 66 | F40: 1130 | G40: 66 | H40: 10750 | I40: 66 | J40: 1480 | K40: 66 | L40: 5950 | M40: 66 | N40: 24800 | O40: 66 | P40: 54500 | Q40: 66 | R40: 61924 | S40: 66 | T40: 120000 | U40: 66 | V40: 1780 | W40: 66 | Y40: 66 | Z40: 99 | AA40: 291 | AB40: 590 | AC40: - | AD40: 640 | AE40: 1250 | AF40: 1250 | AG40: 1250 | AH40: 35
A41: 65 | B41: 1440 | C41: 65 | D41: 3000 | E41: 65 | F41: 1140 | G41: 65 | H41: 10800 | I41: 65 | J41: 1490 | K41: 65 | L41: 10000 | M41: 65 | N41: 25000 | O41: 65 | P41: 54800 | Q41: 65 | R41: 62024 | S41: 65 | T41: 120500 | U41: 65 | V41: 1790 | W41: 65 | Y41: 65 | Z41: 100 | AA41: 294 | AB41: 595 | AC41: 155 | AD41: 650 | AE41: 1275 | AF41: 1275 | AG41: 1275 | AH41: 36
A42: 64 | B42: - | C42: 64 | D42: 3020 | E42: 64 | F42: 1150 | G42: 64 | H42: 10850 | I42: 64 | J42: 1500 | K42: 64 | L42: 10050 | M42: 64 | N42: 25200 | O42: 64 | P42: 55100 | Q42: 64 | R42: 62124 | S42: 64 | T42: 121000 | U42: 64 | V42: 1800 | W42: 64 | Y42: 64 | Z42: 101 | AA42: 297 | AB42: 600 | AC42: - | AD42: 660 | AE42: 1300 | AF42: 1300 | AG42: 1300 | AH42: 37
A43: 63 | B43: 1450 | C43: 63 | D43: 3040 | E43: 63 | F43: 1160 | G43: 63 | H43: 10900 | I43: 63 | J43: 1510 | K43: 63 | L43: 10100 | M43: 63 | N43: 25400 | O43: 63 | P43: 55400 | Q43: 63 | R43: 62224 | S43: 63 | T43: 121500 | U43: 63 | V43: 1810 | W43: 63 | Y43: 63 | Z43: 102 | AA43: 300 | AB43: 610 | AC43: 160 | AD43: 670 | AE43: 1325 | AF43: 1325 | AG43: 1325 | AH43: 38
A44: 62 | B44: - | C44: 62 | D44: 3060 | E44: 62 | F44: 1170 | G44: 62 | H44: 10950 | I44: 62 | J44: 1520 | K44: 62 | L44: 10150 | M44: 62 | N44: 25600 | O44: 62 | P44: 55700 | Q44: 62 | R44: 62324 | S44: 62 | T44: 122000 | U44: 62 | V44: 1820 | W44: 62 | Y44: 62 | Z44: 103 | AA44: 303 | AB44: 620 | AC44: - | AD44: 680 | AE44: 1350 | AF44: 1350 | AG44: 1350 | AH44: 39
A45: 61 | B45: 1460 | C45: 61 | D45: 3080 | E45: 61 | F45: 1180 | G45: 61 | H45: 11000 | I45: 61 | J45: 1530 | K45: 61 | L45: 10200 | M45: 61 | N45: 25800 | O45: 61 | P45: 60000 | Q45: 61 | R45: 62424 | S45: 61 | T45: 122500 | U45: 61 | V45: 1830 | W45: 61 | Y45: 61 | Z45: 104 | AA45: 306 | AB45: 630 | AC45: 165 | AD45: 690 | AE45: 1375 | AF45: 1375 | AG45: 1375 | AH45: 40
A46: 60 | B46: - | C46: 60 | D46: 3100 | E46: 60 | F46: 1190 | G46: 60 | H46: 11100 | I46: 60 | J46: 1540 | K46: 60 | L46: 10250 | M46: 60 | N46: 30000 | O46: 60 | P46: 60300 | Q46: 60 | R46: 62524 | S46: 60 | T46: 123000 | U46: 60 | V46: 1840 | W46: 60 | Y46: 60 | Z46: 105 | AA46: 309 | AB46: 640 | AC46: - | AD46: 700 | AE46: 1400 | AF46: 1400 | AG46: 1400 | AH46: 41
A47: 59 | B47: 1470 | C47: 59 | D47: 3120 | E47: 59 | F47: 1200 | G47: 59 | H47: 11200 | I47: 59 | J47: 1550 | K47: 59 | L47: 10300 | M47: 59 | N47: 30200 | O47: 59 | P47: 60600 | Q47: 59 | R47: 62624 | S47: 59 | T47: 123500 | U47: 59 | V47: 1850 | W47: 59 | Y47: 59 | Z47: 106 | AA47: 312 | AB47: 650 | AC47: 170 | AD47: 710 | AE47: 1425 | AF47: 1425 | AG47: 1425 | AH47: 42
A48: 58 | B48: - | C48: 58 | D48: 3140 | E48: 58 | F48: 1210 | G48: 58 | H48: 11300 | I48: 58 | J48: 1560 | K48: 58 | L48: 10350 | M48: 58 | N48: 30400 | O48: 58 | P48: 60900 | Q48: 58 | R48: 62724 | S48: 58 | T48: 124000 | U48: 58 | V48: 1860 | W48: 58 | Y48: 58 | Z48: 107 | AA48: 315 | AB48: 660 | AC48: - | AD48: 720 | AE48: 1450 | AF48: 1450 | AG48: 1450 | AH48: 43
A49: 57 | B49: 1480 | C49: 57 | D49: 3160 | E49: 57 | F49: 1220 | G49: 57 | H49: 11400 | I49: 57 | J49: 1570 | K49: 57 | L49: 10400 | M49: 57 | N49: 30600 | O49: 57 | P49: 61200 | Q49: 57 | R49: 62824 | S49: 57 | T49: 124500 | U49: 57 | V49: 1870 | W49: 57 | Y49: 57 | Z49: 108 | AA49: 318 | AB49: 670 | AC49: 175 | AD49: 730 | AE49: 1475 | AF49: 1475 | AG49: 1475 | AH49: 44
A50: 56 | B50: - | C50: 56 | D50: 3180 | E50: 56 | F50: 1230 | G50: 56 | H50: 11500 | I50: 56 | J50: 1580 | K50: 56 | L50: 10450 | M50: 56 | N50: 30800 | O50: 56 | P50: 61500 | Q50: 56 | R50: 62924 | S50: 56 | T50: 125000 | U50: 56 | V50: 1880 | W50: 56 | Y50: 56 | Z50: 109 | AA50: 321 | AB50: 680 | AC50: - | AD50: 740 | AE50: 1500 | AF50: 1500 | AG50: 1500 | AH50: 45
A51: 55 | B51: 1490 | C51: 55 | D51: 3200 | E51: 55 | F51: 1240 | G51: 55 | H51: 11600 | I51: 55 | J51: 1590 | K51: 55 | L51: 10500 | M51: 55 | N51: 31000 | O51: 55 | P51: 61800 | Q51: 55 | R51: 63024 | S51: 55 | T51: 125500 | U51: 55 | V51: 1890 | W51: 55 | Y51: 55 | Z51: 110 | AA51: 324 | AB51: 690 | AC51: 180 | AD51: 750 | AE51: 1525 | AF51: 1525 | AG51: 1525 | AH51: 46
A52: 54 | B52: - | C52: 54 | D52: 3220 | E52: 54 | F52: 1250 | G52: 54 | H52: 11700 | I52: 54 | J52: 1600 | K52: 54 | L52: 10550 | M52: 54 | N52: 31200 | O52: 54 | P52: 62100 | Q52: 54 | R52: 63124 | S52: 54 | T52: 130000 | U52: 54 | V52: 1900 | W52: 54 | Y52: 54 | Z52: 111 | AA52: 327 | AB52: 700 | AC52: - | AD52: 760 | AE52: 1550 | AF52: 1550 | AG52: 1550 | AH52: 47
A53: 53 | B53: 1500 | C53: 53 | D53: 3240 | E53: 53 | F53: 1260 | G53: 53 | H53: 11800 | I53: 53 | J53: 1610 | K53: 53 | L53: 10600 | M53: 53 | N53: 31400 | O53: 53 | P53: 62400 | Q53: 53 | R53: 63224 | S53: 53 | T53: 131000 | U53: 53 | V53: 1910 | W53: 53 | Y53: 53 | Z53: 112 | AA53: 330 | AB53: 710 | AC53: 185 | AD53: 770 | AE53: 1575 | AF53: 1575 | AG53: 1575 | AH53: 48
A54: 52 | B54: - | C54: 52 | D54: 3260 | E54: 52 | F54: 1270 | G54: 52 | H54: 11900 | I54: 52 | J54: 1620 | K54: 52 | L54: 10650 | M54: 52 | N54: 31600 | O54: 52 | P54: 62700 | Q54: 52 | R54: 63324 | S54: 52 | T54: 132000 | U54: 52 | V54: 1920 | W54: 52 | Y54: 52 | Z54: 113 | AA54: 333 | AB54: 720 | AC54: - | AD54: 780 | AE54: 1600 | AF54: 1600 | AG54: 1600 | AH54: 49
A55: 51 | B55: 1510 | C55: 51 | D55: 3280 | E55: 51 | F55: 1280 | G55: 51 | H55: 12000 | I55: 51 | J55: 1630 | K55: 51 | L55: 10700 | M55: 51 | N55: 31800 | O55: 51 | P55: 63000 | Q55: 51 | R55: 63424 | S55: 51 | T55: 133000 | U55: 51 | V55: 1930 | W55: 51 | Y55: 51 | Z55: 114 | AA55: 336 | AB55: 730 | AC55: 190 | AD55: 790 | AE55: 1625 | AF55: 1625 | AG55: 1625 | AH55: 50
A56: 50 | B56: - | C56: 50 | D56: 3300 | E56: 50 | F56: 1290 | G56: 50 | H56: 12100 | I56: 50 | J56: 1640 | K56: 50 | L56: 10750 | M56: 50 | N56: 32000 | O56: 50 | P56: 63300 | Q56: 50 | R56: 63524 | S56: 50 | T56: 134000 | U56: 50 | V56: 1940 | W56: 50 | Y56: 50 | Z56: 115 | AA56: 339 | AB56: 740 | AC56: - | AD56: 800 | AE56: 1650 | AF56: 1650 | AG56: 1650 | AH56: 51
A57: 49 | B57: 1520 | C57: 49 | D57: 3320 | E57: 49 | F57: 1300 | G57: 49 | H57: 12200 | I57: 49 | J57: 1650 | K57: 49 | L57: 10800 | M57: 49 | N57: 32200 | O57: 49 | P57: 63600 | Q57: 49 | R57: 63624 | S57: 49 | T57: 135000 | U57: 49 | V57: 1950 | W57: 49 | Y57: 49 | Z57: 116 | AA57: 342 | AB57: 750 | AC57: 195 | AD57: 810 | AE57: 1675 | AF57: 1675 | AG57: 1675 | AH57: 52
A58: 48 | B58: 1530 | C58: 48 | D58: 3340 | E58: 48 | F58: 1310 | G58: 48 | H58: 12300 | I58: 48 | J58: 1660 | K58: 48 | L58: 10850 | M58: 48 | N58: 32400 | O58: 48 | P58: 63900 | Q58: 48 | R58: 63724 | S58: 48 | T58: 140000 | U58: 48 | V58: 1960 | W58: 48 | Y58: 48 | Z58: 117 | AA58: 345 | AB58: 760 | AC58: - | AD58: 820 | AE58: 1700 | AF58: 1700 | AG58: 1700 | AH58: 53
A59: 47 | B59: 1540 | C59: 47 | D59: 3360 | E59: 47 | F59: 1320 | G59: 47 | H59: 12400 | I59: 47 | J59: 1670 | K59: 47 | L59: 10900 | M59: 47 | N59: 32600 | O59: 47 | P59: 64200 | Q59: 47 | R59: 63824 | S59: 47 | T59: 141000 | U59: 47 | V59: 1970 | W59: 47 | Y59: 47 | Z59: 118 | AA59: 348 | AB59: 770 | AC59: 200 | AD59: 830 | AE59: 1725 | AF59: 1725 | AG59: 1725 | AH59: 54
A60: 46 | B60: 1550 | C60: 46 | D60: 3380 | E60: 46 | F60: 1330 | G60: 46 | H60: 12500 | I60: 46 | J60: 1680 | K60: 46 | L60: 10950 | M60: 46 | N60: 32800 | O60: 46 | P60: 64500 | Q60: 46 | R60: 63924 | S60: 46 | T60: 142000 | U60: 46 | V60: 1980 | W60: 46 | Y60: 46 | Z60: 119 | AA60: 351 | AB60: 780 | AC60: - | AD60: 840 | AE60: 1750 | AF60: 1750 | AG60: 1750 | AH60: 55
A61: 45 | B61: 1560 | C61: 45 | D61: 3400 | E61: 45 | F61: 1340 | G61: 45 | H61: 12600 | I61: 45 | J61: 1690 | K61: 45 | L61: 11000 | M61: 45 | N61: 33000 | O61: 45 | P61: 64800 | Q61: 45 | R61: 64024 | S61: 45 | T61: 143000 | U61: 45 | V61: 1990 | W61: 45 | Y61: 45 | Z61: 120 | AA61: 354 | AB61: 790 | AC61: 205 | AD61: 850 | AE61: 1775 | AF61: 1775 | AG61: 1775 | AH61: 56
A62: 44 | B62: 1570 | C62: 44 | D62: 3420 | E62: 44 | F62: 1350 | G62: 44 | H62: 12700 | I62: 44 | J62: 1700 | K62: 44 | L62: 11100 | M62: 44 | N62: 33200 | O62: 44 | P62: 65100 | Q62: 44 | R62: 64124 | S62: 44 | T62: 144000 | U62: 44 | V62: 2000 | W62: 44 | Y62: 44 | Z62: 121 | AA62: 357 | AB62: 800 | AC62: - | AD62: 860 | AE62: 1800 | AF62: 1800 | AG62: 1800 | AH62: 57
A63: 43 | B63: 1580 | C63: 43 | D63: 3440 | E63: 43 | F63: 1360 | G63: 43 | H63: 12800 | I63: 43 | J63: 1710 | K63: 43 | L63: 11200 | M63: 43 | N63: 33400 | O63: 43 | P63: 65400 | Q63: 43 | R63: 64224 | S63: 43 | T63: 145000 | U63: 43 | V63: 2010 | W63: 43 | Y63: 43 | Z63: 122 | AA63: 360 | AB63: 810 | AC63: 210 | AD63: 870 | AE63: 1825 | AF63: 1825 | AG63: 1825 | AH63: 58
A64: 42 | B64: 1590 | C64: 42 | D64: 3460 | E64: 42 | F64: 1370 | G64: 42 | H64: 12900 | I64: 42 | J64: 1720 | K64: 42 | L64: 11300 | M64: 42 | N64: 33600 | O64: 42 | P64: 65700 | Q64: 42 | R64: 64324 | S64: 42 | T64: 150000 | U64: 42 | V64: 2020 | W64: 42 | Y64: 42 | Z64: 123 | AA64: 363 | AB64: 820 | AC64: - | AD64: 880 | AE64: 1850 | AF64: 1850 | AG64: 1850 | AH64: 59
A65: 41 | B65: 1600 | C65: 41 | D65: 3480 | E65: 41 | F65: 1380 | G65: 41 | H65: 13000 | I65: 41 | J65: 1730 | K65: 41 | L65: 11400 | M65: 41 | N65: 33800 | O65: 41 | P65: 70000 | Q65: 41 | R65: 64424 | S65: 41 | T65: 151000 | U65: 41 | V65: 2030 | W65: 41 | Y65: 41 | Z65: 124 | AA65: 366 | AB65: 830 | AC65: 215 | AD65: 890 | AE65: 1875 | AF65: 1875 | AG65: 1875 | AH65: 60
A66: 40 | B66: 1610 | C66: 40 | D66: 3500 | E66: 40 | F66: 1390 | G66: 40 | H66: 13100 | I66: 40 | J66: 1740 | K66: 40 | L66: 11500 | M66: 40 | N66: 34000 | O66: 40 | P66: 70300 | Q66: 40 | R66: 64524 | S66: 40 | T66: 152000 | U66: 40 | V66: 2040 | W66: 40 | Y66: 40 | Z66: 125 | AA66: 369 | AB66: 840 | AC66: - | AD66: 900 | AE66: 1900 | AF66: 1900 | AG66: 1900 | AH66: 61
A67: 39 | B67: 1620 | C67: 39 | D67: 3520 | E67: 39 | F67: 1400 | G67: 39 | H67: 13200 | I67: 39 | J67: 1750 | K67: 39 | L67: 11600 | M67: 39 | N67: 34200 | O67: 39 | P67: 70600 | Q67: 39 | R67: 64624 | S67: 39 | T67: 153000 | U67: 39 | V67: 2050 | W67: 39 | Y67: 39 | Z67: 126 | AA67: 372 | AB67: 850 | AC67: 220 | AD67: 910 | AE67: 1925 | AF67: 1925 | AG67: 1925 | AH67: 62
A68: 38 | B68: 1630 | C68: 38 | D68: 3540 | E68: 38 | F68: 1410 | G68: 38 | H68: 13300 | I68: 38 | J68: 1760 | K68: 38 | L68: 11700 | M68: 38 | N68: 34400 | O68: 38 | P68: 70900 | Q68: 38 | R68: 64724 | S68: 38 | T68: 154000 | U68: 38 | V68: 2060 | W68: 38 | Y68: 38 | Z68: 127 | AA68: 375 | AB68: 860 | AC68: - | AD68: 920 | AE68: 1950 | AF68: 1950 | AG68: 1950 | AH68: 63
A69: 37 | B69: 1640 | C69: 37 | D69: 3560 | E69: 37 | F69: 1420 | G69: 37 | H69: 13400 | I69: 37 | J69: 1770 | K69: 37 | L69: 11800 | M69: 37 | N69: 34600 | O69: 37 | P69: 71200 | Q69: 37 | R69: 64824 | S69: 37 | T69: 155000 | U69: 37 | V69: 2070 | W69: 37 | Y69: 37 | Z69: 128 | AA69: 378 | AB69: 870 | AC69: 225 | AD69: 930 | AE69: 1975 | AF69: 1975 | AG69: 1975 | AH69: 64
A70: 36 | B70: 1650 | C70: 36 | D70: 3580 | E70: 36 | F70: 1430 | G70: 36 | H70: 13500 | I70: 36 | J70: 1780 | K70: 36 | L70: 11900 | M70: 36 | N70: 34800 | O70: 36 | P70: 71500 | Q70: 36 | R70: 64924 | S70: 36 | T70: 160000 | U70: 36 | V70: 2080 | W70: 36 | Y70: 36 | Z70: 129 | AA70: 381 | AB70: 880 | AC70: - | AD70: 940 | AE70: 2000 | AF70: 2000 | AG70: 2000 | AH70: 65
A71: 35 | B71: 1660 | C71: 35 | D71: 3600 | E71: 35 | F71: 1440 | G71: 35 | H71: 13600 | I71: 35 | J71: 1790 | K71: 35 | L71: 12000 | M71: 35 | N71: 35000 | O71: 35 | P71: 71800 | Q71: 35 | R71: 65024 | S71: 35 | T71: 161000 | U71: 35 | V71: 2090 | W71: 35 | Y71: 35 | Z71: 130 | AA71: 384 | AB71: 890 | AC71: 230 | AD71: 950 | AE71: 2025 | AF71: 2025 | AG71: 2025 | AH71: 66
A72: 34 | B72: 1670 | C72: 34 | D72: 3620 | E72: 34 | F72: 1450 | G72: 34 | H72: 13700 | I72: 34 | J72: 1800 | K72: 34 | L72: 12200 | M72: 34 | N72: 35200 | O72: 34 | P72: 72100 | Q72: 34 | R72: 65124 | S72: 34 | T72: 162000 | U72: 34 | V72: 2100 | W72: 34 | Y72: 34 | Z72: 131 | AA72: 387 | AB72: 900 | AC72: - | AD72: 960 | AE72: 2050 | AF72: 2050 | AG72: 2050 | AH72: 67
A73: 33 | B73: 1680 | C73: 33 | D73: 3640 | E73: 33 | F73: 1460 | G73: 33 | H73: 13800 | I73: 33 | J73: 1810 | K73: 33 | L73: 12400 | M73: 33 | N73: 35400 | O73: 33 | P73: 72400 | Q73: 33 | R73: 65224 | S73: 33 | T73: 163000 | U73: 33 | V73: 2110 | W73: 33 | Y73: 33 | Z73: 132 | AA73: 390 | AB73: 910 | AC73: 235 | AD73: 970 | AE73: 2075 | AF73: 2075 | AG73: 2075 | AH73: 68
A74: 32 | B74: 1690 | C74: 32 | D74: 3660 | E74: 32 | F74: 1470 | G74: 32 | H74: 13900 | I74: 32 | J74: 1820 | K74: 32 | L74: 12600 | M74: 32 | N74: 35600 | O74: 32 | P74: 72700 | Q74: 32 | R74: 65324 | S74: 32 | T74: 164000 | U74: 32 | V74: 2120 | W74: 32 | Y74: 32 | Z74: 133 | AA74: 393 | AB74: 920 | AC74: - | AD74: 980 | AE74: 2100 | AF74: 2100 | AG74: 2100 | AH74: 69
A75: 31 | B75: 1700 | C75: 31 | D75: 3680 | E75: 31 | F75: 1480 | G75: 31 | H75: 14000 | I75: 31 | J75: 1830 | K75: 31 | L75: 12800 | M75: 31 | N75: 35800 | O75: 31 | P75: 73000 | Q75: 31 | R75: 65424 | S75: 31 | T75: 165000 | U75: 31 | V75: 2130 | W75: 31 | Y75: 31 | Z75: 134 | AA75: 397 | AB75: 930 | AC75: 240 | AD75: 990 | AE75: 2125 | AF75: 2200 | AG75: 2125 | AH75: 70
A76: 30 | B76: 1710 | C76: 30 | D76: 3700 | E76: 30 | F76: 1490 | G76: 30 | H76: 14100 | I76: 30 | J76: 1840 | K76: 30 | L76: 13000 | M76: 30 | N76: 40000 | O76: 30 | P76: 73500 | Q76: 30 | R76: 65524 | S76: 30 | T76: 170000 | U76: 30 | V76: 2140 | W76: 30 | Y76: 30 | Z76: 135 | AA76: 400 | AB76: 940 | AC76: - | AD76: 1000 | AE76: 2150 | AF76: 2300 | AG76: 2150 | AH76: 71
A77: 29 | B77: 1720 | C77: 29 | D77: 3720 | E77: 29 | F77: 1500 | G77: 29 | H77: 14200 | I77: 29 | J77: 1850 | K77: 29 | L77: 13200 | M77: 29 | N77: 40200 | O77: 29 | P77: 74000 | Q77: 29 | R77: 65624 | S77: 29 | T77: 171000 | U77: 29 | V77: 2150 | W77: 29 | Y77: 29 | Z77: 136 | AA77: 410 | AB77: 950 | AC77: 245 | AD77: 1010 | AE77: 2175 | AF77: 2400 | AG77: 2175 | AH77: 72
A78: 28 | B78: 1730 | C78: 28 | D78: 3740 | E78: 28 | F78: 1510 | G78: 28 | H78: 14300 | I78: 28 | J78: 1860 | K78: 28 | L78: 13400 | M78: 28 | N78: 40400 | O78: 28 | P78: 74500 | Q78: 28 | R78: 65724 | S78: 28 | T78: 172000 | U78: 28 | V78: 2160 | W78: 28 | Y78: 28 | Z78: 137 | AA78: 420 | AB78: 960 | AC78: - | AD78: 1020 | AE78: 2200 | AF78: 2500 | AG78: 2200 | AH78: 73
A79: 27 | B79: 1740 | C79: 27 | D79: 3760 | E79: 27 | F79: 1520 | G79: 27 | H79: 14400 | I79: 27 | J79: 1870 | K79: 27 | L79: 13600 | M79: 27 | N79: 40600 | O79: 27 | P79: 75000 | Q79: 27 | R79: 65824 | S79: 27 | T79: 173000 | U79: 27 | V79: 2170 | W79: 27 | Y79: 27 | Z79: 138 | AA79: 430 | AB79: 970 | AC79: 250 | AD79: 1030 | AE79: 2250 | AF79: 2600 | AG79: 2250 | AH79: 74
A80: 26 | B80: 1750 | C80: 26 | D80: 3780 | E80: 26 | F80: 1530 | G80: 26 | H80: 14500 | I80: 26 | J80: 1880 | K80: 26 | L80: 13800 | M80: 26 | N80: 40800 | O80: 26 | P80: 75500 | Q80: 26 | R80: 65924 | S80: 26 | T80: 174000 | U80: 26 | V80: 2180 | W80: 26 | Y80: 26 | Z80: 139 | AA80: 440 | AB80: 980 | AC80: - | AD80: 1040 | AE80: 2300 | AF80: 2700 | AG80: 2300 | AH80: 75
A81: 25 | B81: 1760 | C81: 25 | D81: 3800 | E81: 25 | F81: 1540 | G81: 25 | H81: 14600 | I81: 25 | J81: 1890 | K81: 25 | L81: 14000 | M81: 25 | N81: 41000 | O81: 25 | P81: 80000 | Q81: 25 | R81: 70024 | S81: 25 | T81: 175000 | U81: 25 | V81: 2190 | W81: 25 | Y81: 25 | Z81: 140 | AA81: 450 | AB81: 990 | AC81: 255 | AD81: 1050 | AE81: 2350 | AF81: 2800 | AG81: 2350 | AH81: 76
A82: 24 | B82: 1770 | C82: 24 | D82: 3850 | E82: 24 | F82: 1550 | G82: 24 | H82: 14700 | I82: 24 | J82: 1900 | K82: 24 | L82: 14200 | M82: 24 | N82: 41200 | O82: 24 | P82: 80500 | Q82: 24 | R82: 70124 | S82: 24 | T82: 180000 | U82: 24 | V82: 2200 | W82: 24 | Y82: 24 | Z82: 142 | AA82: 460 | AB82: 1000 | AC82: - | AD82: 1060 | AE82: 2400 | AF82: 2900 | AG82: 2400 | AH82: 77
A83: 23 | B83: 1780 | C83: 23 | D83: 3900 | E83: 23 | F83: 1560 | G83: 23 | H83: 14800 | I83: 23 | J83: 1910 | K83: 23 | L83: 14400 | M83: 23 | N83: 41400 | O83: 23 | P83: 81000 | Q83: 23 | R83: 70224 | S83: 23 | T83: 181000 | U83: 23 | V83: 2210 | W83: 23 | Y83: 23 | Z83: 144 | AA83: 470 | AB83: 1015 | AC83: 260 | AD83: 1070 | AE83: 2450 | AF83: 3000 | AG83: 2450 | AH83: 78
A84: 22 | B84: 1790 | C84: 22 | D84: 3950 | E84: 22 | F84: 1570 | G84: 22 | H84: 14900 | I84: 22 | J84: 1920 | K84: 22 | L84: 14600 | M84: 22 | N84: 41600 | O84: 22 | P84: 81500 | Q84: 22 | R84: 70324 | S84: 22 | T84: 182000 | U84: 22 | V84: 2220 | W84: 22 | Y84: 22 | Z84: 146 | AA84: 480 | AB84: 1030 | AC84: - | AD84: 1080 | AE84: 2500 | AF84: 3100 | AG84: 2500 | AH84: 79
A85: 21 | B85: 1800 | C85: 21 | D85: 4000 | E85: 21 | F85: 1580 | G85: 21 | H85: 15000 | I85: 21 | J85: 1930 | K85: 21 | L85: 14800 | M85: 21 | N85: 41800 | O85: 21 | P85: 82000 | Q85: 21 | R85: 70424 | S85: 21 | T85: 183000 | U85: 21 | V85: 2230 | W85: 21 | Y85: 21 | Z85: 148 | AA85: 490 | AB85: 1045 | AC85: 265 | AD85: 1090 | AE85: 2550 | AF85: 3200 | AG85: 2550 | AH85: 80
A86: 20 | B86: 1810 | C86: 20 | D86: 4050 | E86: 20 | F86: 1590 | G86: 20 | H86: 15100 | I86: 20 | J86: 1940 | K86: 20 | L86: 15000 | M86: 20 | N86: 42000 | O86: 20 | P86: 82500 | Q86: 20 | R86: 70524 | S86: 20 | T86: 184000 | U86: 20 | V86: 2240 | W86: 20 | Y86: 20 | Z86: 150 | AA86: 500 | AB86: 1060 | AC86: - | AD86: 1100 | AE86: 2600 | AF86: 3300 | AG86: 2600 | AH86: 81
A87: 19 | B87: 1820 | C87: 19 | D87: 4100 | E87: 19 | F87: 1600 | G87: 19 | H87: 15200 | I87: 19 | J87: 1950 | K87: 19 | L87: 15200 | M87: 19 | N87: 42200 | O87: 19 | P87: 83000 | Q87: 19 | R87: 70624 | S87: 19 | T87: 185000 | U87: 19 | V87: 2250 | W87: 19 | Y87: 19 | Z87: 152 | AA87: 505 | AB87: 1075 | AC87: 270 | AD87: 1110 | AE87: 2650 | AF87: 3400 | AG87: 2650 | AH87: 82
A88: 18 | B88: 1830 | C88: 18 | D88: 4150 | E88: 18 | F88: 1610 | G88: 18 | H88: 15300 | I88: 18 | J88: 1960 | K88: 18 | L88: 15400 | M88: 18 | N88: 42400 | O88: 18 | P88: 83500 | Q88: 18 | R88: 70724 | S88: 18 | T88: 190000 | U88: 18 | V88: 2260 | W88: 18 | Y88: 18 | Z88: 154 | AA88: 510 | AB88: 1090 | AC88: - | AD88: 1120 | AE88: 2700 | AF88: 3500 | AG88: 2700 | AH88: 83
A89: 17 | B89: 1840 | C89: 17 | D89: 4200 | E89: 17 | F89: 1620 | G89: 17 | H89: 15400 | I89: 17 | J89: 1970 | K89: 17 | L89: 15600 | M89: 17 | N89: 42600 | O89: 17 | P89: 84000 | Q89: 17 | R89: 70824 | S89: 17 | T89: 191000 | U89: 17 | V89: 2270 | W89: 17 | Y89: 17 | Z89: 156 | AA89: 515 | AB89: 1105 | AC89: 275 | AD89: 1130 | AE89: 2800 | AF89: 3600 | AG89: 2800 | AH89: 84
A90: 16 | B90: 1850 | C90: 16 | D90: 4250 | E90: 16 | F90: 1630 | G90: 16 | H90: 15500 | I90: 16 | J90: 1980 | K90: 16 | L90: 15800 | M90: 16 | N90: 42800 | O90: 16 | P90: 84500 | Q90: 16 | R90: 70924 | S90: 16 | T90: 192000 | U90: 16 | V90: 2280 | W90: 16 | Y90: 16 | Z90: 158 | AA90: 520 | AB90: 1120 | AC90: - | AD90: 1140 | AE90: 2900 | AF90: 3700 | AG90: 2900 | AH90: 85
A91: 15 | B91: 1860 | C91: 15 | D91: 4300 | E91: 15 | F91: 1640 | G91: 15 | H91: 15600 | I91: 15 | J91: 1990 | K91: 15 | L91: 20000 | M91: 15 | N91: 43000 | O91: 15 | P91: 85000 | Q91: 15 | R91: 71024 | S91: 15 | T91: 193000 | U91: 15 | V91: 2290 | W91: 15 | Y91: 15 | Z91: 160 | AA91: 525 | AB91: 1135 | AC91: 280 | AD91: 1150 | AE91: 3000 | AF91: 3800 | AG91: 3000 | AH91: 86
A92: 14 | B92: 1870 | C92: 14 | D92: 4350 | E92: 14 | F92: 1650 | G92: 14 | H92: 15700 | I92: 14 | J92: 2000 | K92: 14 | L92: 20200 | M92: 14 | N92: 43200 | O92: 14 | P92: 85500 | Q92: 14 | R92: 71124 | S92: 14 | T92: 194000 | U92: 14 | V92: 2300 | W92: 14 | Y92: 14 | Z92: 162 | AA92: 530 | AB92: 1150 | AC92: - | AD92: 1160 | AE92: 3100 | AF92: 3900 | AG92: 3100 | AH92: 87
A93: 13 | B93: 1880 | C93: 13 | D93: 4400 | E93: 13 | F93: 1660 | G93: 13 | H93: 15800 | I93: 13 | J93: 2010 | K93: 13 | L93: 20400 | M93: 13 | N93: 43400 | O93: 13 | P93: 90000 | Q93: 13 | R93: 71224 | S93: 13 | T93: 195000 | U93: 13 | V93: 2310 | W93: 13 | Y93: 13 | Z93: 164 | AA93: 535 | AB93: 1165 | AC93: 285 | AD93: 1170 | AE93: 3200 | AF93: 4000 | AG93: 3200 | AH93: 88
A94: 12 | B94: 1890 | C94: 12 | D94: 4450 | E94: 12 | F94: 1670 | G94: 12 | H94: 15900 | I94: 12 | J94: 2020 | K94: 12 | L94: 20600 | M94: 12 | N94: 43600 | O94: 12 | P94: 90500 | Q94: 12 | R94: 71324 | S94: 12 | T94: 200000 | U94: 12 | V94: 2320 | W94: 12 | Y94: 12 | Z94: 166 | AA94: 540 | AB94: 1180 | AC94: - | AD94: 1180 | AE94: 3300 | AF94: 4100 | AG94: 3300 | AH94: 89
A95: 11 | B95: 1900 | C95: 11 | D95: 4500 | E95: 11 | F95: 1680 | G95: 11 | H95: 20000 | I95: 11 | J95: 2030 | K95: 11 | L95: 20800 | M95: 11 | N95: 43800 | O95: 11 | P95: 91000 | Q95: 11 | R95: 71424 | S95: 11 | T95: 201000 | U95: 11 | V95: 2330 | W95: 11 | Y95: 11 | Z95: 168 | AA95: 550 | AB95: 1195 | AC95: 290 | AD95: 1190 | AE95: 3400 | AF95: 4200 | AG95: 3400 | AH95: 90
A96: 10 | B96: 1920 | C96: 10 | D96: 4550 | E96: 10 | F96: 1690 | G96: 10 | H96: 20100 | I96: 10 | J96: 2040 | K96: 10 | L96: 21000 | M96: 10 | N96: 44000 | O96: 10 | P96: 91500 | Q96: 10 | R96: 71524 | S96: 10 | T96: 202000 | U96: 10 | V96: 2340 | W96: 10 | Y96: 10 | Z96: 170 | AA96: 560 | AB96: 1210 | AC96: - | AD96: 1200 | AE96: 3500 | AF96: 4300 | AG96: 3500 | AH96: 91
A97: 9 | B97: 1940 | C97: 9 | D97: 4600 | E97: 9 | F97: 1700 | G97: 9 | H97: 20200 | I97: 9 | J97: 2050 | K97: 9 | L97: 21200 | M97: 9 | N97: 44200 | O97: 9 | P97: 92000 | Q97: 9 | R97: 71624 | S97: 9 | T97: 203000 | U97: 9 | V97: 2350 | W97: 9 | Y97: 9 | Z97: 172 | AA97: 570 | AB97: 1225 | AC97: 295 | AD97: 1220 | AE97: 3600 | AF97: 4500 | AG97: 3600 | AH97: 92
A98: 8 | B98: 1960 | C98: 8 | D98: 4650 | E98: 8 | F98: 1710 | G98: 8 | H98: 20300 | I98: 8 | J98: 2060 | K98: 8 | L98: 21400 | M98: 8 | N98: 44400 | O98: 8 | P98: 92500 | Q98: 8 | R98: 71724 | S98: 8 | T98: 204000 | U98: 8 | V98: 2360 | W98: 8 | Y98: 8 | Z98: 174 | AA98: 580 | AB98: 1240 | AC98: 300 | AD98: 1240 | AE98: 3700 | AF98: 4400 | AG98: 3700 | AH98: 93
A99: 7 | B99: 1980 | C99: 7 | D99: 4700 | E99: 7 | F99: 1720 | G99: 7 | H99: 20400 | I99: 7 | J99: 2070 | K99: 7 | L99: 21600 | M99: 7 | N99: 44600 | O99: 7 | P99: 93000 | Q99: 7 | R99: 71824 | S99: 7 | T99: 205000 | U99: 7 | V99: 2370 | W99: 7 | Y99: 7 | Z99: 176 | AA99: 590 | AB99: 1255 | AC99: 310 | AD99: 1260 | AE99: 3800 | AF99: 4600 | AG99: 3800 | AH99: 94
A100: 6 | B100: 2000 | C100: 6 | D100: 4750 | E100: 6 | F100: 1730 | G100: 6 | H100: 20500 | I100: 6 | J100: 2080 | K100: 6 | L100: 21800 | M100: 6 | N100: 44800 | O100: 6 | P100: 93500 | Q100: 6 | R100: 71924 | S100: 6 | T100: 210000 | U100: 6 | V100: 2380 | W100: 6 | Y100: 6 | Z100: 178 | AA100: 600 | AB100: 1270 | AC100: 320 | AD100: 1280 | AE100: 3900 | AF100: 4700 | AG100: 3900 | AH100: 95
A101: 5 | B101: 2020 | C101: 5 | D101: 4800 | E101: 5 | F101: 1740 | G101: 5 | H101: 20600 | I101: 5 | J101: 2090 | K101: 5 | L101: 22000 | M101: 5 | N101: 45000 | O101: 5 | P101: 94000 | Q101: 5 | R101: 72024 | S101: 5 | T101: 211000 | U101: 5 | V101: 2390 | W101: 5 | Y101: 5 | Z101: 180 | AA101: 610 | AB101: 1285 | AC101: 330 | AD101: 1300 | AE101: 4000 | AF101: 4800 | AG101: 4000 | AH101: 96
A102: 4 | B102: 2040 | C102: 4 | D102: 4850 | E102: 4 | F102: 1750 | G102: 4 | H102: 20700 | I102: 4 | J102: 2100 | K102: 4 | L102: 22200 | M102: 4 | N102: 45200 | O102: 4 | P102: 94500 | Q102: 4 | R102: 72124 | S102: 4 | T102: 212000 | U102: 4 | V102: 2400 | W102: 4 | Y102: 4 | Z102: 182 | AA102: 620 | AB102: 1300 | AC102: 340 | AD102: 1320 | AE102: 4100 | AF102: 4900 | AG102: 4100 | AH102: 97
A103: 3 | B103: 2060 | C103: 3 | D103: 4900 | E103: 3 | F103: 1760 | G103: 3 | H103: 20800 | I103: 3 | J103: 2110 | K103: 3 | L103: 22400 | M103: 3 | N103: 45400 | O103: 3 | P103: 95000 | Q103: 3 | R103: 72224 | S103: 3 | T103: 213000 | U103: 3 | V103: 2410 | W103: 3 | Y103: 3 | Z103: 184 | AA103: 630 | AB103: 1315 | AC103: 350 | AD103: 1340 | AE103: 4200 | AF103: 5000 | AG103: 4200 | AH103: 98
A104: 2 | B104: 2080 | C104: 2 | D104: 4950 | E104: 2 | F104: 1770 | G104: 2 | H104: 20900 | I104: 2 | J104: 2120 | K104: 2 | L104: 22600 | M104: 2 | N104: 45600 | O104: 2 | P104: 95500 | Q104: 2 | R104: 72324 | S104: 2 | T104: 214000 | U104: 2 | V104: 2420 | W104: 2 | Y104: 2 | Z104: 186 | AA104: 640 | AB104: 1330 | AC104: 360 | AD104: 1360 | AE104: 4300 | AF104: 5100 | AG104: 4300 | AH104: 99
A105: 1 | B105: 2100 | C105: 1 | D105: 5000 | E105: 1 | F105: 1780 | G105: 1 | H105: 21000 | I105: 1 | J105: 2130 | K105: 1 | L105: 22800 | M105: 1 | N105: 45800 | O105: 1 | P105: 100000 | Q105: 1 | R105: 72424 | S105: 1 | T105: 215000 | U105: 1 | V105: 2430 | W105: 1 | Y105: 1 | Z105: 188 | AA105: 650 | AB105: 1345 | AC105: 370 | AD105: 1380 | AE105: 4400 | AF105: 5200 | AG105: 4400 | AH105: 100
B106: DNS | D106: DNS | F106: DNS | H106: DNS | J106: DNS | L106: DNS | N106: DNS | P106: DNS | R106: DNS | T106: DNS | V106: DNS | X106: DNS | Y106: 0 | Z106: DNS | AA106: DNS | AB106: DNS | AC106: DNS | AD106: DNS | AE106: DNS | AF106: DNS | AH106: 0
B107: DNF | D107: DNF | F107: DNF | H107: DNF | J107: DNF | L107: DNF | N107: DNF | P107: DNF | R107: DNF | T107: DNF | V107: DNF | X107: DNF | Y107: 0 | Z107: NM | AA107: NM | AB107: NM | AC107: NM | AD107: NM | AE107: NM | AF107: NM | AH107: 0
B108: NM | D108: NM | F108: NM | H108: NM | J108: NM | L108: NM | N108: NM | P108: NM | R108: NM | T108: NM | V108: NM | X108: NM | Y108: 0 | Z108: DQ | AA108: DQ | AB108: DQ | AC108: DQ | AD108: DQ | AE108: DQ | AF108: DQ | AH108: 0
B109: DQ | D109: DQ | F109: DQ | H109: DQ | J109: DQ | L109: DQ | N109: DQ | P109: DQ | R109: DQ | T109: DQ | V109: DQ | X109: DQ | Y109: 0 | AH109: 0

Sheet 80m.Eng
A1: Türkiye Atletizm Federasyonu İzmir Atletizm İl Temsilciliği
A2: Naili Moran Türkiye Atletizm Şampiyonası
A3: Yarışma : | D3: 80 Metre Engelli
A4: Kategori : | D4: 15 Yaş Kızlar | M4: Tarih-Saat : | N4: 14 Haziran 2014 - 10:40
N5: 41804.57877
A6: Sıra No | B6: Göğüs No | C6: Doğum Tarihi Gün/Ay/Yıl | D6: Adı ve Soyadı | E6: İLİ | F6: Derece | G6: Puan | I6: 1. SERİ | M6: Rüzgar:
I7: Sıra No | J7: Formül | K7: Göğüs No | L7: Doğum Tarihi | M7: Adı ve Soyadı | N7: İLİ | O7: Derece | P7: El Kronometre | Q7: Seri Geliş
A8: 1 | B8: 1 | C8: 1999-01-01 | D8: YAREN KURTAY | E8: ADANA | F8: 1265 | G8: 87 | I8: 1 | J8: 80M.ENG-1-1
A9: 2 | B9: 727 | C9: 1999-08-21 | D9: MEDİNE ALPER | E9: İZMİR | F9: 1296 | G9: 84 | I9: 2 | J9: 80M.ENG-1-2 | K9: 335 | L9: 1999-06-08 | M9: HAFİZE AKÇAY | N9: ISPARTA | O9: 1362 | Q9: 2
A10: 3 | B10: 196 | C10: 1999-01-23 | D10: ÖZGE KAHRAMAN | E10: BURSA | F10: 1321 | G10: 81 | I10: 3 | J10: 80M.ENG-1-3 | K10: 456 | L10: 1999-04-04 | M10: ELİF KARATAŞ | N10: KARABÜK | O10: 1605 | Q10: 6
A11: 4 | B11: 335 | C11: 1999-06-08 | D11: HAFİZE AKÇAY | E11: ISPARTA | F11: 1362 | G11: 77 | I11: 4 | J11: 80M.ENG-1-4 | K11: 278 | L11: 1999-01-01 | M11: AYSEL YILMAZ | N11: GAZİANTEP | O11: 1413 | Q11: 4
A12: 5 | B12: 564 | C12: 1999-10-14 | D12: CEMRE KUNDAKCI | E12: MUĞLA | F12: 1364 | G12: 77 | I12: 5 | J12: 80M.ENG-1-5 | K12: 196 | L12: 1999-01-23 | M12: ÖZGE KAHRAMAN | N12: BURSA | O12: 1321 | Q12: 1
A13: 6 | B13: 380 | C13: 1999-09-29 | D13: ASYA ÇULHAOĞLU | E13: İZMİR | F13: 1388 | G13: 75 | I13: 6 | J13: 80M.ENG-1-6 | K13: 364 | L13: 1999-03-17 | M13: EMİNE BAYDİLİ | N13: İSTANBUL | O13: 1515 | Q13: 5
A14: 7 | B14: 623 | C14: 1999-07-29 | D14: YAREN BAŞ | E14: SAKARYA | F14: 1395 | G14: 74 | I14: 7 | J14: 80M.ENG-1-7 | K14: 623 | L14: 1999-07-29 | M14: YAREN BAŞ | N14: SAKARYA | O14: 1395 | Q14: 3
A15: 8 | B15: 278 | C15: 1999-01-01 | D15: AYSEL YILMAZ | E15: GAZİANTEP | F15: 1413 | G15: 72 | I15: 8 | J15: 80M.ENG-1-8
A16: 9 | B16: 185 | C16: 1999-03-10 | D16: BÜŞRA SULTAN GÜRCAN | E16: BOLU | F16: 1505 | G16: 63 | I16: 2. SERİ | M16: Rüzgar:
A17: 10 | B17: 364 | C17: 1999-03-17 | D17: EMİNE BAYDİLİ | E17: İSTANBUL | F17: 1515 | G17: 62 | I17: Sıra No | J17: Formül | K17: Göğüs No | L17: Doğum Tarihi | M17: Adı ve Soyadı | N17: İLİ | O17: Derece | P17: El Kronometre | Q17: Seri Geliş
A18: 11 | B18: 336 | C18: 1999-08-26 | D18: AYŞE ŞAHİN | E18: ISPARTA | F18: 1541 | G18: 59 | I18: 1 | J18: 80M.ENG-2-1
A19: 12 | B19: 456 | C19: 1999-04-04 | D19: ELİF KARATAŞ | E19: KARABÜK | F19: 1605 | G19: 53 | I19: 2 | J19: 80M.ENG-2-2 | K19: 1 | L19: 1999-01-01 | M19: YAREN KURTAY | N19: ADANA | O19: 1265 | Q19: 1
I20: 3 | J20: 80M.ENG-2-3 | K20: 185 | L20: 1999-03-10 | M20: BÜŞRA SULTAN GÜRCAN | N20: BOLU | O20: 1505 | Q20: 5
I21: 4 | J21: 80M.ENG-2-4 | K21: 336 | L21: 1999-08-26 | M21: AYŞE ŞAHİN | N21: ISPARTA | O21: 1541 | Q21: 6
I22: 5 | J22: 80M.ENG-2-5 | K22: 564 | L22: 1999-10-14 | M22: CEMRE KUNDAKCI | N22: MUĞLA | O22: 1364 | Q22: 3
I23: 6 | J23: 80M.ENG-2-6 | K23: 380 | L23: 1999-09-29 | M23: ASYA ÇULHAOĞLU | N23: İZMİR | O23: 1388 | Q23: 4
I24: 7 | J24: 80M.ENG-2-7 | K24: 727 | L24: 1999-08-21 | M24: MEDİNE ALPER | N24: İZMİR | O24: 1296 | Q24: 2
I25: 8 | J25: 80M.ENG-2-8
I26: 3. SERİ | M26: Rüzgar:
I27: Sıra No | J27: Formül | K27: Göğüs No | L27: Doğum Tarihi | M27: Adı ve Soyadı | N27: İLİ | O27: Derece | P27: El Kronometre | Q27: Seri Geliş
I28: 1 | J28: 80M.ENG-3-1
I29: 2 | J29: 80M.ENG-3-2
I30: 3 | J30: 80M.ENG-3-3
I31: 4 | J31: 80M.ENG-3-4
I32: 5 | J32: 80M.ENG-3-5
I33: 6 | J33: 80M.ENG-3-6
I34: 7 | J34: 80M.ENG-3-7
I35: 8 | J35: 80M.ENG-3-8
I36: 4. SERİ | M36: Rüzgar:
I37: Sıra No | J37: Formül | K37: Göğüs No | L37: Doğum Tarihi | M37: Adı ve Soyadı | N37: İLİ | O37: Derece | P37: El Kronometre | Q37: Seri Geliş
I38: 1 | J38: 80M.ENG-4-1
I39: 2 | J39: 80M.ENG-4-2
I40: 3 | J40: 80M.ENG-4-3
I41: 4 | J41: 80M.ENG-4-4
I42: 5 | J42: 80M.ENG-4-5
I43: 6 | J43: 80M.ENG-4-6
I44: 7 | J44: 80M.ENG-4-7
I45: 8 | J45: 80M.ENG-4-8
A47: Müsabakalar Direktörü | E47: Baş Hakem | F47: Lider | H47: Sekreter | M47: Hakem | N47: Hakem | P47: Hakem
A65536: CELAL KAYAÖZ

Sheet Uzun-A
A1: Türkiye Atletizm Federasyonu İzmir Atletizm İl Temsilciliği
A2: Naili Moran Türkiye Atletizm Şampiyonası
A3: Yarışma : | D3: Uzun Atlama A Grubu
A4: Kategori : | D4: 15 Yaş Kızlar | I4: Tarih-Saat : | K4: 14 Haziran 2014 - 11:00
J5: 41804.57897
A6: SIRA NO | C6: GÖĞÜS NO | D6: DOĞUM TARİHİ Gün/Ay/Yıl | E6: ADI VE SOYADI | F6: İLİ | G6: A T L A M A L A R | J6: SONUÇ | K6: PUAN | L6: RÜZGAR
G7: 1 | H7: 2 | I7: 3
A8: 1 | B8: UZUN-a-24 | C8: 300 | D8: 1999-08-13 | E8: ŞEYMA BİRİNCİ | F8: GİRESUN | G8: 524 | H8: 513 | I8: X | J8: 524 | K8: 85
A9: 2 | B9: UZUN-a-21 | C9: 360 | D9: 1999-01-22 | E9: ELİF POLAT (İSTANBUL) | F9: İSTANBUL | G9: 474 | H9: 505 | I9: 524 | J9: 524 | K9: 85
A10: 3 | B10: UZUN-a-25 | C10: 628 | D10: 1999-02-09 | E10: ŞEYMA OCAK | F10: SAMSUN | G10: 504 | H10: 514 | I10: 497 | J10: 514 | K10: 83
A11: 4 | B11: UZUN-a-22 | C11: 196 | D11: 1999-01-23 | E11: ÖZGE KAHRAMAN | F11: BURSA | G11: 463 | H11: 474 | I11: 480 | J11: 480 | K11: 79
A12: 5 | B12: UZUN-a-16 | C12: 564 | D12: 1999-10-14 | E12: CEMRE KUNDAKCI | F12: MUĞLA | G12: 479 | H12: 461 | I12: 458 | J12: 479 | K12: 78
A13: 6 | B13: UZUN-a-19 | C13: 623 | D13: 1999-07-29 | E13: YAREN BAŞ | F13: SAKARYA | G13: 475 | H13: 473 | I13: 471 | J13: 475 | K13: 78
A14: 7 | B14: UZUN-a-20 | C14: 675 | D14: 1999-05-27 | E14: BEGÜM YILMAZ | F14: TEKİRDAĞ | G14: 473 | H14: 466 | I14: 463 | J14: 473 | K14: 78
A15: 8 | B15: UZUN-a-4 | C15: 335 | D15: 1999-06-08 | E15: HAFİZE AKÇAY | F15: ISPARTA | G15: 428 | H15: 472 | I15: 440 | J15: 472 | K15: 78
A16: 9 | B16: UZUN-a-18 | C16: 624 | D16: 1999-11-03 | E16: İLAYDA BULUT | F16: SAKARYA | G16: 466 | H16: 456 | I16: 450 | J16: 466 | K16: 77
A17: 10 | B17: UZUN-a-8 | C17: 383 | D17: 1999-06-14 | E17: MELİS ÇİÇEK | F17: İZMİR | G17: 453 | H17: 465 | I17: 420 | J17: 465 | K17: 77
A18: 11 | B18: UZUN-a-14 | C18: 99 | D18: 1999-08-10 | E18: EMİNE HİLAL ÇETİNKAYA | F18: BALIKESİR | G18: 448 | H18: 446 | I18: X | J18: 448 | K18: 75
A19: 12 | B19: UZUN-a-17 | C19: 524 | D19: 1999-01-08 | E19: Habibe Tokay | F19: KONYA | G19: 445 | H19: X | I19: 425 | J19: 445 | K19: 75
A20: 13 | B20: UZUN-a-10 | C20: 342 | D20: 1999-08-04 | E20: CANSEL TÜRE | F20: ISPARTA | G20: 418 | H20: 437 | I20: 414 | J20: 437 | K20: 74
A21: 14 | B21: UZUN-a-6 | C21: 521 | D21: 1999-01-01 | E21: ŞERİFE KÜÇÜKBAĞCI | F21: KONYA | G21: 435 | H21: X | I21: 429 | J21: 435 | K21: 74
A22: 15 | B22: UZUN-a-23 | C22: 456 | D22: 1999-04-04 | E22: ELİF KARATAŞ | F22: KARABÜK | G22: 431 | H22: 428 | I22: 417 | J22: 431 | K22: 74
A23: 16 | B23: UZUN-a-27 | C23: 38 | D23: 1999-04-28 | E23: GÜLÇİN DİKER | F23: AKSARAY | G23: X | H23: 425 | I23: 425 | J23: 425 | K23: 73
A24: 17 | B24: UZUN-a-3 | C24: 519 | D24: 1999-02-13 | E24: YEŞİM İTMEÇ | F24: KONYA | G24: 423 | H24: 420 | I24: 390 | J24: 423 | K24: 73
A25: 18 | B25: UZUN-a-11 | C25: 380 | D25: 1999-09-29 | E25: ASYA ÇULHAOĞLU | F25: İZMİR | G25: 375 | H25: 418 | I25: 423 | J25: 423 | K25: 73
A26: 19 | B26: UZUN-a-7 | C26: 714 | D26: 1999-01-01 | E26: GÜLBAHAR ERDOĞAN | F26: TUNCELİ | G26: 392 | H26: 420 | I26: 416 | J26: 420 | K26: 73
A27: 20 | B27: UZUN-a-26 | C27: 689 | D27: 1999-10-25 | E27: TÜLAY BAKIR | F27: TOKAT | G27: 415 | H27: 420 | I27: 393 | J27: 420 | K27: 73
A28: 21 | B28: UZUN-a-5 | C28: 186 | D28: 1999-09-10 | E28: ZİNNUR ONAT | F28: BOLU | G28: 420 | H28: - | I28: - | J28: 420 | K28: 73
A29: 22 | B29: UZUN-a-13 | C29: 674 | D29: 1999-04-27 | E29: PINAR DOĞRU | F29: TEKİRDAĞ | G29: 415 | H29: 407 | I29: X | J29: 415 | K29: 72
A30: 23 | B30: UZUN-a-12 | C30: 334 | D30: 1999-04-04 | E30: BUKET YAĞCI | F30: ISPARTA | G30: 410 | H30: 384 | I30: 408 | J30: 410 | K30: 72
A31: 24 | B31: UZUN-a-9 | C31: 379 | D31: 1999-07-09 | E31: EYLÜL ÖZKAN | F31: İZMİR | G31: 406 | H31: 354 | I31: 363 | J31: 406 | K31: 71
A32: 25 | B32: UZUN-a-15 | C32: 364 | D32: 1999-03-17 | E32: EMİNE BAYDİLİ | F32: İSTANBUL | G32: 403 | H32: 397 | I32: 388 | J32: 403 | K32: 71
A33: 26 | B33: UZUN-a-2 | C33: 388 | D33: 1999-01-01 | E33: DİDEM BARDAKÇI | F33: İZMİR | G33: 357 | H33: 357 | I33: 355 | J33: 357 | K33: 57
A34: - | B34: UZUN-a-1 | C34: 398 | D34: 1999-05-27 | E34: MELİSA KURBASEVİÇ | F34: İZMİR | J34: DNS | K34: 0
B35: UZUN-a-28 | J35: 0
B36: UZUN-a-29 | J36: 0
B37: UZUN-a-30 | J37: 0
B38: UZUN-a-31 | J38: 0
B39: UZUN-a-32 | J39: 0
B40: UZUN-a-33 | J40: 0
B41: UZUN-a-34 | J41: 0
B42: UZUN-a-35 | J42: 0
B43: UZUN-a-36 | J43: 0
B44: UZUN-a-37 | J44: 0
B45: UZUN-a-38 | J45: 0
B46: UZUN-a-39 | J46: 0
B47: UZUN-a-40 | J47: 0
A49: Müsabaka Direktörü | E49: Baş Hakem | F49: Lider | G49: Sekreter | J49: Hakem
A65536: CELAL KAYAÖZ

Sheet Uzun-B
A1: Türkiye Atletizm Federasyonu İzmir Atletizm İl Temsilciliği
A2: Naili Moran Türkiye Atletizm Şampiyonası
A3: Yarışma : | D3: Uzun Atlama B Grubu
A4: Kategori : | D4: 15 Yaş Kızlar | I4: Tarih-Saat : | K4: 14 Haziran 2014 - 11:00
J5: 41804.57904
A6: SIRA NO | C6: GÖĞÜS NO | D6: DOĞUM TARİHİ Gün/Ay/Yıl | E6: ADI VE SOYADI | F6: İLİ | G6: A T L A M A L A R | J6: SONUÇ | K6: PUAN | L6: RÜZGAR
G7: 1 | H7: 2 | I7: 3
A8: 1 | B8: UZUN-b-11 | C8: 1 | D8: 1999-01-01 | E8: YAREN KURTAY | F8: ADANA | G8: X | H8: 455 | I8: 457 | J8: 457 | K8: 76
A9: 2 | B9: UZUN-b-1 | C9: 727 | D9: 1999-08-21 | E9: MEDİNE ALPER | F9: İZMİR | G9: 457 | H9: 454 | I9: 445 | J9: 457 | K9: 76
A10: 3 | B10: UZUN-b-25 | C10: 230 | D10: 1999-01-01 | E10: ELİF ADSIZ | F10: DİYARBAKIR | G10: 422 | H10: 424 | I10: 445 | J10: 445 | K10: 75
A11: 4 | B11: UZUN-b-5 | C11: 197 | D11: 1999-10-12 | E11: AYŞE CAN | F11: BURSA | G11: 432 | H11: 435 | I11: 444 | J11: 444 | K11: 75
A12: 5 | B12: UZUN-b-3 | C12: 2 | D12: 1999-01-01 | E12: TESLİME ÖZDEMİR | F12: ADANA | G12: 351 | H12: 441 | I12: 433 | J12: 441 | K12: 75
A13: 6 | B13: UZUN-b-26 | C13: 166 | D13: 1999-01-01 | E13: ZEYNEP ERKAN | F13: BİNGÖL | G13: 428 | H13: 436 | I13: 428 | J13: 436 | K13: 74
A14: 7 | B14: UZUN-b-9 | C14: 264 | D14: 1999-02-13 | E14: MELİKE KARANLIKBULUT | F14: ERZURUM | G14: 397 | H14: 402 | I14: 434 | J14: 434 | K14: 74
A15: 8 | B15: UZUN-b-21 | C15: 185 | D15: 1999-03-10 | E15: BÜŞRA SULTAN GÜRCAN | F15: BOLU | G15: 430 | H15: 426 | I15: 426 | J15: 430 | K15: 74
A16: 9 | B16: UZUN-b-4 | C16: 247 | D16: 1999-11-01 | E16: KARDELEN YIDIRIM | F16: ERZİNCAN | G16: 424 | H16: 423 | I16: 429 | J16: 429 | K16: 73
A17: 10 | B17: UZUN-b-6 | C17: 310 | D17: 1999-08-15 | E17: SELENAY BATİ | F17: HATAY | G17: 425 | H17: 419 | I17: 408 | J17: 425 | K17: 73
A18: 11 | B18: UZUN-b-15 | C18: 98 | D18: 1999-07-24 | E18: GÜL DEMİR | F18: BALIKESİR | G18: 397 | H18: 398 | I18: 415 | J18: 415 | K18: 72
A19: 12 | B19: UZUN-b-10 | C19: 25 | D19: 1999-02-01 | E19: PINAR KARAHAN | F19: ADIYAMAN | G19: 412 | H19: 405 | I19: 406 | J19: 412 | K19: 72
A20: 13 | B20: UZUN-b-7 | C20: 585 | D20: 1999-07-17 | E20: BURCU KIZILIRMAK | F20: NEVŞEHİR | G20: 405 | H20: 402 | I20: 402 | J20: 405 | K20: 71
A21: 14 | B21: UZUN-b-24 | C21: 539 | D21: 1999-08-28 | E21: ÖZLEM ÖZDEMİR | F21: KÜTAHYA | G21: 385 | H21: 389 | I21: 390 | J21: 390 | K21: 68
A22: 15 | B22: UZUN-b-22 | C22: 570 | D22: 1999-09-01 | E22: Derya KUNUR | F22: MUŞ | G22: 386 | H22: 373 | I22: 361 | J22: 386 | K22: 66
A23: 16 | B23: UZUN-b-14 | C23: 652 | D23: 1999-03-01 | E23: NURCİHAN OYSAL | F23: SİİRT | G23: 269 | H23: 385 | I23: 280 | J23: 385 | K23: 66
A24: 17 | B24: UZUN-b-20 | C24: 690 | D24: 1999-02-03 | E24: SELMA İSOT | F24: TOKAT | G24: 380 | H24: 374 | I24: 336 | J24: 380 | K24: 64
A25: 18 | B25: UZUN-b-18 | C25: 336 | D25: 1999-08-26 | E25: AYŞE ŞAHİN | F25: ISPARTA | G25: 338 | H25: 375 | I25: - | J25: 375 | K25: 63
A26: 19 | B26: UZUN-b-12 | C26: 52 | D26: 1999-01-01 | E26: GÜLCAN PALAVAN | F26: ARDAHAN | G26: 372 | H26: 330 | I26: 370 | J26: 372 | K26: 62
A27: 20 | B27: UZUN-b-27 | C27: 135 | D27: 1999-02-03 | E27: SİBEL İLHAN | F27: BATMAN | G27: 372 | H27: 352 | I27: X | J27: 372 | K27: 62
A28: 21 | B28: UZUN-b-8 | C28: 311 | D28: 1999-06-03 | E28: SEÇİL AKPINAR | F28: HATAY | G28: 370 | H28: 357 | I28: 362 | J28: 370 | K28: 61
A29: 22 | B29: UZUN-b-13 | C29: 651 | D29: 1999-10-09 | E29: LEYLA TETİK | F29: SİİRT | G29: 343 | H29: 370 | I29: 338 | J29: 370 | K29: 61
A30: 23 | B30: UZUN-b-2 | C30: 729 | D30: 1999-05-14 | E30: İREM KARAASLAN | F30: İZMİR | G30: 351 | H30: 361 | I30: X | J30: 361 | K30: 58
A31: 24 | B31: UZUN-b-19 | C31: 211 | D31: 1999-06-25 | E31: MERVE ARSLAN | F31: ÇANAKKALE | G31: X | H31: 334 | I31: 336 | J31: 336 | K31: 50
A32: 25 | B32: UZUN-b-23 | C32: 210 | D32: 1999-11-22 | E32: BELİNAY DENİZ GÜZEL | F32: ÇANAKKALE | G32: 292 | H32: 320 | I32: 304 | J32: 320 | K32: 44
A33: 26 | B33: UZUN-b-17 | C33: 545 | D33: 1999-04-01 | E33: FATMA TÜRK | F33: KÜTAHYA | G33: 306 | H33: 307 | I33: X | J33: 307 | K33: 40
A34: 27 | B34: UZUN-b-16 | C34: 650 | D34: 1999-07-30 | E34: ESRA OYSAL | F34: SİİRT | G34: X | H34: 255 | I34: X | J34: 255 | K34: 23
B35: UZUN-b-28 | J35: 0
B36: UZUN-b-29 | J36: 0
B37: UZUN-b-30 | J37: 0
B38: UZUN-b-31 | J38: 0
B39: UZUN-b-32 | J39: 0
B40: UZUN-b-33 | J40: 0
B41: UZUN-b-34 | J41: 0
B42: UZUN-b-35 | J42: 0
B43: UZUN-b-36 | J43: 0
B44: UZUN-b-37 | J44: 0
B45: UZUN-b-38 | J45: 0
B46: UZUN-b-39 | J46: 0
B47: UZUN-b-40 | J47: 0
A49: Müsabaka Direktörü | E49: Baş Hakem | F49: Lider | G49: Sekreter | J49: Hakem
A65536: CELAL KAYAÖZ

Sheet Uzun Atlama Genel
A1: Türkiye Atletizm Federasyonu İzmir Atletizm İl Temsilciliği
A2: Naili Moran Türkiye Atletizm Şampiyonası
A3: Yarışma : | D3: Uzun Atlama Genel Sonuçları
A4: Kategori : | D4: 15 Yaş Kızlar | I4: Tarih-Saat : | K4: 14 Haziran 2014 - 11:00
J5: 41804.57912
A6: SIRA NO | C6: GÖĞÜS NO | D6: DOĞUM TARİHİ Gün/Ay/Yıl | E6: ADI VE SOYADI | F6: İLİ | G6: A T L A M A L A R | J6: SONUÇ | K6: PUAN | L6: RÜZGAR
G7: 1 | H7: 2 | I7: 3
A8: 1 | C8: 300 | D8: 1999-08-13 | E8: ŞEYMA BİRİNCİ | F8: GİRESUN | G8: 524 | H8: 513 | I8: X | J8: 524 | K8: 85
A9: 2 | C9: 360 | D9: 1999-01-22 | E9: ELİF POLAT (İSTANBUL) | F9: İSTANBUL | G9: 474 | H9: 505 | I9: 524 | J9: 524 | K9: 85
A10: 3 | C10: 628 | D10: 1999-02-09 | E10: ŞEYMA OCAK | F10: SAMSUN | G10: 504 | H10: 514 | I10: 497 | J10: 514 | K10: 83
A11: 4 | C11: 196 | D11: 1999-01-23 | E11: ÖZGE KAHRAMAN | F11: BURSA | G11: 463 | H11: 474 | I11: 480 | J11: 480 | K11: 79
A12: 5 | C12: 564 | D12: 1999-10-14 | E12: CEMRE KUNDAKCI | F12: MUĞLA | G12: 479 | H12: 461 | I12: 458 | J12: 479 | K12: 78
A13: 6 | C13: 623 | D13: 1999-07-29 | E13: YAREN BAŞ | F13: SAKARYA | G13: 475 | H13: 473 | I13: 471 | J13: 475 | K13: 78
A14: 7 | C14: 675 | D14: 1999-05-27 | E14: BEGÜM YILMAZ | F14: TEKİRDAĞ | G14: 473 | H14: 466 | I14: 463 | J14: 473 | K14: 78
A15: 8 | C15: 335 | D15: 1999-06-08 | E15: HAFİZE AKÇAY | F15: ISPARTA | G15: 428 | H15: 472 | I15: 440 | J15: 472 | K15: 78
A16: 9 | C16: 624 | D16: 1999-11-03 | E16: İLAYDA BULUT | F16: SAKARYA | G16: 466 | H16: 456 | I16: 450 | J16: 466 | K16: 77
A17: 10 | C17: 383 | D17: 1999-06-14 | E17: MELİS ÇİÇEK | F17: İZMİR | G17: 453 | H17: 465 | I17: 420 | J17: 465 | K17: 77
A18: 11 | C18: 1 | D18: 1999-01-01 | E18: YAREN KURTAY | F18: ADANA | G18: X | H18: 455 | I18: 457 | J18: 457 | K18: 76
A19: 12 | C19: 727 | D19: 1999-08-21 | E19: MEDİNE ALPER | F19: İZMİR | G19: 457 | H19: 454 | I19: 445 | J19: 457 | K19: 76
A20: 13 | C20: 99 | D20: 1999-08-10 | E20: EMİNE HİLAL ÇETİNKAYA | F20: BALIKESİR | G20: 448 | H20: 446 | I20: X | J20: 448 | K20: 75
A21: 14 | C21: 524 | D21: 1999-01-08 | E21: Habibe Tokay | F21: KONYA | G21: 445 | H21: X | I21: 425 | J21: 445 | K21: 75
A22: 15 | C22: 230 | D22: 1999-01-01 | E22: ELİF ADSIZ | F22: DİYARBAKIR | G22: 422 | H22: 424 | I22: 445 | J22: 445 | K22: 75
A23: 16 | C23: 197 | D23: 1999-10-12 | E23: AYŞE CAN | F23: BURSA | G23: 432 | H23: 435 | I23: 444 | J23: 444 | K23: 75
A24: 17 | C24: 2 | D24: 1999-01-01 | E24: TESLİME ÖZDEMİR | F24: ADANA | G24: 351 | H24: 441 | I24: 433 | J24: 441 | K24: 75
A25: 18 | C25: 342 | D25: 1999-08-04 | E25: CANSEL TÜRE | F25: ISPARTA | G25: 418 | H25: 437 | I25: 414 | J25: 437 | K25: 74
A26: 19 | C26: 166 | D26: 1999-01-01 | E26: ZEYNEP ERKAN | F26: BİNGÖL | G26: 428 | H26: 436 | I26: 428 | J26: 436 | K26: 74
A27: 20 | C27: 521 | D27: 1999-01-01 | E27: ŞERİFE KÜÇÜKBAĞCI | F27: KONYA | G27: 435 | H27: X | I27: 429 | J27: 435 | K27: 74
A28: 21 | C28: 264 | D28: 1999-02-13 | E28: MELİKE KARANLIKBULUT | F28: ERZURUM | G28: 397 | H28: 402 | I28: 434 | J28: 434 | K28: 74
A29: 22 | C29: 456 | D29: 1999-04-04 | E29: ELİF KARATAŞ | F29: KARABÜK | G29: 431 | H29: 428 | I29: 417 | J29: 431 | K29: 74
A30: 23 | C30: 185 | D30: 1999-03-10 | E30: BÜŞRA SULTAN GÜRCAN | F30: BOLU | G30: 430 | H30: 426 | I30: 426 | J30: 430 | K30: 74
A31: 24 | C31: 247 | D31: 1999-11-01 | E31: KARDELEN YIDIRIM | F31: ERZİNCAN | G31: 424 | H31: 423 | I31: 429 | J31: 429 | K31: 73
A32: 25 | C32: 38 | D32: 1999-04-28 | E32: GÜLÇİN DİKER | F32: AKSARAY | G32: X | H32: 425 | I32: 425 | J32: 425 | K32: 73
A33: 26 | C33: 310 | D33: 1999-08-15 | E33: SELENAY BATİ | F33: HATAY | G33: 425 | H33: 419 | I33: 408 | J33: 425 | K33: 73
A34: 27 | C34: 519 | D34: 1999-02-13 | E34: YEŞİM İTMEÇ | F34: KONYA | G34: 423 | H34: 420 | I34: 390 | J34: 423 | K34: 73
A35: 28 | C35: 380 | D35: 1999-09-29 | E35: ASYA ÇULHAOĞLU | F35: İZMİR | G35: 375 | H35: 418 | I35: 423 | J35: 423 | K35: 73
A36: 29 | C36: 714 | D36: 1999-01-01 | E36: GÜLBAHAR ERDOĞAN | F36: TUNCELİ | G36: 392 | H36: 420 | I36: 416 | J36: 420 | K36: 73
A37: 30 | C37: 689 | D37: 1999-10-25 | E37: TÜLAY BAKIR | F37: TOKAT | G37: 415 | H37: 420 | I37: 393 | J37: 420 | K37: 73
A38: 31 | C38: 186 | D38: 1999-09-10 | E38: ZİNNUR ONAT | F38: BOLU | G38: 420 | H38: - | I38: - | J38: 420 | K38: 73
A39: 32 | C39: 674 | D39: 1999-04-27 | E39: PINAR DOĞRU | F39: TEKİRDAĞ | G39: 415 | H39: 407 | I39: X | J39: 415 | K39: 72
A40: 33 | C40: 98 | D40: 1999-07-24 | E40: GÜL DEMİR | F40: BALIKESİR | G40: 397 | H40: 398 | I40: 415 | J40: 415 | K40: 72
A41: 34 | C41: 25 | D41: 1999-02-01 | E41: PINAR KARAHAN | F41: ADIYAMAN | G41: 412 | H41: 405 | I41: 406 | J41: 412 | K41: 72
A42: 35 | C42: 334 | D42: 1999-04-04 | E42: BUKET YAĞCI | F42: ISPARTA | G42: 410 | H42: 384 | I42: 408 | J42: 410 | K42: 72
A43: 36 | C43: 379 | D43: 1999-07-09 | E43: EYLÜL ÖZKAN | F43: İZMİR | G43: 406 | H43: 354 | I43: 363 | J43: 406 | K43: 71
A44: 37 | C44: 585 | D44: 1999-07-17 | E44: BURCU KIZILIRMAK | F44: NEVŞEHİR | G44: 405 | H44: 402 | I44: 402 | J44: 405 | K44: 71
A45: 38 | C45: 364 | D45: 1999-03-17 | E45: EMİNE BAYDİLİ | F45: İSTANBUL | G45: 403 | H45: 397 | I45: 388 | J45: 403 | K45: 71
A46: 39 | C46: 539 | D46: 1999-08-28 | E46: ÖZLEM ÖZDEMİR | F46: KÜTAHYA | G46: 385 | H46: 389 | I46: 390 | J46: 390 | K46: 68
A47: 40 | C47: 570 | D47: 1999-09-01 | E47: Derya KUNUR | F47: MUŞ | G47: 386 | H47: 373 | I47: 361 | J47: 386 | K47: 66
A48: 41 | C48: 652 | D48: 1999-03-01 | E48: NURCİHAN OYSAL | F48: SİİRT | G48: 269 | H48: 385 | I48: 280 | J48: 385 | K48: 66
A49: 42 | C49: 690 | D49: 1999-02-03 | E49: SELMA İSOT | F49: TOKAT | G49: 380 | H49: 374 | I49: 336 | J49: 380 | K49: 64
A50: 43 | C50: 336 | D50: 1999-08-26 | E50: AYŞE ŞAHİN | F50: ISPARTA | G50: 338 | H50: 375 | I50: - | J50: 375 | K50: 63
A51: 44 | C51: 52 | D51: 1999-01-01 | E51: GÜLCAN PALAVAN | F51: ARDAHAN | G51: 372 | H51: 330 | I51: 370 | J51: 372 | K51: 62
A52: 45 | C52: 135 | D52: 1999-02-03 | E52: SİBEL İLHAN | F52: BATMAN | G52: 372 | H52: 352 | I52: X | J52: 372 | K52: 62
A53: 46 | C53: 311 | D53: 1999-06-03 | E53: SEÇİL AKPINAR | F53: HATAY | G53: 370 | H53: 357 | I53: 362 | J53: 370 | K53: 61
A54: 47 | C54: 651 | D54: 1999-10-09 | E54: LEYLA TETİK | F54: SİİRT | G54: 343 | H54: 370 | I54: 338 | J54: 370 | K54: 61
A55: 48 | C55: 729 | D55: 1999-05-14 | E55: İREM KARAASLAN | F55: İZMİR | G55: 351 | H55: 361 | I55: X | J55: 361 | K55: 58
A56: 49 | C56: 388 | D56: 1999-01-01 | E56: DİDEM BARDAKÇI | F56: İZMİR | G56: 357 | H56: 357 | I56: 355 | J56: 357 | K56: 57
A57: 50 | C57: 211 | D57: 1999-06-25 | E57: MERVE ARSLAN | F57: ÇANAKKALE | G57: X | H57: 334 | I57: 336 | J57: 336 | K57: 50
A58: 51 | C58: 210 | D58: 1999-11-22 | E58: BELİNAY DENİZ GÜZEL | F58: ÇANAKKALE | G58: 292 | H58: 320 | I58: 304 | J58: 320 | K58: 44
A59: 52 | C59: 545 | D59: 1999-04-01 | E59: FATMA TÜRK | F59: KÜTAHYA | G59: 306 | H59: 307 | I59: X | J59: 307 | K59: 40
A60: 53 | C60: 650 | D60: 1999-07-30 | E60: ESRA OYSAL | F60: SİİRT | G60: X | H60: 255 | I60: X | J60: 255 | K60: 23
A61: - | C61: 398 | D61: 1999-05-27 | E61: MELİSA KURBASEVİÇ | F61: İZMİR | J61: DNS | K61: 0
A63: Müsabaka Direktörü | E63: Baş Hakem | F63: Lider | G63: Sekreter | J63: Hakem
A65550: CELAL KAYAÖZ

Sheet Gülle
A1: Türkiye Atletizm Federasyonu İzmir Atletizm İl Temsilciliği
A2: Naili Moran Türkiye Atletizm Şampiyonası
A3: Yarışma : | D3: Gülle Atma
A4: Kategori : | D4: 15 Yaş Kızlar | F4: Ağırlık | G4: 3 kg. | I4: Tarih-Saat : | K4: 14 Haziran 2014 - 11:15
J5: 41804.5792
A6: SIRA NO | C6: GÖĞÜS NO | D6: DOĞUM TARİHİ Gün/Ay/Yıl | E6: ADI VE SOYADI | F6: İLİ | G6: A T M A L A R | J6: SONUÇ | K6: PUAN | L6: KLASMAN
G7: 1 | H7: 2 | I7: 3
A8: 1 | B8: GÜLLE-6 | C8: 385 | D8: 1999-04-01 | E8: FADİME YEŞİLMEN | F8: İZMİR | G8: 996 | H8: 984 | I8: 1025 | J8: 1025 | K8: 73
A9: 2 | B9: GÜLLE-4 | C9: 381 | D9: 1999-02-13 | E9: BEYZA BOZÇAL | F9: İZMİR | G9: X | H9: 735 | I9: 771 | J9: 771 | K9: 48
A10: 3 | B10: GÜLLE-3 | C10: 141 | D10: 1999-01-01 | E10: DİLAN AYTEN | F10: BATMAN | G10: 586 | H10: 657 | I10: 614 | J10: 657 | K10: 36
A11: 4 | B11: GÜLLE-2 | C11: 140 | D11: 1999-03-26 | E11: MAŞALLAH AYDIN | F11: BATMAN | G11: 609 | H11: 584 | I11: 584 | J11: 609 | K11: 31
A12: 5 | B12: GÜLLE-5 | C12: 139 | D12: 1999-01-01 | E12: SULTAN CİHANGİR | F12: BATMAN | G12: X | H12: 590 | I12: 606 | J12: 606 | K12: 31
A13: - | B13: GÜLLE-1 | C13: 398 | D13: 1999-05-27 | E13: MELİSA KURBASEVİÇ | F13: İZMİR | J13: DNS | K13: 0
B14: GÜLLE-7 | J14: 0
B15: GÜLLE-8 | J15: 0
B16: GÜLLE-9 | J16: 0
B17: GÜLLE-10 | J17: 0
B18: GÜLLE-11 | J18: 0
B19: GÜLLE-12 | J19: 0
B20: GÜLLE-13 | J20: 0
B21: GÜLLE-14 | J21: 0
B22: GÜLLE-15 | J22: 0
B23: GÜLLE-16 | J23: 0
B24: GÜLLE-17 | J24: 0
B25: GÜLLE-18 | J25: 0
B26: GÜLLE-19 | J26: 0
B27: GÜLLE-20 | J27: 0
B28: GÜLLE-21 | J28: 0
B29: GÜLLE-22 | J29: 0
B30: GÜLLE-23 | J30: 0
B31: GÜLLE-24 | J31: 0
B32: GÜLLE-25 | J32: 0
B33: GÜLLE-26 | J33: 0
B34: GÜLLE-27 | J34: 0
B35: GÜLLE-28 | J35: 0
B36: GÜLLE-29 | J36: 0
B37: GÜLLE-30 | J37: 0
B38: GÜLLE-31 | J38: 0
B39: GÜLLE-32 | J39: 0
B40: GÜLLE-33 | J40: 0
B41: GÜLLE-34 | J41: 0
B42: GÜLLE-35 | J42: 0
B43: GÜLLE-36 | J43: 0
B44: GÜLLE-37 | J44: 0
B45: GÜLLE-38 | J45: 0
B46: GÜLLE-39 | J46: 0
B47: GÜLLE-40 | J47: 0
A49: Müsabaka Direktörü | E49: Baş Hakem | F49: Lider | G49: Sekreter | J49: Hakem
A65536: CELAL KAYAÖZ

Sheet Çekiç
A1: Türkiye Atletizm Federasyonu İzmir Atletizm İl Temsilciliği
A2: Naili Moran Türkiye Atletizm Şampiyonası
A3: Yarışma : | D3: Çekiç Atma
A4: Kategori : | D4: 15 Yaş Kızlar | F4: Ağırlık | G4: 3 kg. | I4: Tarih-Saat : | K4: 14 Haziran 2014 - 17:00
J5: 41804.7347
A6: SIRA NO | C6: GÖĞÜS NO | D6: DOĞUM TARİHİ Gün/Ay/Yıl | E6: ADI VE SOYADI | F6: İLİ | G6: A T M A L A R | J6: SONUÇ | K6: PUAN | L6: KLASMAN
G7: 1 | H7: 2 | I7: 3
A8: 1 | B8: ÇEKİÇ-2 | C8: 186 | D8: 1999-09-10 | E8: ZİNNUR ONAT | F8: BOLU | G8: 4422 | H8: X | I8: X | J8: 4422 | K8: 100
A9: 2 | B9: ÇEKİÇ-1 | C9: 387 | D9: 1999-11-07 | E9: H. CEREN YAKIN | F9: İZMİR | G9: X | H9: X | I9: 3564 | J9: 3564 | K9: 91
B10: ÇEKİÇ-3 | J10: 0
B11: ÇEKİÇ-4 | J11: 0
B12: ÇEKİÇ-5 | J12: 0
B13: ÇEKİÇ-6 | J13: 0
B14: ÇEKİÇ-7 | J14: 0
B15: ÇEKİÇ-8 | J15: 0
B16: ÇEKİÇ-9 | J16: 0
B17: ÇEKİÇ-10 | J17: 0
B18: ÇEKİÇ-11 | J18: 0
B19: ÇEKİÇ-12 | J19: 0
B20: ÇEKİÇ-13 | J20: 0
B21: ÇEKİÇ-14 | J21: 0
B22: ÇEKİÇ-15 | J22: 0
B23: ÇEKİÇ-16 | J23: 0
B24: ÇEKİÇ-17 | J24: 0
B25: ÇEKİÇ-18 | J25: 0
B26: ÇEKİÇ-19 | J26: 0
B27: ÇEKİÇ-20 | J27: 0
B28: ÇEKİÇ-21 | J28: 0
B29: ÇEKİÇ-22 | J29: 0
B30: ÇEKİÇ-23 | J30: 0
B31: ÇEKİÇ-24 | J31: 0
B32: ÇEKİÇ-25 | J32: 0
B33: ÇEKİÇ-26 | J33: 0
B34: ÇEKİÇ-27 | J34: 0
B35: ÇEKİÇ-28 | J35: 0
B36: ÇEKİÇ-29 | J36: 0
B37: ÇEKİÇ-30 | J37: 0
B38: ÇEKİÇ-31 | J38: 0
B39: ÇEKİÇ-32 | J39: 0
B40: ÇEKİÇ-33 | J40: 0
B41: ÇEKİÇ-34 | J41: 0
B42: ÇEKİÇ-35 | J42: 0
B43: ÇEKİÇ-36 | J43: 0
B44: ÇEKİÇ-37 | J44: 0
B45: ÇEKİÇ-38 | J45: 0
B46: ÇEKİÇ-39 | J46: 0
B47: ÇEKİÇ-40 | J47: 0
A49: Müsabaka Direktörü | E49: Baş Hakem | F49: Lider | G49: Sekreter | J49: Hakem
A65536: CELAL KAYAÖZ

Sheet 100m.
A1: Türkiye Atletizm Federasyonu İzmir Atletizm İl Temsilciliği
A2: Naili Moran Türkiye Atletizm Şampiyonası
A3: Yarışma : | D3: 100 Metre
A4: Kategori : | D4: 15 Yaş Kızlar | M4: Tarih-Saat : | N4: 14 Haziran 2014 - 18:15
N5: 41804.79813
A6: Sıra No | B6: Göğüs No | C6: Doğum Tarihi Gün/Ay/Yıl | D6: Adı ve Soyadı | E6: İLİ | F6: Derece | G6: Puan | I6: 1. SERİ | M6: Rüzgar:
I7: Sıra No | J7: Formül | K7: Göğüs No | L7: Doğum Tarihi | M7: Adı ve Soyadı | N7: İLİ | O7: Derece | P7: El Kronometre | Q7: Seri Geliş
A8: 1 | B8: 360 | C8: 1999-01-22 | D8: ELİF POLAT (İSTANBUL) | E8: İSTANBUL | F8: 1305 | G8: 82 | I8: 1 | J8: 100M-1-1 | K8: 674 | L8: 1999-04-27 | M8: PINAR DOĞRU | N8: TEKİRDAĞ | O8: 1474 | Q8: 8
A9: 2 | B9: 675 | C9: 1999-05-27 | D9: BEGÜM YILMAZ | E9: TEKİRDAĞ | F9: 1314 | G9: 81 | I9: 2 | J9: 100M-1-2 | K9: 300 | L9: 1999-08-13 | M9: ŞEYMA BİRİNCİ | N9: GİRESUN | O9: 1369 | Q9: 3
A10: 3 | B10: 300 | C10: 1999-08-13 | D10: ŞEYMA BİRİNCİ | E10: GİRESUN | F10: 1369 | G10: 76 | I10: 3 | J10: 100M-1-3 | K10: 383 | L10: 1999-06-14 | M10: MELİS ÇİÇEK | N10: İZMİR | O10: 1416 | Q10: 5
A11: 4 | B11: 1 | C11: 1999-01-01 | D11: YAREN KURTAY | E11: ADANA | F11: 1372 | G11: 75 | I11: 4 | J11: 100M-1-4 | K11: 524 | L11: 1999-01-08 | M11: Habibe Tokay | N11: KONYA | O11: 1457 | Q11: 7
A12: 5 | B12: 278 | C12: 1999-01-01 | D12: AYSEL YILMAZ | E12: GAZİANTEP | F12: 1394 | G12: 73 | I12: 5 | J12: 100M-1-5 | K12: 360 | L12: 1999-01-22 | M12: ELİF POLAT (İSTANBUL) | N12: İSTANBUL | O12: 1305 | Q12: 1
A13: 6 | B13: 624 | C13: 1999-11-03 | D13: İLAYDA BULUT | E13: SAKARYA | F13: 1415 | G13: 69 | I13: 6 | J13: 100M-1-6 | K13: 385 | L13: 1999-04-01 | M13: FADİME YEŞİLMEN | N13: İZMİR | O13: 1488 | Q13: 9
A14: 7 | B14: 383 | C14: 1999-06-14 | D14: MELİS ÇİÇEK | E14: İZMİR | F14: 1416 | G14: 69 | I14: 7 | J14: 100M-1-7 | K14: 675 | L14: 1999-05-27 | M14: BEGÜM YILMAZ | N14: TEKİRDAĞ | O14: 1314 | Q14: 2
A15: 8 | B15: 689 | C15: 1999-10-25 | D15: TÜLAY BAKIR | E15: TOKAT | F15: 1427 | G15: 67 | I15: 8 | J15: 100M-1-8 | K15: 186 | L15: 1999-09-10 | M15: ZİNNUR ONAT | N15: BOLU | O15: 1432 | Q15: 6
A16: 9 | B16: 186 | C16: 1999-09-10 | D16: ZİNNUR ONAT | E16: BOLU | F16: 1432 | G16: 65 | I16: 9 | J16: 100M-1-9 | K16: 278 | L16: 1999-01-01 | M16: AYSEL YILMAZ | N16: GAZİANTEP | O16: 1394 | Q16: 4
A17: 10 | B17: 524 | C17: 1999-01-08 | D17: Habibe Tokay | E17: KONYA | F17: 1457 | G17: 61 | I17: 2. SERİ | M17: Rüzgar:
A18: 11 | B18: 674 | C18: 1999-04-27 | D18: PINAR DOĞRU | E18: TEKİRDAĞ | F18: 1474 | G18: 57 | I18: Sıra No | J18: Formül | K18: Göğüs No | L18: Doğum Tarihi | M18: Adı ve Soyadı | N18: İLİ | O18: Derece | P18: El Kronometre | Q18: Seri Geliş
A19: 12 | B19: 139 | C19: 1999-01-01 | D19: SULTAN CİHANGİR | E19: BATMAN | F19: 1475 | G19: 57 | I19: 1 | J19: 100M-2-1 | K19: 387 | L19: 1999-11-07 | M19: H. CEREN YAKIN | N19: İZMİR | O19: 1740 | Q19: 7
A20: 13 | B20: 385 | C20: 1999-04-01 | D20: FADİME YEŞİLMEN | E20: İZMİR | F20: 1488 | G20: 55 | I20: 2 | J20: 100M-2-2 | K20: 398 | L20: 1999-05-27 | M20: MELİSA KURBASEVİÇ | N20: İZMİR | O20: DNS | Q20: -
A21: 14 | B21: 336 | C21: 1999-08-26 | D21: AYŞE ŞAHİN | E21: ISPARTA | F21: 1491 | G21: 53 | I21: 3 | J21: 100M-2-3 | K21: 689 | L21: 1999-10-25 | M21: TÜLAY BAKIR | N21: TOKAT | O21: 1427 | Q21: 3
A22: 15 | B22: 379 | C22: 1999-07-09 | D22: EYLÜL ÖZKAN | E22: İZMİR | F22: 1511 | G22: 49 | I22: 4 | J22: 100M-2-4 | K22: 139 | L22: 1999-01-01 | M22: SULTAN CİHANGİR | N22: BATMAN | O22: 1475 | Q22: 4
A23: 16 | B23: 387 | C23: 1999-11-07 | D23: H. CEREN YAKIN | E23: İZMİR | F23: 1740 | G23: 27 | I23: 5 | J23: 100M-2-5 | K23: 379 | L23: 1999-07-09 | M23: EYLÜL ÖZKAN | N23: İZMİR | O23: 1511 | Q23: 6
A24: 17 | B24: 381 | C24: 1999-02-13 | D24: BEYZA BOZÇAL | E24: İZMİR | F24: 1968 | G24: 7 | I24: 6 | J24: 100M-2-6 | K24: 336 | L24: 1999-08-26 | M24: AYŞE ŞAHİN | N24: ISPARTA | O24: 1491 | Q24: 5
A25: - | B25: 398 | C25: 1999-05-27 | D25: MELİSA KURBASEVİÇ | E25: İZMİR | F25: DNS | G25: 0 | I25: 7 | J25: 100M-2-7 | K25: 1 | L25: 1999-01-01 | M25: YAREN KURTAY | N25: ADANA | O25: 1372 | Q25: 1
I26: 8 | J26: 100M-2-8 | K26: 624 | L26: 1999-11-03 | M26: İLAYDA BULUT | N26: SAKARYA | O26: 1415 | Q26: 2
I27: 9 | J27: 100M-2-9 | K27: 381 | L27: 1999-02-13 | M27: BEYZA BOZÇAL | N27: İZMİR | O27: 1968 | Q27: 8
I28: 3. SERİ | M28: Rüzgar:
I29: Sıra No | J29: Formül | K29: Göğüs No | L29: Doğum Tarihi | M29: Adı ve Soyadı | N29: İLİ | O29: Derece | P29: El Kronometre | Q29: Seri Geliş
I30: 1 | J30: 100M-3-1
I31: 2 | J31: 100M-3-2
I32: 3 | J32: 100M-3-3
I33: 4 | J33: 100M-3-4
I34: 5 | J34: 100M-3-5
I35: 6 | J35: 100M-3-6
I36: 7 | J36: 100M-3-7
I37: 8 | J37: 100M-3-8
I38: 4. SERİ | M38: Rüzgar:
I39: Sıra No | J39: Formül | K39: Göğüs No | L39: Doğum Tarihi | M39: Adı ve Soyadı | N39: İLİ | O39: Derece | P39: El Kronometre | Q39: Seri Geliş
I40: 1 | J40: 100M-4-1
I41: 2 | J41: 100M-4-2
I42: 3 | J42: 100M-4-3
I43: 4 | J43: 100M-4-4
I44: 5 | J44: 100M-4-5
I45: 6 | J45: 100M-4-6
I46: 7 | J46: 100M-4-7
I47: 8 | J47: 100M-4-8
A49: Müsabakalar Direktörü | E49: Baş Hakem | F49: Lider | H49: Sekreter | M49: Hakem | N49: Hakem | P49: Hakem
A65538: CELAL KAYAÖZ

Sheet Disk
A1: Türkiye Atletizm Federasyonu İzmir Atletizm İl Temsilciliği | M1: DERECE
A2: Naili Moran Türkiye Atletizm Şampiyonası | M2: 100 | N2: 0
A3: Yarışma : | D3: Disk Atma | M3: 1000 | N3: 1
A4: Kategori : | D4: 15 Yaş Kızlar | F4: Ağırlık: | G4: 750 gram | I4: Tarih-Saat : | K4: 14 Haziran 2014 - 18:45 | M4: 1060 | N4: 2
J5: 41804.86035 | M5: 1120 | N5: 3
A6: SIRA NO | C6: GÖĞÜS NO | D6: DOĞUM TARİHİ Gün/Ay/Yıl | E6: ADI VE SOYADI | F6: İLİ | G6: A T M A L A R | J6: SONUÇ | K6: PUAN | L6: KLASMAN | M6: 1180 | N6: 4
G7: 1 | H7: 2 | I7: 3 | M7: 1240 | N7: 5
A8: 1 | B8: DİSK-1 | C8: 278 | D8: 1999-01-01 | E8: AYSEL YILMAZ | F8: GAZİANTEP | G8: 2434 | H8: 2807 | I8: X | J8: 2807 | K8: 84 | M8: 1300 | N8: 6
A9: 2 | B9: DİSK-3 | C9: 387 | D9: 1999-11-07 | E9: H. CEREN YAKIN | F9: İZMİR | G9: 2328 | H9: 2160 | I9: 2678 | J9: 2678 | K9: 82 | M9: 1360 | N9: 7
A10: 3 | B10: DİSK-2 | C10: 381 | D10: 1999-02-13 | E10: BEYZA BOZÇAL | F10: İZMİR | G10: 1955 | H10: 2051 | I10: 1916 | J10: 2051 | K10: 67 | M10: 1420 | N10: 8
B11: DİSK-4 | J11: 0 | M11: 1480 | N11: 9
B12: DİSK-5 | J12: 0 | M12: 1540 | N12: 10
B13: DİSK-6 | J13: 0 | M13: 1600 | N13: 11
B14: DİSK-7 | J14: 0 | M14: 1650 | N14: 12
B15: DİSK-8 | J15: 0 | M15: 1700 | N15: 13
B16: DİSK-9 | J16: 0 | M16: 1750 | N16: 14
B17: DİSK-10 | J17: 0 | M17: 1800 | N17: 15
B18: DİSK-11 | J18: 0 | M18: 1850 | N18: 16
B19: DİSK-12 | J19: 0 | M19: 1900 | N19: 17
B20: DİSK-13 | J20: 0 | M20: 1950 | N20: 18
B21: DİSK-14 | J21: 0 | M21: 2000 | N21: 19
B22: DİSK-15 | J22: 0 | M22: 2050 | N22: 20
B23: DİSK-16 | J23: 0 | M23: 2100 | N23: 21
B24: DİSK-17 | J24: 0 | M24: 2150 | N24: 22
B25: DİSK-18 | J25: 0 | M25: 2200 | N25: 23
B26: DİSK-19 | J26: 0 | M26: 2250 | N26: 24
B27: DİSK-20 | J27: 0 | M27: 2300 | N27: 25
B28: DİSK-21 | J28: 0 | M28: 2325 | N28: 26
B29: DİSK-22 | J29: 0 | M29: 2350 | N29: 27
B30: DİSK-23 | J30: 0 | M30: 2400 | N30: 28
B31: DİSK-24 | J31: 0 | M31: 2450 | N31: 29
B32: DİSK-25 | J32: 0 | M32: 2500 | N32: 30
B33: DİSK-26 | J33: 0 | M33: 2550 | N33: 31
B34: DİSK-27 | J34: 0 | M34: 2600 | N34: 32
B35: DİSK-28 | J35: 0 | M35: 2650 | N35: 33
B36: DİSK-29 | J36: 0 | M36: 2700 | N36: 34
B37: DİSK-30 | J37: 0 | M37: 2750 | N37: 35
B38: DİSK-31 | J38: 0 | M38: 2800 | N38: 36
B39: DİSK-32 | J39: 0 | M39: 2850 | N39: 37
B40: DİSK-33 | J40: 0 | M40: 2900 | N40: 38
B41: DİSK-34 | J41: 0 | M41: 2950 | N41: 39
B42: DİSK-35 | J42: 0 | M42: 3000 | N42: 40
B43: DİSK-36 | J43: 0 | M43: 3050 | N43: 41
B44: DİSK-37 | J44: 0 | M44: 3100 | N44: 42
B45: DİSK-38 | J45: 0 | M45: 3150 | N45: 43
B46: DİSK-39 | J46: 0 | M46: 3200 | N46: 44
B47: DİSK-40 | J47: 0 | M47: 3250 | N47: 45
M48: 3300 | N48: 46
A49: Müsabaka Direktörü | E49: Baş Hakem | F49: Lider | G49: Sekreter | J49: Hakem | M49: 3350 | N49: 47
M50: 3400 | N50: 48
M51: 3450 | N51: 49
M52: 3500 | N52: 50
M53: 3550 | N53: 51
M54: 3600 | N54: 52
M55: 3650 | N55: 53
M56: 3700 | N56: 54
M57: 3750 | N57: 55
M58: 3800 | N58: 56
M59: 3850 | N59: 57
M60: 3900 | N60: 58
M61: 3950 | N61: 59
M62: 4000 | N62: 60
M63: 4040 | N63: 61
M64: 4080 | N64: 62
M65: 4120 | N65: 63
M66: 4160 | N66: 64
M67: 4200 | N67: 65
M68: 4240 | N68: 66
M69: 4280 | N69: 67
M70: 4320 | N70: 68
M71: 4360 | N71: 69
M72: 4400 | N72: 70
M73: 4440 | N73: 71
M74: 4480 | N74: 72
M75: 4520 | N75: 73
M76: 4560 | N76: 74
M77: 4600 | N77: 75
M78: 4640 | N78: 76
M79: 4680 | N79: 77
M80: 4720 | N80: 78
M81: 4760 | N81: 79
M82: 4800 | N82: 80
M83: 4840 | N83: 81
M84: 4880 | N84: 82
M85: 4920 | N85: 83
M86: 4960 | N86: 84
M87: 5000 | N87: 85
M88: 5040 | N88: 86
M89: 5080 | N89: 87
M90: 5120 | N90: 88
M91: 5160 | N91: 89
M92: 5200 | N92: 90
M93: 5240 | N93: 91
M94: 5280 | N94: 92
M95: 5320 | N95: 93
M96: 5360 | N96: 94
M97: 5400 | N97: 95
M98: 5440 | N98: 96
M99: 5480 | N99: 97
M100: 5520 | N100: 98
M101: 5560 | N101: 99
M102: 5600 | N102: 100
A65536: CELAL KAYAÖZ

Sheet Üçadım
A1: Türkiye Atletizm Federasyonu İzmir Atletizm İl Temsilciliği | M1: DERECE
A2: Naili Moran Türkiye Atletizm Şampiyonası | M2: 100 | N2: 0
A3: Yarışma : | D3: Üçadım Atlama | M3: 760 | N3: 1
A4: Kategori : | D4: 15 Yaş Kızlar | I4: Tarih-Saat : | K4: 14 Haziran 2014 - 20:00 | M4: 764 | N4: 2
J5: 41804.87185 | M5: 768 | N5: 3
A6: SIRA NO | C6: GÖĞÜS NO | D6: DOĞUM TARİHİ Gün/Ay/Yıl | E6: ADI VE SOYADI | F6: İLİ | G6: A T L A M A L A R | J6: SONUÇ | K6: PUAN | L6: RÜZGAR | M6: 782 | N6: 4
G7: 1 | H7: 2 | I7: 3 | M7: 796 | N7: 5
A8: 1 | B8: ÜÇADIM-8 | C8: 628 | D8: 1999-02-09 | E8: ŞEYMA OCAK | F8: SAMSUN | G8: 1066 | H8: 1084 | I8: 1084 | J8: 1084 | K8: 82 | M8: 808 | N8: 6
A9: 2 | B9: ÜÇADIM-1 | C9: 300 | D9: 1999-08-13 | E9: ŞEYMA BİRİNCİ | F9: GİRESUN | G9: 1045 | H9: 1044 | I9: 998 | J9: 1045 | K9: 80 | M9: 822 | N9: 7
A10: 3 | B10: ÜÇADIM-2 | C10: 378 | D10: 1999-08-06 | E10: OLİMPİA AHENK DOURMOUCHEV | F10: İZMİR | G10: 1013 | H10: 1028 | I10: - | J10: 1028 | K10: 78 | M10: 836 | N10: 8
A11: 4 | B11: ÜÇADIM-7 | C11: 524 | D11: 1999-01-08 | E11: Habibe Tokay | F11: KONYA | G11: X | H11: 1010 | I11: 1021 | J11: 1021 | K11: 78 | M11: 848 | N11: 9
A12: 5 | B12: ÜÇADIM-9 | C12: 624 | D12: 1999-11-03 | E12: İLAYDA BULUT | F12: SAKARYA | G12: 1019 | H12: 1018 | I12: 1005 | J12: 1019 | K12: 78 | M12: 860 | N12: 10
A13: 6 | B13: ÜÇADIM-6 | C13: 675 | D13: 1999-05-27 | E13: BEGÜM YILMAZ | F13: TEKİRDAĞ | G13: 910 | H13: 909 | I13: 954 | J13: 954 | K13: 72 | M13: 872 | N13: 11
A14: 7 | B14: ÜÇADIM-4 | C14: 714 | D14: 1999-01-01 | E14: GÜLBAHAR ERDOĞAN | F14: TUNCELİ | G14: 908 | H14: 951 | I14: 930 | J14: 951 | K14: 72 | M14: 884 | N14: 12
A15: 8 | B15: ÜÇADIM-5 | C15: 334 | D15: 1999-04-04 | E15: BUKET YAĞCI | F15: ISPARTA | G15: 916 | H15: 933 | I15: 885 | J15: 933 | K15: 70 | M15: 896 | N15: 13
A16: 9 | B16: ÜÇADIM-3 | C16: 266 | D16: 1999-09-20 | E16: AYŞENUR ÇİFTÇİ | F16: ERZURUM | G16: 907 | H16: 862 | I16: X | J16: 907 | K16: 67 | M16: 908 | N16: 14
B17: ÜÇADIM-10 | J17: 0 | M17: 920 | N17: 15
B18: ÜÇADIM-11 | J18: 0 | M18: 932 | N18: 16
B19: ÜÇADIM-12 | J19: 0 | M19: 944 | N19: 17
B20: ÜÇADIM-13 | J20: 0 | M20: 956 | N20: 18
B21: ÜÇADIM-14 | J21: 0 | M21: 968 | N21: 19
B22: ÜÇADIM-15 | J22: 0 | M22: 980 | N22: 20
B23: ÜÇADIM-16 | J23: 0 | M23: 992 | N23: 21
B24: ÜÇADIM-17 | J24: 0 | M24: 1004 | N24: 22
B25: ÜÇADIM-18 | J25: 0 | M25: 1016 | N25: 23
B26: ÜÇADIM-19 | J26: 0 | M26: 1028 | N26: 24
B27: ÜÇADIM-20 | J27: 0 | M27: 1040 | N27: 25
B28: ÜÇADIM-21 | J28: 0 | M28: 1049 | N28: 26
B29: ÜÇADIM-22 | J29: 0 | M29: 1058 | N29: 27
B30: ÜÇADIM-23 | J30: 0 | M30: 1067 | N30: 28
B31: ÜÇADIM-24 | J31: 0 | M31: 1076 | N31: 29
B32: ÜÇADIM-25 | J32: 0 | M32: 1085 | N32: 30
B33: ÜÇADIM-26 | J33: 0 | M33: 1094 | N33: 31
B34: ÜÇADIM-27 | J34: 0 | M34: 1103 | N34: 32
B35: ÜÇADIM-28 | J35: 0 | M35: 1112 | N35: 33
B36: ÜÇADIM-29 | J36: 0 | M36: 1121 | N36: 34
B37: ÜÇADIM-30 | J37: 0 | M37: 1130 | N37: 35
B38: ÜÇADIM-31 | J38: 0 | M38: 1139 | N38: 36
B39: ÜÇADIM-32 | J39: 0 | M39: 1148 | N39: 37
B40: ÜÇADIM-33 | J40: 0 | M40: 1157 | N40: 38
B41: ÜÇADIM-34 | J41: 0 | M41: 1166 | N41: 39
B42: ÜÇADIM-35 | J42: 0 | M42: 1175 | N42: 40
B43: ÜÇADIM-36 | J43: 0 | M43: 1184 | N43: 41
B44: ÜÇADIM-37 | J44: 0 | M44: 1193 | N44: 42
B45: ÜÇADIM-38 | J45: 0 | M45: 1202 | N45: 43
B46: ÜÇADIM-39 | J46: 0 | M46: 1211 | N46: 44
B47: ÜÇADIM-40 | J47: 0 | M47: 1220 | N47: 45
M48: 1229 | N48: 46
A49: Müsabaka Direktörü | E49: Baş Hakem | F49: Lider | G49: Sekreter | J49: Hakem | M49: 1238 | N49: 47
M50: 1247 | N50: 48
M51: 1256 | N51: 49
M52: 1265 | N52: 50
M53: 1273 | N53: 51
M54: 1281 | N54: 52
M55: 1289 | N55: 53
M56: 1297 | N56: 54
M57: 1305 | N57: 55
M58: 1313 | N58: 56
M59: 1321 | N59: 57
M60: 1329 | N60: 58
M61: 1337 | N61: 59
M62: 1345 | N62: 60
M63: 1352 | N63: 61
M64: 1359 | N64: 62
M65: 1366 | N65: 63
M66: 1373 | N66: 64
M67: 1380 | N67: 65
M68: 1387 | N68: 66
M69: 1394 | N69: 67
M70: 1401 | N70: 68
M71: 1408 | N71: 69
M72: 1415 | N72: 70
M73: 1422 | N73: 71
M74: 1429 | N74: 72
M75: 1436 | N75: 73
M76: 1443 | N76: 74
M77: 1450 | N77: 75
M78: 1456 | N78: 76
M79: 1462 | N79: 77
M80: 1468 | N80: 78
M81: 1474 | N81: 79
M82: 1480 | N82: 80
M83: 1486 | N83: 81
M84: 1492 | N84: 82
M85: 1498 | N85: 83
M86: 1504 | N86: 84
M87: 1510 | N87: 85
M88: 1516 | N88: 86
M89: 1522 | N89: 87
M90: 1528 | N90: 88
M91: 1534 | N91: 89
M92: 1540 | N92: 90
M93: 1546 | N93: 91
M94: 1552 | N94: 92
M95: 1558 | N95: 93
M96: 1564 | N96: 94
M97: 1570 | N97: 95
M98: 1576 | N98: 96
M99: 1582 | N99: 97
M100: 1588 | N100: 98
M101: 1594 | N101: 99
M102: 1600 | N102: 100
A65536: CELAL KAYAÖZ

Sheet 1500m.
A1: Türkiye Atletizm Federasyonu İzmir Atletizm İl Temsilciliği
A2: Naili Moran Türkiye Atletizm Şampiyonası
A3: Yarışma : | D3: 1500 Metre
A4: Kategori : | D4: 15 Yaş Kızlar | M4: Tarih-Saat | N4: 14 Haziran 2014 - 19:15
N5: 41804.89857
A6: Sıra No | B6: Göğüs No | C6: Doğum Tarihi Gün/Ay/Yıl | D6: Adı ve Soyadı | E6: İLİ | F6: Derece | G6: Puan | I6: 1. SERİ
I7: Sıra No | J7: Formül | K7: Göğüs No | L7: Doğum Tarihi | M7: Adı ve Soyadı | N7: İLİ | O7: Derece | P7: El Kronometre | Q7: Seri Geliş
A8: 1 | B8: 519 | C8: 1999-02-13 | D8: YEŞİM İTMEÇ | E8: KONYA | F8: 44659 | G8: 85 | I8: 1 | J8: 1500M-1-1 | K8: 519 | L8: 1999-02-13 | M8: YEŞİM İTMEÇ | N8: KONYA | O8: 44659
A9: 2 | B9: 310 | C9: 1999-08-15 | D9: SELENAY BATİ | E9: HATAY | F9: 44945 | G9: 84 | I9: 2 | J9: 1500M-1-2 | K9: 570 | L9: 1999-09-01 | M9: Derya KUNUR | N9: MUŞ | O9: 45653
A10: 3 | B10: 570 | C10: 1999-09-01 | D10: Derya KUNUR | E10: MUŞ | F10: 45653 | G10: 82 | I10: 3 | J10: 1500M-1-3 | K10: 52 | L10: 1999-01-01 | M10: GÜLCAN PALAVAN | N10: ARDAHAN | O10: 45831
A11: 4 | B11: 52 | C11: 1999-01-01 | D11: GÜLCAN PALAVAN | E11: ARDAHAN | F11: 45831 | G11: 81 | I11: 4 | J11: 1500M-1-4 | K11: 247 | L11: 1999-11-01 | M11: KARDELEN YIDIRIM | N11: ERZİNCAN | O11: 51559
A12: 5 | B12: 521 | C12: 1999-01-01 | D12: ŞERİFE KÜÇÜKBAĞCI | E12: KONYA | F12: 50053 | G12: 80 | I12: 5 | J12: 1500M-1-5 | K12: 521 | L12: 1999-01-01 | M12: ŞERİFE KÜÇÜKBAĞCI | N12: KONYA | O12: 50053
A13: 6 | B13: 690 | C13: 1999-02-03 | D13: SELMA İSOT | E13: TOKAT | F13: 50806 | G13: 78 | I13: 6 | J13: 1500M-1-6 | K13: 37 | L13: 1999-12-01 | M13: ELİF SERT | N13: AKSARAY | O13: 53094
A14: 7 | B14: 230 | C14: 1999-01-01 | D14: ELİF ADSIZ | E14: DİYARBAKIR | F14: 50854 | G14: 78 | I14: 7 | J14: 1500M-1-7 | K14: 479 | L14: 1999-01-01 | M14: BÜŞRA TAŞKIN | N14: KIRIKKALE | O14: 50879
A15: 8 | B15: 479 | C15: 1999-01-01 | D15: BÜŞRA TAŞKIN | E15: KIRIKKALE | F15: 50879 | G15: 78 | I15: 8 | J15: 1500M-1-8 | K15: 690 | L15: 1999-02-03 | M15: SELMA İSOT | N15: TOKAT | O15: 50806
A16: 9 | B16: 311 | C16: 1999-06-03 | D16: SEÇİL AKPINAR | E16: HATAY | F16: 51175 | G16: 77 | I16: 9 | J16: 1500M-1-9 | K16: 230 | L16: 1999-01-01 | M16: ELİF ADSIZ | N16: DİYARBAKIR | O16: 50854
A17: 10 | B17: 652 | C17: 1999-03-01 | D17: NURCİHAN OYSAL | E17: SİİRT | F17: 51435 | G17: 76 | I17: 10 | J17: 1500M-1-10 | K17: 545 | L17: 1999-04-01 | M17: FATMA TÜRK | N17: KÜTAHYA | O17: 51747
A18: 11 | B18: 247 | C18: 1999-11-01 | D18: KARDELEN YIDIRIM | E18: ERZİNCAN | F18: 51559 | G18: 75 | I18: 11 | J18: 1500M-1-11 | K18: 539 | L18: 1999-08-28 | M18: ÖZLEM ÖZDEMİR | N18: KÜTAHYA | O18: 51907
A19: 12 | B19: 545 | C19: 1999-04-01 | D19: FATMA TÜRK | E19: KÜTAHYA | F19: 51747 | G19: 75 | I19: 12 | J19: 1500M-1-12
A20: 13 | B20: 265 | C20: 1999-11-23 | D20: KÜBRA ALPER | E20: ERZURUM | F20: 51817 | G20: 74 | I20: 2. SERİ
A21: 14 | B21: 539 | C21: 1999-08-28 | D21: ÖZLEM ÖZDEMİR | E21: KÜTAHYA | F21: 51907 | G21: 74 | I21: Sıra No | J21: Formül | K21: Göğüs No | L21: Doğum Tarihi | M21: Adı ve Soyadı | N21: İLİ | O21: Derece | P21: El Kronometre | Q21: Seri Geliş
A22: 15 | B22: 37 | C22: 1999-12-01 | D22: ELİF SERT | E22: AKSARAY | F22: 53094 | G22: 70 | I22: 1 | J22: 1500M-2-1 | K22: 652 | L22: 1999-03-01 | M22: NURCİHAN OYSAL | N22: SİİRT | O22: 51435
A23: 16 | B23: 266 | C23: 1999-09-20 | D23: AYŞENUR ÇİFTÇİ | E23: ERZURUM | F23: 53620 | G23: 68 | I23: 2 | J23: 1500M-2-2 | K23: 211 | L23: 1999-06-25 | M23: MERVE ARSLAN | N23: ÇANAKKALE | O23: 61954
A24: 17 | B24: 98 | C24: 1999-07-24 | D24: GÜL DEMİR | E24: BALIKESİR | F24: 54210 | G24: 66 | I24: 3 | J24: 1500M-2-3 | K24: 98 | L24: 1999-07-24 | M24: GÜL DEMİR | N24: BALIKESİR | O24: 54210
A25: 18 | B25: 166 | C25: 1999-01-01 | D25: ZEYNEP ERKAN | E25: BİNGÖL | F25: 54412 | G25: 66 | I25: 4 | J25: 1500M-2-4 | K25: 166 | L25: 1999-01-01 | M25: ZEYNEP ERKAN | N25: BİNGÖL | O25: 54412
A26: 19 | B26: 489 | C26: 1999-02-20 | D26: GİZEM ŞAHİN | E26: KIRŞEHİR | F26: 55220 | G26: 63 | I26: 5 | J26: 1500M-2-5 | K26: 310 | L26: 1999-08-15 | M26: SELENAY BATİ | N26: HATAY | O26: 44945
A27: 20 | B27: 211 | C27: 1999-06-25 | D27: MERVE ARSLAN | E27: ÇANAKKALE | F27: 61954 | G27: 54 | I27: 6 | J27: 1500M-2-6 | K27: 311 | L27: 1999-06-03 | M27: SEÇİL AKPINAR | N27: HATAY | O27: 51175
A28: - | B28: 729 | C28: 1999-05-14 | D28: İREM KARAASLAN | E28: İZMİR | F28: DNF | I28: 7 | J28: 1500M-2-7 | K28: 265 | L28: 1999-11-23 | M28: KÜBRA ALPER | N28: ERZURUM | O28: 51817
A29: - | B29: 135 | C29: 1999-01-01 | D29: SİBEL İLHAN | E29: BATMAN | F29: DNF | I29: 8 | J29: 1500M-2-8 | K29: 266 | L29: 1999-09-20 | M29: AYŞENUR ÇİFTÇİ | N29: ERZURUM | O29: 53620
I30: 9 | J30: 1500M-2-9 | K30: 729 | L30: 1999-05-14 | M30: İREM KARAASLAN | N30: İZMİR | O30: DNF
I31: 10 | J31: 1500M-2-10 | K31: 489 | L31: 1999-02-20 | M31: GİZEM ŞAHİN | N31: KIRŞEHİR | O31: 55220
I32: 11 | J32: 1500M-2-11 | K32: 135 | L32: 1999-01-01 | M32: SİBEL İLHAN | N32: BATMAN | O32: DNF
I33: 12 | J33: 1500M-2-12
I34: 3. SERİ
I35: Sıra No | J35: Formül | K35: Göğüs No | L35: Doğum Tarihi | M35: Adı ve Soyadı | N35: İLİ | O35: Derece | P35: El Kronometre | Q35: Seri Geliş
I36: 1 | J36: 1500M-3-1
I37: 2 | J37: 1500M-3-2
I38: 3 | J38: 1500M-3-3
I39: 4 | J39: 1500M-3-4
I40: 5 | J40: 1500M-3-5
I41: 6 | J41: 1500M-3-6
I42: 7 | J42: 1500M-3-7
I43: 8 | J43: 1500M-3-8
I44: 9 | J44: 1500M-3-9
I45: 10 | J45: 1500M-3-10
I46: 11 | J46: 1500M-3-11
I47: 12 | J47: 1500M-3-12
I48: 4. SERİ
I49: Sıra No | J49: Formül | K49: Göğüs No | L49: Doğum Tarihi | M49: Adı ve Soyadı | N49: İLİ | O49: Derece | P49: El Kronometre | Q49: Seri Geliş
I50: 1 | J50: 1500M-4-1
I51: 2 | J51: 1500M-4-2
I52: 3 | J52: 1500M-4-3
I53: 4 | J53: 1500M-4-4
I54: 5 | J54: 1500M-4-5
I55: 6 | J55: 1500M-4-6
I56: 7 | J56: 1500M-4-7
I57: 8 | J57: 1500M-4-8
I58: 9 | J58: 1500M-4-9
I59: 10 | J59: 1500M-4-10
I60: 11 | J60: 1500M-4-11
I61: 12 | J61: 1500M-4-12
A63: Müsabakalar Direktörü | E63: Baş Hakem | F63: Lider | H63: Sekreter | M63: Hakem | N63: Hakem | P63: Hakem
A65536: CELAL KAYAÖZ

Sheet Yüksek
A1: Türkiye Atletizm Federasyonu İzmir Atletizm İl Temsilciliği | BX1: DERECE
A2: Naili Moran Türkiye Atletizm Şampiyonası | BX2: 1 | BY2: 0
A3: Yarışma : | E3: Yüksek Atlama | BX3: 98 | BY3: 1
A4: Kategori : | E4: 15 Yaş Kızlar | AW4: Tarih-Saat : | BC4: 14 Haziran 2014 - 18:45 | BX4: 100 | BY4: 2
BR5: 41804.94716 | BX5: 102 | BY5: 3
A6: SIRA NO | C6: GÖĞÜS NO | D6: DOĞUM TARİHİ | E6: ADI VE SOYADI | F6: İLİ | G6: A T L A M A L A R | BR6: SONUÇ | BS6: PUAN | BT6: KLASMAN | BX6: 104 | BY6: 4
G7: 110 | J7: 115 | M7: 120 | P7: 125 | S7: 130 | V7: 134 | Y7: 138 | AB7: 142 | AE7: 146 | AH7: 150 | AK7: 152 | AN7: 154 | AQ7: 156 | AT7: 158 | AW7: 160 | AZ7: 162 | BC7: 164 | BF7: 166 | BI7: 168 | BL7: 170 | BO7: 172 | BX7: 106 | BY7: 5
A8: 1 | B8: Yüksek-4 | C8: 378 | D8: 1999-08-06 | E8: OLİMPİA AHENK DOURMOUCHEV | F8: İZMİR | AE8: O | AH8: O | AK8: X | AL8: O | AN8: X | AO8: O | AQ8: X | AR8: X | AS8: X | BR8: 154 | BS8: 83 | BX8: 108 | BY8: 6
A9: 2 | B9: Yüksek-1 | C9: 463 | D9: 1999-06-18 | E9: SEHER AKKUŞ | F9: KARAMAN | G9: - | J9: - | M9: O | P9: O | S9: O | V9: O | Y9: X | Z9: O | AB9: O | AE9: X | AF9: X | AG9: X | BR9: 142 | BS9: 77 | BX9: 110 | BY9: 7
A10: 3 | B10: Yüksek-5 | C10: 674 | D10: 1999-04-27 | E10: PINAR DOĞRU | F10: TEKİRDAĞ | G10: - | J10: - | M10: - | P10: - | S10: X | T10: O | V10: X | W10: O | Y10: X | Z10: O | AB10: X | AC10: O | AE10: X | AF10: X | AG10: X | BR10: 142 | BS10: 77 | BX10: 112 | BY10: 8
A11: 4 | B11: Yüksek-2 | C11: 464 | D11: 1999-11-08 | E11: EMİNE ÜNLÜER | F11: KARAMAN | G11: - | J11: - | M11: O | P11: O | S11: O | V11: O | Y11: O | AB11: X | AC11: X | AD11: X | BR11: 138 | BS11: 74 | BX11: 114 | BY11: 9
A12: 5 | B12: Yüksek-3 | C12: 37 | D12: 1999-12-01 | E12: ELİF SERT | F12: AKSARAY | G12: O | J12: O | M12: - | P12: X | Q12: O | S12: X | T12: X | U12: X | BR12: 125 | BS12: 61 | BX12: 116 | BY12: 10
B13: Yüksek-6 | BX13: 118 | BY13: 11
B14: Yüksek-7 | BX14: 120 | BY14: 12
B15: Yüksek-8 | BX15: 122 | BY15: 13
B16: Yüksek-9 | BX16: 124 | BY16: 14
B17: Yüksek-10 | BX17: 126 | BY17: 15
B18: Yüksek-11 | BX18: 128 | BY18: 16
B19: Yüksek-12 | BX19: 130 | BY19: 17
B20: Yüksek-13 | BX20: 132 | BY20: 18
B21: Yüksek-14 | BX21: 134 | BY21: 19
B22: Yüksek-15 | BX22: 136 | BY22: 20
B23: Yüksek-16 | BX23: 138 | BY23: 21
B24: Yüksek-17 | BX24: 140 | BY24: 22
B25: Yüksek-18 | BX25: 142 | BY25: 23
B26: Yüksek-19 | BX26: 144 | BY26: 24
B27: Yüksek-20 | BX27: 146 | BY27: 25
B28: Yüksek-21 | BX28: 148 | BY28: 26
B29: Yüksek-22 | BX29: 150 | BY29: 27
B30: Yüksek-23 | BX30: 152 | BY30: 28
B31: Yüksek-24 | BX31: 154 | BY31: 29
B32: Yüksek-25 | BX32: 156 | BY32: 30
BX33: 157 | BY33: 31
A34: Müsabaka Direktörü | F34: Baş Hakem | J34: Lider | S34: Sekreter | BR34: Hakem | BX34: 158 | BY34: 32
BX35: 159 | BY35: 33
BX36: 160 | BY36: 34
BX37: 161 | BY37: 35
BX38: 162 | BY38: 36
BX39: 163 | BY39: 37
BX40: 164 | BY40: 38
BX41: 165 | BY41: 39
BX42: 166 | BY42: 40
BX43: 167 | BY43: 41
BX44: 168 | BY44: 42
BX45: 169 | BY45: 43
BX46: 170 | BY46: 44
BX47: 171 | BY47: 45
BX48: 172 | BY48: 46
BX49: 173 | BY49: 47
BX50: 174 | BY50: 48
BX51: 175 | BY51: 49
BX52: 176 | BY52: 50
BX53: 177 | BY53: 51
BX54: 178 | BY54: 52
BX55: 179 | BY55: 53
BX56: 180 | BY56: 54
BX57: 181 | BY57: 55
BX58: 182 | BY58: 56
BX59: 183 | BY59: 57
BX60: 184 | BY60: 58
BX61: 185 | BY61: 59
BX62: 186 | BY62: 60
BX63: 187 | BY63: 61
BX64: 188 | BY64: 62
BX65: 189 | BY65: 63
BX66: 190 | BY66: 64
BX67: 191 | BY67: 65
BX68: 192 | BY68: 66
BX69: 193 | BY69: 67
BX70: 194 | BY70: 68
BX71: 195 | BY71: 69
BX72: 196 | BY72: 70
BX73: 197 | BY73: 71
BX74: 198 | BY74: 72
BX75: 199 | BY75: 73
BX76: 200 | BY76: 74
BX77: 201 | BY77: 75
BX78: 202 | BY78: 76
BX79: 203 | BY79: 77
BX80: 204 | BY80: 78
BX81: 205 | BY81: 79
BX82: 206 | BY82: 80
BX83: 207 | BY83: 81
BX84: 208 | BY84: 82
BX85: 209 | BY85: 83
BX86: 210 | BY86: 84
BX87: 211 | BY87: 85
BX88: 212 | BY88: 86
BX89: 213 | BY89: 87
BX90: 214 | BY90: 88
BX91: 215 | BY91: 89
BX92: 216 | BY92: 90
BY93: 91
BX94: 217 | BY94: 92
BY95: 93
BX96: 218 | BY96: 94
BY97: 95
BX98: 219 | BY98: 96
BY99: 97
BX100: 220 | BY100: 98
BY101: 99
BX102: 221 | BY102: 100
BX281: DNS | BY281: 0
A65536: CELAL KAYAÖZ

Sheet 400m.
A1: Türkiye Atletizm Federasyonu İzmir Atletizm İl Temsilciliği
A2: Naili Moran Türkiye Atletizm Şampiyonası
A3: Yarışma : | D3: 400 Metre
A4: Kategori : | D4: 15 Yaş Kızlar | M4: Tarih-Saat : | N4: 14 Haziran 2014 - 20:15
N5: 41804.97893
A6: Sıra No | B6: Göğüs No | C6: Doğum Tarihi Gün/Ay/Yıl | D6: Adı ve Soyadı | E6: İLİ | F6: Derece | G6: Puan | I6: 1. SERİ
I7: Sıra No | J7: Formül | K7: Göğüs No | L7: Doğum Tarihi | M7: Adı ve Soyadı | N7: İLİ | O7: Derece | P7: El Kronometre | Q7: Seri Geliş
A8: 1 | B8: 197 | C8: 1999-10-12 | D8: AYŞE CAN | E8: BURSA | F8: 10195 | G8: 77 | I8: 1 | J8: 400M-1-1 | K8: 388 | L8: 1999-01-01 | M8: DİDEM BARDAKÇI | N8: İZMİR | O8: 11073 | Q8: 5
A9: 2 | B9: 463 | C9: 1999-06-18 | D9: SEHER AKKUŞ | E9: KARAMAN | F9: 10229 | G9: 76 | I9: 2 | J9: 400M-1-2 | K9: 140 | L9: 1999-03-26 | M9: MAŞALLAH AYDIN | N9: BATMAN | O9: 11502 | Q9: 7
A10: 3 | B10: 585 | C10: 1999-07-17 | D10: BURCU KIZILIRMAK | E10: NEVŞEHİR | F10: 10575 | G10: 69 | I10: 3 | J10: 400M-1-3 | K10: 197 | L10: 1999-10-12 | M10: AYŞE CAN | N10: BURSA | O10: 10195 | Q10: 1
A11: 4 | B11: 38 | C11: 1999-04-28 | D11: GÜLÇİN DİKER | E11: AKSARAY | F11: 10613 | G11: 68 | I11: 4 | J11: 400M-1-4 | K11: 463 | L11: 1999-06-18 | M11: SEHER AKKUŞ | N11: KARAMAN | O11: 10229 | Q11: 2
A12: 5 | B12: 342 | C12: 1999-08-04 | D12: CANSEL TÜRE | E12: ISPARTA | F12: 10654 | G12: 67 | I12: 5 | J12: 400M-1-5 | K12: 38 | L12: 1999-04-28 | M12: GÜLÇİN DİKER | N12: AKSARAY | O12: 10613 | Q12: 3
A13: 6 | B13: 25 | C13: 1999-02-01 | D13: PINAR KARAHAN | E13: ADIYAMAN | F13: 10808 | G13: 64 | I13: 6 | J13: 400M-1-6 | K13: 99 | L13: 1999-08-10 | M13: EMİNE HİLAL ÇETİNKAYA | N13: BALIKESİR | O13: 10865 | Q13: 4
A14: 7 | B14: 99 | C14: 1999-08-10 | D14: EMİNE HİLAL ÇETİNKAYA | E14: BALIKESİR | F14: 10865 | G14: 63 | I14: 7 | J14: 400M-1-7 | K14: 141 | L14: 1999-01-01 | M14: DİLAN AYTEN | N14: BATMAN | O14: 11474 | Q14: 6
A15: 8 | B15: 651 | C15: 1999-10-09 | D15: LEYLA TETİK | E15: SİİRT | F15: 10996 | G15: 61 | I15: 8 | J15: 400M-1-8
A16: 9 | B16: 388 | C16: 1999-01-01 | D16: DİDEM BARDAKÇI | E16: İZMİR | F16: 11073 | G16: 60 | I16: 2. SERİ
A17: 10 | B17: 141 | C17: 1999-01-01 | D17: DİLAN AYTEN | E17: BATMAN | F17: 11474 | G17: 56 | I17: Sıra No | J17: Formül | K17: Göğüs No | L17: Doğum Tarihi | M17: Adı ve Soyadı | N17: İLİ | O17: Derece | P17: El Kronometre | Q17: Seri Geliş
A18: 11 | B18: 140 | C18: 1999-03-26 | D18: MAŞALLAH AYDIN | E18: BATMAN | F18: 11502 | G18: 55 | I18: 1 | J18: 400M-2-1
A19: 12 | B19: 210 | C19: 1999-11-22 | D19: BELİNAY DENİZ GÜZEL | E19: ÇANAKKALE | F19: 11552 | G19: 55 | I19: 2 | J19: 400M-2-2 | K19: 585 | L19: 1999-07-17 | M19: BURCU KIZILIRMAK | N19: NEVŞEHİR | O19: 10575 | Q19: 1
A20: 13 | B20: 650 | C20: 1999-07-30 | D20: ESRA OYSAL | E20: SİİRT | F20: 11742 | G20: 53 | I20: 3 | J20: 400M-2-3 | K20: 650 | L20: 1999-07-30 | M20: ESRA OYSAL | N20: SİİRT | O20: 11742 | Q20: 6
I21: 4 | J21: 400M-2-4 | K21: 342 | L21: 1999-08-04 | M21: CANSEL TÜRE | N21: ISPARTA | O21: 10654 | Q21: 2
I22: 5 | J22: 400M-2-5 | K22: 210 | L22: 1999-11-22 | M22: BELİNAY DENİZ GÜZEL | N22: ÇANAKKALE | O22: 11552 | Q22: 5
I23: 6 | J23: 400M-2-6 | K23: 651 | L23: 1999-10-09 | M23: LEYLA TETİK | N23: SİİRT | O23: 10996 | Q23: 4
I24: 7 | J24: 400M-2-7 | K24: 25 | L24: 1999-02-01 | M24: PINAR KARAHAN | N24: ADIYAMAN | O24: 10808 | Q24: 3
I25: 8 | J25: 400M-2-8
I26: 3. SERİ
I27: Sıra No | J27: Formül | K27: Göğüs No | L27: Doğum Tarihi | M27: Adı ve Soyadı | N27: İLİ | O27: Derece | P27: El Kronometre | Q27: Seri Geliş
I28: 1 | J28: 400M-3-1
I29: 2 | J29: 400M-3-2
I30: 3 | J30: 400M-3-3
I31: 4 | J31: 400M-3-4
I32: 5 | J32: 400M-3-5
I33: 6 | J33: 400M-3-6
I34: 7 | J34: 400M-3-7
I35: 8 | J35: 400M-3-8
I36: 4. SERİ
I37: Sıra No | J37: Formül | K37: Göğüs No | L37: Doğum Tarihi | M37: Adı ve Soyadı | N37: İLİ | O37: Derece | P37: El Kronometre | Q37: Seri Geliş
I38: 1 | J38: 400M-4-1
I39: 2 | J39: 400M-4-2
I40: 3 | J40: 400M-4-3
I41: 4 | J41: 400M-4-4
I42: 5 | J42: 400M-4-5
I43: 6 | J43: 400M-4-6
I44: 7 | J44: 400M-4-7
I45: 8 | J45: 400M-4-8
A47: Müsabakalar Direktörü | E47: Baş Hakem | F47: Lider | H47: Sekreter | M47: Hakem | N47: Hakem | P47: Hakem
A65536: CELAL KAYAÖZ

Sheet 2.Gün Start Listesi (hidden)
A1: =('YARIŞMA BİLGİLERİ'!A2) -> Türkiye Atletizm Federasyonu İzmir Atletizm İl Temsilciliği
A2: ='YARIŞMA BİLGİLERİ'!F19 -> Naili Moran Türkiye Atletizm Şampiyonası
A3: 2.GÜN GENÇ ERKEKLER START LİSTELERİ
A4: 800 METRE | I4: ÜÇADIM ATLAMA
A5: 1. SERİ
A6: Sıra No | B6: Formül | C6: Göğüs No | D6: Doğum Tarihi | E6: Adı ve Soyadı | F6: Okulu | G6: Start Kontrol | I6: SIRA NO | K6: GÖĞÜS NO | L6: DOĞUM TARİHİ | M6: ADI VE SOYADI | N6: OKULU | O6: START KONTROL
A7: 1 | B7: 800M-1-1 | C7: =IF(ISERROR(VLOOKUP(B7,'KAYIT LİSTESİ'!$B$4:$H$767,2,0)),"",(VLOOKUP(B7,'KAYIT LİSTESİ'!$B$4:$H$767,2,0))) -> 570 | D7: =IF(ISERROR(VLOOKUP(B7,'KAYIT LİSTESİ'!$B$4:$H$767,4,0)),"",(VLOOKUP(B7,'KAYIT LİSTESİ'!$B$4:$H$767,4,0))) -> 1999-09-01 | E7: =IF(ISERROR(VLOOKUP(B7,'KAYIT LİSTESİ'!$B$4:$H$767,5,0)),"",(VLOOKUP(B7,'KAYIT LİSTESİ'!$B$4:$H$767,5,0))) -> Derya KUNUR | F7: =IF(ISERROR(VLOOKUP(B7,'KAYIT LİSTESİ'!$B$4:$H$767,6,0)),"",(VLOOKUP(B7,'KAYIT LİSTESİ'!$B$4:$H$767,6,0))) -> MUŞ
A8: 2 | B8: 800M-1-2 | C8: =IF(ISERROR(VLOOKUP(B8,'KAYIT LİSTESİ'!$B$4:$H$767,2,0)),"",(VLOOKUP(B8,'KAYIT LİSTESİ'!$B$4:$H$767,2,0))) -> 52 | D8: =IF(ISERROR(VLOOKUP(B8,'KAYIT LİSTESİ'!$B$4:$H$767,4,0)),"",(VLOOKUP(B8,'KAYIT LİSTESİ'!$B$4:$H$767,4,0))) -> 1999-01-01 | E8: =IF(ISERROR(VLOOKUP(B8,'KAYIT LİSTESİ'!$B$4:$H$767,5,0)),"",(VLOOKUP(B8,'KAYIT LİSTESİ'!$B$4:$H$767,5,0))) -> GÜLCAN PALAVAN | F8: =IF(ISERROR(VLOOKUP(B8,'KAYIT LİSTESİ'!$B$4:$H$767,6,0)),"",(VLOOKUP(B8,'KAYIT LİSTESİ'!$B$4:$H$767,6,0))) -> ARDAHAN | I8: 1 | J8: ÜÇADIM-1 | K8: =IF(ISERROR(VLOOKUP(J8,'KAYIT LİSTESİ'!$B$4:$H$767,2,0)),"",(VLOOKUP(J8,'KAYIT LİSTESİ'!$B$4:$H$767,2,0))) -> 300 | L8: =IF(ISERROR(VLOOKUP(J8,'KAYIT LİSTESİ'!$B$4:$H$767,4,0)),"",(VLOOKUP(J8,'KAYIT LİSTESİ'!$B$4:$H$767,4,0))) -> 1999-08-13 | M8: =IF(ISERROR(VLOOKUP(J8,'KAYIT LİSTESİ'!$B$4:$H$767,5,0)),"",(VLOOKUP(J8,'KAYIT LİSTESİ'!$B$4:$H$767,5,0))) -> ŞEYMA BİRİNCİ | N8: =IF(ISERROR(VLOOKUP(J8,'KAYIT LİSTESİ'!$B$4:$H$767,6,0)),"",(VLOOKUP(J8,'KAYIT LİSTESİ'!$B$4:$H$767,6,0))) -> GİRESUN
A9: 3 | B9: 800M-1-3 | C9: =IF(ISERROR(VLOOKUP(B9,'KAYIT LİSTESİ'!$B$4:$H$767,2,0)),"",(VLOOKUP(B9,'KAYIT LİSTESİ'!$B$4:$H$767,2,0))) -> 521 | D9: =IF(ISERROR(VLOOKUP(B9,'KAYIT LİSTESİ'!$B$4:$H$767,4,0)),"",(VLOOKUP(B9,'KAYIT LİSTESİ'!$B$4:$H$767,4,0))) -> 1999-01-01 | E9: =IF(ISERROR(VLOOKUP(B9,'KAYIT LİSTESİ'!$B$4:$H$767,5,0)),"",(VLOOKUP(B9,'KAYIT LİSTESİ'!$B$4:$H$767,5,0))) -> ŞERİFE KÜÇÜKBAĞCI | F9: =IF(ISERROR(VLOOKUP(B9,'KAYIT LİSTESİ'!$B$4:$H$767,6,0)),"",(VLOOKUP(B9,'KAYIT LİSTESİ'!$B$4:$H$767,6,0))) -> KONYA | I9: 2 | J9: ÜÇADIM-2 | K9: =IF(ISERROR(VLOOKUP(J9,'KAYIT LİSTESİ'!$B$4:$H$767,2,0)),"",(VLOOKUP(J9,'KAYIT LİSTESİ'!$B$4:$H$767,2,0))) -> 378 | L9: =IF(ISERROR(VLOOKUP(J9,'KAYIT LİSTESİ'!$B$4:$H$767,4,0)),"",(VLOOKUP(J9,'KAYIT LİSTESİ'!$B$4:$H$767,4,0))) -> 1999-08-06 | M9: =IF(ISERROR(VLOOKUP(J9,'KAYIT LİSTESİ'!$B$4:$H$767,5,0)),"",(VLOOKUP(J9,'KAYIT LİSTESİ'!$B$4:$H$767,5,0))) -> OLİMPİA AHENK DOURMOUCHEV | N9: =IF(ISERROR(VLOOKUP(J9,'KAYIT LİSTESİ'!$B$4:$H$767,6,0)),"",(VLOOKUP(J9,'KAYIT LİSTESİ'!$B$4:$H$767,6,0))) -> İZMİR
A10: 4 | B10: 800M-1-4 | C10: =IF(ISERROR(VLOOKUP(B10,'KAYIT LİSTESİ'!$B$4:$H$767,2,0)),"",(VLOOKUP(B10,'KAYIT LİSTESİ'!$B$4:$H$767,2,0))) -> 334 | D10: =IF(ISERROR(VLOOKUP(B10,'KAYIT LİSTESİ'!$B$4:$H$767,4,0)),"",(VLOOKUP(B10,'KAYIT LİSTESİ'!$B$4:$H$767,4,0))) -> 1999-04-04 | E10: =IF(ISERROR(VLOOKUP(B10,'KAYIT LİSTESİ'!$B$4:$H$767,5,0)),"",(VLOOKUP(B10,'KAYIT LİSTESİ'!$B$4:$H$767,5,0))) -> BUKET YAĞCI | F10: =IF(ISERROR(VLOOKUP(B10,'KAYIT LİSTESİ'!$B$4:$H$767,6,0)),"",(VLOOKUP(B10,'KAYIT LİSTESİ'!$B$4:$H$767,6,0))) -> ISPARTA | I10: 3 | J10: ÜÇADIM-3 | K10: =IF(ISERROR(VLOOKUP(J10,'KAYIT LİSTESİ'!$B$4:$H$767,2,0)),"",(VLOOKUP(J10,'KAYIT LİSTESİ'!$B$4:$H$767,2,0))) -> 266 | L10: =IF(ISERROR(VLOOKUP(J10,'KAYIT LİSTESİ'!$B$4:$H$767,4,0)),"",(VLOOKUP(J10,'KAYIT LİSTESİ'!$B$4:$H$767,4,0))) -> 1999-09-20 | M10: =IF(ISERROR(VLOOKUP(J10,'KAYIT LİSTESİ'!$B$4:$H$767,5,0)),"",(VLOOKUP(J10,'KAYIT LİSTESİ'!$B$4:$H$767,5,0))) -> AYŞENUR ÇİFTÇİ | N10: =IF(ISERROR(VLOOKUP(J10,'KAYIT LİSTESİ'!$B$4:$H$767,6,0)),"",(VLOOKUP(J10,'KAYIT LİSTESİ'!$B$4:$H$767,6,0))) -> ERZURUM
A11: 5 | B11: 800M-1-5 | C11: =IF(ISERROR(VLOOKUP(B11,'KAYIT LİSTESİ'!$B$4:$H$767,2,0)),"",(VLOOKUP(B11,'KAYIT LİSTESİ'!$B$4:$H$767,2,0))) -> 545 | D11: =IF(ISERROR(VLOOKUP(B11,'KAYIT LİSTESİ'!$B$4:$H$767,4,0)),"",(VLOOKUP(B11,'KAYIT LİSTESİ'!$B$4:$H$767,4,0))) -> 1999-04-01 | E11: =IF(ISERROR(VLOOKUP(B11,'KAYIT LİSTESİ'!$B$4:$H$767,5,0)),"",(VLOOKUP(B11,'KAYIT LİSTESİ'!$B$4:$H$767,5,0))) -> FATMA TÜRK | F11: =IF(ISERROR(VLOOKUP(B11,'KAYIT LİSTESİ'!$B$4:$H$767,6,0)),"",(VLOOKUP(B11,'KAYIT LİSTESİ'!$B$4:$H$767,6,0))) -> KÜTAHYA | I11: 4 | J11: ÜÇADIM-4 | K11: =IF(ISERROR(VLOOKUP(J11,'KAYIT LİSTESİ'!$B$4:$H$767,2,0)),"",(VLOOKUP(J11,'KAYIT LİSTESİ'!$B$4:$H$767,2,0))) -> 714 | L11: =IF(ISERROR(VLOOKUP(J11,'KAYIT LİSTESİ'!$B$4:$H$767,4,0)),"",(VLOOKUP(J11,'KAYIT LİSTESİ'!$B$4:$H$767,4,0))) -> 1999-01-01 | M11: =IF(ISERROR(VLOOKUP(J11,'KAYIT LİSTESİ'!$B$4:$H$767,5,0)),"",(VLOOKUP(J11,'KAYIT LİSTESİ'!$B$4:$H$767,5,0))) -> GÜLBAHAR ERDOĞAN | N11: =IF(ISERROR(VLOOKUP(J11,'KAYIT LİSTESİ'!$B$4:$H$767,6,0)),"",(VLOOKUP(J11,'KAYIT LİSTESİ'!$B$4:$H$767,6,0))) -> TUNCELİ
A12: 6 | B12: 800M-1-6 | C12: =IF(ISERROR(VLOOKUP(B12,'KAYIT LİSTESİ'!$B$4:$H$767,2,0)),"",(VLOOKUP(B12,'KAYIT LİSTESİ'!$B$4:$H$767,2,0))) -> 247 | D12: =IF(ISERROR(VLOOKUP(B12,'KAYIT LİSTESİ'!$B$4:$H$767,4,0)),"",(VLOOKUP(B12,'KAYIT LİSTESİ'!$B$4:$H$767,4,0))) -> 1999-11-01 | E12: =IF(ISERROR(VLOOKUP(B12,'KAYIT LİSTESİ'!$B$4:$H$767,5,0)),"",(VLOOKUP(B12,'KAYIT LİSTESİ'!$B$4:$H$767,5,0))) -> KARDELEN YIDIRIM | F12: =IF(ISERROR(VLOOKUP(B12,'KAYIT LİSTESİ'!$B$4:$H$767,6,0)),"",(VLOOKUP(B12,'KAYIT LİSTESİ'!$B$4:$H$767,6,0))) -> ERZİNCAN | I12: 5 | J12: ÜÇADIM-5 | K12: =IF(ISERROR(VLOOKUP(J12,'KAYIT LİSTESİ'!$B$4:$H$767,2,0)),"",(VLOOKUP(J12,'KAYIT LİSTESİ'!$B$4:$H$767,2,0))) -> 334 | L12: =IF(ISERROR(VLOOKUP(J12,'KAYIT LİSTESİ'!$B$4:$H$767,4,0)),"",(VLOOKUP(J12,'KAYIT LİSTESİ'!$B$4:$H$767,4,0))) -> 1999-04-04 | M12: =IF(ISERROR(VLOOKUP(J12,'KAYIT LİSTESİ'!$B$4:$H$767,5,0)),"",(VLOOKUP(J12,'KAYIT LİSTESİ'!$B$4:$H$767,5,0))) -> BUKET YAĞCI | N12: =IF(ISERROR(VLOOKUP(J12,'KAYIT LİSTESİ'!$B$4:$H$767,6,0)),"",(VLOOKUP(J12,'KAYIT LİSTESİ'!$B$4:$H$767,6,0))) -> ISPARTA
A13: 7 | B13: 800M-1-7 | C13: =IF(ISERROR(VLOOKUP(B13,'KAYIT LİSTESİ'!$B$4:$H$767,2,0)),"",(VLOOKUP(B13,'KAYIT LİSTESİ'!$B$4:$H$767,2,0))) -> 38 | D13: =IF(ISERROR(VLOOKUP(B13,'KAYIT LİSTESİ'!$B$4:$H$767,4,0)),"",(VLOOKUP(B13,'KAYIT LİSTESİ'!$B$4:$H$767,4,0))) -> 1999-04-28 | E13: =IF(ISERROR(VLOOKUP(B13,'KAYIT LİSTESİ'!$B$4:$H$767,5,0)),"",(VLOOKUP(B13,'KAYIT LİSTESİ'!$B$4:$H$767,5,0))) -> GÜLÇİN DİKER | F13: =IF(ISERROR(VLOOKUP(B13,'KAYIT LİSTESİ'!$B$4:$H$767,6,0)),"",(VLOOKUP(B13,'KAYIT LİSTESİ'!$B$4:$H$767,6,0))) -> AKSARAY | I13: 6 | J13: ÜÇADIM-6 | K13: =IF(ISERROR(VLOOKUP(J13,'KAYIT LİSTESİ'!$B$4:$H$767,2,0)),"",(VLOOKUP(J13,'KAYIT LİSTESİ'!$B$4:$H$767,2,0))) -> 675 | L13: =IF(ISERROR(VLOOKUP(J13,'KAYIT LİSTESİ'!$B$4:$H$767,4,0)),"",(VLOOKUP(J13,'KAYIT LİSTESİ'!$B$4:$H$767,4,0))) -> 1999-05-27 | M13: =IF(ISERROR(VLOOKUP(J13,'KAYIT LİSTESİ'!$B$4:$H$767,5,0)),"",(VLOOKUP(J13,'KAYIT LİSTESİ'!$B$4:$H$767,5,0))) -> BEGÜM YILMAZ | N13: =IF(ISERROR(VLOOKUP(J13,'KAYIT LİSTESİ'!$B$4:$H$767,6,0)),"",(VLOOKUP(J13,'KAYIT LİSTESİ'!$B$4:$H$767,6,0))) -> TEKİRDAĞ
A14: 8 | B14: 800M-1-8 | C14: =IF(ISERROR(VLOOKUP(B14,'KAYIT LİSTESİ'!$B$4:$H$767,2,0)),"",(VLOOKUP(B14,'KAYIT LİSTESİ'!$B$4:$H$767,2,0))) -> 456 | D14: =IF(ISERROR(VLOOKUP(B14,'KAYIT LİSTESİ'!$B$4:$H$767,4,0)),"",(VLOOKUP(B14,'KAYIT LİSTESİ'!$B$4:$H$767,4,0))) -> 1999-04-04 | E14: =IF(ISERROR(VLOOKUP(B14,'KAYIT LİSTESİ'!$B$4:$H$767,5,0)),"",(VLOOKUP(B14,'KAYIT LİSTESİ'!$B$4:$H$767,5,0))) -> ELİF KARATAŞ | F14: =IF(ISERROR(VLOOKUP(B14,'KAYIT LİSTESİ'!$B$4:$H$767,6,0)),"",(VLOOKUP(B14,'KAYIT LİSTESİ'!$B$4:$H$767,6,0))) -> KARABÜK | I14: 7 | J14: ÜÇADIM-7 | K14: =IF(ISERROR(VLOOKUP(J14,'KAYIT LİSTESİ'!$B$4:$H$767,2,0)),"",(VLOOKUP(J14,'KAYIT LİSTESİ'!$B$4:$H$767,2,0))) -> 524 | L14: =IF(ISERROR(VLOOKUP(J14,'KAYIT LİSTESİ'!$B$4:$H$767,4,0)),"",(VLOOKUP(J14,'KAYIT LİSTESİ'!$B$4:$H$767,4,0))) -> 1999-01-08 | M14: =IF(ISERROR(VLOOKUP(J14,'KAYIT LİSTESİ'!$B$4:$H$767,5,0)),"",(VLOOKUP(J14,'KAYIT LİSTESİ'!$B$4:$H$767,5,0))) -> Habibe Tokay | N14: =IF(ISERROR(VLOOKUP(J14,'KAYIT LİSTESİ'!$B$4:$H$767,6,0)),"",(VLOOKUP(J14,'KAYIT LİSTESİ'!$B$4:$H$767,6,0))) -> KONYA
A15: 9 | B15: 800M-1-9 | C15: =IF(ISERROR(VLOOKUP(B15,'KAYIT LİSTESİ'!$B$4:$H$767,2,0)),"",(VLOOKUP(B15,'KAYIT LİSTESİ'!$B$4:$H$767,2,0))) -> 342 | D15: =IF(ISERROR(VLOOKUP(B15,'KAYIT LİSTESİ'!$B$4:$H$767,4,0)),"",(VLOOKUP(B15,'KAYIT LİSTESİ'!$B$4:$H$767,4,0))) -> 1999-08-04 | E15: =IF(ISERROR(VLOOKUP(B15,'KAYIT LİSTESİ'!$B$4:$H$767,5,0)),"",(VLOOKUP(B15,'KAYIT LİSTESİ'!$B$4:$H$767,5,0))) -> CANSEL TÜRE | F15: =IF(ISERROR(VLOOKUP(B15,'KAYIT LİSTESİ'!$B$4:$H$767,6,0)),"",(VLOOKUP(B15,'KAYIT LİSTESİ'!$B$4:$H$767,6,0))) -> ISPARTA | I15: 8 | J15: ÜÇADIM-8 | K15: =IF(ISERROR(VLOOKUP(J15,'KAYIT LİSTESİ'!$B$4:$H$767,2,0)),"",(VLOOKUP(J15,'KAYIT LİSTESİ'!$B$4:$H$767,2,0))) -> 628 | L15: =IF(ISERROR(VLOOKUP(J15,'KAYIT LİSTESİ'!$B$4:$H$767,4,0)),"",(VLOOKUP(J15,'KAYIT LİSTESİ'!$B$4:$H$767,4,0))) -> 1999-02-09 | M15: =IF(ISERROR(VLOOKUP(J15,'KAYIT LİSTESİ'!$B$4:$H$767,5,0)),"",(VLOOKUP(J15,'KAYIT LİSTESİ'!$B$4:$H$767,5,0))) -> ŞEYMA OCAK | N15: =IF(ISERROR(VLOOKUP(J15,'KAYIT LİSTESİ'!$B$4:$H$767,6,0)),"",(VLOOKUP(J15,'KAYIT LİSTESİ'!$B$4:$H$767,6,0))) -> SAMSUN
A16: 10 | B16: 800M-1-10 | C16: =IF(ISERROR(VLOOKUP(B16,'KAYIT LİSTESİ'!$B$4:$H$767,2,0)),"",(VLOOKUP(B16,'KAYIT LİSTESİ'!$B$4:$H$767,2,0))) ->  | D16: =IF(ISERROR(VLOOKUP(B16,'KAYIT LİSTESİ'!$B$4:$H$767,4,0)),"",(VLOOKUP(B16,'KAYIT LİSTESİ'!$B$4:$H$767,4,0))) ->  | E16: =IF(ISERROR(VLOOKUP(B16,'KAYIT LİSTESİ'!$B$4:$H$767,5,0)),"",(VLOOKUP(B16,'KAYIT LİSTESİ'!$B$4:$H$767,5,0))) ->  | F16: =IF(ISERROR(VLOOKUP(B16,'KAYIT LİSTESİ'!$B$4:$H$767,6,0)),"",(VLOOKUP(B16,'KAYIT LİSTESİ'!$B$4:$H$767,6,0))) ->  | I16: 9 | J16: ÜÇADIM-9 | K16: =IF(ISERROR(VLOOKUP(J16,'KAYIT LİSTESİ'!$B$4:$H$767,2,0)),"",(VLOOKUP(J16,'KAYIT LİSTESİ'!$B$4:$H$767,2,0))) -> 624 | L16: =IF(ISERROR(VLOOKUP(J16,'KAYIT LİSTESİ'!$B$4:$H$767,4,0)),"",(VLOOKUP(J16,'KAYIT LİSTESİ'!$B$4:$H$767,4,0))) -> 1999-11-03 | M16: =IF(ISERROR(VLOOKUP(J16,'KAYIT LİSTESİ'!$B$4:$H$767,5,0)),"",(VLOOKUP(J16,'KAYIT LİSTESİ'!$B$4:$H$767,5,0))) -> İLAYDA BULUT | N16: =IF(ISERROR(VLOOKUP(J16,'KAYIT LİSTESİ'!$B$4:$H$767,6,0)),"",(VLOOKUP(J16,'KAYIT LİSTESİ'!$B$4:$H$767,6,0))) -> SAKARYA
A17: 11 | B17: 800M-1-11 | C17: =IF(ISERROR(VLOOKUP(B17,'KAYIT LİSTESİ'!$B$4:$H$767,2,0)),"",(VLOOKUP(B17,'KAYIT LİSTESİ'!$B$4:$H$767,2,0))) ->  | D17: =IF(ISERROR(VLOOKUP(B17,'KAYIT LİSTESİ'!$B$4:$H$767,4,0)),"",(VLOOKUP(B17,'KAYIT LİSTESİ'!$B$4:$H$767,4,0))) ->  | E17: =IF(ISERROR(VLOOKUP(B17,'KAYIT LİSTESİ'!$B$4:$H$767,5,0)),"",(VLOOKUP(B17,'KAYIT LİSTESİ'!$B$4:$H$767,5,0))) ->  | F17: =IF(ISERROR(VLOOKUP(B17,'KAYIT LİSTESİ'!$B$4:$H$767,6,0)),"",(VLOOKUP(B17,'KAYIT LİSTESİ'!$B$4:$H$767,6,0))) ->  | I17: 10 | J17: ÜÇADIM-10 | K17: =IF(ISERROR(VLOOKUP(J17,'KAYIT LİSTESİ'!$B$4:$H$767,2,0)),"",(VLOOKUP(J17,'KAYIT LİSTESİ'!$B$4:$H$767,2,0))) ->  | L17: =IF(ISERROR(VLOOKUP(J17,'KAYIT LİSTESİ'!$B$4:$H$767,4,0)),"",(VLOOKUP(J17,'KAYIT LİSTESİ'!$B$4:$H$767,4,0))) ->  | M17: =IF(ISERROR(VLOOKUP(J17,'KAYIT LİSTESİ'!$B$4:$H$767,5,0)),"",(VLOOKUP(J17,'KAYIT LİSTESİ'!$B$4:$H$767,5,0))) ->  | N17: =IF(ISERROR(VLOOKUP(J17,'KAYIT LİSTESİ'!$B$4:$H$767,6,0)),"",(VLOOKUP(J17,'KAYIT LİSTESİ'!$B$4:$H$767,6,0))) -> 
A18: 12 | B18: 800M-1-12 | C18: =IF(ISERROR(VLOOKUP(B18,'KAYIT LİSTESİ'!$B$4:$H$767,2,0)),"",(VLOOKUP(B18,'KAYIT LİSTESİ'!$B$4:$H$767,2,0))) ->  | D18: =IF(ISERROR(VLOOKUP(B18,'KAYIT LİSTESİ'!$B$4:$H$767,4,0)),"",(VLOOKUP(B18,'KAYIT LİSTESİ'!$B$4:$H$767,4,0))) ->  | E18: =IF(ISERROR(VLOOKUP(B18,'KAYIT LİSTESİ'!$B$4:$H$767,5,0)),"",(VLOOKUP(B18,'KAYIT LİSTESİ'!$B$4:$H$767,5,0))) ->  | F18: =IF(ISERROR(VLOOKUP(B18,'KAYIT LİSTESİ'!$B$4:$H$767,6,0)),"",(VLOOKUP(B18,'KAYIT LİSTESİ'!$B$4:$H$767,6,0))) ->  | I18: 11 | J18: ÜÇADIM-11 | K18: =IF(ISERROR(VLOOKUP(J18,'KAYIT LİSTESİ'!$B$4:$H$767,2,0)),"",(VLOOKUP(J18,'KAYIT LİSTESİ'!$B$4:$H$767,2,0))) ->  | L18: =IF(ISERROR(VLOOKUP(J18,'KAYIT LİSTESİ'!$B$4:$H$767,4,0)),"",(VLOOKUP(J18,'KAYIT LİSTESİ'!$B$4:$H$767,4,0))) ->  | M18: =IF(ISERROR(VLOOKUP(J18,'KAYIT LİSTESİ'!$B$4:$H$767,5,0)),"",(VLOOKUP(J18,'KAYIT LİSTESİ'!$B$4:$H$767,5,0))) ->  | N18: =IF(ISERROR(VLOOKUP(J18,'KAYIT LİSTESİ'!$B$4:$H$767,6,0)),"",(VLOOKUP(J18,'KAYIT LİSTESİ'!$B$4:$H$767,6,0))) -> 
A19: 2. SERİ | I19: 12 | J19: ÜÇADIM-12 | K19: =IF(ISERROR(VLOOKUP(J19,'KAYIT LİSTESİ'!$B$4:$H$767,2,0)),"",(VLOOKUP(J19,'KAYIT LİSTESİ'!$B$4:$H$767,2,0))) ->  | L19: =IF(ISERROR(VLOOKUP(J19,'KAYIT LİSTESİ'!$B$4:$H$767,4,0)),"",(VLOOKUP(J19,'KAYIT LİSTESİ'!$B$4:$H$767,4,0))) ->  | M19: =IF(ISERROR(VLOOKUP(J19,'KAYIT LİSTESİ'!$B$4:$H$767,5,0)),"",(VLOOKUP(J19,'KAYIT LİSTESİ'!$B$4:$H$767,5,0))) ->  | N19: =IF(ISERROR(VLOOKUP(J19,'KAYIT LİSTESİ'!$B$4:$H$767,6,0)),"",(VLOOKUP(J19,'KAYIT LİSTESİ'!$B$4:$H$767,6,0))) -> 
A20: Sıra No | B20: Formül | C20: Göğüs No | D20: Doğum Tarihi | E20: Adı ve Soyadı | F20: Okulu | G20: Start Kontrol | I20: 13 | J20: ÜÇADIM-13 | K20: =IF(ISERROR(VLOOKUP(J20,'KAYIT LİSTESİ'!$B$4:$H$767,2,0)),"",(VLOOKUP(J20,'KAYIT LİSTESİ'!$B$4:$H$767,2,0))) ->  | L20: =IF(ISERROR(VLOOKUP(J20,'KAYIT LİSTESİ'!$B$4:$H$767,4,0)),"",(VLOOKUP(J20,'KAYIT LİSTESİ'!$B$4:$H$767,4,0))) ->  | M20: =IF(ISERROR(VLOOKUP(J20,'KAYIT LİSTESİ'!$B$4:$H$767,5,0)),"",(VLOOKUP(J20,'KAYIT LİSTESİ'!$B$4:$H$767,5,0))) ->  | N20: =IF(ISERROR(VLOOKUP(J20,'KAYIT LİSTESİ'!$B$4:$H$767,6,0)),"",(VLOOKUP(J20,'KAYIT LİSTESİ'!$B$4:$H$767,6,0))) -> 
A21: 1 | B21: 800M-2-1 | C21: =IF(ISERROR(VLOOKUP(B21,'KAYIT LİSTESİ'!$B$4:$H$767,2,0)),"",(VLOOKUP(B21,'KAYIT LİSTESİ'!$B$4:$H$767,2,0))) -> 230 | D21: =IF(ISERROR(VLOOKUP(B21,'KAYIT LİSTESİ'!$B$4:$H$767,4,0)),"",(VLOOKUP(B21,'KAYIT LİSTESİ'!$B$4:$H$767,4,0))) -> 1999-01-01 | E21: =IF(ISERROR(VLOOKUP(B21,'KAYIT LİSTESİ'!$B$4:$H$767,5,0)),"",(VLOOKUP(B21,'KAYIT LİSTESİ'!$B$4:$H$767,5,0))) -> ELİF ADSIZ | F21: =IF(ISERROR(VLOOKUP(B21,'KAYIT LİSTESİ'!$B$4:$H$767,6,0)),"",(VLOOKUP(B21,'KAYIT LİSTESİ'!$B$4:$H$767,6,0))) -> DİYARBAKIR | I21: 14 | J21: ÜÇADIM-14 | K21: =IF(ISERROR(VLOOKUP(J21,'KAYIT LİSTESİ'!$B$4:$H$767,2,0)),"",(VLOOKUP(J21,'KAYIT LİSTESİ'!$B$4:$H$767,2,0))) ->  | L21: =IF(ISERROR(VLOOKUP(J21,'KAYIT LİSTESİ'!$B$4:$H$767,4,0)),"",(VLOOKUP(J21,'KAYIT LİSTESİ'!$B$4:$H$767,4,0))) ->  | M21: =IF(ISERROR(VLOOKUP(J21,'KAYIT LİSTESİ'!$B$4:$H$767,5,0)),"",(VLOOKUP(J21,'KAYIT LİSTESİ'!$B$4:$H$767,5,0))) ->  | N21: =IF(ISERROR(VLOOKUP(J21,'KAYIT LİSTESİ'!$B$4:$H$767,6,0)),"",(VLOOKUP(J21,'KAYIT LİSTESİ'!$B$4:$H$767,6,0))) -> 
A22: 2 | B22: 800M-2-2 | C22: =IF(ISERROR(VLOOKUP(B22,'KAYIT LİSTESİ'!$B$4:$H$767,2,0)),"",(VLOOKUP(B22,'KAYIT LİSTESİ'!$B$4:$H$767,2,0))) -> 479 | D22: =IF(ISERROR(VLOOKUP(B22,'KAYIT LİSTESİ'!$B$4:$H$767,4,0)),"",(VLOOKUP(B22,'KAYIT LİSTESİ'!$B$4:$H$767,4,0))) -> 1999-01-01 | E22: =IF(ISERROR(VLOOKUP(B22,'KAYIT LİSTESİ'!$B$4:$H$767,5,0)),"",(VLOOKUP(B22,'KAYIT LİSTESİ'!$B$4:$H$767,5,0))) -> BÜŞRA TAŞKIN | F22: =IF(ISERROR(VLOOKUP(B22,'KAYIT LİSTESİ'!$B$4:$H$767,6,0)),"",(VLOOKUP(B22,'KAYIT LİSTESİ'!$B$4:$H$767,6,0))) -> KIRIKKALE | I22: 15 | J22: ÜÇADIM-15 | K22: =IF(ISERROR(VLOOKUP(J22,'KAYIT LİSTESİ'!$B$4:$H$767,2,0)),"",(VLOOKUP(J22,'KAYIT LİSTESİ'!$B$4:$H$767,2,0))) ->  | L22: =IF(ISERROR(VLOOKUP(J22,'KAYIT LİSTESİ'!$B$4:$H$767,4,0)),"",(VLOOKUP(J22,'KAYIT LİSTESİ'!$B$4:$H$767,4,0))) ->  | M22: =IF(ISERROR(VLOOKUP(J22,'KAYIT LİSTESİ'!$B$4:$H$767,5,0)),"",(VLOOKUP(J22,'KAYIT LİSTESİ'!$B$4:$H$767,5,0))) ->  | N22: =IF(ISERROR(VLOOKUP(J22,'KAYIT LİSTESİ'!$B$4:$H$767,6,0)),"",(VLOOKUP(J22,'KAYIT LİSTESİ'!$B$4:$H$767,6,0))) -> 
A23: 3 | B23: 800M-2-3 | C23: =IF(ISERROR(VLOOKUP(B23,'KAYIT LİSTESİ'!$B$4:$H$767,2,0)),"",(VLOOKUP(B23,'KAYIT LİSTESİ'!$B$4:$H$767,2,0))) -> 140 | D23: =IF(ISERROR(VLOOKUP(B23,'KAYIT LİSTESİ'!$B$4:$H$767,4,0)),"",(VLOOKUP(B23,'KAYIT LİSTESİ'!$B$4:$H$767,4,0))) -> 1999-03-26 | E23: =IF(ISERROR(VLOOKUP(B23,'KAYIT LİSTESİ'!$B$4:$H$767,5,0)),"",(VLOOKUP(B23,'KAYIT LİSTESİ'!$B$4:$H$767,5,0))) -> MAŞALLAH AYDIN | F23: =IF(ISERROR(VLOOKUP(B23,'KAYIT LİSTESİ'!$B$4:$H$767,6,0)),"",(VLOOKUP(B23,'KAYIT LİSTESİ'!$B$4:$H$767,6,0))) -> BATMAN | I23: 16 | J23: ÜÇADIM-16 | K23: =IF(ISERROR(VLOOKUP(J23,'KAYIT LİSTESİ'!$B$4:$H$767,2,0)),"",(VLOOKUP(J23,'KAYIT LİSTESİ'!$B$4:$H$767,2,0))) ->  | L23: =IF(ISERROR(VLOOKUP(J23,'KAYIT LİSTESİ'!$B$4:$H$767,4,0)),"",(VLOOKUP(J23,'KAYIT LİSTESİ'!$B$4:$H$767,4,0))) ->  | M23: =IF(ISERROR(VLOOKUP(J23,'KAYIT LİSTESİ'!$B$4:$H$767,5,0)),"",(VLOOKUP(J23,'KAYIT LİSTESİ'!$B$4:$H$767,5,0))) ->  | N23: =IF(ISERROR(VLOOKUP(J23,'KAYIT LİSTESİ'!$B$4:$H$767,6,0)),"",(VLOOKUP(J23,'KAYIT LİSTESİ'!$B$4:$H$767,6,0))) -> 
A24: 4 | B24: 800M-2-4 | C24: =IF(ISERROR(VLOOKUP(B24,'KAYIT LİSTESİ'!$B$4:$H$767,2,0)),"",(VLOOKUP(B24,'KAYIT LİSTESİ'!$B$4:$H$767,2,0))) -> 141 | D24: =IF(ISERROR(VLOOKUP(B24,'KAYIT LİSTESİ'!$B$4:$H$767,4,0)),"",(VLOOKUP(B24,'KAYIT LİSTESİ'!$B$4:$H$767,4,0))) -> 1999-01-01 | E24: =IF(ISERROR(VLOOKUP(B24,'KAYIT LİSTESİ'!$B$4:$H$767,5,0)),"",(VLOOKUP(B24,'KAYIT LİSTESİ'!$B$4:$H$767,5,0))) -> DİLAN AYTEN | F24: =IF(ISERROR(VLOOKUP(B24,'KAYIT LİSTESİ'!$B$4:$H$767,6,0)),"",(VLOOKUP(B24,'KAYIT LİSTESİ'!$B$4:$H$767,6,0))) -> BATMAN | I24: 17 | J24: ÜÇADIM-17 | K24: =IF(ISERROR(VLOOKUP(J24,'KAYIT LİSTESİ'!$B$4:$H$767,2,0)),"",(VLOOKUP(J24,'KAYIT LİSTESİ'!$B$4:$H$767,2,0))) ->  | L24: =IF(ISERROR(VLOOKUP(J24,'KAYIT LİSTESİ'!$B$4:$H$767,4,0)),"",(VLOOKUP(J24,'KAYIT LİSTESİ'!$B$4:$H$767,4,0))) ->  | M24: =IF(ISERROR(VLOOKUP(J24,'KAYIT LİSTESİ'!$B$4:$H$767,5,0)),"",(VLOOKUP(J24,'KAYIT LİSTESİ'!$B$4:$H$767,5,0))) ->  | N24: =IF(ISERROR(VLOOKUP(J24,'KAYIT LİSTESİ'!$B$4:$H$767,6,0)),"",(VLOOKUP(J24,'KAYIT LİSTESİ'!$B$4:$H$767,6,0))) -> 
A25: 5 | B25: 800M-2-5 | C25: =IF(ISERROR(VLOOKUP(B25,'KAYIT LİSTESİ'!$B$4:$H$767,2,0)),"",(VLOOKUP(B25,'KAYIT LİSTESİ'!$B$4:$H$767,2,0))) -> 714 | D25: =IF(ISERROR(VLOOKUP(B25,'KAYIT LİSTESİ'!$B$4:$H$767,4,0)),"",(VLOOKUP(B25,'KAYIT LİSTESİ'!$B$4:$H$767,4,0))) -> 1999-01-01 | E25: =IF(ISERROR(VLOOKUP(B25,'KAYIT LİSTESİ'!$B$4:$H$767,5,0)),"",(VLOOKUP(B25,'KAYIT LİSTESİ'!$B$4:$H$767,5,0))) -> GÜLBAHAR ERDOĞAN | F25: =IF(ISERROR(VLOOKUP(B25,'KAYIT LİSTESİ'!$B$4:$H$767,6,0)),"",(VLOOKUP(B25,'KAYIT LİSTESİ'!$B$4:$H$767,6,0))) -> TUNCELİ | I25: 18 | J25: ÜÇADIM-18 | K25: =IF(ISERROR(VLOOKUP(J25,'KAYIT LİSTESİ'!$B$4:$H$767,2,0)),"",(VLOOKUP(J25,'KAYIT LİSTESİ'!$B$4:$H$767,2,0))) ->  | L25: =IF(ISERROR(VLOOKUP(J25,'KAYIT LİSTESİ'!$B$4:$H$767,4,0)),"",(VLOOKUP(J25,'KAYIT LİSTESİ'!$B$4:$H$767,4,0))) ->  | M25: =IF(ISERROR(VLOOKUP(J25,'KAYIT LİSTESİ'!$B$4:$H$767,5,0)),"",(VLOOKUP(J25,'KAYIT LİSTESİ'!$B$4:$H$767,5,0))) ->  | N25: =IF(ISERROR(VLOOKUP(J25,'KAYIT LİSTESİ'!$B$4:$H$767,6,0)),"",(VLOOKUP(J25,'KAYIT LİSTESİ'!$B$4:$H$767,6,0))) -> 
A26: 6 | B26: 800M-2-6 | C26: =IF(ISERROR(VLOOKUP(B26,'KAYIT LİSTESİ'!$B$4:$H$767,2,0)),"",(VLOOKUP(B26,'KAYIT LİSTESİ'!$B$4:$H$767,2,0))) -> 539 | D26: =IF(ISERROR(VLOOKUP(B26,'KAYIT LİSTESİ'!$B$4:$H$767,4,0)),"",(VLOOKUP(B26,'KAYIT LİSTESİ'!$B$4:$H$767,4,0))) -> 1999-08-28 | E26: =IF(ISERROR(VLOOKUP(B26,'KAYIT LİSTESİ'!$B$4:$H$767,5,0)),"",(VLOOKUP(B26,'KAYIT LİSTESİ'!$B$4:$H$767,5,0))) -> ÖZLEM ÖZDEMİR | F26: =IF(ISERROR(VLOOKUP(B26,'KAYIT LİSTESİ'!$B$4:$H$767,6,0)),"",(VLOOKUP(B26,'KAYIT LİSTESİ'!$B$4:$H$767,6,0))) -> KÜTAHYA | I26: 19 | J26: ÜÇADIM-19 | K26: =IF(ISERROR(VLOOKUP(J26,'KAYIT LİSTESİ'!$B$4:$H$767,2,0)),"",(VLOOKUP(J26,'KAYIT LİSTESİ'!$B$4:$H$767,2,0))) ->  | L26: =IF(ISERROR(VLOOKUP(J26,'KAYIT LİSTESİ'!$B$4:$H$767,4,0)),"",(VLOOKUP(J26,'KAYIT LİSTESİ'!$B$4:$H$767,4,0))) ->  | M26: =IF(ISERROR(VLOOKUP(J26,'KAYIT LİSTESİ'!$B$4:$H$767,5,0)),"",(VLOOKUP(J26,'KAYIT LİSTESİ'!$B$4:$H$767,5,0))) ->  | N26: =IF(ISERROR(VLOOKUP(J26,'KAYIT LİSTESİ'!$B$4:$H$767,6,0)),"",(VLOOKUP(J26,'KAYIT LİSTESİ'!$B$4:$H$767,6,0))) -> 
A27: 7 | B27: 800M-2-7 | C27: =IF(ISERROR(VLOOKUP(B27,'KAYIT LİSTESİ'!$B$4:$H$767,2,0)),"",(VLOOKUP(B27,'KAYIT LİSTESİ'!$B$4:$H$767,2,0))) -> 652 | D27: =IF(ISERROR(VLOOKUP(B27,'KAYIT LİSTESİ'!$B$4:$H$767,4,0)),"",(VLOOKUP(B27,'KAYIT LİSTESİ'!$B$4:$H$767,4,0))) -> 1999-03-01 | E27: =IF(ISERROR(VLOOKUP(B27,'KAYIT LİSTESİ'!$B$4:$H$767,5,0)),"",(VLOOKUP(B27,'KAYIT LİSTESİ'!$B$4:$H$767,5,0))) -> NURCİHAN OYSAL | F27: =IF(ISERROR(VLOOKUP(B27,'KAYIT LİSTESİ'!$B$4:$H$767,6,0)),"",(VLOOKUP(B27,'KAYIT LİSTESİ'!$B$4:$H$767,6,0))) -> SİİRT | I27: 20 | J27: ÜÇADIM-20 | K27: =IF(ISERROR(VLOOKUP(J27,'KAYIT LİSTESİ'!$B$4:$H$767,2,0)),"",(VLOOKUP(J27,'KAYIT LİSTESİ'!$B$4:$H$767,2,0))) ->  | L27: =IF(ISERROR(VLOOKUP(J27,'KAYIT LİSTESİ'!$B$4:$H$767,4,0)),"",(VLOOKUP(J27,'KAYIT LİSTESİ'!$B$4:$H$767,4,0))) ->  | M27: =IF(ISERROR(VLOOKUP(J27,'KAYIT LİSTESİ'!$B$4:$H$767,5,0)),"",(VLOOKUP(J27,'KAYIT LİSTESİ'!$B$4:$H$767,5,0))) ->  | N27: =IF(ISERROR(VLOOKUP(J27,'KAYIT LİSTESİ'!$B$4:$H$767,6,0)),"",(VLOOKUP(J27,'KAYIT LİSTESİ'!$B$4:$H$767,6,0))) -> 
A28: 8 | B28: 800M-2-8 | C28: =IF(ISERROR(VLOOKUP(B28,'KAYIT LİSTESİ'!$B$4:$H$767,2,0)),"",(VLOOKUP(B28,'KAYIT LİSTESİ'!$B$4:$H$767,2,0))) -> 211 | D28: =IF(ISERROR(VLOOKUP(B28,'KAYIT LİSTESİ'!$B$4:$H$767,4,0)),"",(VLOOKUP(B28,'KAYIT LİSTESİ'!$B$4:$H$767,4,0))) -> 1999-06-25 | E28: =IF(ISERROR(VLOOKUP(B28,'KAYIT LİSTESİ'!$B$4:$H$767,5,0)),"",(VLOOKUP(B28,'KAYIT LİSTESİ'!$B$4:$H$767,5,0))) -> MERVE ARSLAN | F28: =IF(ISERROR(VLOOKUP(B28,'KAYIT LİSTESİ'!$B$4:$H$767,6,0)),"",(VLOOKUP(B28,'KAYIT LİSTESİ'!$B$4:$H$767,6,0))) -> ÇANAKKALE | I28: 21 | J28: ÜÇADIM-21 | K28: =IF(ISERROR(VLOOKUP(J28,'KAYIT LİSTESİ'!$B$4:$H$767,2,0)),"",(VLOOKUP(J28,'KAYIT LİSTESİ'!$B$4:$H$767,2,0))) ->  | L28: =IF(ISERROR(VLOOKUP(J28,'KAYIT LİSTESİ'!$B$4:$H$767,4,0)),"",(VLOOKUP(J28,'KAYIT LİSTESİ'!$B$4:$H$767,4,0))) ->  | M28: =IF(ISERROR(VLOOKUP(J28,'KAYIT LİSTESİ'!$B$4:$H$767,5,0)),"",(VLOOKUP(J28,'KAYIT LİSTESİ'!$B$4:$H$767,5,0))) ->  | N28: =IF(ISERROR(VLOOKUP(J28,'KAYIT LİSTESİ'!$B$4:$H$767,6,0)),"",(VLOOKUP(J28,'KAYIT LİSTESİ'!$B$4:$H$767,6,0))) -> 
A29: 9 | B29: 800M-2-9 | C29: =IF(ISERROR(VLOOKUP(B29,'KAYIT LİSTESİ'!$B$4:$H$767,2,0)),"",(VLOOKUP(B29,'KAYIT LİSTESİ'!$B$4:$H$767,2,0))) -> 651 | D29: =IF(ISERROR(VLOOKUP(B29,'KAYIT LİSTESİ'!$B$4:$H$767,4,0)),"",(VLOOKUP(B29,'KAYIT LİSTESİ'!$B$4:$H$767,4,0))) -> 1999-10-09 | E29: =IF(ISERROR(VLOOKUP(B29,'KAYIT LİSTESİ'!$B$4:$H$767,5,0)),"",(VLOOKUP(B29,'KAYIT LİSTESİ'!$B$4:$H$767,5,0))) -> LEYLA TETİK | F29: =IF(ISERROR(VLOOKUP(B29,'KAYIT LİSTESİ'!$B$4:$H$767,6,0)),"",(VLOOKUP(B29,'KAYIT LİSTESİ'!$B$4:$H$767,6,0))) -> SİİRT | I29: 22 | J29: ÜÇADIM-22 | K29: =IF(ISERROR(VLOOKUP(J29,'KAYIT LİSTESİ'!$B$4:$H$767,2,0)),"",(VLOOKUP(J29,'KAYIT LİSTESİ'!$B$4:$H$767,2,0))) ->  | L29: =IF(ISERROR(VLOOKUP(J29,'KAYIT LİSTESİ'!$B$4:$H$767,4,0)),"",(VLOOKUP(J29,'KAYIT LİSTESİ'!$B$4:$H$767,4,0))) ->  | M29: =IF(ISERROR(VLOOKUP(J29,'KAYIT LİSTESİ'!$B$4:$H$767,5,0)),"",(VLOOKUP(J29,'KAYIT LİSTESİ'!$B$4:$H$767,5,0))) ->  | N29: =IF(ISERROR(VLOOKUP(J29,'KAYIT LİSTESİ'!$B$4:$H$767,6,0)),"",(VLOOKUP(J29,'KAYIT LİSTESİ'!$B$4:$H$767,6,0))) -> 
A30: 10 | B30: 800M-2-10 | C30: =IF(ISERROR(VLOOKUP(B30,'KAYIT LİSTESİ'!$B$4:$H$767,2,0)),"",(VLOOKUP(B30,'KAYIT LİSTESİ'!$B$4:$H$767,2,0))) ->  | D30: =IF(ISERROR(VLOOKUP(B30,'KAYIT LİSTESİ'!$B$4:$H$767,4,0)),"",(VLOOKUP(B30,'KAYIT LİSTESİ'!$B$4:$H$767,4,0))) ->  | E30: =IF(ISERROR(VLOOKUP(B30,'KAYIT LİSTESİ'!$B$4:$H$767,5,0)),"",(VLOOKUP(B30,'KAYIT LİSTESİ'!$B$4:$H$767,5,0))) ->  | F30: =IF(ISERROR(VLOOKUP(B30,'KAYIT LİSTESİ'!$B$4:$H$767,6,0)),"",(VLOOKUP(B30,'KAYIT LİSTESİ'!$B$4:$H$767,6,0))) ->  | I30: 23 | J30: ÜÇADIM-23 | K30: =IF(ISERROR(VLOOKUP(J30,'KAYIT LİSTESİ'!$B$4:$H$767,2,0)),"",(VLOOKUP(J30,'KAYIT LİSTESİ'!$B$4:$H$767,2,0))) ->  | L30: =IF(ISERROR(VLOOKUP(J30,'KAYIT LİSTESİ'!$B$4:$H$767,4,0)),"",(VLOOKUP(J30,'KAYIT LİSTESİ'!$B$4:$H$767,4,0))) ->  | M30: =IF(ISERROR(VLOOKUP(J30,'KAYIT LİSTESİ'!$B$4:$H$767,5,0)),"",(VLOOKUP(J30,'KAYIT LİSTESİ'!$B$4:$H$767,5,0))) ->  | N30: =IF(ISERROR(VLOOKUP(J30,'KAYIT LİSTESİ'!$B$4:$H$767,6,0)),"",(VLOOKUP(J30,'KAYIT LİSTESİ'!$B$4:$H$767,6,0))) -> 
A31: 11 | B31: 800M-2-11 | C31: =IF(ISERROR(VLOOKUP(B31,'KAYIT LİSTESİ'!$B$4:$H$767,2,0)),"",(VLOOKUP(B31,'KAYIT LİSTESİ'!$B$4:$H$767,2,0))) ->  | D31: =IF(ISERROR(VLOOKUP(B31,'KAYIT LİSTESİ'!$B$4:$H$767,4,0)),"",(VLOOKUP(B31,'KAYIT LİSTESİ'!$B$4:$H$767,4,0))) ->  | E31: =IF(ISERROR(VLOOKUP(B31,'KAYIT LİSTESİ'!$B$4:$H$767,5,0)),"",(VLOOKUP(B31,'KAYIT LİSTESİ'!$B$4:$H$767,5,0))) ->  | F31: =IF(ISERROR(VLOOKUP(B31,'KAYIT LİSTESİ'!$B$4:$H$767,6,0)),"",(VLOOKUP(B31,'KAYIT LİSTESİ'!$B$4:$H$767,6,0))) ->  | I31: 24 | J31: ÜÇADIM-24 | K31: =IF(ISERROR(VLOOKUP(J31,'KAYIT LİSTESİ'!$B$4:$H$767,2,0)),"",(VLOOKUP(J31,'KAYIT LİSTESİ'!$B$4:$H$767,2,0))) ->  | L31: =IF(ISERROR(VLOOKUP(J31,'KAYIT LİSTESİ'!$B$4:$H$767,4,0)),"",(VLOOKUP(J31,'KAYIT LİSTESİ'!$B$4:$H$767,4,0))) ->  | M31: =IF(ISERROR(VLOOKUP(J31,'KAYIT LİSTESİ'!$B$4:$H$767,5,0)),"",(VLOOKUP(J31,'KAYIT LİSTESİ'!$B$4:$H$767,5,0))) ->  | N31: =IF(ISERROR(VLOOKUP(J31,'KAYIT LİSTESİ'!$B$4:$H$767,6,0)),"",(VLOOKUP(J31,'KAYIT LİSTESİ'!$B$4:$H$767,6,0))) -> 
A32: 12 | B32: 800M-2-12 | C32: =IF(ISERROR(VLOOKUP(B32,'KAYIT LİSTESİ'!$B$4:$H$767,2,0)),"",(VLOOKUP(B32,'KAYIT LİSTESİ'!$B$4:$H$767,2,0))) ->  | D32: =IF(ISERROR(VLOOKUP(B32,'KAYIT LİSTESİ'!$B$4:$H$767,4,0)),"",(VLOOKUP(B32,'KAYIT LİSTESİ'!$B$4:$H$767,4,0))) ->  | E32: =IF(ISERROR(VLOOKUP(B32,'KAYIT LİSTESİ'!$B$4:$H$767,5,0)),"",(VLOOKUP(B32,'KAYIT LİSTESİ'!$B$4:$H$767,5,0))) ->  | F32: =IF(ISERROR(VLOOKUP(B32,'KAYIT LİSTESİ'!$B$4:$H$767,6,0)),"",(VLOOKUP(B32,'KAYIT LİSTESİ'!$B$4:$H$767,6,0))) ->  | I32: 25 | J32: ÜÇADIM-25 | K32: =IF(ISERROR(VLOOKUP(J32,'KAYIT LİSTESİ'!$B$4:$H$767,2,0)),"",(VLOOKUP(J32,'KAYIT LİSTESİ'!$B$4:$H$767,2,0))) ->  | L32: =IF(ISERROR(VLOOKUP(J32,'KAYIT LİSTESİ'!$B$4:$H$767,4,0)),"",(VLOOKUP(J32,'KAYIT LİSTESİ'!$B$4:$H$767,4,0))) ->  | M32: =IF(ISERROR(VLOOKUP(J32,'KAYIT LİSTESİ'!$B$4:$H$767,5,0)),"",(VLOOKUP(J32,'KAYIT LİSTESİ'!$B$4:$H$767,5,0))) ->  | N32: =IF(ISERROR(VLOOKUP(J32,'KAYIT LİSTESİ'!$B$4:$H$767,6,0)),"",(VLOOKUP(J32,'KAYIT LİSTESİ'!$B$4:$H$767,6,0))) -> 
A33: 3. SERİ | I33: DİSK ATMA
A34: Sıra No | B34: Formül | C34: Göğüs No | D34: Doğum Tarihi | E34: Adı ve Soyadı | F34: Okulu | G34: Start Kontrol | I34: SIRA NO | K34: GÖĞÜS NO | L34: DOĞUM TARİHİ | M34: ADI VE SOYADI | N34: OKULU | O34: START KONTROL
A35: 1 | B35: 800M-3-1 | C35: =IF(ISERROR(VLOOKUP(B35,'KAYIT LİSTESİ'!$B$4:$H$767,2,0)),"",(VLOOKUP(B35,'KAYIT LİSTESİ'!$B$4:$H$767,2,0))) -> 98 | D35: =IF(ISERROR(VLOOKUP(B35,'KAYIT LİSTESİ'!$B$4:$H$767,4,0)),"",(VLOOKUP(B35,'KAYIT LİSTESİ'!$B$4:$H$767,4,0))) -> 1999-07-24 | E35: =IF(ISERROR(VLOOKUP(B35,'KAYIT LİSTESİ'!$B$4:$H$767,5,0)),"",(VLOOKUP(B35,'KAYIT LİSTESİ'!$B$4:$H$767,5,0))) -> GÜL DEMİR | F35: =IF(ISERROR(VLOOKUP(B35,'KAYIT LİSTESİ'!$B$4:$H$767,6,0)),"",(VLOOKUP(B35,'KAYIT LİSTESİ'!$B$4:$H$767,6,0))) -> BALIKESİR | I35: 1 | J35: DİSK-1 | K35: =IF(ISERROR(VLOOKUP(J35,'KAYIT LİSTESİ'!$B$4:$H$767,2,0)),"",(VLOOKUP(J35,'KAYIT LİSTESİ'!$B$4:$H$767,2,0))) -> 278 | L35: =IF(ISERROR(VLOOKUP(J35,'KAYIT LİSTESİ'!$B$4:$H$767,4,0)),"",(VLOOKUP(J35,'KAYIT LİSTESİ'!$B$4:$H$767,4,0))) -> 1999-01-01 | M35: =IF(ISERROR(VLOOKUP(J35,'KAYIT LİSTESİ'!$B$4:$H$767,5,0)),"",(VLOOKUP(J35,'KAYIT LİSTESİ'!$B$4:$H$767,5,0))) -> AYSEL YILMAZ | N35: =IF(ISERROR(VLOOKUP(J35,'KAYIT LİSTESİ'!$B$4:$H$767,6,0)),"",(VLOOKUP(J35,'KAYIT LİSTESİ'!$B$4:$H$767,6,0))) -> GAZİANTEP
A36: 2 | B36: 800M-3-2 | C36: =IF(ISERROR(VLOOKUP(B36,'KAYIT LİSTESİ'!$B$4:$H$767,2,0)),"",(VLOOKUP(B36,'KAYIT LİSTESİ'!$B$4:$H$767,2,0))) -> 166 | D36: =IF(ISERROR(VLOOKUP(B36,'KAYIT LİSTESİ'!$B$4:$H$767,4,0)),"",(VLOOKUP(B36,'KAYIT LİSTESİ'!$B$4:$H$767,4,0))) -> 1999-01-01 | E36: =IF(ISERROR(VLOOKUP(B36,'KAYIT LİSTESİ'!$B$4:$H$767,5,0)),"",(VLOOKUP(B36,'KAYIT LİSTESİ'!$B$4:$H$767,5,0))) -> ZEYNEP ERKAN | F36: =IF(ISERROR(VLOOKUP(B36,'KAYIT LİSTESİ'!$B$4:$H$767,6,0)),"",(VLOOKUP(B36,'KAYIT LİSTESİ'!$B$4:$H$767,6,0))) -> BİNGÖL | I36: 2 | J36: DİSK-2 | K36: =IF(ISERROR(VLOOKUP(J36,'KAYIT LİSTESİ'!$B$4:$H$767,2,0)),"",(VLOOKUP(J36,'KAYIT LİSTESİ'!$B$4:$H$767,2,0))) -> 381 | L36: =IF(ISERROR(VLOOKUP(J36,'KAYIT LİSTESİ'!$B$4:$H$767,4,0)),"",(VLOOKUP(J36,'KAYIT LİSTESİ'!$B$4:$H$767,4,0))) -> 1999-02-13 | M36: =IF(ISERROR(VLOOKUP(J36,'KAYIT LİSTESİ'!$B$4:$H$767,5,0)),"",(VLOOKUP(J36,'KAYIT LİSTESİ'!$B$4:$H$767,5,0))) -> BEYZA BOZÇAL | N36: =IF(ISERROR(VLOOKUP(J36,'KAYIT LİSTESİ'!$B$4:$H$767,6,0)),"",(VLOOKUP(J36,'KAYIT LİSTESİ'!$B$4:$H$767,6,0))) -> İZMİR
A37: 3 | B37: 800M-3-3 | C37: =IF(ISERROR(VLOOKUP(B37,'KAYIT LİSTESİ'!$B$4:$H$767,2,0)),"",(VLOOKUP(B37,'KAYIT LİSTESİ'!$B$4:$H$767,2,0))) -> 265 | D37: =IF(ISERROR(VLOOKUP(B37,'KAYIT LİSTESİ'!$B$4:$H$767,4,0)),"",(VLOOKUP(B37,'KAYIT LİSTESİ'!$B$4:$H$767,4,0))) -> 1999-11-23 | E37: =IF(ISERROR(VLOOKUP(B37,'KAYIT LİSTESİ'!$B$4:$H$767,5,0)),"",(VLOOKUP(B37,'KAYIT LİSTESİ'!$B$4:$H$767,5,0))) -> KÜBRA ALPER | F37: =IF(ISERROR(VLOOKUP(B37,'KAYIT LİSTESİ'!$B$4:$H$767,6,0)),"",(VLOOKUP(B37,'KAYIT LİSTESİ'!$B$4:$H$767,6,0))) -> ERZURUM | I37: 3 | J37: DİSK-3 | K37: =IF(ISERROR(VLOOKUP(J37,'KAYIT LİSTESİ'!$B$4:$H$767,2,0)),"",(VLOOKUP(J37,'KAYIT LİSTESİ'!$B$4:$H$767,2,0))) -> 387 | L37: =IF(ISERROR(VLOOKUP(J37,'KAYIT LİSTESİ'!$B$4:$H$767,4,0)),"",(VLOOKUP(J37,'KAYIT LİSTESİ'!$B$4:$H$767,4,0))) -> 1999-11-07 | M37: =IF(ISERROR(VLOOKUP(J37,'KAYIT LİSTESİ'!$B$4:$H$767,5,0)),"",(VLOOKUP(J37,'KAYIT LİSTESİ'!$B$4:$H$767,5,0))) -> H. CEREN YAKIN | N37: =IF(ISERROR(VLOOKUP(J37,'KAYIT LİSTESİ'!$B$4:$H$767,6,0)),"",(VLOOKUP(J37,'KAYIT LİSTESİ'!$B$4:$H$767,6,0))) -> İZMİR
A38: 4 | B38: 800M-3-4 | C38: =IF(ISERROR(VLOOKUP(B38,'KAYIT LİSTESİ'!$B$4:$H$767,2,0)),"",(VLOOKUP(B38,'KAYIT LİSTESİ'!$B$4:$H$767,2,0))) -> 266 | D38: =IF(ISERROR(VLOOKUP(B38,'KAYIT LİSTESİ'!$B$4:$H$767,4,0)),"",(VLOOKUP(B38,'KAYIT LİSTESİ'!$B$4:$H$767,4,0))) -> 1999-09-20 | E38: =IF(ISERROR(VLOOKUP(B38,'KAYIT LİSTESİ'!$B$4:$H$767,5,0)),"",(VLOOKUP(B38,'KAYIT LİSTESİ'!$B$4:$H$767,5,0))) -> AYŞENUR ÇİFTÇİ | F38: =IF(ISERROR(VLOOKUP(B38,'KAYIT LİSTESİ'!$B$4:$H$767,6,0)),"",(VLOOKUP(B38,'KAYIT LİSTESİ'!$B$4:$H$767,6,0))) -> ERZURUM | I38: 4 | J38: DİSK-4 | K38: =IF(ISERROR(VLOOKUP(J38,'KAYIT LİSTESİ'!$B$4:$H$767,2,0)),"",(VLOOKUP(J38,'KAYIT LİSTESİ'!$B$4:$H$767,2,0))) ->  | L38: =IF(ISERROR(VLOOKUP(J38,'KAYIT LİSTESİ'!$B$4:$H$767,4,0)),"",(VLOOKUP(J38,'KAYIT LİSTESİ'!$B$4:$H$767,4,0))) ->  | M38: =IF(ISERROR(VLOOKUP(J38,'KAYIT LİSTESİ'!$B$4:$H$767,5,0)),"",(VLOOKUP(J38,'KAYIT LİSTESİ'!$B$4:$H$767,5,0))) ->  | N38: =IF(ISERROR(VLOOKUP(J38,'KAYIT LİSTESİ'!$B$4:$H$767,6,0)),"",(VLOOKUP(J38,'KAYIT LİSTESİ'!$B$4:$H$767,6,0))) -> 
A39: 5 | B39: 800M-3-5 | C39: =IF(ISERROR(VLOOKUP(B39,'KAYIT LİSTESİ'!$B$4:$H$767,2,0)),"",(VLOOKUP(B39,'KAYIT LİSTESİ'!$B$4:$H$767,2,0))) -> 489 | D39: =IF(ISERROR(VLOOKUP(B39,'KAYIT LİSTESİ'!$B$4:$H$767,4,0)),"",(VLOOKUP(B39,'KAYIT LİSTESİ'!$B$4:$H$767,4,0))) -> 1999-02-20 | E39: =IF(ISERROR(VLOOKUP(B39,'KAYIT LİSTESİ'!$B$4:$H$767,5,0)),"",(VLOOKUP(B39,'KAYIT LİSTESİ'!$B$4:$H$767,5,0))) -> GİZEM ŞAHİN | F39: =IF(ISERROR(VLOOKUP(B39,'KAYIT LİSTESİ'!$B$4:$H$767,6,0)),"",(VLOOKUP(B39,'KAYIT LİSTESİ'!$B$4:$H$767,6,0))) -> KIRŞEHİR | I39: 5 | J39: DİSK-5 | K39: =IF(ISERROR(VLOOKUP(J39,'KAYIT LİSTESİ'!$B$4:$H$767,2,0)),"",(VLOOKUP(J39,'KAYIT LİSTESİ'!$B$4:$H$767,2,0))) ->  | L39: =IF(ISERROR(VLOOKUP(J39,'KAYIT LİSTESİ'!$B$4:$H$767,4,0)),"",(VLOOKUP(J39,'KAYIT LİSTESİ'!$B$4:$H$767,4,0))) ->  | M39: =IF(ISERROR(VLOOKUP(J39,'KAYIT LİSTESİ'!$B$4:$H$767,5,0)),"",(VLOOKUP(J39,'KAYIT LİSTESİ'!$B$4:$H$767,5,0))) ->  | N39: =IF(ISERROR(VLOOKUP(J39,'KAYIT LİSTESİ'!$B$4:$H$767,6,0)),"",(VLOOKUP(J39,'KAYIT LİSTESİ'!$B$4:$H$767,6,0))) -> 
A40: 6 | B40: 800M-3-6 | C40: =IF(ISERROR(VLOOKUP(B40,'KAYIT LİSTESİ'!$B$4:$H$767,2,0)),"",(VLOOKUP(B40,'KAYIT LİSTESİ'!$B$4:$H$767,2,0))) -> 585 | D40: =IF(ISERROR(VLOOKUP(B40,'KAYIT LİSTESİ'!$B$4:$H$767,4,0)),"",(VLOOKUP(B40,'KAYIT LİSTESİ'!$B$4:$H$767,4,0))) -> 1999-07-17 | E40: =IF(ISERROR(VLOOKUP(B40,'KAYIT LİSTESİ'!$B$4:$H$767,5,0)),"",(VLOOKUP(B40,'KAYIT LİSTESİ'!$B$4:$H$767,5,0))) -> BURCU KIZILIRMAK | F40: =IF(ISERROR(VLOOKUP(B40,'KAYIT LİSTESİ'!$B$4:$H$767,6,0)),"",(VLOOKUP(B40,'KAYIT LİSTESİ'!$B$4:$H$767,6,0))) -> NEVŞEHİR | I40: 6 | J40: DİSK-6 | K40: =IF(ISERROR(VLOOKUP(J40,'KAYIT LİSTESİ'!$B$4:$H$767,2,0)),"",(VLOOKUP(J40,'KAYIT LİSTESİ'!$B$4:$H$767,2,0))) ->  | L40: =IF(ISERROR(VLOOKUP(J40,'KAYIT LİSTESİ'!$B$4:$H$767,4,0)),"",(VLOOKUP(J40,'KAYIT LİSTESİ'!$B$4:$H$767,4,0))) ->  | M40: =IF(ISERROR(VLOOKUP(J40,'KAYIT LİSTESİ'!$B$4:$H$767,5,0)),"",(VLOOKUP(J40,'KAYIT LİSTESİ'!$B$4:$H$767,5,0))) ->  | N40: =IF(ISERROR(VLOOKUP(J40,'KAYIT LİSTESİ'!$B$4:$H$767,6,0)),"",(VLOOKUP(J40,'KAYIT LİSTESİ'!$B$4:$H$767,6,0))) -> 
A41: 7 | B41: 800M-3-7 | C41: =IF(ISERROR(VLOOKUP(B41,'KAYIT LİSTESİ'!$B$4:$H$767,2,0)),"",(VLOOKUP(B41,'KAYIT LİSTESİ'!$B$4:$H$767,2,0))) -> 264 | D41: =IF(ISERROR(VLOOKUP(B41,'KAYIT LİSTESİ'!$B$4:$H$767,4,0)),"",(VLOOKUP(B41,'KAYIT LİSTESİ'!$B$4:$H$767,4,0))) -> 1999-02-13 | E41: =IF(ISERROR(VLOOKUP(B41,'KAYIT LİSTESİ'!$B$4:$H$767,5,0)),"",(VLOOKUP(B41,'KAYIT LİSTESİ'!$B$4:$H$767,5,0))) -> MELİKE KARANLIKBULUT | F41: =IF(ISERROR(VLOOKUP(B41,'KAYIT LİSTESİ'!$B$4:$H$767,6,0)),"",(VLOOKUP(B41,'KAYIT LİSTESİ'!$B$4:$H$767,6,0))) -> ERZURUM | I41: 7 | J41: DİSK-7 | K41: =IF(ISERROR(VLOOKUP(J41,'KAYIT LİSTESİ'!$B$4:$H$767,2,0)),"",(VLOOKUP(J41,'KAYIT LİSTESİ'!$B$4:$H$767,2,0))) ->  | L41: =IF(ISERROR(VLOOKUP(J41,'KAYIT LİSTESİ'!$B$4:$H$767,4,0)),"",(VLOOKUP(J41,'KAYIT LİSTESİ'!$B$4:$H$767,4,0))) ->  | M41: =IF(ISERROR(VLOOKUP(J41,'KAYIT LİSTESİ'!$B$4:$H$767,5,0)),"",(VLOOKUP(J41,'KAYIT LİSTESİ'!$B$4:$H$767,5,0))) ->  | N41: =IF(ISERROR(VLOOKUP(J41,'KAYIT LİSTESİ'!$B$4:$H$767,6,0)),"",(VLOOKUP(J41,'KAYIT LİSTESİ'!$B$4:$H$767,6,0))) -> 
A42: 8 | B42: 800M-3-8 | C42: =IF(ISERROR(VLOOKUP(B42,'KAYIT LİSTESİ'!$B$4:$H$767,2,0)),"",(VLOOKUP(B42,'KAYIT LİSTESİ'!$B$4:$H$767,2,0))) -> 25 | D42: =IF(ISERROR(VLOOKUP(B42,'KAYIT LİSTESİ'!$B$4:$H$767,4,0)),"",(VLOOKUP(B42,'KAYIT LİSTESİ'!$B$4:$H$767,4,0))) -> 1999-02-01 | E42: =IF(ISERROR(VLOOKUP(B42,'KAYIT LİSTESİ'!$B$4:$H$767,5,0)),"",(VLOOKUP(B42,'KAYIT LİSTESİ'!$B$4:$H$767,5,0))) -> PINAR KARAHAN | F42: =IF(ISERROR(VLOOKUP(B42,'KAYIT LİSTESİ'!$B$4:$H$767,6,0)),"",(VLOOKUP(B42,'KAYIT LİSTESİ'!$B$4:$H$767,6,0))) -> ADIYAMAN | I42: 8 | J42: DİSK-8 | K42: =IF(ISERROR(VLOOKUP(J42,'KAYIT LİSTESİ'!$B$4:$H$767,2,0)),"",(VLOOKUP(J42,'KAYIT LİSTESİ'!$B$4:$H$767,2,0))) ->  | L42: =IF(ISERROR(VLOOKUP(J42,'KAYIT LİSTESİ'!$B$4:$H$767,4,0)),"",(VLOOKUP(J42,'KAYIT LİSTESİ'!$B$4:$H$767,4,0))) ->  | M42: =IF(ISERROR(VLOOKUP(J42,'KAYIT LİSTESİ'!$B$4:$H$767,5,0)),"",(VLOOKUP(J42,'KAYIT LİSTESİ'!$B$4:$H$767,5,0))) ->  | N42: =IF(ISERROR(VLOOKUP(J42,'KAYIT LİSTESİ'!$B$4:$H$767,6,0)),"",(VLOOKUP(J42,'KAYIT LİSTESİ'!$B$4:$H$767,6,0))) -> 
A43: 9 | B43: 800M-3-9 | C43: =IF(ISERROR(VLOOKUP(B43,'KAYIT LİSTESİ'!$B$4:$H$767,2,0)),"",(VLOOKUP(B43,'KAYIT LİSTESİ'!$B$4:$H$767,2,0))) ->  | D43: =IF(ISERROR(VLOOKUP(B43,'KAYIT LİSTESİ'!$B$4:$H$767,4,0)),"",(VLOOKUP(B43,'KAYIT LİSTESİ'!$B$4:$H$767,4,0))) ->  | E43: =IF(ISERROR(VLOOKUP(B43,'KAYIT LİSTESİ'!$B$4:$H$767,5,0)),"",(VLOOKUP(B43,'KAYIT LİSTESİ'!$B$4:$H$767,5,0))) ->  | F43: =IF(ISERROR(VLOOKUP(B43,'KAYIT LİSTESİ'!$B$4:$H$767,6,0)),"",(VLOOKUP(B43,'KAYIT LİSTESİ'!$B$4:$H$767,6,0))) ->  | I43: 9 | J43: DİSK-9 | K43: =IF(ISERROR(VLOOKUP(J43,'KAYIT LİSTESİ'!$B$4:$H$767,2,0)),"",(VLOOKUP(J43,'KAYIT LİSTESİ'!$B$4:$H$767,2,0))) ->  | L43: =IF(ISERROR(VLOOKUP(J43,'KAYIT LİSTESİ'!$B$4:$H$767,4,0)),"",(VLOOKUP(J43,'KAYIT LİSTESİ'!$B$4:$H$767,4,0))) ->  | M43: =IF(ISERROR(VLOOKUP(J43,'KAYIT LİSTESİ'!$B$4:$H$767,5,0)),"",(VLOOKUP(J43,'KAYIT LİSTESİ'!$B$4:$H$767,5,0))) ->  | N43: =IF(ISERROR(VLOOKUP(J43,'KAYIT LİSTESİ'!$B$4:$H$767,6,0)),"",(VLOOKUP(J43,'KAYIT LİSTESİ'!$B$4:$H$767,6,0))) -> 
A44: 10 | B44: 800M-3-10 | C44: =IF(ISERROR(VLOOKUP(B44,'KAYIT LİSTESİ'!$B$4:$H$767,2,0)),"",(VLOOKUP(B44,'KAYIT LİSTESİ'!$B$4:$H$767,2,0))) ->  | D44: =IF(ISERROR(VLOOKUP(B44,'KAYIT LİSTESİ'!$B$4:$H$767,4,0)),"",(VLOOKUP(B44,'KAYIT LİSTESİ'!$B$4:$H$767,4,0))) ->  | E44: =IF(ISERROR(VLOOKUP(B44,'KAYIT LİSTESİ'!$B$4:$H$767,5,0)),"",(VLOOKUP(B44,'KAYIT LİSTESİ'!$B$4:$H$767,5,0))) ->  | F44: =IF(ISERROR(VLOOKUP(B44,'KAYIT LİSTESİ'!$B$4:$H$767,6,0)),"",(VLOOKUP(B44,'KAYIT LİSTESİ'!$B$4:$H$767,6,0))) ->  | I44: 10 | J44: DİSK-10 | K44: =IF(ISERROR(VLOOKUP(J44,'KAYIT LİSTESİ'!$B$4:$H$767,2,0)),"",(VLOOKUP(J44,'KAYIT LİSTESİ'!$B$4:$H$767,2,0))) ->  | L44: =IF(ISERROR(VLOOKUP(J44,'KAYIT LİSTESİ'!$B$4:$H$767,4,0)),"",(VLOOKUP(J44,'KAYIT LİSTESİ'!$B$4:$H$767,4,0))) ->  | M44: =IF(ISERROR(VLOOKUP(J44,'KAYIT LİSTESİ'!$B$4:$H$767,5,0)),"",(VLOOKUP(J44,'KAYIT LİSTESİ'!$B$4:$H$767,5,0))) ->  | N44: =IF(ISERROR(VLOOKUP(J44,'KAYIT LİSTESİ'!$B$4:$H$767,6,0)),"",(VLOOKUP(J44,'KAYIT LİSTESİ'!$B$4:$H$767,6,0))) -> 
A45: 11 | B45: 800M-3-11 | C45: =IF(ISERROR(VLOOKUP(B45,'KAYIT LİSTESİ'!$B$4:$H$767,2,0)),"",(VLOOKUP(B45,'KAYIT LİSTESİ'!$B$4:$H$767,2,0))) ->  | D45: =IF(ISERROR(VLOOKUP(B45,'KAYIT LİSTESİ'!$B$4:$H$767,4,0)),"",(VLOOKUP(B45,'KAYIT LİSTESİ'!$B$4:$H$767,4,0))) ->  | E45: =IF(ISERROR(VLOOKUP(B45,'KAYIT LİSTESİ'!$B$4:$H$767,5,0)),"",(VLOOKUP(B45,'KAYIT LİSTESİ'!$B$4:$H$767,5,0))) ->  | F45: =IF(ISERROR(VLOOKUP(B45,'KAYIT LİSTESİ'!$B$4:$H$767,6,0)),"",(VLOOKUP(B45,'KAYIT LİSTESİ'!$B$4:$H$767,6,0))) ->  | I45: 11 | J45: DİSK-11 | K45: =IF(ISERROR(VLOOKUP(J45,'KAYIT LİSTESİ'!$B$4:$H$767,2,0)),"",(VLOOKUP(J45,'KAYIT LİSTESİ'!$B$4:$H$767,2,0))) ->  | L45: =IF(ISERROR(VLOOKUP(J45,'KAYIT LİSTESİ'!$B$4:$H$767,4,0)),"",(VLOOKUP(J45,'KAYIT LİSTESİ'!$B$4:$H$767,4,0))) ->  | M45: =IF(ISERROR(VLOOKUP(J45,'KAYIT LİSTESİ'!$B$4:$H$767,5,0)),"",(VLOOKUP(J45,'KAYIT LİSTESİ'!$B$4:$H$767,5,0))) ->  | N45: =IF(ISERROR(VLOOKUP(J45,'KAYIT LİSTESİ'!$B$4:$H$767,6,0)),"",(VLOOKUP(J45,'KAYIT LİSTESİ'!$B$4:$H$767,6,0))) -> 
A46: 12 | B46: 800M-3-12 | C46: =IF(ISERROR(VLOOKUP(B46,'KAYIT LİSTESİ'!$B$4:$H$767,2,0)),"",(VLOOKUP(B46,'KAYIT LİSTESİ'!$B$4:$H$767,2,0))) ->  | D46: =IF(ISERROR(VLOOKUP(B46,'KAYIT LİSTESİ'!$B$4:$H$767,4,0)),"",(VLOOKUP(B46,'KAYIT LİSTESİ'!$B$4:$H$767,4,0))) ->  | E46: =IF(ISERROR(VLOOKUP(B46,'KAYIT LİSTESİ'!$B$4:$H$767,5,0)),"",(VLOOKUP(B46,'KAYIT LİSTESİ'!$B$4:$H$767,5,0))) ->  | F46: =IF(ISERROR(VLOOKUP(B46,'KAYIT LİSTESİ'!$B$4:$H$767,6,0)),"",(VLOOKUP(B46,'KAYIT LİSTESİ'!$B$4:$H$767,6,0))) ->  | I46: 12 | J46: DİSK-12 | K46: =IF(ISERROR(VLOOKUP(J46,'KAYIT LİSTESİ'!$B$4:$H$767,2,0)),"",(VLOOKUP(J46,'KAYIT LİSTESİ'!$B$4:$H$767,2,0))) ->  | L46: =IF(ISERROR(VLOOKUP(J46,'KAYIT LİSTESİ'!$B$4:$H$767,4,0)),"",(VLOOKUP(J46,'KAYIT LİSTESİ'!$B$4:$H$767,4,0))) ->  | M46: =IF(ISERROR(VLOOKUP(J46,'KAYIT LİSTESİ'!$B$4:$H$767,5,0)),"",(VLOOKUP(J46,'KAYIT LİSTESİ'!$B$4:$H$767,5,0))) ->  | N46: =IF(ISERROR(VLOOKUP(J46,'KAYIT LİSTESİ'!$B$4:$H$767,6,0)),"",(VLOOKUP(J46,'KAYIT LİSTESİ'!$B$4:$H$767,6,0))) -> 
A47: 4. SERİ | I47: 13 | J47: DİSK-13 | K47: =IF(ISERROR(VLOOKUP(J47,'KAYIT LİSTESİ'!$B$4:$H$767,2,0)),"",(VLOOKUP(J47,'KAYIT LİSTESİ'!$B$4:$H$767,2,0))) ->  | L47: =IF(ISERROR(VLOOKUP(J47,'KAYIT LİSTESİ'!$B$4:$H$767,4,0)),"",(VLOOKUP(J47,'KAYIT LİSTESİ'!$B$4:$H$767,4,0))) ->  | M47: =IF(ISERROR(VLOOKUP(J47,'KAYIT LİSTESİ'!$B$4:$H$767,5,0)),"",(VLOOKUP(J47,'KAYIT LİSTESİ'!$B$4:$H$767,5,0))) ->  | N47: =IF(ISERROR(VLOOKUP(J47,'KAYIT LİSTESİ'!$B$4:$H$767,6,0)),"",(VLOOKUP(J47,'KAYIT LİSTESİ'!$B$4:$H$767,6,0))) -> 
A48: Sıra No | B48: Formül | C48: Göğüs No | D48: Doğum Tarihi | E48: Adı ve Soyadı | F48: Okulu | G48: Start Kontrol | I48: 14 | J48: DİSK-14 | K48: =IF(ISERROR(VLOOKUP(J48,'KAYIT LİSTESİ'!$B$4:$H$767,2,0)),"",(VLOOKUP(J48,'KAYIT LİSTESİ'!$B$4:$H$767,2,0))) ->  | L48: =IF(ISERROR(VLOOKUP(J48,'KAYIT LİSTESİ'!$B$4:$H$767,4,0)),"",(VLOOKUP(J48,'KAYIT LİSTESİ'!$B$4:$H$767,4,0))) ->  | M48: =IF(ISERROR(VLOOKUP(J48,'KAYIT LİSTESİ'!$B$4:$H$767,5,0)),"",(VLOOKUP(J48,'KAYIT LİSTESİ'!$B$4:$H$767,5,0))) ->  | N48: =IF(ISERROR(VLOOKUP(J48,'KAYIT LİSTESİ'!$B$4:$H$767,6,0)),"",(VLOOKUP(J48,'KAYIT LİSTESİ'!$B$4:$H$767,6,0))) -> 
A49: 1 | B49: 800M-4-1 | C49: =IF(ISERROR(VLOOKUP(B49,'KAYIT LİSTESİ'!$B$4:$H$767,2,0)),"",(VLOOKUP(B49,'KAYIT LİSTESİ'!$B$4:$H$767,2,0))) ->  | D49: =IF(ISERROR(VLOOKUP(B49,'KAYIT LİSTESİ'!$B$4:$H$767,4,0)),"",(VLOOKUP(B49,'KAYIT LİSTESİ'!$B$4:$H$767,4,0))) ->  | E49: =IF(ISERROR(VLOOKUP(B49,'KAYIT LİSTESİ'!$B$4:$H$767,5,0)),"",(VLOOKUP(B49,'KAYIT LİSTESİ'!$B$4:$H$767,5,0))) ->  | F49: =IF(ISERROR(VLOOKUP(B49,'KAYIT LİSTESİ'!$B$4:$H$767,6,0)),"",(VLOOKUP(B49,'KAYIT LİSTESİ'!$B$4:$H$767,6,0))) ->  | I49: 15 | J49: DİSK-15 | K49: =IF(ISERROR(VLOOKUP(J49,'KAYIT LİSTESİ'!$B$4:$H$767,2,0)),"",(VLOOKUP(J49,'KAYIT LİSTESİ'!$B$4:$H$767,2,0))) ->  | L49: =IF(ISERROR(VLOOKUP(J49,'KAYIT LİSTESİ'!$B$4:$H$767,4,0)),"",(VLOOKUP(J49,'KAYIT LİSTESİ'!$B$4:$H$767,4,0))) ->  | M49: =IF(ISERROR(VLOOKUP(J49,'KAYIT LİSTESİ'!$B$4:$H$767,5,0)),"",(VLOOKUP(J49,'KAYIT LİSTESİ'!$B$4:$H$767,5,0))) ->  | N49: =IF(ISERROR(VLOOKUP(J49,'KAYIT LİSTESİ'!$B$4:$H$767,6,0)),"",(VLOOKUP(J49,'KAYIT LİSTESİ'!$B$4:$H$767,6,0))) -> 
A50: 2 | B50: 800M-4-2 | C50: =IF(ISERROR(VLOOKUP(B50,'KAYIT LİSTESİ'!$B$4:$H$767,2,0)),"",(VLOOKUP(B50,'KAYIT LİSTESİ'!$B$4:$H$767,2,0))) ->  | D50: =IF(ISERROR(VLOOKUP(B50,'KAYIT LİSTESİ'!$B$4:$H$767,4,0)),"",(VLOOKUP(B50,'KAYIT LİSTESİ'!$B$4:$H$767,4,0))) ->  | E50: =IF(ISERROR(VLOOKUP(B50,'KAYIT LİSTESİ'!$B$4:$H$767,5,0)),"",(VLOOKUP(B50,'KAYIT LİSTESİ'!$B$4:$H$767,5,0))) ->  | F50: =IF(ISERROR(VLOOKUP(B50,'KAYIT LİSTESİ'!$B$4:$H$767,6,0)),"",(VLOOKUP(B50,'KAYIT LİSTESİ'!$B$4:$H$767,6,0))) ->  | I50: 16 | J50: DİSK-16 | K50: =IF(ISERROR(VLOOKUP(J50,'KAYIT LİSTESİ'!$B$4:$H$767,2,0)),"",(VLOOKUP(J50,'KAYIT LİSTESİ'!$B$4:$H$767,2,0))) ->  | L50: =IF(ISERROR(VLOOKUP(J50,'KAYIT LİSTESİ'!$B$4:$H$767,4,0)),"",(VLOOKUP(J50,'KAYIT LİSTESİ'!$B$4:$H$767,4,0))) ->  | M50: =IF(ISERROR(VLOOKUP(J50,'KAYIT LİSTESİ'!$B$4:$H$767,5,0)),"",(VLOOKUP(J50,'KAYIT LİSTESİ'!$B$4:$H$767,5,0))) ->  | N50: =IF(ISERROR(VLOOKUP(J50,'KAYIT LİSTESİ'!$B$4:$H$767,6,0)),"",(VLOOKUP(J50,'KAYIT LİSTESİ'!$B$4:$H$767,6,0))) -> 
A51: 3 | B51: 800M-4-3 | C51: =IF(ISERROR(VLOOKUP(B51,'KAYIT LİSTESİ'!$B$4:$H$767,2,0)),"",(VLOOKUP(B51,'KAYIT LİSTESİ'!$B$4:$H$767,2,0))) ->  | D51: =IF(ISERROR(VLOOKUP(B51,'KAYIT LİSTESİ'!$B$4:$H$767,4,0)),"",(VLOOKUP(B51,'KAYIT LİSTESİ'!$B$4:$H$767,4,0))) ->  | E51: =IF(ISERROR(VLOOKUP(B51,'KAYIT LİSTESİ'!$B$4:$H$767,5,0)),"",(VLOOKUP(B51,'KAYIT LİSTESİ'!$B$4:$H$767,5,0))) ->  | F51: =IF(ISERROR(VLOOKUP(B51,'KAYIT LİSTESİ'!$B$4:$H$767,6,0)),"",(VLOOKUP(B51,'KAYIT LİSTESİ'!$B$4:$H$767,6,0))) ->  | I51: 17 | J51: DİSK-17 | K51: =IF(ISERROR(VLOOKUP(J51,'KAYIT LİSTESİ'!$B$4:$H$767,2,0)),"",(VLOOKUP(J51,'KAYIT LİSTESİ'!$B$4:$H$767,2,0))) ->  | L51: =IF(ISERROR(VLOOKUP(J51,'KAYIT LİSTESİ'!$B$4:$H$767,4,0)),"",(VLOOKUP(J51,'KAYIT LİSTESİ'!$B$4:$H$767,4,0))) ->  | M51: =IF(ISERROR(VLOOKUP(J51,'KAYIT LİSTESİ'!$B$4:$H$767,5,0)),"",(VLOOKUP(J51,'KAYIT LİSTESİ'!$B$4:$H$767,5,0))) ->  | N51: =IF(ISERROR(VLOOKUP(J51,'KAYIT LİSTESİ'!$B$4:$H$767,6,0)),"",(VLOOKUP(J51,'KAYIT LİSTESİ'!$B$4:$H$767,6,0))) -> 
A52: 4 | B52: 800M-4-4 | C52: =IF(ISERROR(VLOOKUP(B52,'KAYIT LİSTESİ'!$B$4:$H$767,2,0)),"",(VLOOKUP(B52,'KAYIT LİSTESİ'!$B$4:$H$767,2,0))) ->  | D52: =IF(ISERROR(VLOOKUP(B52,'KAYIT LİSTESİ'!$B$4:$H$767,4,0)),"",(VLOOKUP(B52,'KAYIT LİSTESİ'!$B$4:$H$767,4,0))) ->  | E52: =IF(ISERROR(VLOOKUP(B52,'KAYIT LİSTESİ'!$B$4:$H$767,5,0)),"",(VLOOKUP(B52,'KAYIT LİSTESİ'!$B$4:$H$767,5,0))) ->  | F52: =IF(ISERROR(VLOOKUP(B52,'KAYIT LİSTESİ'!$B$4:$H$767,6,0)),"",(VLOOKUP(B52,'KAYIT LİSTESİ'!$B$4:$H$767,6,0))) ->  | I52: 18 | J52: DİSK-18 | K52: =IF(ISERROR(VLOOKUP(J52,'KAYIT LİSTESİ'!$B$4:$H$767,2,0)),"",(VLOOKUP(J52,'KAYIT LİSTESİ'!$B$4:$H$767,2,0))) ->  | L52: =IF(ISERROR(VLOOKUP(J52,'KAYIT LİSTESİ'!$B$4:$H$767,4,0)),"",(VLOOKUP(J52,'KAYIT LİSTESİ'!$B$4:$H$767,4,0))) ->  | M52: =IF(ISERROR(VLOOKUP(J52,'KAYIT LİSTESİ'!$B$4:$H$767,5,0)),"",(VLOOKUP(J52,'KAYIT LİSTESİ'!$B$4:$H$767,5,0))) ->  | N52: =IF(ISERROR(VLOOKUP(J52,'KAYIT LİSTESİ'!$B$4:$H$767,6,0)),"",(VLOOKUP(J52,'KAYIT LİSTESİ'!$B$4:$H$767,6,0))) -> 
A53: 5 | B53: 800M-4-5 | C53: =IF(ISERROR(VLOOKUP(B53,'KAYIT LİSTESİ'!$B$4:$H$767,2,0)),"",(VLOOKUP(B53,'KAYIT LİSTESİ'!$B$4:$H$767,2,0))) ->  | D53: =IF(ISERROR(VLOOKUP(B53,'KAYIT LİSTESİ'!$B$4:$H$767,4,0)),"",(VLOOKUP(B53,'KAYIT LİSTESİ'!$B$4:$H$767,4,0))) ->  | E53: =IF(ISERROR(VLOOKUP(B53,'KAYIT LİSTESİ'!$B$4:$H$767,5,0)),"",(VLOOKUP(B53,'KAYIT LİSTESİ'!$B$4:$H$767,5,0))) ->  | F53: =IF(ISERROR(VLOOKUP(B53,'KAYIT LİSTESİ'!$B$4:$H$767,6,0)),"",(VLOOKUP(B53,'KAYIT LİSTESİ'!$B$4:$H$767,6,0))) ->  | I53: 19 | J53: DİSK-19 | K53: =IF(ISERROR(VLOOKUP(J53,'KAYIT LİSTESİ'!$B$4:$H$767,2,0)),"",(VLOOKUP(J53,'KAYIT LİSTESİ'!$B$4:$H$767,2,0))) ->  | L53: =IF(ISERROR(VLOOKUP(J53,'KAYIT LİSTESİ'!$B$4:$H$767,4,0)),"",(VLOOKUP(J53,'KAYIT LİSTESİ'!$B$4:$H$767,4,0))) ->  | M53: =IF(ISERROR(VLOOKUP(J53,'KAYIT LİSTESİ'!$B$4:$H$767,5,0)),"",(VLOOKUP(J53,'KAYIT LİSTESİ'!$B$4:$H$767,5,0))) ->  | N53: =IF(ISERROR(VLOOKUP(J53,'KAYIT LİSTESİ'!$B$4:$H$767,6,0)),"",(VLOOKUP(J53,'KAYIT LİSTESİ'!$B$4:$H$767,6,0))) -> 
A54: 6 | B54: 800M-4-6 | C54: =IF(ISERROR(VLOOKUP(B54,'KAYIT LİSTESİ'!$B$4:$H$767,2,0)),"",(VLOOKUP(B54,'KAYIT LİSTESİ'!$B$4:$H$767,2,0))) ->  | D54: =IF(ISERROR(VLOOKUP(B54,'KAYIT LİSTESİ'!$B$4:$H$767,4,0)),"",(VLOOKUP(B54,'KAYIT LİSTESİ'!$B$4:$H$767,4,0))) ->  | E54: =IF(ISERROR(VLOOKUP(B54,'KAYIT LİSTESİ'!$B$4:$H$767,5,0)),"",(VLOOKUP(B54,'KAYIT LİSTESİ'!$B$4:$H$767,5,0))) ->  | F54: =IF(ISERROR(VLOOKUP(B54,'KAYIT LİSTESİ'!$B$4:$H$767,6,0)),"",(VLOOKUP(B54,'KAYIT LİSTESİ'!$B$4:$H$767,6,0))) ->  | I54: 20 | J54: DİSK-20 | K54: =IF(ISERROR(VLOOKUP(J54,'KAYIT LİSTESİ'!$B$4:$H$767,2,0)),"",(VLOOKUP(J54,'KAYIT LİSTESİ'!$B$4:$H$767,2,0))) ->  | L54: =IF(ISERROR(VLOOKUP(J54,'KAYIT LİSTESİ'!$B$4:$H$767,4,0)),"",(VLOOKUP(J54,'KAYIT LİSTESİ'!$B$4:$H$767,4,0))) ->  | M54: =IF(ISERROR(VLOOKUP(J54,'KAYIT LİSTESİ'!$B$4:$H$767,5,0)),"",(VLOOKUP(J54,'KAYIT LİSTESİ'!$B$4:$H$767,5,0))) ->  | N54: =IF(ISERROR(VLOOKUP(J54,'KAYIT LİSTESİ'!$B$4:$H$767,6,0)),"",(VLOOKUP(J54,'KAYIT LİSTESİ'!$B$4:$H$767,6,0))) -> 
A55: 7 | B55: 800M-4-7 | C55: =IF(ISERROR(VLOOKUP(B55,'KAYIT LİSTESİ'!$B$4:$H$767,2,0)),"",(VLOOKUP(B55,'KAYIT LİSTESİ'!$B$4:$H$767,2,0))) ->  | D55: =IF(ISERROR(VLOOKUP(B55,'KAYIT LİSTESİ'!$B$4:$H$767,4,0)),"",(VLOOKUP(B55,'KAYIT LİSTESİ'!$B$4:$H$767,4,0))) ->  | E55: =IF(ISERROR(VLOOKUP(B55,'KAYIT LİSTESİ'!$B$4:$H$767,5,0)),"",(VLOOKUP(B55,'KAYIT LİSTESİ'!$B$4:$H$767,5,0))) ->  | F55: =IF(ISERROR(VLOOKUP(B55,'KAYIT LİSTESİ'!$B$4:$H$767,6,0)),"",(VLOOKUP(B55,'KAYIT LİSTESİ'!$B$4:$H$767,6,0))) ->  | I55: 21 | J55: DİSK-21 | K55: =IF(ISERROR(VLOOKUP(J55,'KAYIT LİSTESİ'!$B$4:$H$767,2,0)),"",(VLOOKUP(J55,'KAYIT LİSTESİ'!$B$4:$H$767,2,0))) ->  | L55: =IF(ISERROR(VLOOKUP(J55,'KAYIT LİSTESİ'!$B$4:$H$767,4,0)),"",(VLOOKUP(J55,'KAYIT LİSTESİ'!$B$4:$H$767,4,0))) ->  | M55: =IF(ISERROR(VLOOKUP(J55,'KAYIT LİSTESİ'!$B$4:$H$767,5,0)),"",(VLOOKUP(J55,'KAYIT LİSTESİ'!$B$4:$H$767,5,0))) ->  | N55: =IF(ISERROR(VLOOKUP(J55,'KAYIT LİSTESİ'!$B$4:$H$767,6,0)),"",(VLOOKUP(J55,'KAYIT LİSTESİ'!$B$4:$H$767,6,0))) -> 
A56: 8 | B56: 800M-4-8 | C56: =IF(ISERROR(VLOOKUP(B56,'KAYIT LİSTESİ'!$B$4:$H$767,2,0)),"",(VLOOKUP(B56,'KAYIT LİSTESİ'!$B$4:$H$767,2,0))) ->  | D56: =IF(ISERROR(VLOOKUP(B56,'KAYIT LİSTESİ'!$B$4:$H$767,4,0)),"",(VLOOKUP(B56,'KAYIT LİSTESİ'!$B$4:$H$767,4,0))) ->  | E56: =IF(ISERROR(VLOOKUP(B56,'KAYIT LİSTESİ'!$B$4:$H$767,5,0)),"",(VLOOKUP(B56,'KAYIT LİSTESİ'!$B$4:$H$767,5,0))) ->  | F56: =IF(ISERROR(VLOOKUP(B56,'KAYIT LİSTESİ'!$B$4:$H$767,6,0)),"",(VLOOKUP(B56,'KAYIT LİSTESİ'!$B$4:$H$767,6,0))) ->  | I56: 22 | J56: DİSK-22 | K56: =IF(ISERROR(VLOOKUP(J56,'KAYIT LİSTESİ'!$B$4:$H$767,2,0)),"",(VLOOKUP(J56,'KAYIT LİSTESİ'!$B$4:$H$767,2,0))) ->  | L56: =IF(ISERROR(VLOOKUP(J56,'KAYIT LİSTESİ'!$B$4:$H$767,4,0)),"",(VLOOKUP(J56,'KAYIT LİSTESİ'!$B$4:$H$767,4,0))) ->  | M56: =IF(ISERROR(VLOOKUP(J56,'KAYIT LİSTESİ'!$B$4:$H$767,5,0)),"",(VLOOKUP(J56,'KAYIT LİSTESİ'!$B$4:$H$767,5,0))) ->  | N56: =IF(ISERROR(VLOOKUP(J56,'KAYIT LİSTESİ'!$B$4:$H$767,6,0)),"",(VLOOKUP(J56,'KAYIT LİSTESİ'!$B$4:$H$767,6,0))) -> 
A57: 9 | B57: 800M-4-9 | C57: =IF(ISERROR(VLOOKUP(B57,'KAYIT LİSTESİ'!$B$4:$H$767,2,0)),"",(VLOOKUP(B57,'KAYIT LİSTESİ'!$B$4:$H$767,2,0))) ->  | D57: =IF(ISERROR(VLOOKUP(B57,'KAYIT LİSTESİ'!$B$4:$H$767,4,0)),"",(VLOOKUP(B57,'KAYIT LİSTESİ'!$B$4:$H$767,4,0))) ->  | E57: =IF(ISERROR(VLOOKUP(B57,'KAYIT LİSTESİ'!$B$4:$H$767,5,0)),"",(VLOOKUP(B57,'KAYIT LİSTESİ'!$B$4:$H$767,5,0))) ->  | F57: =IF(ISERROR(VLOOKUP(B57,'KAYIT LİSTESİ'!$B$4:$H$767,6,0)),"",(VLOOKUP(B57,'KAYIT LİSTESİ'!$B$4:$H$767,6,0))) ->  | I57: 23 | J57: DİSK-23 | K57: =IF(ISERROR(VLOOKUP(J57,'KAYIT LİSTESİ'!$B$4:$H$767,2,0)),"",(VLOOKUP(J57,'KAYIT LİSTESİ'!$B$4:$H$767,2,0))) ->  | L57: =IF(ISERROR(VLOOKUP(J57,'KAYIT LİSTESİ'!$B$4:$H$767,4,0)),"",(VLOOKUP(J57,'KAYIT LİSTESİ'!$B$4:$H$767,4,0))) ->  | M57: =IF(ISERROR(VLOOKUP(J57,'KAYIT LİSTESİ'!$B$4:$H$767,5,0)),"",(VLOOKUP(J57,'KAYIT LİSTESİ'!$B$4:$H$767,5,0))) ->  | N57: =IF(ISERROR(VLOOKUP(J57,'KAYIT LİSTESİ'!$B$4:$H$767,6,0)),"",(VLOOKUP(J57,'KAYIT LİSTESİ'!$B$4:$H$767,6,0))) -> 
A58: 10 | B58: 800M-4-10 | C58: =IF(ISERROR(VLOOKUP(B58,'KAYIT LİSTESİ'!$B$4:$H$767,2,0)),"",(VLOOKUP(B58,'KAYIT LİSTESİ'!$B$4:$H$767,2,0))) ->  | D58: =IF(ISERROR(VLOOKUP(B58,'KAYIT LİSTESİ'!$B$4:$H$767,4,0)),"",(VLOOKUP(B58,'KAYIT LİSTESİ'!$B$4:$H$767,4,0))) ->  | E58: =IF(ISERROR(VLOOKUP(B58,'KAYIT LİSTESİ'!$B$4:$H$767,5,0)),"",(VLOOKUP(B58,'KAYIT LİSTESİ'!$B$4:$H$767,5,0))) ->  | F58: =IF(ISERROR(VLOOKUP(B58,'KAYIT LİSTESİ'!$B$4:$H$767,6,0)),"",(VLOOKUP(B58,'KAYIT LİSTESİ'!$B$4:$H$767,6,0))) ->  | I58: 24 | J58: DİSK-24 | K58: =IF(ISERROR(VLOOKUP(J58,'KAYIT LİSTESİ'!$B$4:$H$767,2,0)),"",(VLOOKUP(J58,'KAYIT LİSTESİ'!$B$4:$H$767,2,0))) ->  | L58: =IF(ISERROR(VLOOKUP(J58,'KAYIT LİSTESİ'!$B$4:$H$767,4,0)),"",(VLOOKUP(J58,'KAYIT LİSTESİ'!$B$4:$H$767,4,0))) ->  | M58: =IF(ISERROR(VLOOKUP(J58,'KAYIT LİSTESİ'!$B$4:$H$767,5,0)),"",(VLOOKUP(J58,'KAYIT LİSTESİ'!$B$4:$H$767,5,0))) ->  | N58: =IF(ISERROR(VLOOKUP(J58,'KAYIT LİSTESİ'!$B$4:$H$767,6,0)),"",(VLOOKUP(J58,'KAYIT LİSTESİ'!$B$4:$H$767,6,0))) -> 
A59: 11 | B59: 800M-4-11 | C59: =IF(ISERROR(VLOOKUP(B59,'KAYIT LİSTESİ'!$B$4:$H$767,2,0)),"",(VLOOKUP(B59,'KAYIT LİSTESİ'!$B$4:$H$767,2,0))) ->  | D59: =IF(ISERROR(VLOOKUP(B59,'KAYIT LİSTESİ'!$B$4:$H$767,4,0)),"",(VLOOKUP(B59,'KAYIT LİSTESİ'!$B$4:$H$767,4,0))) ->  | E59: =IF(ISERROR(VLOOKUP(B59,'KAYIT LİSTESİ'!$B$4:$H$767,5,0)),"",(VLOOKUP(B59,'KAYIT LİSTESİ'!$B$4:$H$767,5,0))) ->  | F59: =IF(ISERROR(VLOOKUP(B59,'KAYIT LİSTESİ'!$B$4:$H$767,6,0)),"",(VLOOKUP(B59,'KAYIT LİSTESİ'!$B$4:$H$767,6,0))) ->  | I59: 25 | J59: DİSK-25 | K59: =IF(ISERROR(VLOOKUP(J59,'KAYIT LİSTESİ'!$B$4:$H$767,2,0)),"",(VLOOKUP(J59,'KAYIT LİSTESİ'!$B$4:$H$767,2,0))) ->  | L59: =IF(ISERROR(VLOOKUP(J59,'KAYIT LİSTESİ'!$B$4:$H$767,4,0)),"",(VLOOKUP(J59,'KAYIT LİSTESİ'!$B$4:$H$767,4,0))) ->  | M59: =IF(ISERROR(VLOOKUP(J59,'KAYIT LİSTESİ'!$B$4:$H$767,5,0)),"",(VLOOKUP(J59,'KAYIT LİSTESİ'!$B$4:$H$767,5,0))) ->  | N59: =IF(ISERROR(VLOOKUP(J59,'KAYIT LİSTESİ'!$B$4:$H$767,6,0)),"",(VLOOKUP(J59,'KAYIT LİSTESİ'!$B$4:$H$767,6,0))) -> 
A60: 12 | B60: 800M-4-12 | C60: =IF(ISERROR(VLOOKUP(B60,'KAYIT LİSTESİ'!$B$4:$H$767,2,0)),"",(VLOOKUP(B60,'KAYIT LİSTESİ'!$B$4:$H$767,2,0))) ->  | D60: =IF(ISERROR(VLOOKUP(B60,'KAYIT LİSTESİ'!$B$4:$H$767,4,0)),"",(VLOOKUP(B60,'KAYIT LİSTESİ'!$B$4:$H$767,4,0))) ->  | E60: =IF(ISERROR(VLOOKUP(B60,'KAYIT LİSTESİ'!$B$4:$H$767,5,0)),"",(VLOOKUP(B60,'KAYIT LİSTESİ'!$B$4:$H$767,5,0))) ->  | F60: =IF(ISERROR(VLOOKUP(B60,'KAYIT LİSTESİ'!$B$4:$H$767,6,0)),"",(VLOOKUP(B60,'KAYIT LİSTESİ'!$B$4:$H$767,6,0))) ->  | I60: 26 | J60: DİSK-26 | K60: =IF(ISERROR(VLOOKUP(J60,'KAYIT LİSTESİ'!$B$4:$H$767,2,0)),"",(VLOOKUP(J60,'KAYIT LİSTESİ'!$B$4:$H$767,2,0))) ->  | L60: =IF(ISERROR(VLOOKUP(J60,'KAYIT LİSTESİ'!$B$4:$H$767,4,0)),"",(VLOOKUP(J60,'KAYIT LİSTESİ'!$B$4:$H$767,4,0))) ->  | M60: =IF(ISERROR(VLOOKUP(J60,'KAYIT LİSTESİ'!$B$4:$H$767,5,0)),"",(VLOOKUP(J60,'KAYIT LİSTESİ'!$B$4:$H$767,5,0))) ->  | N60: =IF(ISERROR(VLOOKUP(J60,'KAYIT LİSTESİ'!$B$4:$H$767,6,0)),"",(VLOOKUP(J60,'KAYIT LİSTESİ'!$B$4:$H$767,6,0))) -> 
A61: 200 METRE | I61: 27 | J61: DİSK-27 | K61: =IF(ISERROR(VLOOKUP(J61,'KAYIT LİSTESİ'!$B$4:$H$767,2,0)),"",(VLOOKUP(J61,'KAYIT LİSTESİ'!$B$4:$H$767,2,0))) ->  | L61: =IF(ISERROR(VLOOKUP(J61,'KAYIT LİSTESİ'!$B$4:$H$767,4,0)),"",(VLOOKUP(J61,'KAYIT LİSTESİ'!$B$4:$H$767,4,0))) ->  | M61: =IF(ISERROR(VLOOKUP(J61,'KAYIT LİSTESİ'!$B$4:$H$767,5,0)),"",(VLOOKUP(J61,'KAYIT LİSTESİ'!$B$4:$H$767,5,0))) ->  | N61: =IF(ISERROR(VLOOKUP(J61,'KAYIT LİSTESİ'!$B$4:$H$767,6,0)),"",(VLOOKUP(J61,'KAYIT LİSTESİ'!$B$4:$H$767,6,0))) -> 
A62: 1. SERİ | I62: 28 | J62: DİSK-28 | K62: =IF(ISERROR(VLOOKUP(J62,'KAYIT LİSTESİ'!$B$4:$H$767,2,0)),"",(VLOOKUP(J62,'KAYIT LİSTESİ'!$B$4:$H$767,2,0))) ->  | L62: =IF(ISERROR(VLOOKUP(J62,'KAYIT LİSTESİ'!$B$4:$H$767,4,0)),"",(VLOOKUP(J62,'KAYIT LİSTESİ'!$B$4:$H$767,4,0))) ->  | M62: =IF(ISERROR(VLOOKUP(J62,'KAYIT LİSTESİ'!$B$4:$H$767,5,0)),"",(VLOOKUP(J62,'KAYIT LİSTESİ'!$B$4:$H$767,5,0))) ->  | N62: =IF(ISERROR(VLOOKUP(J62,'KAYIT LİSTESİ'!$B$4:$H$767,6,0)),"",(VLOOKUP(J62,'KAYIT LİSTESİ'!$B$4:$H$767,6,0))) -> 
A63: Sıra No | B63: Formül | C63: Göğüs No | D63: Doğum Tarihi | E63: Adı ve Soyadı | F63: Okulu | G63: Derece | I63: 29 | J63: DİSK-29 | K63: =IF(ISERROR(VLOOKUP(J63,'KAYIT LİSTESİ'!$B$4:$H$767,2,0)),"",(VLOOKUP(J63,'KAYIT LİSTESİ'!$B$4:$H$767,2,0))) ->  | L63: =IF(ISERROR(VLOOKUP(J63,'KAYIT LİSTESİ'!$B$4:$H$767,4,0)),"",(VLOOKUP(J63,'KAYIT LİSTESİ'!$B$4:$H$767,4,0))) ->  | M63: =IF(ISERROR(VLOOKUP(J63,'KAYIT LİSTESİ'!$B$4:$H$767,5,0)),"",(VLOOKUP(J63,'KAYIT LİSTESİ'!$B$4:$H$767,5,0))) ->  | N63: =IF(ISERROR(VLOOKUP(J63,'KAYIT LİSTESİ'!$B$4:$H$767,6,0)),"",(VLOOKUP(J63,'KAYIT LİSTESİ'!$B$4:$H$767,6,0))) -> 
A64: 1 | B64: 200M-1-1 | C64: =IF(ISERROR(VLOOKUP(B64,'KAYIT LİSTESİ'!$B$4:$H$767,2,0)),"",(VLOOKUP(B64,'KAYIT LİSTESİ'!$B$4:$H$767,2,0))) ->  | D64: =IF(ISERROR(VLOOKUP(B64,'KAYIT LİSTESİ'!$B$4:$H$767,4,0)),"",(VLOOKUP(B64,'KAYIT LİSTESİ'!$B$4:$H$767,4,0))) ->  | E64: =IF(ISERROR(VLOOKUP(B64,'KAYIT LİSTESİ'!$B$4:$H$767,5,0)),"",(VLOOKUP(B64,'KAYIT LİSTESİ'!$B$4:$H$767,5,0))) ->  | F64: =IF(ISERROR(VLOOKUP(B64,'KAYIT LİSTESİ'!$B$4:$H$767,6,0)),"",(VLOOKUP(B64,'KAYIT LİSTESİ'!$B$4:$H$767,6,0))) ->  | I64: 30 | J64: DİSK-30 | K64: =IF(ISERROR(VLOOKUP(J64,'KAYIT LİSTESİ'!$B$4:$H$767,2,0)),"",(VLOOKUP(J64,'KAYIT LİSTESİ'!$B$4:$H$767,2,0))) ->  | L64: =IF(ISERROR(VLOOKUP(J64,'KAYIT LİSTESİ'!$B$4:$H$767,4,0)),"",(VLOOKUP(J64,'KAYIT LİSTESİ'!$B$4:$H$767,4,0))) ->  | M64: =IF(ISERROR(VLOOKUP(J64,'KAYIT LİSTESİ'!$B$4:$H$767,5,0)),"",(VLOOKUP(J64,'KAYIT LİSTESİ'!$B$4:$H$767,5,0))) ->  | N64: =IF(ISERROR(VLOOKUP(J64,'KAYIT LİSTESİ'!$B$4:$H$767,6,0)),"",(VLOOKUP(J64,'KAYIT LİSTESİ'!$B$4:$H$767,6,0))) -> 
A65: 2 | B65: 200M-1-2 | C65: =IF(ISERROR(VLOOKUP(B65,'KAYIT LİSTESİ'!$B$4:$H$767,2,0)),"",(VLOOKUP(B65,'KAYIT LİSTESİ'!$B$4:$H$767,2,0))) -> 139 | D65: =IF(ISERROR(VLOOKUP(B65,'KAYIT LİSTESİ'!$B$4:$H$767,4,0)),"",(VLOOKUP(B65,'KAYIT LİSTESİ'!$B$4:$H$767,4,0))) -> 1999-01-01 | E65: =IF(ISERROR(VLOOKUP(B65,'KAYIT LİSTESİ'!$B$4:$H$767,5,0)),"",(VLOOKUP(B65,'KAYIT LİSTESİ'!$B$4:$H$767,5,0))) -> SULTAN CİHANGİR | F65: =IF(ISERROR(VLOOKUP(B65,'KAYIT LİSTESİ'!$B$4:$H$767,6,0)),"",(VLOOKUP(B65,'KAYIT LİSTESİ'!$B$4:$H$767,6,0))) -> BATMAN | I65: 31 | J65: DİSK-31 | K65: =IF(ISERROR(VLOOKUP(J65,'KAYIT LİSTESİ'!$B$4:$H$767,2,0)),"",(VLOOKUP(J65,'KAYIT LİSTESİ'!$B$4:$H$767,2,0))) ->  | L65: =IF(ISERROR(VLOOKUP(J65,'KAYIT LİSTESİ'!$B$4:$H$767,4,0)),"",(VLOOKUP(J65,'KAYIT LİSTESİ'!$B$4:$H$767,4,0))) ->  | M65: =IF(ISERROR(VLOOKUP(J65,'KAYIT LİSTESİ'!$B$4:$H$767,5,0)),"",(VLOOKUP(J65,'KAYIT LİSTESİ'!$B$4:$H$767,5,0))) ->  | N65: =IF(ISERROR(VLOOKUP(J65,'KAYIT LİSTESİ'!$B$4:$H$767,6,0)),"",(VLOOKUP(J65,'KAYIT LİSTESİ'!$B$4:$H$767,6,0))) -> 
A66: 3 | B66: 200M-1-3 | C66: =IF(ISERROR(VLOOKUP(B66,'KAYIT LİSTESİ'!$B$4:$H$767,2,0)),"",(VLOOKUP(B66,'KAYIT LİSTESİ'!$B$4:$H$767,2,0))) -> 464 | D66: =IF(ISERROR(VLOOKUP(B66,'KAYIT LİSTESİ'!$B$4:$H$767,4,0)),"",(VLOOKUP(B66,'KAYIT LİSTESİ'!$B$4:$H$767,4,0))) -> 1999-11-08 | E66: =IF(ISERROR(VLOOKUP(B66,'KAYIT LİSTESİ'!$B$4:$H$767,5,0)),"",(VLOOKUP(B66,'KAYIT LİSTESİ'!$B$4:$H$767,5,0))) -> EMİNE ÜNLÜER | F66: =IF(ISERROR(VLOOKUP(B66,'KAYIT LİSTESİ'!$B$4:$H$767,6,0)),"",(VLOOKUP(B66,'KAYIT LİSTESİ'!$B$4:$H$767,6,0))) -> KARAMAN | I66: 32 | J66: DİSK-32 | K66: =IF(ISERROR(VLOOKUP(J66,'KAYIT LİSTESİ'!$B$4:$H$767,2,0)),"",(VLOOKUP(J66,'KAYIT LİSTESİ'!$B$4:$H$767,2,0))) ->  | L66: =IF(ISERROR(VLOOKUP(J66,'KAYIT LİSTESİ'!$B$4:$H$767,4,0)),"",(VLOOKUP(J66,'KAYIT LİSTESİ'!$B$4:$H$767,4,0))) ->  | M66: =IF(ISERROR(VLOOKUP(J66,'KAYIT LİSTESİ'!$B$4:$H$767,5,0)),"",(VLOOKUP(J66,'KAYIT LİSTESİ'!$B$4:$H$767,5,0))) ->  | N66: =IF(ISERROR(VLOOKUP(J66,'KAYIT LİSTESİ'!$B$4:$H$767,6,0)),"",(VLOOKUP(J66,'KAYIT LİSTESİ'!$B$4:$H$767,6,0))) -> 
A67: 4 | B67: 200M-1-4 | C67: =IF(ISERROR(VLOOKUP(B67,'KAYIT LİSTESİ'!$B$4:$H$767,2,0)),"",(VLOOKUP(B67,'KAYIT LİSTESİ'!$B$4:$H$767,2,0))) -> 564 | D67: =IF(ISERROR(VLOOKUP(B67,'KAYIT LİSTESİ'!$B$4:$H$767,4,0)),"",(VLOOKUP(B67,'KAYIT LİSTESİ'!$B$4:$H$767,4,0))) -> 1999-10-14 | E67: =IF(ISERROR(VLOOKUP(B67,'KAYIT LİSTESİ'!$B$4:$H$767,5,0)),"",(VLOOKUP(B67,'KAYIT LİSTESİ'!$B$4:$H$767,5,0))) -> CEMRE KUNDAKCI | F67: =IF(ISERROR(VLOOKUP(B67,'KAYIT LİSTESİ'!$B$4:$H$767,6,0)),"",(VLOOKUP(B67,'KAYIT LİSTESİ'!$B$4:$H$767,6,0))) -> MUĞLA | I67: 33 | J67: DİSK-33 | K67: =IF(ISERROR(VLOOKUP(J67,'KAYIT LİSTESİ'!$B$4:$H$767,2,0)),"",(VLOOKUP(J67,'KAYIT LİSTESİ'!$B$4:$H$767,2,0))) ->  | L67: =IF(ISERROR(VLOOKUP(J67,'KAYIT LİSTESİ'!$B$4:$H$767,4,0)),"",(VLOOKUP(J67,'KAYIT LİSTESİ'!$B$4:$H$767,4,0))) ->  | M67: =IF(ISERROR(VLOOKUP(J67,'KAYIT LİSTESİ'!$B$4:$H$767,5,0)),"",(VLOOKUP(J67,'KAYIT LİSTESİ'!$B$4:$H$767,5,0))) ->  | N67: =IF(ISERROR(VLOOKUP(J67,'KAYIT LİSTESİ'!$B$4:$H$767,6,0)),"",(VLOOKUP(J67,'KAYIT LİSTESİ'!$B$4:$H$767,6,0))) -> 
A68: 5 | B68: 200M-1-5 | C68: =IF(ISERROR(VLOOKUP(B68,'KAYIT LİSTESİ'!$B$4:$H$767,2,0)),"",(VLOOKUP(B68,'KAYIT LİSTESİ'!$B$4:$H$767,2,0))) -> 360 | D68: =IF(ISERROR(VLOOKUP(B68,'KAYIT LİSTESİ'!$B$4:$H$767,4,0)),"",(VLOOKUP(B68,'KAYIT LİSTESİ'!$B$4:$H$767,4,0))) -> 1999-01-22 | E68: =IF(ISERROR(VLOOKUP(B68,'KAYIT LİSTESİ'!$B$4:$H$767,5,0)),"",(VLOOKUP(B68,'KAYIT LİSTESİ'!$B$4:$H$767,5,0))) -> ELİF POLAT (İSTANBUL) | F68: =IF(ISERROR(VLOOKUP(B68,'KAYIT LİSTESİ'!$B$4:$H$767,6,0)),"",(VLOOKUP(B68,'KAYIT LİSTESİ'!$B$4:$H$767,6,0))) -> İSTANBUL | I68: 34 | J68: DİSK-34 | K68: =IF(ISERROR(VLOOKUP(J68,'KAYIT LİSTESİ'!$B$4:$H$767,2,0)),"",(VLOOKUP(J68,'KAYIT LİSTESİ'!$B$4:$H$767,2,0))) ->  | L68: =IF(ISERROR(VLOOKUP(J68,'KAYIT LİSTESİ'!$B$4:$H$767,4,0)),"",(VLOOKUP(J68,'KAYIT LİSTESİ'!$B$4:$H$767,4,0))) ->  | M68: =IF(ISERROR(VLOOKUP(J68,'KAYIT LİSTESİ'!$B$4:$H$767,5,0)),"",(VLOOKUP(J68,'KAYIT LİSTESİ'!$B$4:$H$767,5,0))) ->  | N68: =IF(ISERROR(VLOOKUP(J68,'KAYIT LİSTESİ'!$B$4:$H$767,6,0)),"",(VLOOKUP(J68,'KAYIT LİSTESİ'!$B$4:$H$767,6,0))) -> 
A69: 6 | B69: 200M-1-6 | C69: =IF(ISERROR(VLOOKUP(B69,'KAYIT LİSTESİ'!$B$4:$H$767,2,0)),"",(VLOOKUP(B69,'KAYIT LİSTESİ'!$B$4:$H$767,2,0))) -> 463 | D69: =IF(ISERROR(VLOOKUP(B69,'KAYIT LİSTESİ'!$B$4:$H$767,4,0)),"",(VLOOKUP(B69,'KAYIT LİSTESİ'!$B$4:$H$767,4,0))) -> 1999-06-18 | E69: =IF(ISERROR(VLOOKUP(B69,'KAYIT LİSTESİ'!$B$4:$H$767,5,0)),"",(VLOOKUP(B69,'KAYIT LİSTESİ'!$B$4:$H$767,5,0))) -> SEHER AKKUŞ | F69: =IF(ISERROR(VLOOKUP(B69,'KAYIT LİSTESİ'!$B$4:$H$767,6,0)),"",(VLOOKUP(B69,'KAYIT LİSTESİ'!$B$4:$H$767,6,0))) -> KARAMAN | I69: 35 | J69: DİSK-35 | K69: =IF(ISERROR(VLOOKUP(J69,'KAYIT LİSTESİ'!$B$4:$H$767,2,0)),"",(VLOOKUP(J69,'KAYIT LİSTESİ'!$B$4:$H$767,2,0))) ->  | L69: =IF(ISERROR(VLOOKUP(J69,'KAYIT LİSTESİ'!$B$4:$H$767,4,0)),"",(VLOOKUP(J69,'KAYIT LİSTESİ'!$B$4:$H$767,4,0))) ->  | M69: =IF(ISERROR(VLOOKUP(J69,'KAYIT LİSTESİ'!$B$4:$H$767,5,0)),"",(VLOOKUP(J69,'KAYIT LİSTESİ'!$B$4:$H$767,5,0))) ->  | N69: =IF(ISERROR(VLOOKUP(J69,'KAYIT LİSTESİ'!$B$4:$H$767,6,0)),"",(VLOOKUP(J69,'KAYIT LİSTESİ'!$B$4:$H$767,6,0))) -> 
A70: 7 | B70: 200M-1-7 | C70: =IF(ISERROR(VLOOKUP(B70,'KAYIT LİSTESİ'!$B$4:$H$767,2,0)),"",(VLOOKUP(B70,'KAYIT LİSTESİ'!$B$4:$H$767,2,0))) -> 650 | D70: =IF(ISERROR(VLOOKUP(B70,'KAYIT LİSTESİ'!$B$4:$H$767,4,0)),"",(VLOOKUP(B70,'KAYIT LİSTESİ'!$B$4:$H$767,4,0))) -> 1999-07-30 | E70: =IF(ISERROR(VLOOKUP(B70,'KAYIT LİSTESİ'!$B$4:$H$767,5,0)),"",(VLOOKUP(B70,'KAYIT LİSTESİ'!$B$4:$H$767,5,0))) -> ESRA OYSAL | F70: =IF(ISERROR(VLOOKUP(B70,'KAYIT LİSTESİ'!$B$4:$H$767,6,0)),"",(VLOOKUP(B70,'KAYIT LİSTESİ'!$B$4:$H$767,6,0))) -> SİİRT | I70: 36 | J70: DİSK-36 | K70: =IF(ISERROR(VLOOKUP(J70,'KAYIT LİSTESİ'!$B$4:$H$767,2,0)),"",(VLOOKUP(J70,'KAYIT LİSTESİ'!$B$4:$H$767,2,0))) ->  | L70: =IF(ISERROR(VLOOKUP(J70,'KAYIT LİSTESİ'!$B$4:$H$767,4,0)),"",(VLOOKUP(J70,'KAYIT LİSTESİ'!$B$4:$H$767,4,0))) ->  | M70: =IF(ISERROR(VLOOKUP(J70,'KAYIT LİSTESİ'!$B$4:$H$767,5,0)),"",(VLOOKUP(J70,'KAYIT LİSTESİ'!$B$4:$H$767,5,0))) ->  | N70: =IF(ISERROR(VLOOKUP(J70,'KAYIT LİSTESİ'!$B$4:$H$767,6,0)),"",(VLOOKUP(J70,'KAYIT LİSTESİ'!$B$4:$H$767,6,0))) -> 
A71: 8 | B71: 200M-1-8 | C71: =IF(ISERROR(VLOOKUP(B71,'KAYIT LİSTESİ'!$B$4:$H$767,2,0)),"",(VLOOKUP(B71,'KAYIT LİSTESİ'!$B$4:$H$767,2,0))) ->  | D71: =IF(ISERROR(VLOOKUP(B71,'KAYIT LİSTESİ'!$B$4:$H$767,4,0)),"",(VLOOKUP(B71,'KAYIT LİSTESİ'!$B$4:$H$767,4,0))) ->  | E71: =IF(ISERROR(VLOOKUP(B71,'KAYIT LİSTESİ'!$B$4:$H$767,5,0)),"",(VLOOKUP(B71,'KAYIT LİSTESİ'!$B$4:$H$767,5,0))) ->  | F71: =IF(ISERROR(VLOOKUP(B71,'KAYIT LİSTESİ'!$B$4:$H$767,6,0)),"",(VLOOKUP(B71,'KAYIT LİSTESİ'!$B$4:$H$767,6,0))) ->  | I71: 37 | J71: DİSK-37 | K71: =IF(ISERROR(VLOOKUP(J71,'KAYIT LİSTESİ'!$B$4:$H$767,2,0)),"",(VLOOKUP(J71,'KAYIT LİSTESİ'!$B$4:$H$767,2,0))) ->  | L71: =IF(ISERROR(VLOOKUP(J71,'KAYIT LİSTESİ'!$B$4:$H$767,4,0)),"",(VLOOKUP(J71,'KAYIT LİSTESİ'!$B$4:$H$767,4,0))) ->  | M71: =IF(ISERROR(VLOOKUP(J71,'KAYIT LİSTESİ'!$B$4:$H$767,5,0)),"",(VLOOKUP(J71,'KAYIT LİSTESİ'!$B$4:$H$767,5,0))) ->  | N71: =IF(ISERROR(VLOOKUP(J71,'KAYIT LİSTESİ'!$B$4:$H$767,6,0)),"",(VLOOKUP(J71,'KAYIT LİSTESİ'!$B$4:$H$767,6,0))) -> 
A72: 2. SERİ | I72: 38 | J72: DİSK-38 | K72: =IF(ISERROR(VLOOKUP(J72,'KAYIT LİSTESİ'!$B$4:$H$767,2,0)),"",(VLOOKUP(J72,'KAYIT LİSTESİ'!$B$4:$H$767,2,0))) ->  | L72: =IF(ISERROR(VLOOKUP(J72,'KAYIT LİSTESİ'!$B$4:$H$767,4,0)),"",(VLOOKUP(J72,'KAYIT LİSTESİ'!$B$4:$H$767,4,0))) ->  | M72: =IF(ISERROR(VLOOKUP(J72,'KAYIT LİSTESİ'!$B$4:$H$767,5,0)),"",(VLOOKUP(J72,'KAYIT LİSTESİ'!$B$4:$H$767,5,0))) ->  | N72: =IF(ISERROR(VLOOKUP(J72,'KAYIT LİSTESİ'!$B$4:$H$767,6,0)),"",(VLOOKUP(J72,'KAYIT LİSTESİ'!$B$4:$H$767,6,0))) -> 
A73: Sıra No | B73: Formül | C73: Göğüs No | D73: Doğum Tarihi | E73: Adı ve Soyadı | F73: Okulu | G73: Derece | I73: 39 | J73: DİSK-39 | K73: =IF(ISERROR(VLOOKUP(J73,'KAYIT LİSTESİ'!$B$4:$H$767,2,0)),"",(VLOOKUP(J73,'KAYIT LİSTESİ'!$B$4:$H$767,2,0))) ->  | L73: =IF(ISERROR(VLOOKUP(J73,'KAYIT LİSTESİ'!$B$4:$H$767,4,0)),"",(VLOOKUP(J73,'KAYIT LİSTESİ'!$B$4:$H$767,4,0))) ->  | M73: =IF(ISERROR(VLOOKUP(J73,'KAYIT LİSTESİ'!$B$4:$H$767,5,0)),"",(VLOOKUP(J73,'KAYIT LİSTESİ'!$B$4:$H$767,5,0))) ->  | N73: =IF(ISERROR(VLOOKUP(J73,'KAYIT LİSTESİ'!$B$4:$H$767,6,0)),"",(VLOOKUP(J73,'KAYIT LİSTESİ'!$B$4:$H$767,6,0))) -> 
A74: 1 | B74: 200M-2-1 | C74: =IF(ISERROR(VLOOKUP(B74,'KAYIT LİSTESİ'!$B$4:$H$767,2,0)),"",(VLOOKUP(B74,'KAYIT LİSTESİ'!$B$4:$H$767,2,0))) ->  | D74: =IF(ISERROR(VLOOKUP(B74,'KAYIT LİSTESİ'!$B$4:$H$767,4,0)),"",(VLOOKUP(B74,'KAYIT LİSTESİ'!$B$4:$H$767,4,0))) ->  | E74: =IF(ISERROR(VLOOKUP(B74,'KAYIT LİSTESİ'!$B$4:$H$767,5,0)),"",(VLOOKUP(B74,'KAYIT LİSTESİ'!$B$4:$H$767,5,0))) ->  | F74: =IF(ISERROR(VLOOKUP(B74,'KAYIT LİSTESİ'!$B$4:$H$767,6,0)),"",(VLOOKUP(B74,'KAYIT LİSTESİ'!$B$4:$H$767,6,0))) ->  | I74: 40 | J74: DİSK-40 | K74: =IF(ISERROR(VLOOKUP(J74,'KAYIT LİSTESİ'!$B$4:$H$767,2,0)),"",(VLOOKUP(J74,'KAYIT LİSTESİ'!$B$4:$H$767,2,0))) ->  | L74: =IF(ISERROR(VLOOKUP(J74,'KAYIT LİSTESİ'!$B$4:$H$767,4,0)),"",(VLOOKUP(J74,'KAYIT LİSTESİ'!$B$4:$H$767,4,0))) ->  | M74: =IF(ISERROR(VLOOKUP(J74,'KAYIT LİSTESİ'!$B$4:$H$767,5,0)),"",(VLOOKUP(J74,'KAYIT LİSTESİ'!$B$4:$H$767,5,0))) ->  | N74: =IF(ISERROR(VLOOKUP(J74,'KAYIT LİSTESİ'!$B$4:$H$767,6,0)),"",(VLOOKUP(J74,'KAYIT LİSTESİ'!$B$4:$H$767,6,0))) -> 
A75: 2 | B75: 200M-2-2 | C75: =IF(ISERROR(VLOOKUP(B75,'KAYIT LİSTESİ'!$B$4:$H$767,2,0)),"",(VLOOKUP(B75,'KAYIT LİSTESİ'!$B$4:$H$767,2,0))) -> 210 | D75: =IF(ISERROR(VLOOKUP(B75,'KAYIT LİSTESİ'!$B$4:$H$767,4,0)),"",(VLOOKUP(B75,'KAYIT LİSTESİ'!$B$4:$H$767,4,0))) -> 1999-11-22 | E75: =IF(ISERROR(VLOOKUP(B75,'KAYIT LİSTESİ'!$B$4:$H$767,5,0)),"",(VLOOKUP(B75,'KAYIT LİSTESİ'!$B$4:$H$767,5,0))) -> BELİNAY DENİZ GÜZEL | F75: =IF(ISERROR(VLOOKUP(B75,'KAYIT LİSTESİ'!$B$4:$H$767,6,0)),"",(VLOOKUP(B75,'KAYIT LİSTESİ'!$B$4:$H$767,6,0))) -> ÇANAKKALE | I75: DİSK ATMA
A76: 3 | B76: 200M-2-3 | C76: =IF(ISERROR(VLOOKUP(B76,'KAYIT LİSTESİ'!$B$4:$H$767,2,0)),"",(VLOOKUP(B76,'KAYIT LİSTESİ'!$B$4:$H$767,2,0))) -> 388 | D76: =IF(ISERROR(VLOOKUP(B76,'KAYIT LİSTESİ'!$B$4:$H$767,4,0)),"",(VLOOKUP(B76,'KAYIT LİSTESİ'!$B$4:$H$767,4,0))) -> 1999-01-01 | E76: =IF(ISERROR(VLOOKUP(B76,'KAYIT LİSTESİ'!$B$4:$H$767,5,0)),"",(VLOOKUP(B76,'KAYIT LİSTESİ'!$B$4:$H$767,5,0))) -> DİDEM BARDAKÇI | F76: =IF(ISERROR(VLOOKUP(B76,'KAYIT LİSTESİ'!$B$4:$H$767,6,0)),"",(VLOOKUP(B76,'KAYIT LİSTESİ'!$B$4:$H$767,6,0))) -> İZMİR | I76: SIRA NO | K76: GÖĞÜS NO | L76: DOĞUM TARİHİ | M76: ADI VE SOYADI | N76: OKULU | O76: START KONTROL
A77: 4 | B77: 200M-2-4 | C77: =IF(ISERROR(VLOOKUP(B77,'KAYIT LİSTESİ'!$B$4:$H$767,2,0)),"",(VLOOKUP(B77,'KAYIT LİSTESİ'!$B$4:$H$767,2,0))) -> 383 | D77: =IF(ISERROR(VLOOKUP(B77,'KAYIT LİSTESİ'!$B$4:$H$767,4,0)),"",(VLOOKUP(B77,'KAYIT LİSTESİ'!$B$4:$H$767,4,0))) -> 1999-06-14 | E77: =IF(ISERROR(VLOOKUP(B77,'KAYIT LİSTESİ'!$B$4:$H$767,5,0)),"",(VLOOKUP(B77,'KAYIT LİSTESİ'!$B$4:$H$767,5,0))) -> MELİS ÇİÇEK | F77: =IF(ISERROR(VLOOKUP(B77,'KAYIT LİSTESİ'!$B$4:$H$767,6,0)),"",(VLOOKUP(B77,'KAYIT LİSTESİ'!$B$4:$H$767,6,0))) -> İZMİR | I77: 1 | J77: CİRİT-1 | K77: =IF(ISERROR(VLOOKUP(J77,'KAYIT LİSTESİ'!$B$4:$H$767,2,0)),"",(VLOOKUP(J77,'KAYIT LİSTESİ'!$B$4:$H$767,2,0))) -> 265 | L77: =IF(ISERROR(VLOOKUP(J77,'KAYIT LİSTESİ'!$B$4:$H$767,4,0)),"",(VLOOKUP(J77,'KAYIT LİSTESİ'!$B$4:$H$767,4,0))) -> 1999-11-23 | M77: =IF(ISERROR(VLOOKUP(J77,'KAYIT LİSTESİ'!$B$4:$H$767,5,0)),"",(VLOOKUP(J77,'KAYIT LİSTESİ'!$B$4:$H$767,5,0))) -> KÜBRA ALPER | N77: =IF(ISERROR(VLOOKUP(J77,'KAYIT LİSTESİ'!$B$4:$H$767,6,0)),"",(VLOOKUP(J77,'KAYIT LİSTESİ'!$B$4:$H$767,6,0))) -> ERZURUM
A78: 5 | B78: 200M-2-5 | C78: =IF(ISERROR(VLOOKUP(B78,'KAYIT LİSTESİ'!$B$4:$H$767,2,0)),"",(VLOOKUP(B78,'KAYIT LİSTESİ'!$B$4:$H$767,2,0))) -> 99 | D78: =IF(ISERROR(VLOOKUP(B78,'KAYIT LİSTESİ'!$B$4:$H$767,4,0)),"",(VLOOKUP(B78,'KAYIT LİSTESİ'!$B$4:$H$767,4,0))) -> 1999-08-10 | E78: =IF(ISERROR(VLOOKUP(B78,'KAYIT LİSTESİ'!$B$4:$H$767,5,0)),"",(VLOOKUP(B78,'KAYIT LİSTESİ'!$B$4:$H$767,5,0))) -> EMİNE HİLAL ÇETİNKAYA | F78: =IF(ISERROR(VLOOKUP(B78,'KAYIT LİSTESİ'!$B$4:$H$767,6,0)),"",(VLOOKUP(B78,'KAYIT LİSTESİ'!$B$4:$H$767,6,0))) -> BALIKESİR | I78: 2 | J78: CİRİT-2 | K78: =IF(ISERROR(VLOOKUP(J78,'KAYIT LİSTESİ'!$B$4:$H$767,2,0)),"",(VLOOKUP(J78,'KAYIT LİSTESİ'!$B$4:$H$767,2,0))) -> 489 | L78: =IF(ISERROR(VLOOKUP(J78,'KAYIT LİSTESİ'!$B$4:$H$767,4,0)),"",(VLOOKUP(J78,'KAYIT LİSTESİ'!$B$4:$H$767,4,0))) -> 1999-02-20 | M78: =IF(ISERROR(VLOOKUP(J78,'KAYIT LİSTESİ'!$B$4:$H$767,5,0)),"",(VLOOKUP(J78,'KAYIT LİSTESİ'!$B$4:$H$767,5,0))) -> GİZEM ŞAHİN | N78: =IF(ISERROR(VLOOKUP(J78,'KAYIT LİSTESİ'!$B$4:$H$767,6,0)),"",(VLOOKUP(J78,'KAYIT LİSTESİ'!$B$4:$H$767,6,0))) -> KIRŞEHİR
A79: 6 | B79: 200M-2-6 | C79: =IF(ISERROR(VLOOKUP(B79,'KAYIT LİSTESİ'!$B$4:$H$767,2,0)),"",(VLOOKUP(B79,'KAYIT LİSTESİ'!$B$4:$H$767,2,0))) -> 379 | D79: =IF(ISERROR(VLOOKUP(B79,'KAYIT LİSTESİ'!$B$4:$H$767,4,0)),"",(VLOOKUP(B79,'KAYIT LİSTESİ'!$B$4:$H$767,4,0))) -> 1999-07-09 | E79: =IF(ISERROR(VLOOKUP(B79,'KAYIT LİSTESİ'!$B$4:$H$767,5,0)),"",(VLOOKUP(B79,'KAYIT LİSTESİ'!$B$4:$H$767,5,0))) -> EYLÜL ÖZKAN | F79: =IF(ISERROR(VLOOKUP(B79,'KAYIT LİSTESİ'!$B$4:$H$767,6,0)),"",(VLOOKUP(B79,'KAYIT LİSTESİ'!$B$4:$H$767,6,0))) -> İZMİR | I79: 3 | J79: CİRİT-3 | K79: =IF(ISERROR(VLOOKUP(J79,'KAYIT LİSTESİ'!$B$4:$H$767,2,0)),"",(VLOOKUP(J79,'KAYIT LİSTESİ'!$B$4:$H$767,2,0))) -> 464 | L79: =IF(ISERROR(VLOOKUP(J79,'KAYIT LİSTESİ'!$B$4:$H$767,4,0)),"",(VLOOKUP(J79,'KAYIT LİSTESİ'!$B$4:$H$767,4,0))) -> 1999-11-08 | M79: =IF(ISERROR(VLOOKUP(J79,'KAYIT LİSTESİ'!$B$4:$H$767,5,0)),"",(VLOOKUP(J79,'KAYIT LİSTESİ'!$B$4:$H$767,5,0))) -> EMİNE ÜNLÜER | N79: =IF(ISERROR(VLOOKUP(J79,'KAYIT LİSTESİ'!$B$4:$H$767,6,0)),"",(VLOOKUP(J79,'KAYIT LİSTESİ'!$B$4:$H$767,6,0))) -> KARAMAN
A80: 7 | B80: 200M-2-7 | C80: =IF(ISERROR(VLOOKUP(B80,'KAYIT LİSTESİ'!$B$4:$H$767,2,0)),"",(VLOOKUP(B80,'KAYIT LİSTESİ'!$B$4:$H$767,2,0))) -> 378 | D80: =IF(ISERROR(VLOOKUP(B80,'KAYIT LİSTESİ'!$B$4:$H$767,4,0)),"",(VLOOKUP(B80,'KAYIT LİSTESİ'!$B$4:$H$767,4,0))) -> 1999-08-06 | E80: =IF(ISERROR(VLOOKUP(B80,'KAYIT LİSTESİ'!$B$4:$H$767,5,0)),"",(VLOOKUP(B80,'KAYIT LİSTESİ'!$B$4:$H$767,5,0))) -> OLİMPİA AHENK DOURMOUCHEV | F80: =IF(ISERROR(VLOOKUP(B80,'KAYIT LİSTESİ'!$B$4:$H$767,6,0)),"",(VLOOKUP(B80,'KAYIT LİSTESİ'!$B$4:$H$767,6,0))) -> İZMİR | I80: 4 | J80: CİRİT-4 | K80: =IF(ISERROR(VLOOKUP(J80,'KAYIT LİSTESİ'!$B$4:$H$767,2,0)),"",(VLOOKUP(J80,'KAYIT LİSTESİ'!$B$4:$H$767,2,0))) -> 385 | L80: =IF(ISERROR(VLOOKUP(J80,'KAYIT LİSTESİ'!$B$4:$H$767,4,0)),"",(VLOOKUP(J80,'KAYIT LİSTESİ'!$B$4:$H$767,4,0))) -> 1999-04-01 | M80: =IF(ISERROR(VLOOKUP(J80,'KAYIT LİSTESİ'!$B$4:$H$767,5,0)),"",(VLOOKUP(J80,'KAYIT LİSTESİ'!$B$4:$H$767,5,0))) -> FADİME YEŞİLMEN | N80: =IF(ISERROR(VLOOKUP(J80,'KAYIT LİSTESİ'!$B$4:$H$767,6,0)),"",(VLOOKUP(J80,'KAYIT LİSTESİ'!$B$4:$H$767,6,0))) -> İZMİR
A81: 8 | B81: 200M-2-8 | C81: =IF(ISERROR(VLOOKUP(B81,'KAYIT LİSTESİ'!$B$4:$H$767,2,0)),"",(VLOOKUP(B81,'KAYIT LİSTESİ'!$B$4:$H$767,2,0))) ->  | D81: =IF(ISERROR(VLOOKUP(B81,'KAYIT LİSTESİ'!$B$4:$H$767,4,0)),"",(VLOOKUP(B81,'KAYIT LİSTESİ'!$B$4:$H$767,4,0))) ->  | E81: =IF(ISERROR(VLOOKUP(B81,'KAYIT LİSTESİ'!$B$4:$H$767,5,0)),"",(VLOOKUP(B81,'KAYIT LİSTESİ'!$B$4:$H$767,5,0))) ->  | F81: =IF(ISERROR(VLOOKUP(B81,'KAYIT LİSTESİ'!$B$4:$H$767,6,0)),"",(VLOOKUP(B81,'KAYIT LİSTESİ'!$B$4:$H$767,6,0))) ->  | I81: 5 | J81: CİRİT-5 | K81: =IF(ISERROR(VLOOKUP(J81,'KAYIT LİSTESİ'!$B$4:$H$767,2,0)),"",(VLOOKUP(J81,'KAYIT LİSTESİ'!$B$4:$H$767,2,0))) ->  | L81: =IF(ISERROR(VLOOKUP(J81,'KAYIT LİSTESİ'!$B$4:$H$767,4,0)),"",(VLOOKUP(J81,'KAYIT LİSTESİ'!$B$4:$H$767,4,0))) ->  | M81: =IF(ISERROR(VLOOKUP(J81,'KAYIT LİSTESİ'!$B$4:$H$767,5,0)),"",(VLOOKUP(J81,'KAYIT LİSTESİ'!$B$4:$H$767,5,0))) ->  | N81: =IF(ISERROR(VLOOKUP(J81,'KAYIT LİSTESİ'!$B$4:$H$767,6,0)),"",(VLOOKUP(J81,'KAYIT LİSTESİ'!$B$4:$H$767,6,0))) -> 
A82: 3. SERİ | I82: 6 | J82: CİRİT-6 | K82: =IF(ISERROR(VLOOKUP(J82,'KAYIT LİSTESİ'!$B$4:$H$767,2,0)),"",(VLOOKUP(J82,'KAYIT LİSTESİ'!$B$4:$H$767,2,0))) ->  | L82: =IF(ISERROR(VLOOKUP(J82,'KAYIT LİSTESİ'!$B$4:$H$767,4,0)),"",(VLOOKUP(J82,'KAYIT LİSTESİ'!$B$4:$H$767,4,0))) ->  | M82: =IF(ISERROR(VLOOKUP(J82,'KAYIT LİSTESİ'!$B$4:$H$767,5,0)),"",(VLOOKUP(J82,'KAYIT LİSTESİ'!$B$4:$H$767,5,0))) ->  | N82: =IF(ISERROR(VLOOKUP(J82,'KAYIT LİSTESİ'!$B$4:$H$767,6,0)),"",(VLOOKUP(J82,'KAYIT LİSTESİ'!$B$4:$H$767,6,0))) -> 
A83: Sıra No | B83: Formül | C83: Göğüs No | D83: Doğum Tarihi | E83: Adı ve Soyadı | F83: Okulu | G83: Derece | I83: 7 | J83: CİRİT-7 | K83: =IF(ISERROR(VLOOKUP(J83,'KAYIT LİSTESİ'!$B$4:$H$767,2,0)),"",(VLOOKUP(J83,'KAYIT LİSTESİ'!$B$4:$H$767,2,0))) ->  | L83: =IF(ISERROR(VLOOKUP(J83,'KAYIT LİSTESİ'!$B$4:$H$767,4,0)),"",(VLOOKUP(J83,'KAYIT LİSTESİ'!$B$4:$H$767,4,0))) ->  | M83: =IF(ISERROR(VLOOKUP(J83,'KAYIT LİSTESİ'!$B$4:$H$767,5,0)),"",(VLOOKUP(J83,'KAYIT LİSTESİ'!$B$4:$H$767,5,0))) ->  | N83: =IF(ISERROR(VLOOKUP(J83,'KAYIT LİSTESİ'!$B$4:$H$767,6,0)),"",(VLOOKUP(J83,'KAYIT LİSTESİ'!$B$4:$H$767,6,0))) -> 
A84: 1 | B84: 200M-3-1 | C84: =IF(ISERROR(VLOOKUP(B84,'KAYIT LİSTESİ'!$B$4:$H$767,2,0)),"",(VLOOKUP(B84,'KAYIT LİSTESİ'!$B$4:$H$767,2,0))) ->  | D84: =IF(ISERROR(VLOOKUP(B84,'KAYIT LİSTESİ'!$B$4:$H$767,4,0)),"",(VLOOKUP(B84,'KAYIT LİSTESİ'!$B$4:$H$767,4,0))) ->  | E84: =IF(ISERROR(VLOOKUP(B84,'KAYIT LİSTESİ'!$B$4:$H$767,5,0)),"",(VLOOKUP(B84,'KAYIT LİSTESİ'!$B$4:$H$767,5,0))) ->  | F84: =IF(ISERROR(VLOOKUP(B84,'KAYIT LİSTESİ'!$B$4:$H$767,6,0)),"",(VLOOKUP(B84,'KAYIT LİSTESİ'!$B$4:$H$767,6,0))) ->  | I84: 8 | J84: CİRİT-8 | K84: =IF(ISERROR(VLOOKUP(J84,'KAYIT LİSTESİ'!$B$4:$H$767,2,0)),"",(VLOOKUP(J84,'KAYIT LİSTESİ'!$B$4:$H$767,2,0))) ->  | L84: =IF(ISERROR(VLOOKUP(J84,'KAYIT LİSTESİ'!$B$4:$H$767,4,0)),"",(VLOOKUP(J84,'KAYIT LİSTESİ'!$B$4:$H$767,4,0))) ->  | M84: =IF(ISERROR(VLOOKUP(J84,'KAYIT LİSTESİ'!$B$4:$H$767,5,0)),"",(VLOOKUP(J84,'KAYIT LİSTESİ'!$B$4:$H$767,5,0))) ->  | N84: =IF(ISERROR(VLOOKUP(J84,'KAYIT LİSTESİ'!$B$4:$H$767,6,0)),"",(VLOOKUP(J84,'KAYIT LİSTESİ'!$B$4:$H$767,6,0))) -> 
A85: 2 | B85: 200M-3-2 | C85: =IF(ISERROR(VLOOKUP(B85,'KAYIT LİSTESİ'!$B$4:$H$767,2,0)),"",(VLOOKUP(B85,'KAYIT LİSTESİ'!$B$4:$H$767,2,0))) ->  | D85: =IF(ISERROR(VLOOKUP(B85,'KAYIT LİSTESİ'!$B$4:$H$767,4,0)),"",(VLOOKUP(B85,'KAYIT LİSTESİ'!$B$4:$H$767,4,0))) ->  | E85: =IF(ISERROR(VLOOKUP(B85,'KAYIT LİSTESİ'!$B$4:$H$767,5,0)),"",(VLOOKUP(B85,'KAYIT LİSTESİ'!$B$4:$H$767,5,0))) ->  | F85: =IF(ISERROR(VLOOKUP(B85,'KAYIT LİSTESİ'!$B$4:$H$767,6,0)),"",(VLOOKUP(B85,'KAYIT LİSTESİ'!$B$4:$H$767,6,0))) ->  | I85: 9 | J85: CİRİT-9 | K85: =IF(ISERROR(VLOOKUP(J85,'KAYIT LİSTESİ'!$B$4:$H$767,2,0)),"",(VLOOKUP(J85,'KAYIT LİSTESİ'!$B$4:$H$767,2,0))) ->  | L85: =IF(ISERROR(VLOOKUP(J85,'KAYIT LİSTESİ'!$B$4:$H$767,4,0)),"",(VLOOKUP(J85,'KAYIT LİSTESİ'!$B$4:$H$767,4,0))) ->  | M85: =IF(ISERROR(VLOOKUP(J85,'KAYIT LİSTESİ'!$B$4:$H$767,5,0)),"",(VLOOKUP(J85,'KAYIT LİSTESİ'!$B$4:$H$767,5,0))) ->  | N85: =IF(ISERROR(VLOOKUP(J85,'KAYIT LİSTESİ'!$B$4:$H$767,6,0)),"",(VLOOKUP(J85,'KAYIT LİSTESİ'!$B$4:$H$767,6,0))) -> 
A86: 3 | B86: 200M-3-3 | C86: =IF(ISERROR(VLOOKUP(B86,'KAYIT LİSTESİ'!$B$4:$H$767,2,0)),"",(VLOOKUP(B86,'KAYIT LİSTESİ'!$B$4:$H$767,2,0))) ->  | D86: =IF(ISERROR(VLOOKUP(B86,'KAYIT LİSTESİ'!$B$4:$H$767,4,0)),"",(VLOOKUP(B86,'KAYIT LİSTESİ'!$B$4:$H$767,4,0))) ->  | E86: =IF(ISERROR(VLOOKUP(B86,'KAYIT LİSTESİ'!$B$4:$H$767,5,0)),"",(VLOOKUP(B86,'KAYIT LİSTESİ'!$B$4:$H$767,5,0))) ->  | F86: =IF(ISERROR(VLOOKUP(B86,'KAYIT LİSTESİ'!$B$4:$H$767,6,0)),"",(VLOOKUP(B86,'KAYIT LİSTESİ'!$B$4:$H$767,6,0))) ->  | I86: 10 | J86: CİRİT-10 | K86: =IF(ISERROR(VLOOKUP(J86,'KAYIT LİSTESİ'!$B$4:$H$767,2,0)),"",(VLOOKUP(J86,'KAYIT LİSTESİ'!$B$4:$H$767,2,0))) ->  | L86: =IF(ISERROR(VLOOKUP(J86,'KAYIT LİSTESİ'!$B$4:$H$767,4,0)),"",(VLOOKUP(J86,'KAYIT LİSTESİ'!$B$4:$H$767,4,0))) ->  | M86: =IF(ISERROR(VLOOKUP(J86,'KAYIT LİSTESİ'!$B$4:$H$767,5,0)),"",(VLOOKUP(J86,'KAYIT LİSTESİ'!$B$4:$H$767,5,0))) ->  | N86: =IF(ISERROR(VLOOKUP(J86,'KAYIT LİSTESİ'!$B$4:$H$767,6,0)),"",(VLOOKUP(J86,'KAYIT LİSTESİ'!$B$4:$H$767,6,0))) -> 
A87: 4 | B87: 200M-3-4 | C87: =IF(ISERROR(VLOOKUP(B87,'KAYIT LİSTESİ'!$B$4:$H$767,2,0)),"",(VLOOKUP(B87,'KAYIT LİSTESİ'!$B$4:$H$767,2,0))) ->  | D87: =IF(ISERROR(VLOOKUP(B87,'KAYIT LİSTESİ'!$B$4:$H$767,4,0)),"",(VLOOKUP(B87,'KAYIT LİSTESİ'!$B$4:$H$767,4,0))) ->  | E87: =IF(ISERROR(VLOOKUP(B87,'KAYIT LİSTESİ'!$B$4:$H$767,5,0)),"",(VLOOKUP(B87,'KAYIT LİSTESİ'!$B$4:$H$767,5,0))) ->  | F87: =IF(ISERROR(VLOOKUP(B87,'KAYIT LİSTESİ'!$B$4:$H$767,6,0)),"",(VLOOKUP(B87,'KAYIT LİSTESİ'!$B$4:$H$767,6,0))) ->  | I87: 11 | J87: CİRİT-11 | K87: =IF(ISERROR(VLOOKUP(J87,'KAYIT LİSTESİ'!$B$4:$H$767,2,0)),"",(VLOOKUP(J87,'KAYIT LİSTESİ'!$B$4:$H$767,2,0))) ->  | L87: =IF(ISERROR(VLOOKUP(J87,'KAYIT LİSTESİ'!$B$4:$H$767,4,0)),"",(VLOOKUP(J87,'KAYIT LİSTESİ'!$B$4:$H$767,4,0))) ->  | M87: =IF(ISERROR(VLOOKUP(J87,'KAYIT LİSTESİ'!$B$4:$H$767,5,0)),"",(VLOOKUP(J87,'KAYIT LİSTESİ'!$B$4:$H$767,5,0))) ->  | N87: =IF(ISERROR(VLOOKUP(J87,'KAYIT LİSTESİ'!$B$4:$H$767,6,0)),"",(VLOOKUP(J87,'KAYIT LİSTESİ'!$B$4:$H$767,6,0))) -> 
A88: 5 | B88: 200M-3-5 | C88: =IF(ISERROR(VLOOKUP(B88,'KAYIT LİSTESİ'!$B$4:$H$767,2,0)),"",(VLOOKUP(B88,'KAYIT LİSTESİ'!$B$4:$H$767,2,0))) ->  | D88: =IF(ISERROR(VLOOKUP(B88,'KAYIT LİSTESİ'!$B$4:$H$767,4,0)),"",(VLOOKUP(B88,'KAYIT LİSTESİ'!$B$4:$H$767,4,0))) ->  | E88: =IF(ISERROR(VLOOKUP(B88,'KAYIT LİSTESİ'!$B$4:$H$767,5,0)),"",(VLOOKUP(B88,'KAYIT LİSTESİ'!$B$4:$H$767,5,0))) ->  | F88: =IF(ISERROR(VLOOKUP(B88,'KAYIT LİSTESİ'!$B$4:$H$767,6,0)),"",(VLOOKUP(B88,'KAYIT LİSTESİ'!$B$4:$H$767,6,0))) ->  | I88: 12 | J88: CİRİT-12 | K88: =IF(ISERROR(VLOOKUP(J88,'KAYIT LİSTESİ'!$B$4:$H$767,2,0)),"",(VLOOKUP(J88,'KAYIT LİSTESİ'!$B$4:$H$767,2,0))) ->  | L88: =IF(ISERROR(VLOOKUP(J88,'KAYIT LİSTESİ'!$B$4:$H$767,4,0)),"",(VLOOKUP(J88,'KAYIT LİSTESİ'!$B$4:$H$767,4,0))) ->  | M88: =IF(ISERROR(VLOOKUP(J88,'KAYIT LİSTESİ'!$B$4:$H$767,5,0)),"",(VLOOKUP(J88,'KAYIT LİSTESİ'!$B$4:$H$767,5,0))) ->  | N88: =IF(ISERROR(VLOOKUP(J88,'KAYIT LİSTESİ'!$B$4:$H$767,6,0)),"",(VLOOKUP(J88,'KAYIT LİSTESİ'!$B$4:$H$767,6,0))) -> 
